Workbook

Sheet WNIOSEK CZĘŚĆ I
A1: WNIOSEK O OBJĘCIE DOPŁATĄ Z FUNDUSZU ROZWOJU PRZEWOZÓW AUTOBUSOWYCH O CHARAKTERZE UŻYTECZNOŚCI PUBLICZNEJ W LATACH 2024-2033
A3: INFORMACJE SZCZEGÓŁOWE ORGANIZATORA
A4: NIP ORGANIZATORA
A5: Pełna nazwa Organizatora (dane uzupełnione automatycznie) | B5: =IFERROR(VLOOKUP($B$4,Arkusz2!$A$2:$K$203,2,0),"") ->  | E5: Rodzaj Organizatora (dane uzupełnione automatycznie) | I5: =IFERROR(VLOOKUP($B$4,Arkusz2!$A$2:$K$203,11,0),"") -> 
A6: Adres (dane uzupełnione automatycznie) | B6: =IFERROR(IF(B9=0,I7,B9),"") ->  | E6: Nr budynku (dane uzupełnione automatycznie) | I6: =IFERROR(VLOOKUP($B$4,Arkusz2!$A$2:$K$203,10,0),"") -> 
A7: Kod pocztowy (dane uzupełnione automatycznie) | B7: =IFERROR(VLOOKUP(B$4,Arkusz2!$A$2:$K$203,6,0),"") ->  | E7: Miejscowość (dane uzupełnione automatycznie) | I7: =IFERROR(VLOOKUP($B$4,Arkusz2!$A$2:$K$203,8,0),"") -> 
A8: Telefon | E8: Adres e-mail
B9: =VLOOKUP(B$4,Arkusz2!$A$2:$K$203,9,0) -> 
A10: Dane osoby wskazanej do kontaktowania się w sprawie wniosku
A11: Imię i Nazwisko | E11: Komórka organizacyjna
A12: Adres e-mail | E12: Telefon
A14: Dane osób upoważnionych do podpisania umowy o dopłatę
A15: Imię | B15: Nazwisko | C15: Funkcja | H15: Adres email
A20: NUMER WYODRĘBNIONEGO RACHUNKU BANKOWEGO DO DOPŁATY
H21: =IF(O21,"","SPRAWDŹ POPRAWNOŚĆ NUMERU RACHUNKU BANKOWEGO") -> SPRAWDŹ POPRAWNOŚĆ NUMERU RACHUNKU BANKOWEGO | N21: =wbank(A21) ->  | O21: =CzyNRBOk(A21,"PL") -> FALSE
A23: CZĘŚĆ A | C23: INFORMACJE OGÓLNE
A24: Powierzchnia obszaru właściwości organizatora w km2 (dane uzupełnione automatycznie) | C24: =IFERROR(VLOOKUP(B$4,Arkusz2!A:Q,15,0),"") -> 
A25: Liczba mieszkańców obszaru właściwości organizatora (dane uzupełnione automatycznie) | C25: =IFERROR(VLOOKUP(B$4,Arkusz2!A:Q,16,0),"") -> 
A26: Gęstość zaludnienia os./km2 (dane uzupełnione automatycznie) | C26: =IFERROR(VLOOKUP(B$4,Arkusz2!A:Q,17,0),"") -> 
A27: Wskaźnik dochodów podatkowych na jednego mieszkańca, o którym mowa w przepisach ustawy z dnia 13 listopada 2003 r. o dochodach jednostek samorządu terytorialnego (Dz.U. z 2021 r.poz.38), jednostki samorządu terytorialnego będącej organizatorem, a w przypadku związku tych jednostek - średnią arytmetyczną dochodu jednostek wchodzących w skład związku - zgodnie z danymi Ministerstwa Finansów (dane uzupełnione automatycznie) | C27: =IFERROR(VLOOKUP(B$4,Arkusz2!A:R,18,0),"") -> 
A28: CZĘŚĆ B | C28: DANE SZCZEGÓŁOWE
C29: 2024 | D29: 2025 | E29: 2026 | F29: 2027 | G29: 2028 | H29: 2029 | I29: 2030 | J29: 2031 | K29: 2032 | L29: 2033
A30: Liczba linii komunikacyjnych w przewozach autobusowych o charakterze użyteczności publicznej, które nie funkcjonowały co najmniej 3 miesiące przed dniem wejścia w życie ustawy (dane uzupełnione automatycznie) | C30: ='WNIOSEK CZĘŚĆ II'!B3 -> 0 | D30: ='WNIOSEK CZĘŚĆ II'!B5 -> 0 | E30: ='WNIOSEK CZĘŚĆ II'!B7 -> 0 | F30: ='WNIOSEK CZĘŚĆ II'!B9 -> 0 | G30: ='WNIOSEK CZĘŚĆ II'!B11 -> 0 | H30: ='WNIOSEK CZĘŚĆ II'!B13 -> 0 | I30: ='WNIOSEK CZĘŚĆ II'!B15 -> 0 | J30: ='WNIOSEK CZĘŚĆ II'!B17 -> 0 | K30: ='WNIOSEK CZĘŚĆ II'!B19 -> 0 | L30: ='WNIOSEK CZĘŚĆ II'!B21 -> 0
A31: Łączna długość linii komunikacyjnych w przewozach autobusowych o charakterze użyteczności publicznej, które nie funkcjonowały co najmniej 3 miesiące przed dniem wejścia w życie ustawy (dane uzupełnione automatycznie) | C31: ='WNIOSEK CZĘŚĆ II'!B23 -> 0 | D31: ='WNIOSEK CZĘŚĆ II'!B25 -> 0 | E31: ='WNIOSEK CZĘŚĆ II'!B27 -> 0 | F31: ='WNIOSEK CZĘŚĆ II'!B29 -> 0 | G31: ='WNIOSEK CZĘŚĆ II'!B31 -> 0 | H31: ='WNIOSEK CZĘŚĆ II'!B33 -> 0 | I31: ='WNIOSEK CZĘŚĆ II'!B35 -> 0 | J31: ='WNIOSEK CZĘŚĆ II'!B37 -> 0 | K31: ='WNIOSEK CZĘŚĆ II'!B39 -> 0 | L31: ='WNIOSEK CZĘŚĆ II'!B41 -> 0
A32: Łączna liczba zatrzymań autobusów na przystankach komunikacyjnych na liniach komunikacyjnych w przewozach autobusowych o charakterze użyteczności publicznej, które nie funkcjonowały co najmniej 3 miesiące przed dniem wejścia w życie ustawy (dane uzupełnione automatycznie) | C32: ='WNIOSEK CZĘŚĆ II'!B43 -> 0 | D32: ='WNIOSEK CZĘŚĆ II'!B45 -> 0 | E32: ='WNIOSEK CZĘŚĆ II'!B47 -> 0 | F32: ='WNIOSEK CZĘŚĆ II'!B49 -> 0 | G32: ='WNIOSEK CZĘŚĆ II'!B51 -> 0 | H32: ='WNIOSEK CZĘŚĆ II'!B53 -> 0 | I32: ='WNIOSEK CZĘŚĆ II'!B55 -> 0 | J32: ='WNIOSEK CZĘŚĆ II'!B57 -> 0 | K32: ='WNIOSEK CZĘŚĆ II'!B59 -> 0 | L32: ='WNIOSEK CZĘŚĆ II'!B61 -> 0
A33: Łączna planowana wielkość pracy eksplotacyjnej wykonywanej na liniach objętych wnioskiem w wozokilometrach (dane uzupełnione automatycznie) | C33: ='WNIOSEK CZĘŚĆ II'!B63 -> 0 | D33: ='WNIOSEK CZĘŚĆ II'!B65 -> 0 | E33: ='WNIOSEK CZĘŚĆ II'!B67 -> 0 | F33: ='WNIOSEK CZĘŚĆ II'!B69 -> 0 | G33: ='WNIOSEK CZĘŚĆ II'!B71 -> 0 | H33: ='WNIOSEK CZĘŚĆ II'!B73 -> 0 | I33: ='WNIOSEK CZĘŚĆ II'!B75 -> 0 | J33: ='WNIOSEK CZĘŚĆ II'!B77 -> 0 | K33: ='WNIOSEK CZĘŚĆ II'!B79 -> 0 | L33: ='WNIOSEK CZĘŚĆ II'!B81 -> 0
A34: Łączna planowana liczba przejazdów (dane uzupełnione automatycznie) | C34: ='WNIOSEK CZĘŚĆ II'!B123 -> 0 | D34: ='WNIOSEK CZĘŚĆ II'!B125 -> 0 | E34: ='WNIOSEK CZĘŚĆ II'!B127 -> 0 | F34: ='WNIOSEK CZĘŚĆ II'!B129 -> 0 | G34: ='WNIOSEK CZĘŚĆ II'!B131 -> 0 | H34: ='WNIOSEK CZĘŚĆ II'!B133 -> 0 | I34: ='WNIOSEK CZĘŚĆ II'!B135 -> 0 | J34: ='WNIOSEK CZĘŚĆ II'!B137 -> 0 | K34: ='WNIOSEK CZĘŚĆ II'!B139 -> 0 | L34: ='WNIOSEK CZĘŚĆ II'!B141 -> 0
A35: Dostosowanie przystanków komunikacyjnych i dworców, które zostały uwzględnione w rozkładzie jazdy linii komunikacyjnych w przewozach autobusowych o charakterze użyteczności publicznej (ilość przystanków) | B35: LICZBA PRZYSTANKÓW DOSTOSOWANYCH (dane uzupełnione automatycznie) | C35: ='WNIOSEK CZĘŚĆ II'!B83 -> 0 | D35: ='WNIOSEK CZĘŚĆ II'!B85 -> 0 | E35: ='WNIOSEK CZĘŚĆ II'!B87 -> 0 | F35: ='WNIOSEK CZĘŚĆ II'!B89 -> 0 | G35: ='WNIOSEK CZĘŚĆ II'!B91 -> 0 | H35: ='WNIOSEK CZĘŚĆ II'!B93 -> 0 | I35: ='WNIOSEK CZĘŚĆ II'!B95 -> 0 | J35: ='WNIOSEK CZĘŚĆ II'!B97 -> 0 | K35: ='WNIOSEK CZĘŚĆ II'!B99 -> 0 | L35: ='WNIOSEK CZĘŚĆ II'!B101 -> 0
B36: ŁĄCZNA LICZBA PRZYSTANKÓW (dane uzupełnione automatycznie) | C36: ='WNIOSEK CZĘŚĆ II'!B103 -> 0 | D36: ='WNIOSEK CZĘŚĆ II'!B105 -> 0 | E36: ='WNIOSEK CZĘŚĆ II'!B107 -> 0 | F36: ='WNIOSEK CZĘŚĆ II'!B109 -> 0 | G36: ='WNIOSEK CZĘŚĆ II'!B111 -> 0 | H36: ='WNIOSEK CZĘŚĆ II'!B113 -> 0 | I36: ='WNIOSEK CZĘŚĆ II'!B115 -> 0 | J36: ='WNIOSEK CZĘŚĆ II'!B117 -> 0 | K36: ='WNIOSEK CZĘŚĆ II'!B119 -> 0 | L36: ='WNIOSEK CZĘŚĆ II'!B121 -> 0
A37: Zapewnienie dostępności komunikacyjnej terenów objętych przedsięwzięciami lub inwestycjami powiązanymi z przedsięwzięciem infrastrukturalnym, o którym mowa w art.. 5c ust. 1 ustawy z dnia 8 grudnia 2006 r. o finansowym wsparciu niektórych przedsięwzięć mieszkaniowych (Dz.U z 2022 r. poz. 377 z późn. zm.) | B37: LICZBA PRZYSTANKÓW ZLOKALIZOWANYCH W ODLEGŁOŚCI NIE WIĘKSZEJ NIŻ 500 M (dane uzupełnione automatycznie) | C37: ='WNIOSEK CZĘŚĆ II'!B143 -> 0 | D37: ='WNIOSEK CZĘŚĆ II'!B145 -> 0 | E37: ='WNIOSEK CZĘŚĆ II'!B147 -> 0 | F37: ='WNIOSEK CZĘŚĆ II'!B149 -> 0 | G37: ='WNIOSEK CZĘŚĆ II'!B151 -> 0 | H37: ='WNIOSEK CZĘŚĆ II'!B153 -> 0 | I37: ='WNIOSEK CZĘŚĆ II'!B155 -> 0 | J37: ='WNIOSEK CZĘŚĆ II'!B157 -> 0 | K37: ='WNIOSEK CZĘŚĆ II'!B159 -> 0 | L37: ='WNIOSEK CZĘŚĆ II'!B161 -> 0
B38: ŁĄCZNA LICZBA PRZYSTANKÓW (dane uzupełnione automatycznie) | C38: =C36 -> 0 | D38: =D36 -> 0 | E38: 0 | F38: 0 | G38: 0 | H38: 0 | I38: 0 | J38: 0 | K38: 0 | L38: 0
K39: =K33*3 -> 0
A40: CZĘŚĆ C | C40: DANE FINANSOWE
C41: 2024 | D41: 2025 | E41: 2026 | F41: 2027 | G41: 2028 | H41: 2029 | I41: 2030 | J41: 2031 | K41: 2032 | L41: 2033
A42: Łączna planowana kwota deficytu wszystkich linii komunikacyjnych w danym roku budżetowym | C42: ='WNIOSEK CZĘŚĆ II'!B164 -> 0 | D42: ='WNIOSEK CZĘŚĆ II'!B166 -> 0 | E42: ='WNIOSEK CZĘŚĆ II'!B168 -> 0 | F42: ='WNIOSEK CZĘŚĆ II'!B170 -> 0 | G42: ='WNIOSEK CZĘŚĆ II'!B172 -> 0 | H42: ='WNIOSEK CZĘŚĆ II'!B174 -> 0 | I42: ='WNIOSEK CZĘŚĆ II'!B176 -> 0 | J42: ='WNIOSEK CZĘŚĆ II'!B178 -> 0 | K42: ='WNIOSEK CZĘŚĆ II'!B180 -> 0 | L42: ='WNIOSEK CZĘŚĆ II'!B182 -> 0
A43: Środki własne organizatora finansujące część deficytu wszystkich linii komunikacyjnych w wysokości nie mniejszej niż 10% w danym roku budżetowym | C43: ='WNIOSEK CZĘŚĆ II'!B184 -> 0 | D43: ='WNIOSEK CZĘŚĆ II'!B186 -> 0 | E43: ='WNIOSEK CZĘŚĆ II'!B188 -> 0 | F43: ='WNIOSEK CZĘŚĆ II'!B190 -> 0 | G43: ='WNIOSEK CZĘŚĆ II'!B192 -> 0 | H43: ='WNIOSEK CZĘŚĆ II'!B194 -> 0 | I43: ='WNIOSEK CZĘŚĆ II'!B196 -> 0 | J43: ='WNIOSEK CZĘŚĆ II'!B198 -> 0 | K43: ='WNIOSEK CZĘŚĆ II'!B200 -> 0 | L43: ='WNIOSEK CZĘŚĆ II'!B202 -> 0
A44: Planowana łączna kwota dopłaty w danym roku budżetowym | C44: ='WNIOSEK CZĘŚĆ II'!B204 -> 0 | D44: ='WNIOSEK CZĘŚĆ II'!B206 -> 0 | E44: ='WNIOSEK CZĘŚĆ II'!B208 -> 0 | F44: ='WNIOSEK CZĘŚĆ II'!B210 -> 0 | G44: ='WNIOSEK CZĘŚĆ II'!B212 -> 0 | H44: ='WNIOSEK CZĘŚĆ II'!B214 -> 0 | I44: ='WNIOSEK CZĘŚĆ II'!B216 -> 0 | J44: ='WNIOSEK CZĘŚĆ II'!B218 -> 0 | K44: ='WNIOSEK CZĘŚĆ II'!B220 -> 0 | L44: ='WNIOSEK CZĘŚĆ II'!B222 -> 0
A45: Suma środków własnych organizatora finansujących część ceny usługi w wysokości nie mniejszej niż 10% oraz planowana łączna kwota dopłaty w danym roku budżetowym | C45: =C43+C44 -> 0 | D45: =D43+D44 -> 0 | E45: 0 | F45: 0 | G45: 0 | H45: 0 | I45: 0 | J45: 0 | K45: =K43+K44 -> 0 | L45: =L43+L44 -> 0
A47: CZĘŚĆ D | C47: WNIOSKOWANA KWOTA DOPŁATY W DANYM ROKU
A48: Suma kwoty dopłaty we wszystkich latach | C48: 2024 | D48: 2025 | E48: 2026 | F48: 2027 | G48: 2028 | H48: 2029 | I48: 2030 | J48: 2031 | K48: 2032 | L48: 2033
B49: =SUM(C49:L49) -> 0 | C49: =IF('WNIOSEK CZĘŚĆ II'!D257="",'WNIOSEK CZĘŚĆ I'!C44,0) -> 0 | D49: =IF('WNIOSEK CZĘŚĆ II'!E257="",'WNIOSEK CZĘŚĆ I'!D44,0) -> 0 | E49: =IF('WNIOSEK CZĘŚĆ II'!F257="",'WNIOSEK CZĘŚĆ I'!E44,0) -> 0 | F49: =IF('WNIOSEK CZĘŚĆ II'!G257="",'WNIOSEK CZĘŚĆ I'!F44,0) -> 0 | G49: =IF('WNIOSEK CZĘŚĆ II'!H257="",'WNIOSEK CZĘŚĆ I'!G44,0) -> 0 | H49: =IF('WNIOSEK CZĘŚĆ II'!I257="",'WNIOSEK CZĘŚĆ I'!H44,0) -> 0 | I49: =IF('WNIOSEK CZĘŚĆ II'!J257="",'WNIOSEK CZĘŚĆ I'!I44,0) -> 0 | J49: =IF('WNIOSEK CZĘŚĆ II'!N257="",'WNIOSEK CZĘŚĆ I'!J44,0) -> 0 | K49: =IF('WNIOSEK CZĘŚĆ II'!O257="",'WNIOSEK CZĘŚĆ I'!K44,0) -> 0 | L49: =IF('WNIOSEK CZĘŚĆ II'!P257="",'WNIOSEK CZĘŚĆ I'!L44,0) -> 0
A51: OŚWIADCZENIA
A52: 1. OŚWIADCZAM, ŻE ZAPOZNAŁEM SIĘ Z PRZEPISAMI USTAWY Z DNIA 16 MAJA 2019 R. O FUNDUSZU ROZWOJU PRZEWOZÓW AUTOBUSOWYCH O CHARAKTERZE UŻYTECZNOŚCI PUBLICZNEJ (t.j. DZ. U Z 2022 R. POZ. 2464 ze zm.) ORAZ AKTAMI WYKONAWCZYMI DO USTAWY I BĘDĘ STOSOWAŁ SIĘ DO WARUNKÓW Z NICH WYNIKAJĄCYCH;
A53: 2. OŚWIADCZAM, ŻE ORGANIZATOR UZYSKA ZGODĘ SWOJEGO ORGANU STANOWIĄCEGO NA ZAWARCIE UMOWY O ŚWIADCZENIE USŁUG W ZAKRESIE PUBLICZNEGO TRANSPORTU ZBIOROWEGO;
A54: 3. OŚWIADCZAM, ŻE ZE ŚRODKÓW WŁASNYCH ORGANIZATORA ZOSTANIE SFINANSOWANA CZĘŚĆ DEFICYTU KAŻDEJ LINII KOMUNIKACYJNEJ W WYSOKOŚCI NIE MNIEJSZEJ NIŻ 10%;
A55: 4. OŚWIADCZAM, ŻE WNIOSEK OBEJMUJE WYŁĄCZNIE LINIE KOMUNIKACYJNE O CHARAKTERZE UŻYTECZNOŚCI PUBLICZNEJNIEFUNKCJONUJACE CO NAJMNIEJ 3 MIESIACE PRZED DNIE WEJSCIA W ZYCIE USTAWY Z DNIA 16 MAJA 2019 R. O FUNDUSZU ROZWOJU PRZEWOZÓW AUTOBUSOWYCH O CHARAKTERZE UŻYTECZNOŚCI PUBLICZNEJ;
A56: 5. OŚWIADCZAM, ŻE LINIE KOMUNIKACYJNE O CHARAKTERZE UZYTECZNOSCI PUBLICZNEJ OBJĘTE WNIOSKIEM NIE STANOWIĄ KOMUNIKACJI MIEJSKIEJ W ROZUMIENIU USTAWY Z DNIA 16 GRUDNIA 2010 R. O PUBLICZNYM TRANSPORCIE ZBIOROWYM;
A57: 6. OŚWIADCZAM, ŻE WSZYSTKIE PRZEDSTAWIONE WE WNIOSKU DANE SĄ RZETELNE I ZGODNE ZE STANEM FAKTYCZNYM;

Sheet WNIOSEK CZĘŚĆ II
B1: WYKAZ LINII | R1: WYKAZ LINII | AH1: WYKAZ LINII | AX1: WYKAZ LINII | BN1: WYKAZ LINII | CD1: WYKAZ LINII | CT1: WYKAZ LINII | DJ1: WYKAZ LINII | DZ1: WYKAZ LINII | EP1: WYKAZ LINII | FF1: WYKAZ LINII | FV1: WYKAZ LINII | GL1: WYKAZ LINII | HB1: WYKAZ LINII | HR1: WYKAZ LINII | IH1: WYKAZ LINII | IX1: WYKAZ LINII | JN1: WYKAZ LINII | KD1: WYKAZ LINII | KT1: WYKAZ LINII | LJ1: WYKAZ LINII | LZ1: WYKAZ LINII | MP1: WYKAZ LINII | NF1: WYKAZ LINII | NV1: WYKAZ LINII | OL1: WYKAZ LINII | PB1: WYKAZ LINII | PR1: WYKAZ LINII | QH1: WYKAZ LINII | QX1: WYKAZ LINII | RN1: WYKAZ LINII | SD1: WYKAZ LINII | ST1: WYKAZ LINII | TJ1: WYKAZ LINII | TZ1: WYKAZ LINII | UP1: WYKAZ LINII | VF1: WYKAZ LINII | VV1: WYKAZ LINII | WL1: WYKAZ LINII | XB1: WYKAZ LINII | XR1: WYKAZ LINII | YH1: WYKAZ LINII | YX1: WYKAZ LINII | ZN1: WYKAZ LINII | AAD1: WYKAZ LINII | AAT1: WYKAZ LINII | ABJ1: WYKAZ LINII | ABZ1: WYKAZ LINII | ACP1: WYKAZ LINII | ADF1: WYKAZ LINII
B2: SUMA W DANYM ROKU | D2: 2024 | E2: 2025 | F2: 2026 | G2: 2027 | H2: 2028 | I2: 2029 | J2: 2030 | N2: 2031 | O2: 2032 | P2: 2033 | R2: SUMA W DANYM ROKU | T2: 2024 | U2: 2025 | V2: 2026 | W2: 2027 | X2: 2028 | Y2: 2029 | Z2: 2030 | AD2: 2031 | AE2: 2032 | AF2: 2033 | AH2: SUMA W DANYM ROKU | AJ2: 2024 | AK2: 2025 | AL2: 2026 | AM2: 2027 | AN2: 2028 | AO2: 2029 | AP2: 2030 | AT2: 2031 | AU2: 2032 | AV2: 2033 | AX2: SUMA W DANYM ROKU | AZ2: 2024 | BA2: 2025 | BB2: 2026 | BC2: 2027 | BD2: 2028 | BE2: 2029 | BF2: 2030 | BJ2: 2031 | BK2: 2032 | BL2: 2033 | BN2: SUMA W DANYM ROKU | BP2: 2024 | BQ2: 2025 | BR2: 2026 | BS2: 2027 | BT2: 2028 | BU2: 2029 | BV2: 2030 | BZ2: 2031 | CA2: 2032 | CB2: 2033 | CD2: SUMA W DANYM ROKU | CF2: 2024 | CG2: 2025 | CH2: 2026 | CI2: 2027 | CJ2: 2028 | CK2: 2029 | CL2: 2030 | CP2: 2031 | CQ2: 2032 | CR2: 2033 | CT2: SUMA W DANYM ROKU | CV2: 2024 | CW2: 2025 | CX2: 2026 | CY2: 2027 | CZ2: 2028 | DA2: 2029 | DB2: 2030 | DF2: 2031 | DG2: 2032 | DH2: 2033 | DJ2: SUMA W DANYM ROKU | DL2: 2024 | DM2: 2025 | DN2: 2026 | DO2: 2027 | DP2: 2028 | DQ2: 2029 | DR2: 2030 | DV2: 2031 | DW2: 2032 | DX2: 2033 | DZ2: SUMA W DANYM ROKU | EB2: 2024 | EC2: 2025 | ED2: 2026 | EE2: 2027 | EF2: 2028 | EG2: 2029 | EH2: 2030 | EL2: 2031 | EM2: 2032 | EN2: 2033 | EP2: SUMA W DANYM ROKU | ER2: 2024 | ES2: 2025 | ET2: 2026 | EU2: 2027 | EV2: 2028 | EW2: 2029 | EX2: 2030 | FB2: 2031 | FC2: 2032 | FD2: 2033 | FF2: SUMA W DANYM ROKU | FH2: 2024 | FI2: 2025 | FJ2: 2026 | FK2: 2027 | FL2: 2028 | FM2: 2029 | FN2: 2030 | FR2: 2031 | FS2: 2032 | FT2: 2033 | FV2: SUMA W DANYM ROKU | FX2: 2024 | FY2: 2025 | FZ2: 2026 | GA2: 2027 | GB2: 2028 | GC2: 2029 | GD2: 2030 | GH2: 2031 | GI2: 2032 | GJ2: 2033 | GL2: SUMA W DANYM ROKU | GN2: 2024 | GO2: 2025 | GP2: 2026 | GQ2: 2027 | GR2: 2028 | GS2: 2029 | GT2: 2030 | GX2: 2031 | GY2: 2032 | GZ2: 2033 | HB2: SUMA W DANYM ROKU | HD2: 2024 | HE2: 2025 | HF2: 2026 | HG2: 2027 | HH2: 2028 | HI2: 2029 | HJ2: 2030 | HN2: 2031 | HO2: 2032 | HP2: 2033 | HR2: SUMA W DANYM ROKU | HT2: 2024 | HU2: 2025 | HV2: 2026 | HW2: 2027 | HX2: 2028 | HY2: 2029 | HZ2: 2030 | ID2: 2031 | IE2: 2032 | IF2: 2033 | IH2: SUMA W DANYM ROKU | IJ2: 2024 | IK2: 2025 | IL2: 2026 | IM2: 2027 | IN2: 2028 | IO2: 2029 | IP2: 2030 | IT2: 2031 | IU2: 2032 | IV2: 2033 | IX2: SUMA W DANYM ROKU | IZ2: 2024 | JA2: 2025 | JB2: 2026 | JC2: 2027 | JD2: 2028 | JE2: 2029 | JF2: 2030 | JJ2: 2031 | JK2: 2032 | JL2: 2033 | JN2: SUMA W DANYM ROKU | JP2: 2024 | JQ2: 2025 | JR2: 2026 | JS2: 2027 | JT2: 2028 | JU2: 2029 | JV2: 2030 | JZ2: 2031 | KA2: 2032 | KB2: 2033 | KD2: SUMA W DANYM ROKU | KF2: 2024 | KG2: 2025 | KH2: 2026 | KI2: 2027 | KJ2: 2028 | KK2: 2029 | KL2: 2030 | KP2: 2031 | KQ2: 2032 | KR2: 2033 | KT2: SUMA W DANYM ROKU | KV2: 2024 | KW2: 2025 | KX2: 2026 | KY2: 2027 | KZ2: 2028 | LA2: 2029 | LB2: 2030 | LF2: 2031 | LG2: 2032 | LH2: 2033 | LJ2: SUMA W DANYM ROKU | LL2: 2024 | LM2: 2025 | LN2: 2026 | LO2: 2027 | LP2: 2028 | LQ2: 2029 | LR2: 2030 | LV2: 2031 | LW2: 2032 | LX2: 2033 | LZ2: SUMA W DANYM ROKU | MB2: 2024 | MC2: 2025 | MD2: 2026 | ME2: 2027 | MF2: 2028 | MG2: 2029 | MH2: 2030 | ML2: 2031 | MM2: 2032 | MN2: 2033 | MP2: SUMA W DANYM ROKU | MR2: 2024 | MS2: 2025 | MT2: 2026 | MU2: 2027 | MV2: 2028 | MW2: 2029 | MX2: 2030 | NB2: 2031 | NC2: 2032 | ND2: 2033 | NF2: SUMA W DANYM ROKU | NH2: 2024 | NI2: 2025 | NJ2: 2026 | NK2: 2027 | NL2: 2028 | NM2: 2029 | NN2: 2030 | NR2: 2031 | NS2: 2032 | NT2: 2033 | NV2: SUMA W DANYM ROKU | NX2: 2024 | NY2: 2025 | NZ2: 2026 | OA2: 2027 | OB2: 2028 | OC2: 2029 | OD2: 2030 | OH2: 2031 | OI2: 2032 | OJ2: 2033 | OL2: SUMA W DANYM ROKU | ON2: 2024 | OO2: 2025 | OP2: 2026 | OQ2: 2027 | OR2: 2028 | OS2: 2029 | OT2: 2030 | OX2: 2031 | OY2: 2032 | OZ2: 2033 | PB2: SUMA W DANYM ROKU | PD2: 2024 | PE2: 2025 | PF2: 2026 | PG2: 2027 | PH2: 2028 | PI2: 2029 | PJ2: 2030 | PN2: 2031 | PO2: 2032 | PP2: 2033 | PR2: SUMA W DANYM ROKU | PT2: 2024 | PU2: 2025 | PV2: 2026 | PW2: 2027 | PX2: 2028 | PY2: 2029 | PZ2: 2030 | QD2: 2031 | QE2: 2032 | QF2: 2033 | QH2: SUMA W DANYM ROKU | QJ2: 2024 | QK2: 2025 | QL2: 2026 | QM2: 2027 | QN2: 2028 | QO2: 2029 | QP2: 2030 | QT2: 2031 | QU2: 2032 | QV2: 2033 | QX2: SUMA W DANYM ROKU | QZ2: 2024 | RA2: 2025 | RB2: 2026 | RC2: 2027 | RD2: 2028 | RE2: 2029 | RF2: 2030 | RJ2: 2031 | RK2: 2032 | RL2: 2033 | RN2: SUMA W DANYM ROKU | RP2: 2024 | RQ2: 2025 | RR2: 2026 | RS2: 2027 | RT2: 2028 | RU2: 2029 | RV2: 2030 | RZ2: 2031 | SA2: 2032 | SB2: 2033 | SD2: SUMA W DANYM ROKU | SF2: 2024 | SG2: 2025 | SH2: 2026 | SI2: 2027 | SJ2: 2028 | SK2: 2029 | SL2: 2030 | SP2: 2031 | SQ2: 2032 | SR2: 2033 | ST2: SUMA W DANYM ROKU | SV2: 2024 | SW2: 2025 | SX2: 2026 | SY2: 2027 | SZ2: 2028 | TA2: 2029 | TB2: 2030 | TF2: 2031 | TG2: 2032 | TH2: 2033 | TJ2: SUMA W DANYM ROKU | TL2: 2024 | TM2: 2025 | TN2: 2026 | TO2: 2027 | TP2: 2028 | TQ2: 2029 | TR2: 2030 | TV2: 2031 | TW2: 2032 | TX2: 2033 | TZ2: SUMA W DANYM ROKU | UB2: 2024 | UC2: 2025 | UD2: 2026 | UE2: 2027 | UF2: 2028 | UG2: 2029 | UH2: 2030 | UL2: 2031 | UM2: 2032 | UN2: 2033 | UP2: SUMA W DANYM ROKU | UR2: 2024 | US2: 2025 | UT2: 2026 | UU2: 2027 | UV2: 2028 | UW2: 2029 | UX2: 2030 | VB2: 2031 | VC2: 2032 | VD2: 2033 | VF2: SUMA W DANYM ROKU | VH2: 2024 | VI2: 2025 | VJ2: 2026 | VK2: 2027 | VL2: 2028 | VM2: 2029 | VN2: 2030 | VR2: 2031 | VS2: 2032 | VT2: 2033 | VV2: SUMA W DANYM ROKU | VX2: 2024 | VY2: 2025 | VZ2: 2026 | WA2: 2027 | WB2: 2028 | WC2: 2029 | WD2: 2030 | WH2: 2031 | WI2: 2032 | WJ2: 2033 | WL2: SUMA W DANYM ROKU | WN2: 2024 | WO2: 2025 | WP2: 2026 | WQ2: 2027 | WR2: 2028 | WS2: 2029 | WT2: 2030 | WX2: 2031 | WY2: 2032 | WZ2: 2033 | XB2: SUMA W DANYM ROKU | XD2: 2024 | XE2: 2025 | XF2: 2026 | XG2: 2027 | XH2: 2028 | XI2: 2029 | XJ2: 2030 | XN2: 2031 | XO2: 2032 | XP2: 2033 | XR2: SUMA W DANYM ROKU | XT2: 2024 | XU2: 2025 | XV2: 2026 | XW2: 2027 | XX2: 2028 | XY2: 2029 | XZ2: 2030 | YD2: 2031 | YE2: 2032 | YF2: 2033 | YH2: SUMA W DANYM ROKU | YJ2: 2024 | YK2: 2025 | YL2: 2026 | YM2: 2027 | YN2: 2028 | YO2: 2029 | YP2: 2030 | YT2: 2031 | YU2: 2032 | YV2: 2033 | YX2: SUMA W DANYM ROKU | YZ2: 2024 | ZA2: 2025 | ZB2: 2026 | ZC2: 2027 | ZD2: 2028 | ZE2: 2029 | ZF2: 2030 | ZJ2: 2031 | ZK2: 2032 | ZL2: 2033 | ZN2: SUMA W DANYM ROKU | ZP2: 2024 | ZQ2: 2025 | ZR2: 2026 | ZS2: 2027 | ZT2: 2028 | ZU2: 2029 | ZV2: 2030 | ZZ2: 2031 | AAA2: 2032 | AAB2: 2033 | AAD2: SUMA W DANYM ROKU | AAF2: 2024 | AAG2: 2025 | AAH2: 2026 | AAI2: 2027 | AAJ2: 2028 | AAK2: 2029 | AAL2: 2030 | AAP2: 2031 | AAQ2: 2032 | AAR2: 2033 | AAT2: SUMA W DANYM ROKU | AAV2: 2024 | AAW2: 2025 | AAX2: 2026 | AAY2: 2027 | AAZ2: 2028 | ABA2: 2029 | ABB2: 2030 | ABF2: 2031 | ABG2: 2032 | ABH2: 2033 | ABJ2: SUMA W DANYM ROKU | ABL2: 2024 | ABM2: 2025 | ABN2: 2026 | ABO2: 2027 | ABP2: 2028 | ABQ2: 2029 | ABR2: 2030 | ABV2: 2031 | ABW2: 2032 | ABX2: 2033 | ABZ2: SUMA W DANYM ROKU | ACB2: 2024 | ACC2: 2025 | ACD2: 2026 | ACE2: 2027 | ACF2: 2028 | ACG2: 2029 | ACH2: 2030 | ACL2: 2031 | ACM2: 2032 | ACN2: 2033 | ACP2: SUMA W DANYM ROKU | ACR2: 2024 | ACS2: 2025 | ACT2: 2026 | ACU2: 2027 | ACV2: 2028 | ACW2: 2029 | ACX2: 2030 | ADB2: 2031 | ADC2: 2032 | ADD2: 2033 | ADF2: SUMA W DANYM ROKU | ADH2: 2024 | ADI2: 2025 | ADJ2: 2026 | ADK2: 2027 | ADL2: 2028 | ADM2: 2029 | ADN2: 2030 | ADR2: 2031 | ADS2: 2032 | ADT2: 2033
A3: 2024 | B3: =SUM(4:4) -> 0 | C3: LICZBA LINII | Q3: 2024 | R3: =SUM(4:4) -> 0 | S3: LICZBA LINII | AG3: 2024 | AH3: =SUM(4:4) -> 0 | AI3: LICZBA LINII | AW3: 2024 | AX3: =SUM(4:4) -> 0 | AY3: LICZBA LINII | BM3: 2024 | BN3: =SUM(4:4) -> 0 | BO3: LICZBA LINII | CC3: 2024 | CD3: =SUM(4:4) -> 0 | CE3: LICZBA LINII | CS3: 2024 | CT3: =SUM(4:4) -> 0 | CU3: LICZBA LINII | DI3: 2024 | DJ3: =SUM(4:4) -> 0 | DK3: LICZBA LINII | DY3: 2024 | DZ3: =SUM(4:4) -> 0 | EA3: LICZBA LINII | EO3: 2024 | EP3: =SUM(4:4) -> 0 | EQ3: LICZBA LINII | FE3: 2024 | FF3: =SUM(4:4) -> 0 | FG3: LICZBA LINII | FU3: 2024 | FV3: =SUM(4:4) -> 0 | FW3: LICZBA LINII | GK3: 2024 | GL3: =SUM(4:4) -> 0 | GM3: LICZBA LINII | HA3: 2024 | HB3: =SUM(4:4) -> 0 | HC3: LICZBA LINII | HQ3: 2024 | HR3: =SUM(4:4) -> 0 | HS3: LICZBA LINII | IG3: 2024 | IH3: =SUM(4:4) -> 0 | II3: LICZBA LINII | IW3: 2024 | IX3: =SUM(4:4) -> 0 | IY3: LICZBA LINII | JM3: 2024 | JN3: =SUM(4:4) -> 0 | JO3: LICZBA LINII | KC3: 2024 | KD3: =SUM(4:4) -> 0 | KE3: LICZBA LINII | KS3: 2024 | KT3: =SUM(4:4) -> 0 | KU3: LICZBA LINII | LI3: 2024 | LJ3: =SUM(4:4) -> 0 | LK3: LICZBA LINII | LY3: 2024 | LZ3: =SUM(4:4) -> 0 | MA3: LICZBA LINII | MO3: 2024 | MP3: =SUM(4:4) -> 0 | MQ3: LICZBA LINII | NE3: 2024 | NF3: =SUM(4:4) -> 0 | NG3: LICZBA LINII | NU3: 2024 | NV3: =SUM(4:4) -> 0 | NW3: LICZBA LINII | OK3: 2024 | OL3: =SUM(4:4) -> 0 | OM3: LICZBA LINII | PA3: 2024 | PB3: =SUM(4:4) -> 0 | PC3: LICZBA LINII | PQ3: 2024 | PR3: =SUM(4:4) -> 0 | PS3: LICZBA LINII | QG3: 2024 | QH3: =SUM(4:4) -> 0 | QI3: LICZBA LINII | QW3: 2024 | QX3: =SUM(4:4) -> 0 | QY3: LICZBA LINII | RM3: 2024 | RN3: =SUM(4:4) -> 0 | RO3: LICZBA LINII | SC3: 2024 | SD3: =SUM(4:4) -> 0 | SE3: LICZBA LINII | SS3: 2024 | ST3: =SUM(4:4) -> 0 | SU3: LICZBA LINII | TI3: 2024 | TJ3: =SUM(4:4) -> 0 | TK3: LICZBA LINII | TY3: 2024 | TZ3: =SUM(4:4) -> 0 | UA3: LICZBA LINII | UO3: 2024 | UP3: =SUM(4:4) -> 0 | UQ3: LICZBA LINII | VE3: 2024 | VF3: =SUM(4:4) -> 0 | VG3: LICZBA LINII | VU3: 2024 | VV3: =SUM(4:4) -> 0 | VW3: LICZBA LINII | WK3: 2024 | WL3: =SUM(4:4) -> 0 | WM3: LICZBA LINII | XA3: 2024 | XB3: =SUM(4:4) -> 0 | XC3: LICZBA LINII | XQ3: 2024 | XR3: =SUM(4:4) -> 0 | XS3: LICZBA LINII | YG3: 2024 | YH3: =SUM(4:4) -> 0 | YI3: LICZBA LINII | YW3: 2024 | YX3: =SUM(4:4) -> 0 | YY3: LICZBA LINII | ZM3: 2024 | ZN3: =SUM(4:4) -> 0 | ZO3: LICZBA LINII | AAC3: 2024 | AAD3: =SUM(4:4) -> 0 | AAE3: LICZBA LINII | AAS3: 2024 | AAT3: =SUM(4:4) -> 0 | AAU3: LICZBA LINII | ABI3: 2024 | ABJ3: =SUM(4:4) -> 0 | ABK3: LICZBA LINII | ABY3: 2024 | ABZ3: =SUM(4:4) -> 0 | ACA3: LICZBA LINII | ACO3: 2024 | ACP3: =SUM(4:4) -> 0 | ACQ3: LICZBA LINII | ADE3: 2024 | ADF3: =SUM(4:4) -> 0 | ADG3: LICZBA LINII
D4: =IF($C$224="",0,1)*D$227 -> 0 | T4: =IF($C$224="",0,1)*T$227 -> 0 | AJ4: =IF($C$224="",0,1)*AJ$227 -> 0 | AZ4: =IF($C$224="",0,1)*AZ$227 -> 0 | BP4: =IF($C$224="",0,1)*BP$227 -> 0 | CF4: =IF($C$224="",0,1)*CF$227 -> 0 | CV4: =IF($C$224="",0,1)*CV$227 -> 0 | DL4: =IF($C$224="",0,1)*DL$227 -> 0 | EB4: =IF($C$224="",0,1)*EB$227 -> 0 | ER4: =IF($C$224="",0,1)*ER$227 -> 0 | FH4: =IF($C$224="",0,1)*FH$227 -> 0 | FX4: =IF($C$224="",0,1)*FX$227 -> 0 | GN4: =IF($C$224="",0,1)*GN$227 -> 0 | HD4: =IF($C$224="",0,1)*HD$227 -> 0 | HT4: =IF($C$224="",0,1)*HT$227 -> 0 | IJ4: =IF($C$224="",0,1)*IJ$227 -> 0 | IZ4: =IF($C$224="",0,1)*IZ$227 -> 0 | JP4: =IF($C$224="",0,1)*JP$227 -> 0 | KF4: =IF($C$224="",0,1)*KF$227 -> 0 | KV4: =IF($C$224="",0,1)*KV$227 -> 0 | LL4: =IF($C$224="",0,1)*LL$227 -> 0 | MB4: =IF($C$224="",0,1)*MB$227 -> 0 | MR4: =IF($C$224="",0,1)*MR$227 -> 0 | NH4: =IF($C$224="",0,1)*NH$227 -> 0 | NX4: =IF($C$224="",0,1)*NX$227 -> 0 | ON4: =IF($C$224="",0,1)*ON$227 -> 0 | PD4: =IF($C$224="",0,1)*PD$227 -> 0 | PT4: =IF($C$224="",0,1)*PT$227 -> 0 | QJ4: =IF($C$224="",0,1)*QJ$227 -> 0 | QZ4: =IF($C$224="",0,1)*QZ$227 -> 0 | RP4: =IF($C$224="",0,1)*RP$227 -> 0 | SF4: =IF($C$224="",0,1)*SF$227 -> 0 | SV4: =IF($C$224="",0,1)*SV$227 -> 0 | TL4: =IF($C$224="",0,1)*TL$227 -> 0 | UB4: =IF($C$224="",0,1)*UB$227 -> 0 | UR4: =IF($C$224="",0,1)*UR$227 -> 0 | VH4: =IF($C$224="",0,1)*VH$227 -> 0 | VX4: =IF($C$224="",0,1)*VX$227 -> 0 | WN4: =IF($C$224="",0,1)*WN$227 -> 0 | XD4: =IF($C$224="",0,1)*XD$227 -> 0 | XT4: =IF($C$224="",0,1)*XT$227 -> 0 | YJ4: =IF($C$224="",0,1)*YJ$227 -> 0 | YZ4: =IF($C$224="",0,1)*YZ$227 -> 0 | ZP4: =IF($C$224="",0,1)*ZP$227 -> 0 | AAF4: =IF($C$224="",0,1)*AAF$227 -> 0 | AAV4: =IF($C$224="",0,1)*AAV$227 -> 0 | ABL4: =IF($C$224="",0,1)*ABL$227 -> 0 | ACB4: =IF($C$224="",0,1)*ACB$227 -> 0 | ACR4: =IF($C$224="",0,1)*ACR$227 -> 0 | ADH4: =IF($C$224="",0,1)*ADH$227 -> 0
A5: 2025 | B5: =SUM(6:6) -> 0 | Q5: 2025 | R5: =SUM(6:6) -> 0 | AG5: 2025 | AH5: =SUM(6:6) -> 0 | AW5: 2025 | AX5: =SUM(6:6) -> 0 | BM5: 2025 | BN5: =SUM(6:6) -> 0 | CC5: 2025 | CD5: =SUM(6:6) -> 0 | CS5: 2025 | CT5: =SUM(6:6) -> 0 | DI5: 2025 | DJ5: =SUM(6:6) -> 0 | DY5: 2025 | DZ5: =SUM(6:6) -> 0 | EO5: 2025 | EP5: =SUM(6:6) -> 0 | FE5: 2025 | FF5: =SUM(6:6) -> 0 | FU5: 2025 | FV5: =SUM(6:6) -> 0 | GK5: 2025 | GL5: =SUM(6:6) -> 0 | HA5: 2025 | HB5: =SUM(6:6) -> 0 | HQ5: 2025 | HR5: =SUM(6:6) -> 0 | IG5: 2025 | IH5: =SUM(6:6) -> 0 | IW5: 2025 | IX5: =SUM(6:6) -> 0 | JM5: 2025 | JN5: =SUM(6:6) -> 0 | KC5: 2025 | KD5: =SUM(6:6) -> 0 | KS5: 2025 | KT5: =SUM(6:6) -> 0 | LI5: 2025 | LJ5: =SUM(6:6) -> 0 | LY5: 2025 | LZ5: =SUM(6:6) -> 0 | MO5: 2025 | MP5: =SUM(6:6) -> 0 | NE5: 2025 | NF5: =SUM(6:6) -> 0 | NU5: 2025 | NV5: =SUM(6:6) -> 0 | OK5: 2025 | OL5: =SUM(6:6) -> 0 | PA5: 2025 | PB5: =SUM(6:6) -> 0 | PQ5: 2025 | PR5: =SUM(6:6) -> 0 | QG5: 2025 | QH5: =SUM(6:6) -> 0 | QW5: 2025 | QX5: =SUM(6:6) -> 0 | RM5: 2025 | RN5: =SUM(6:6) -> 0 | SC5: 2025 | SD5: =SUM(6:6) -> 0 | SS5: 2025 | ST5: =SUM(6:6) -> 0 | TI5: 2025 | TJ5: =SUM(6:6) -> 0 | TY5: 2025 | TZ5: =SUM(6:6) -> 0 | UO5: 2025 | UP5: =SUM(6:6) -> 0 | VE5: 2025 | VF5: =SUM(6:6) -> 0 | VU5: 2025 | VV5: =SUM(6:6) -> 0 | WK5: 2025 | WL5: =SUM(6:6) -> 0 | XA5: 2025 | XB5: =SUM(6:6) -> 0 | XQ5: 2025 | XR5: =SUM(6:6) -> 0 | YG5: 2025 | YH5: =SUM(6:6) -> 0 | YW5: 2025 | YX5: =SUM(6:6) -> 0 | ZM5: 2025 | ZN5: =SUM(6:6) -> 0 | AAC5: 2025 | AAD5: =SUM(6:6) -> 0 | AAS5: 2025 | AAT5: =SUM(6:6) -> 0 | ABI5: 2025 | ABJ5: =SUM(6:6) -> 0 | ABY5: 2025 | ABZ5: =SUM(6:6) -> 0 | ACO5: 2025 | ACP5: =SUM(6:6) -> 0 | ADE5: 2025 | ADF5: =SUM(6:6) -> 0
E6: =IF($C$224="",0,1)*E$227 -> 0 | U6: =IF($C$224="",0,1)*U$227 -> 0 | AK6: =IF($C$224="",0,1)*AK$227 -> 0 | BA6: =IF($C$224="",0,1)*BA$227 -> 0 | BQ6: =IF($C$224="",0,1)*BQ$227 -> 0 | CG6: =IF($C$224="",0,1)*CG$227 -> 0 | CW6: =IF($C$224="",0,1)*CW$227 -> 0 | DM6: =IF($C$224="",0,1)*DM$227 -> 0 | EC6: =IF($C$224="",0,1)*EC$227 -> 0 | ES6: =IF($C$224="",0,1)*ES$227 -> 0 | FI6: =IF($C$224="",0,1)*FI$227 -> 0 | FY6: =IF($C$224="",0,1)*FY$227 -> 0 | GO6: =IF($C$224="",0,1)*GO$227 -> 0 | HE6: =IF($C$224="",0,1)*HE$227 -> 0 | HU6: =IF($C$224="",0,1)*HU$227 -> 0 | IK6: =IF($C$224="",0,1)*IK$227 -> 0 | JA6: =IF($C$224="",0,1)*JA$227 -> 0 | JQ6: =IF($C$224="",0,1)*JQ$227 -> 0 | KG6: =IF($C$224="",0,1)*KG$227 -> 0 | KW6: =IF($C$224="",0,1)*KW$227 -> 0 | LM6: =IF($C$224="",0,1)*LM$227 -> 0 | MC6: =IF($C$224="",0,1)*MC$227 -> 0 | MS6: =IF($C$224="",0,1)*MS$227 -> 0 | NI6: =IF($C$224="",0,1)*NI$227 -> 0 | NY6: =IF($C$224="",0,1)*NY$227 -> 0 | OO6: =IF($C$224="",0,1)*OO$227 -> 0 | PE6: =IF($C$224="",0,1)*PE$227 -> 0 | PU6: =IF($C$224="",0,1)*PU$227 -> 0 | QK6: =IF($C$224="",0,1)*QK$227 -> 0 | RA6: =IF($C$224="",0,1)*RA$227 -> 0 | RQ6: =IF($C$224="",0,1)*RQ$227 -> 0 | SG6: =IF($C$224="",0,1)*SG$227 -> 0 | SW6: =IF($C$224="",0,1)*SW$227 -> 0 | TM6: =IF($C$224="",0,1)*TM$227 -> 0 | UC6: =IF($C$224="",0,1)*UC$227 -> 0 | US6: =IF($C$224="",0,1)*US$227 -> 0 | VI6: =IF($C$224="",0,1)*VI$227 -> 0 | VY6: =IF($C$224="",0,1)*VY$227 -> 0 | WO6: =IF($C$224="",0,1)*WO$227 -> 0 | XE6: =IF($C$224="",0,1)*XE$227 -> 0 | XU6: =IF($C$224="",0,1)*XU$227 -> 0 | YK6: =IF($C$224="",0,1)*YK$227 -> 0 | ZA6: =IF($C$224="",0,1)*ZA$227 -> 0 | ZQ6: =IF($C$224="",0,1)*ZQ$227 -> 0 | AAG6: =IF($C$224="",0,1)*AAG$227 -> 0 | AAW6: =IF($C$224="",0,1)*AAW$227 -> 0 | ABM6: =IF($C$224="",0,1)*ABM$227 -> 0 | ACC6: =IF($C$224="",0,1)*ACC$227 -> 0 | ACS6: =IF($C$224="",0,1)*ACS$227 -> 0 | ADI6: =IF($C$224="",0,1)*ADI$227 -> 0
A7: 2026 | B7: =SUM(8:8) -> 0 | Q7: 2026 | R7: =SUM(8:8) -> 0 | AG7: 2026 | AH7: =SUM(8:8) -> 0 | AW7: 2026 | AX7: =SUM(8:8) -> 0 | BM7: 2026 | BN7: =SUM(8:8) -> 0 | CC7: 2026 | CD7: =SUM(8:8) -> 0 | CS7: 2026 | CT7: =SUM(8:8) -> 0 | DI7: 2026 | DJ7: =SUM(8:8) -> 0 | DY7: 2026 | DZ7: =SUM(8:8) -> 0 | EO7: 2026 | EP7: =SUM(8:8) -> 0 | FE7: 2026 | FF7: =SUM(8:8) -> 0 | FU7: 2026 | FV7: =SUM(8:8) -> 0 | GK7: 2026 | GL7: =SUM(8:8) -> 0 | HA7: 2026 | HB7: =SUM(8:8) -> 0 | HQ7: 2026 | HR7: =SUM(8:8) -> 0 | IG7: 2026 | IH7: =SUM(8:8) -> 0 | IW7: 2026 | IX7: =SUM(8:8) -> 0 | JM7: 2026 | JN7: =SUM(8:8) -> 0 | KC7: 2026 | KD7: =SUM(8:8) -> 0 | KS7: 2026 | KT7: =SUM(8:8) -> 0 | LI7: 2026 | LJ7: =SUM(8:8) -> 0 | LY7: 2026 | LZ7: =SUM(8:8) -> 0 | MO7: 2026 | MP7: =SUM(8:8) -> 0 | NE7: 2026 | NF7: =SUM(8:8) -> 0 | NU7: 2026 | NV7: =SUM(8:8) -> 0 | OK7: 2026 | OL7: =SUM(8:8) -> 0 | PA7: 2026 | PB7: =SUM(8:8) -> 0 | PQ7: 2026 | PR7: =SUM(8:8) -> 0 | QG7: 2026 | QH7: =SUM(8:8) -> 0 | QW7: 2026 | QX7: =SUM(8:8) -> 0 | RM7: 2026 | RN7: =SUM(8:8) -> 0 | SC7: 2026 | SD7: =SUM(8:8) -> 0 | SS7: 2026 | ST7: =SUM(8:8) -> 0 | TI7: 2026 | TJ7: =SUM(8:8) -> 0 | TY7: 2026 | TZ7: =SUM(8:8) -> 0 | UO7: 2026 | UP7: =SUM(8:8) -> 0 | VE7: 2026 | VF7: =SUM(8:8) -> 0 | VU7: 2026 | VV7: =SUM(8:8) -> 0 | WK7: 2026 | WL7: =SUM(8:8) -> 0 | XA7: 2026 | XB7: =SUM(8:8) -> 0 | XQ7: 2026 | XR7: =SUM(8:8) -> 0 | YG7: 2026 | YH7: =SUM(8:8) -> 0 | YW7: 2026 | YX7: =SUM(8:8) -> 0 | ZM7: 2026 | ZN7: =SUM(8:8) -> 0 | AAC7: 2026 | AAD7: =SUM(8:8) -> 0 | AAS7: 2026 | AAT7: =SUM(8:8) -> 0 | ABI7: 2026 | ABJ7: =SUM(8:8) -> 0 | ABY7: 2026 | ABZ7: =SUM(8:8) -> 0 | ACO7: 2026 | ACP7: =SUM(8:8) -> 0 | ADE7: 2026 | ADF7: =SUM(8:8) -> 0
F8: =IF($C$224="",0,1)*F$227 -> 0 | V8: =IF($C$224="",0,1)*V$227 -> 0 | AL8: =IF($C$224="",0,1)*AL$227 -> 0 | BB8: =IF($C$224="",0,1)*BB$227 -> 0 | BR8: =IF($C$224="",0,1)*BR$227 -> 0 | CH8: =IF($C$224="",0,1)*CH$227 -> 0 | CX8: =IF($C$224="",0,1)*CX$227 -> 0 | DN8: =IF($C$224="",0,1)*DN$227 -> 0 | ED8: =IF($C$224="",0,1)*ED$227 -> 0 | ET8: =IF($C$224="",0,1)*ET$227 -> 0 | FJ8: =IF($C$224="",0,1)*FJ$227 -> 0 | FZ8: =IF($C$224="",0,1)*FZ$227 -> 0 | GP8: =IF($C$224="",0,1)*GP$227 -> 0 | HF8: =IF($C$224="",0,1)*HF$227 -> 0 | HV8: =IF($C$224="",0,1)*HV$227 -> 0 | IL8: =IF($C$224="",0,1)*IL$227 -> 0 | JB8: =IF($C$224="",0,1)*JB$227 -> 0 | JR8: =IF($C$224="",0,1)*JR$227 -> 0 | KH8: =IF($C$224="",0,1)*KH$227 -> 0 | KX8: =IF($C$224="",0,1)*KX$227 -> 0 | LN8: =IF($C$224="",0,1)*LN$227 -> 0 | MD8: =IF($C$224="",0,1)*MD$227 -> 0 | MT8: =IF($C$224="",0,1)*MT$227 -> 0 | NJ8: =IF($C$224="",0,1)*NJ$227 -> 0 | NZ8: =IF($C$224="",0,1)*NZ$227 -> 0 | OP8: =IF($C$224="",0,1)*OP$227 -> 0 | PF8: =IF($C$224="",0,1)*PF$227 -> 0 | PV8: =IF($C$224="",0,1)*PV$227 -> 0 | QL8: =IF($C$224="",0,1)*QL$227 -> 0 | RB8: =IF($C$224="",0,1)*RB$227 -> 0 | RR8: =IF($C$224="",0,1)*RR$227 -> 0 | SH8: =IF($C$224="",0,1)*SH$227 -> 0 | SX8: =IF($C$224="",0,1)*SX$227 -> 0 | TN8: =IF($C$224="",0,1)*TN$227 -> 0 | UD8: =IF($C$224="",0,1)*UD$227 -> 0 | UT8: =IF($C$224="",0,1)*UT$227 -> 0 | VJ8: =IF($C$224="",0,1)*VJ$227 -> 0 | VZ8: =IF($C$224="",0,1)*VZ$227 -> 0 | WP8: =IF($C$224="",0,1)*WP$227 -> 0 | XF8: =IF($C$224="",0,1)*XF$227 -> 0 | XV8: =IF($C$224="",0,1)*XV$227 -> 0 | YL8: =IF($C$224="",0,1)*YL$227 -> 0 | ZB8: =IF($C$224="",0,1)*ZB$227 -> 0 | ZR8: =IF($C$224="",0,1)*ZR$227 -> 0 | AAH8: =IF($C$224="",0,1)*AAH$227 -> 0 | AAX8: =IF($C$224="",0,1)*AAX$227 -> 0 | ABN8: =IF($C$224="",0,1)*ABN$227 -> 0 | ACD8: =IF($C$224="",0,1)*ACD$227 -> 0 | ACT8: =IF($C$224="",0,1)*ACT$227 -> 0 | ADJ8: =IF($C$224="",0,1)*ADJ$227 -> 0
A9: 2027 | B9: =SUM(10:10) -> 0 | Q9: 2027 | R9: =SUM(10:10) -> 0 | AG9: 2027 | AH9: =SUM(10:10) -> 0 | AW9: 2027 | AX9: =SUM(10:10) -> 0 | BM9: 2027 | BN9: =SUM(10:10) -> 0 | CC9: 2027 | CD9: =SUM(10:10) -> 0 | CS9: 2027 | CT9: =SUM(10:10) -> 0 | DI9: 2027 | DJ9: =SUM(10:10) -> 0 | DY9: 2027 | DZ9: =SUM(10:10) -> 0 | EO9: 2027 | EP9: =SUM(10:10) -> 0 | FE9: 2027 | FF9: =SUM(10:10) -> 0 | FU9: 2027 | FV9: =SUM(10:10) -> 0 | GK9: 2027 | GL9: =SUM(10:10) -> 0 | HA9: 2027 | HB9: =SUM(10:10) -> 0 | HQ9: 2027 | HR9: =SUM(10:10) -> 0 | IG9: 2027 | IH9: =SUM(10:10) -> 0 | IW9: 2027 | IX9: =SUM(10:10) -> 0 | JM9: 2027 | JN9: =SUM(10:10) -> 0 | KC9: 2027 | KD9: =SUM(10:10) -> 0 | KS9: 2027 | KT9: =SUM(10:10) -> 0 | LI9: 2027 | LJ9: =SUM(10:10) -> 0 | LY9: 2027 | LZ9: =SUM(10:10) -> 0 | MO9: 2027 | MP9: =SUM(10:10) -> 0 | NE9: 2027 | NF9: =SUM(10:10) -> 0 | NU9: 2027 | NV9: =SUM(10:10) -> 0 | OK9: 2027 | OL9: =SUM(10:10) -> 0 | PA9: 2027 | PB9: =SUM(10:10) -> 0 | PQ9: 2027 | PR9: =SUM(10:10) -> 0 | QG9: 2027 | QH9: =SUM(10:10) -> 0 | QW9: 2027 | QX9: =SUM(10:10) -> 0 | RM9: 2027 | RN9: =SUM(10:10) -> 0 | SC9: 2027 | SD9: =SUM(10:10) -> 0 | SS9: 2027 | ST9: =SUM(10:10) -> 0 | TI9: 2027 | TJ9: =SUM(10:10) -> 0 | TY9: 2027 | TZ9: =SUM(10:10) -> 0 | UO9: 2027 | UP9: =SUM(10:10) -> 0 | VE9: 2027 | VF9: =SUM(10:10) -> 0 | VU9: 2027 | VV9: =SUM(10:10) -> 0 | WK9: 2027 | WL9: =SUM(10:10) -> 0 | XA9: 2027 | XB9: =SUM(10:10) -> 0 | XQ9: 2027 | XR9: =SUM(10:10) -> 0 | YG9: 2027 | YH9: =SUM(10:10) -> 0 | YW9: 2027 | YX9: =SUM(10:10) -> 0 | ZM9: 2027 | ZN9: =SUM(10:10) -> 0 | AAC9: 2027 | AAD9: =SUM(10:10) -> 0 | AAS9: 2027 | AAT9: =SUM(10:10) -> 0 | ABI9: 2027 | ABJ9: =SUM(10:10) -> 0 | ABY9: 2027 | ABZ9: =SUM(10:10) -> 0 | ACO9: 2027 | ACP9: =SUM(10:10) -> 0 | ADE9: 2027 | ADF9: =SUM(10:10) -> 0
G10: =IF($C$224="",0,1)*G$227 -> 0 | W10: =IF($C$224="",0,1)*W$227 -> 0 | AM10: =IF($C$224="",0,1)*AM$227 -> 0 | BC10: =IF($C$224="",0,1)*BC$227 -> 0 | BS10: =IF($C$224="",0,1)*BS$227 -> 0 | CI10: =IF($C$224="",0,1)*CI$227 -> 0 | CY10: =IF($C$224="",0,1)*CY$227 -> 0 | DO10: =IF($C$224="",0,1)*DO$227 -> 0 | EE10: =IF($C$224="",0,1)*EE$227 -> 0 | EU10: =IF($C$224="",0,1)*EU$227 -> 0 | FK10: =IF($C$224="",0,1)*FK$227 -> 0 | GA10: =IF($C$224="",0,1)*GA$227 -> 0 | GQ10: =IF($C$224="",0,1)*GQ$227 -> 0 | HG10: =IF($C$224="",0,1)*HG$227 -> 0 | HW10: =IF($C$224="",0,1)*HW$227 -> 0 | IM10: =IF($C$224="",0,1)*IM$227 -> 0 | JC10: =IF($C$224="",0,1)*JC$227 -> 0 | JS10: =IF($C$224="",0,1)*JS$227 -> 0 | KI10: =IF($C$224="",0,1)*KI$227 -> 0 | KY10: =IF($C$224="",0,1)*KY$227 -> 0 | LO10: =IF($C$224="",0,1)*LO$227 -> 0 | ME10: =IF($C$224="",0,1)*ME$227 -> 0 | MU10: =IF($C$224="",0,1)*MU$227 -> 0 | NK10: =IF($C$224="",0,1)*NK$227 -> 0 | OA10: =IF($C$224="",0,1)*OA$227 -> 0 | OQ10: =IF($C$224="",0,1)*OQ$227 -> 0 | PG10: =IF($C$224="",0,1)*PG$227 -> 0 | PW10: =IF($C$224="",0,1)*PW$227 -> 0 | QM10: =IF($C$224="",0,1)*QM$227 -> 0 | RC10: =IF($C$224="",0,1)*RC$227 -> 0 | RS10: =IF($C$224="",0,1)*RS$227 -> 0 | SI10: =IF($C$224="",0,1)*SI$227 -> 0 | SY10: =IF($C$224="",0,1)*SY$227 -> 0 | TO10: =IF($C$224="",0,1)*TO$227 -> 0 | UE10: =IF($C$224="",0,1)*UE$227 -> 0 | UU10: =IF($C$224="",0,1)*UU$227 -> 0 | VK10: =IF($C$224="",0,1)*VK$227 -> 0 | WA10: =IF($C$224="",0,1)*WA$227 -> 0 | WQ10: =IF($C$224="",0,1)*WQ$227 -> 0 | XG10: =IF($C$224="",0,1)*XG$227 -> 0 | XW10: =IF($C$224="",0,1)*XW$227 -> 0 | YM10: =IF($C$224="",0,1)*YM$227 -> 0 | ZC10: =IF($C$224="",0,1)*ZC$227 -> 0 | ZS10: =IF($C$224="",0,1)*ZS$227 -> 0 | AAI10: =IF($C$224="",0,1)*AAI$227 -> 0 | AAY10: =IF($C$224="",0,1)*AAY$227 -> 0 | ABO10: =IF($C$224="",0,1)*ABO$227 -> 0 | ACE10: =IF($C$224="",0,1)*ACE$227 -> 0 | ACU10: =IF($C$224="",0,1)*ACU$227 -> 0 | ADK10: =IF($C$224="",0,1)*ADK$227 -> 0
A11: 2028 | B11: =SUM(12:12) -> 0 | Q11: 2028 | R11: =SUM(12:12) -> 0 | AG11: 2028 | AH11: =SUM(12:12) -> 0 | AW11: 2028 | AX11: =SUM(12:12) -> 0 | BM11: 2028 | BN11: =SUM(12:12) -> 0 | CC11: 2028 | CD11: =SUM(12:12) -> 0 | CS11: 2028 | CT11: =SUM(12:12) -> 0 | DI11: 2028 | DJ11: =SUM(12:12) -> 0 | DY11: 2028 | DZ11: =SUM(12:12) -> 0 | EO11: 2028 | EP11: =SUM(12:12) -> 0 | FE11: 2028 | FF11: =SUM(12:12) -> 0 | FU11: 2028 | FV11: =SUM(12:12) -> 0 | GK11: 2028 | GL11: =SUM(12:12) -> 0 | HA11: 2028 | HB11: =SUM(12:12) -> 0 | HQ11: 2028 | HR11: =SUM(12:12) -> 0 | IG11: 2028 | IH11: =SUM(12:12) -> 0 | IW11: 2028 | IX11: =SUM(12:12) -> 0 | JM11: 2028 | JN11: =SUM(12:12) -> 0 | KC11: 2028 | KD11: =SUM(12:12) -> 0 | KS11: 2028 | KT11: =SUM(12:12) -> 0 | LI11: 2028 | LJ11: =SUM(12:12) -> 0 | LY11: 2028 | LZ11: =SUM(12:12) -> 0 | MO11: 2028 | MP11: =SUM(12:12) -> 0 | NE11: 2028 | NF11: =SUM(12:12) -> 0 | NU11: 2028 | NV11: =SUM(12:12) -> 0 | OK11: 2028 | OL11: =SUM(12:12) -> 0 | PA11: 2028 | PB11: =SUM(12:12) -> 0 | PQ11: 2028 | PR11: =SUM(12:12) -> 0 | QG11: 2028 | QH11: =SUM(12:12) -> 0 | QW11: 2028 | QX11: =SUM(12:12) -> 0 | RM11: 2028 | RN11: =SUM(12:12) -> 0 | SC11: 2028 | SD11: =SUM(12:12) -> 0 | SS11: 2028 | ST11: =SUM(12:12) -> 0 | TI11: 2028 | TJ11: =SUM(12:12) -> 0 | TY11: 2028 | TZ11: =SUM(12:12) -> 0 | UO11: 2028 | UP11: =SUM(12:12) -> 0 | VE11: 2028 | VF11: =SUM(12:12) -> 0 | VU11: 2028 | VV11: =SUM(12:12) -> 0 | WK11: 2028 | WL11: =SUM(12:12) -> 0 | XA11: 2028 | XB11: =SUM(12:12) -> 0 | XQ11: 2028 | XR11: =SUM(12:12) -> 0 | YG11: 2028 | YH11: =SUM(12:12) -> 0 | YW11: 2028 | YX11: =SUM(12:12) -> 0 | ZM11: 2028 | ZN11: =SUM(12:12) -> 0 | AAC11: 2028 | AAD11: =SUM(12:12) -> 0 | AAS11: 2028 | AAT11: =SUM(12:12) -> 0 | ABI11: 2028 | ABJ11: =SUM(12:12) -> 0 | ABY11: 2028 | ABZ11: =SUM(12:12) -> 0 | ACO11: 2028 | ACP11: =SUM(12:12) -> 0 | ADE11: 2028 | ADF11: =SUM(12:12) -> 0
H12: =IF($C$224="",0,1)*H$227 -> 0 | X12: =IF($C$224="",0,1)*X$227 -> 0 | AN12: =IF($C$224="",0,1)*AN$227 -> 0 | BD12: =IF($C$224="",0,1)*BD$227 -> 0 | BT12: =IF($C$224="",0,1)*BT$227 -> 0 | CJ12: =IF($C$224="",0,1)*CJ$227 -> 0 | CZ12: =IF($C$224="",0,1)*CZ$227 -> 0 | DP12: =IF($C$224="",0,1)*DP$227 -> 0 | EF12: =IF($C$224="",0,1)*EF$227 -> 0 | EV12: =IF($C$224="",0,1)*EV$227 -> 0 | FL12: =IF($C$224="",0,1)*FL$227 -> 0 | GB12: =IF($C$224="",0,1)*GB$227 -> 0 | GR12: =IF($C$224="",0,1)*GR$227 -> 0 | HH12: =IF($C$224="",0,1)*HH$227 -> 0 | HX12: =IF($C$224="",0,1)*HX$227 -> 0 | IN12: =IF($C$224="",0,1)*IN$227 -> 0 | JD12: =IF($C$224="",0,1)*JD$227 -> 0 | JT12: =IF($C$224="",0,1)*JT$227 -> 0 | KJ12: =IF($C$224="",0,1)*KJ$227 -> 0 | KZ12: =IF($C$224="",0,1)*KZ$227 -> 0 | LP12: =IF($C$224="",0,1)*LP$227 -> 0 | MF12: =IF($C$224="",0,1)*MF$227 -> 0 | MV12: =IF($C$224="",0,1)*MV$227 -> 0 | NL12: =IF($C$224="",0,1)*NL$227 -> 0 | OB12: =IF($C$224="",0,1)*OB$227 -> 0 | OR12: =IF($C$224="",0,1)*OR$227 -> 0 | PH12: =IF($C$224="",0,1)*PH$227 -> 0 | PX12: =IF($C$224="",0,1)*PX$227 -> 0 | QN12: =IF($C$224="",0,1)*QN$227 -> 0 | RD12: =IF($C$224="",0,1)*RD$227 -> 0 | RT12: =IF($C$224="",0,1)*RT$227 -> 0 | SJ12: =IF($C$224="",0,1)*SJ$227 -> 0 | SZ12: =IF($C$224="",0,1)*SZ$227 -> 0 | TP12: =IF($C$224="",0,1)*TP$227 -> 0 | UF12: =IF($C$224="",0,1)*UF$227 -> 0 | UV12: =IF($C$224="",0,1)*UV$227 -> 0 | VL12: =IF($C$224="",0,1)*VL$227 -> 0 | WB12: =IF($C$224="",0,1)*WB$227 -> 0 | WR12: =IF($C$224="",0,1)*WR$227 -> 0 | XH12: =IF($C$224="",0,1)*XH$227 -> 0 | XX12: =IF($C$224="",0,1)*XX$227 -> 0 | YN12: =IF($C$224="",0,1)*YN$227 -> 0 | ZD12: =IF($C$224="",0,1)*ZD$227 -> 0 | ZT12: =IF($C$224="",0,1)*ZT$227 -> 0 | AAJ12: =IF($C$224="",0,1)*AAJ$227 -> 0 | AAZ12: =IF($C$224="",0,1)*AAZ$227 -> 0 | ABP12: =IF($C$224="",0,1)*ABP$227 -> 0 | ACF12: =IF($C$224="",0,1)*ACF$227 -> 0 | ACV12: =IF($C$224="",0,1)*ACV$227 -> 0 | ADL12: =IF($C$224="",0,1)*ADL$227 -> 0
A13: 2029 | B13: =SUM(14:14) -> 0 | Q13: 2029 | R13: =SUM(14:14) -> 0 | AG13: 2029 | AH13: =SUM(14:14) -> 0 | AW13: 2029 | AX13: =SUM(14:14) -> 0 | BM13: 2029 | BN13: =SUM(14:14) -> 0 | CC13: 2029 | CD13: =SUM(14:14) -> 0 | CS13: 2029 | CT13: =SUM(14:14) -> 0 | DI13: 2029 | DJ13: =SUM(14:14) -> 0 | DY13: 2029 | DZ13: =SUM(14:14) -> 0 | EO13: 2029 | EP13: =SUM(14:14) -> 0 | FE13: 2029 | FF13: =SUM(14:14) -> 0 | FU13: 2029 | FV13: =SUM(14:14) -> 0 | GK13: 2029 | GL13: =SUM(14:14) -> 0 | HA13: 2029 | HB13: =SUM(14:14) -> 0 | HQ13: 2029 | HR13: =SUM(14:14) -> 0 | IG13: 2029 | IH13: =SUM(14:14) -> 0 | IW13: 2029 | IX13: =SUM(14:14) -> 0 | JM13: 2029 | JN13: =SUM(14:14) -> 0 | KC13: 2029 | KD13: =SUM(14:14) -> 0 | KS13: 2029 | KT13: =SUM(14:14) -> 0 | LI13: 2029 | LJ13: =SUM(14:14) -> 0 | LY13: 2029 | LZ13: =SUM(14:14) -> 0 | MO13: 2029 | MP13: =SUM(14:14) -> 0 | NE13: 2029 | NF13: =SUM(14:14) -> 0 | NU13: 2029 | NV13: =SUM(14:14) -> 0 | OK13: 2029 | OL13: =SUM(14:14) -> 0 | PA13: 2029 | PB13: =SUM(14:14) -> 0 | PQ13: 2029 | PR13: =SUM(14:14) -> 0 | QG13: 2029 | QH13: =SUM(14:14) -> 0 | QW13: 2029 | QX13: =SUM(14:14) -> 0 | RM13: 2029 | RN13: =SUM(14:14) -> 0 | SC13: 2029 | SD13: =SUM(14:14) -> 0 | SS13: 2029 | ST13: =SUM(14:14) -> 0 | TI13: 2029 | TJ13: =SUM(14:14) -> 0 | TY13: 2029 | TZ13: =SUM(14:14) -> 0 | UO13: 2029 | UP13: =SUM(14:14) -> 0 | VE13: 2029 | VF13: =SUM(14:14) -> 0 | VU13: 2029 | VV13: =SUM(14:14) -> 0 | WK13: 2029 | WL13: =SUM(14:14) -> 0 | XA13: 2029 | XB13: =SUM(14:14) -> 0 | XQ13: 2029 | XR13: =SUM(14:14) -> 0 | YG13: 2029 | YH13: =SUM(14:14) -> 0 | YW13: 2029 | YX13: =SUM(14:14) -> 0 | ZM13: 2029 | ZN13: =SUM(14:14) -> 0 | AAC13: 2029 | AAD13: =SUM(14:14) -> 0 | AAS13: 2029 | AAT13: =SUM(14:14) -> 0 | ABI13: 2029 | ABJ13: =SUM(14:14) -> 0 | ABY13: 2029 | ABZ13: =SUM(14:14) -> 0 | ACO13: 2029 | ACP13: =SUM(14:14) -> 0 | ADE13: 2029 | ADF13: =SUM(14:14) -> 0
I14: =IF($C$224="",0,1)*I$227 -> 0 | Y14: =IF($C$224="",0,1)*Y$227 -> 0 | AO14: =IF($C$224="",0,1)*AO$227 -> 0 | BE14: =IF($C$224="",0,1)*BE$227 -> 0 | BU14: =IF($C$224="",0,1)*BU$227 -> 0 | CK14: =IF($C$224="",0,1)*CK$227 -> 0 | DA14: =IF($C$224="",0,1)*DA$227 -> 0 | DQ14: =IF($C$224="",0,1)*DQ$227 -> 0 | EG14: =IF($C$224="",0,1)*EG$227 -> 0 | EW14: =IF($C$224="",0,1)*EW$227 -> 0 | FM14: =IF($C$224="",0,1)*FM$227 -> 0 | GC14: =IF($C$224="",0,1)*GC$227 -> 0 | GS14: =IF($C$224="",0,1)*GS$227 -> 0 | HI14: =IF($C$224="",0,1)*HI$227 -> 0 | HY14: =IF($C$224="",0,1)*HY$227 -> 0 | IO14: =IF($C$224="",0,1)*IO$227 -> 0 | JE14: =IF($C$224="",0,1)*JE$227 -> 0 | JU14: =IF($C$224="",0,1)*JU$227 -> 0 | KK14: =IF($C$224="",0,1)*KK$227 -> 0 | LA14: =IF($C$224="",0,1)*LA$227 -> 0 | LQ14: =IF($C$224="",0,1)*LQ$227 -> 0 | MG14: =IF($C$224="",0,1)*MG$227 -> 0 | MW14: =IF($C$224="",0,1)*MW$227 -> 0 | NM14: =IF($C$224="",0,1)*NM$227 -> 0 | OC14: =IF($C$224="",0,1)*OC$227 -> 0 | OS14: =IF($C$224="",0,1)*OS$227 -> 0 | PI14: =IF($C$224="",0,1)*PI$227 -> 0 | PY14: =IF($C$224="",0,1)*PY$227 -> 0 | QO14: =IF($C$224="",0,1)*QO$227 -> 0 | RE14: =IF($C$224="",0,1)*RE$227 -> 0 | RU14: =IF($C$224="",0,1)*RU$227 -> 0 | SK14: =IF($C$224="",0,1)*SK$227 -> 0 | TA14: =IF($C$224="",0,1)*TA$227 -> 0 | TQ14: =IF($C$224="",0,1)*TQ$227 -> 0 | UG14: =IF($C$224="",0,1)*UG$227 -> 0 | UW14: =IF($C$224="",0,1)*UW$227 -> 0 | VM14: =IF($C$224="",0,1)*VM$227 -> 0 | WC14: =IF($C$224="",0,1)*WC$227 -> 0 | WS14: =IF($C$224="",0,1)*WS$227 -> 0 | XI14: =IF($C$224="",0,1)*XI$227 -> 0 | XY14: =IF($C$224="",0,1)*XY$227 -> 0 | YO14: =IF($C$224="",0,1)*YO$227 -> 0 | ZE14: =IF($C$224="",0,1)*ZE$227 -> 0 | ZU14: =IF($C$224="",0,1)*ZU$227 -> 0 | AAK14: =IF($C$224="",0,1)*AAK$227 -> 0 | ABA14: =IF($C$224="",0,1)*ABA$227 -> 0 | ABQ14: =IF($C$224="",0,1)*ABQ$227 -> 0 | ACG14: =IF($C$224="",0,1)*ACG$227 -> 0 | ACW14: =IF($C$224="",0,1)*ACW$227 -> 0 | ADM14: =IF($C$224="",0,1)*ADM$227 -> 0
A15: 2030 | B15: =SUM(16:16) -> 0 | Q15: 2030 | R15: =SUM(16:16) -> 0 | AG15: 2030 | AH15: =SUM(16:16) -> 0 | AW15: 2030 | AX15: =SUM(16:16) -> 0 | BM15: 2030 | BN15: =SUM(16:16) -> 0 | CC15: 2030 | CD15: =SUM(16:16) -> 0 | CS15: 2030 | CT15: =SUM(16:16) -> 0 | DI15: 2030 | DJ15: =SUM(16:16) -> 0 | DY15: 2030 | DZ15: =SUM(16:16) -> 0 | EO15: 2030 | EP15: =SUM(16:16) -> 0 | FE15: 2030 | FF15: =SUM(16:16) -> 0 | FU15: 2030 | FV15: =SUM(16:16) -> 0 | GK15: 2030 | GL15: =SUM(16:16) -> 0 | HA15: 2030 | HB15: =SUM(16:16) -> 0 | HQ15: 2030 | HR15: =SUM(16:16) -> 0 | IG15: 2030 | IH15: =SUM(16:16) -> 0 | IW15: 2030 | IX15: =SUM(16:16) -> 0 | JM15: 2030 | JN15: =SUM(16:16) -> 0 | KC15: 2030 | KD15: =SUM(16:16) -> 0 | KS15: 2030 | KT15: =SUM(16:16) -> 0 | LI15: 2030 | LJ15: =SUM(16:16) -> 0 | LY15: 2030 | LZ15: =SUM(16:16) -> 0 | MO15: 2030 | MP15: =SUM(16:16) -> 0 | NE15: 2030 | NF15: =SUM(16:16) -> 0 | NU15: 2030 | NV15: =SUM(16:16) -> 0 | OK15: 2030 | OL15: =SUM(16:16) -> 0 | PA15: 2030 | PB15: =SUM(16:16) -> 0 | PQ15: 2030 | PR15: =SUM(16:16) -> 0 | QG15: 2030 | QH15: =SUM(16:16) -> 0 | QW15: 2030 | QX15: =SUM(16:16) -> 0 | RM15: 2030 | RN15: =SUM(16:16) -> 0 | SC15: 2030 | SD15: =SUM(16:16) -> 0 | SS15: 2030 | ST15: =SUM(16:16) -> 0 | TI15: 2030 | TJ15: =SUM(16:16) -> 0 | TY15: 2030 | TZ15: =SUM(16:16) -> 0 | UO15: 2030 | UP15: =SUM(16:16) -> 0 | VE15: 2030 | VF15: =SUM(16:16) -> 0 | VU15: 2030 | VV15: =SUM(16:16) -> 0 | WK15: 2030 | WL15: =SUM(16:16) -> 0 | XA15: 2030 | XB15: =SUM(16:16) -> 0 | XQ15: 2030 | XR15: =SUM(16:16) -> 0 | YG15: 2030 | YH15: =SUM(16:16) -> 0 | YW15: 2030 | YX15: =SUM(16:16) -> 0 | ZM15: 2030 | ZN15: =SUM(16:16) -> 0 | AAC15: 2030 | AAD15: =SUM(16:16) -> 0 | AAS15: 2030 | AAT15: =SUM(16:16) -> 0 | ABI15: 2030 | ABJ15: =SUM(16:16) -> 0 | ABY15: 2030 | ABZ15: =SUM(16:16) -> 0 | ACO15: 2030 | ACP15: =SUM(16:16) -> 0 | ADE15: 2030 | ADF15: =SUM(16:16) -> 0
J16: =IF($C$224="",0,1)*J$227 -> 0 | Z16: =IF($C$224="",0,1)*Z$227 -> 0 | AP16: =IF($C$224="",0,1)*AP$227 -> 0 | BF16: =IF($C$224="",0,1)*BF$227 -> 0 | BV16: =IF($C$224="",0,1)*BV$227 -> 0 | CL16: =IF($C$224="",0,1)*CL$227 -> 0 | DB16: =IF($C$224="",0,1)*DB$227 -> 0 | DR16: =IF($C$224="",0,1)*DR$227 -> 0 | EH16: =IF($C$224="",0,1)*EH$227 -> 0 | EX16: =IF($C$224="",0,1)*EX$227 -> 0 | FN16: =IF($C$224="",0,1)*FN$227 -> 0 | GD16: =IF($C$224="",0,1)*GD$227 -> 0 | GT16: =IF($C$224="",0,1)*GT$227 -> 0 | HJ16: =IF($C$224="",0,1)*HJ$227 -> 0 | HZ16: =IF($C$224="",0,1)*HZ$227 -> 0 | IP16: =IF($C$224="",0,1)*IP$227 -> 0 | JF16: =IF($C$224="",0,1)*JF$227 -> 0 | JV16: =IF($C$224="",0,1)*JV$227 -> 0 | KL16: =IF($C$224="",0,1)*KL$227 -> 0 | LB16: =IF($C$224="",0,1)*LB$227 -> 0 | LR16: =IF($C$224="",0,1)*LR$227 -> 0 | MH16: =IF($C$224="",0,1)*MH$227 -> 0 | MX16: =IF($C$224="",0,1)*MX$227 -> 0 | NN16: =IF($C$224="",0,1)*NN$227 -> 0 | OD16: =IF($C$224="",0,1)*OD$227 -> 0 | OT16: =IF($C$224="",0,1)*OT$227 -> 0 | PJ16: =IF($C$224="",0,1)*PJ$227 -> 0 | PZ16: =IF($C$224="",0,1)*PZ$227 -> 0 | QP16: =IF($C$224="",0,1)*QP$227 -> 0 | RF16: =IF($C$224="",0,1)*RF$227 -> 0 | RV16: =IF($C$224="",0,1)*RV$227 -> 0 | SL16: =IF($C$224="",0,1)*SL$227 -> 0 | TB16: =IF($C$224="",0,1)*TB$227 -> 0 | TR16: =IF($C$224="",0,1)*TR$227 -> 0 | UH16: =IF($C$224="",0,1)*UH$227 -> 0 | UX16: =IF($C$224="",0,1)*UX$227 -> 0 | VN16: =IF($C$224="",0,1)*VN$227 -> 0 | WD16: =IF($C$224="",0,1)*WD$227 -> 0 | WT16: =IF($C$224="",0,1)*WT$227 -> 0 | XJ16: =IF($C$224="",0,1)*XJ$227 -> 0 | XZ16: =IF($C$224="",0,1)*XZ$227 -> 0 | YP16: =IF($C$224="",0,1)*YP$227 -> 0 | ZF16: =IF($C$224="",0,1)*ZF$227 -> 0 | ZV16: =IF($C$224="",0,1)*ZV$227 -> 0 | AAL16: =IF($C$224="",0,1)*AAL$227 -> 0 | ABB16: =IF($C$224="",0,1)*ABB$227 -> 0 | ABR16: =IF($C$224="",0,1)*ABR$227 -> 0 | ACH16: =IF($C$224="",0,1)*ACH$227 -> 0 | ACX16: =IF($C$224="",0,1)*ACX$227 -> 0 | ADN16: =IF($C$224="",0,1)*ADN$227 -> 0
A17: 2031 | B17: =SUM(18:18) -> 0 | Q17: 2031 | R17: =SUM(18:18) -> 0 | AG17: 2031 | AH17: =SUM(18:18) -> 0 | AW17: 2031 | AX17: =SUM(18:18) -> 0 | BM17: 2031 | BN17: =SUM(18:18) -> 0 | CC17: 2031 | CD17: =SUM(18:18) -> 0 | CS17: 2031 | CT17: =SUM(18:18) -> 0 | DI17: 2031 | DJ17: =SUM(18:18) -> 0 | DY17: 2031 | DZ17: =SUM(18:18) -> 0 | EO17: 2031 | EP17: =SUM(18:18) -> 0 | FE17: 2031 | FF17: =SUM(18:18) -> 0 | FU17: 2031 | FV17: =SUM(18:18) -> 0 | GK17: 2031 | GL17: =SUM(18:18) -> 0 | HA17: 2031 | HB17: =SUM(18:18) -> 0 | HQ17: 2031 | HR17: =SUM(18:18) -> 0 | IG17: 2031 | IH17: =SUM(18:18) -> 0 | IW17: 2031 | IX17: =SUM(18:18) -> 0 | JM17: 2031 | JN17: =SUM(18:18) -> 0 | KC17: 2031 | KD17: =SUM(18:18) -> 0 | KS17: 2031 | KT17: =SUM(18:18) -> 0 | LI17: 2031 | LJ17: =SUM(18:18) -> 0 | LY17: 2031 | LZ17: =SUM(18:18) -> 0 | MO17: 2031 | MP17: =SUM(18:18) -> 0 | NE17: 2031 | NF17: =SUM(18:18) -> 0 | NU17: 2031 | NV17: =SUM(18:18) -> 0 | OK17: 2031 | OL17: =SUM(18:18) -> 0 | PA17: 2031 | PB17: =SUM(18:18) -> 0 | PQ17: 2031 | PR17: =SUM(18:18) -> 0 | QG17: 2031 | QH17: =SUM(18:18) -> 0 | QW17: 2031 | QX17: =SUM(18:18) -> 0 | RM17: 2031 | RN17: =SUM(18:18) -> 0 | SC17: 2031 | SD17: =SUM(18:18) -> 0 | SS17: 2031 | ST17: =SUM(18:18) -> 0 | TI17: 2031 | TJ17: =SUM(18:18) -> 0 | TY17: 2031 | TZ17: =SUM(18:18) -> 0 | UO17: 2031 | UP17: =SUM(18:18) -> 0 | VE17: 2031 | VF17: =SUM(18:18) -> 0 | VU17: 2031 | VV17: =SUM(18:18) -> 0 | WK17: 2031 | WL17: =SUM(18:18) -> 0 | XA17: 2031 | XB17: =SUM(18:18) -> 0 | XQ17: 2031 | XR17: =SUM(18:18) -> 0 | YG17: 2031 | YH17: =SUM(18:18) -> 0 | YW17: 2031 | YX17: =SUM(18:18) -> 0 | ZM17: 2031 | ZN17: =SUM(18:18) -> 0 | AAC17: 2031 | AAD17: =SUM(18:18) -> 0 | AAS17: 2031 | AAT17: =SUM(18:18) -> 0 | ABI17: 2031 | ABJ17: =SUM(18:18) -> 0 | ABY17: 2031 | ABZ17: =SUM(18:18) -> 0 | ACO17: 2031 | ACP17: =SUM(18:18) -> 0 | ADE17: 2031 | ADF17: =SUM(18:18) -> 0
N18: =IF($C$224="",0,1)*N$227 -> 0 | AD18: =IF($C$224="",0,1)*AD$227 -> 0 | AT18: =IF($C$224="",0,1)*AT$227 -> 0 | BJ18: =IF($C$224="",0,1)*BJ$227 -> 0 | BZ18: =IF($C$224="",0,1)*BZ$227 -> 0 | CP18: =IF($C$224="",0,1)*CP$227 -> 0 | DF18: =IF($C$224="",0,1)*DF$227 -> 0 | DV18: =IF($C$224="",0,1)*DV$227 -> 0 | EL18: =IF($C$224="",0,1)*EL$227 -> 0 | FB18: =IF($C$224="",0,1)*FB$227 -> 0 | FR18: =IF($C$224="",0,1)*FR$227 -> 0 | GH18: =IF($C$224="",0,1)*GH$227 -> 0 | GX18: =IF($C$224="",0,1)*GX$227 -> 0 | HN18: =IF($C$224="",0,1)*HN$227 -> 0 | ID18: =IF($C$224="",0,1)*ID$227 -> 0 | IT18: =IF($C$224="",0,1)*IT$227 -> 0 | JJ18: =IF($C$224="",0,1)*JJ$227 -> 0 | JZ18: =IF($C$224="",0,1)*JZ$227 -> 0 | KP18: =IF($C$224="",0,1)*KP$227 -> 0 | LF18: =IF($C$224="",0,1)*LF$227 -> 0 | LV18: =IF($C$224="",0,1)*LV$227 -> 0 | ML18: =IF($C$224="",0,1)*ML$227 -> 0 | NB18: =IF($C$224="",0,1)*NB$227 -> 0 | NR18: =IF($C$224="",0,1)*NR$227 -> 0 | OH18: =IF($C$224="",0,1)*OH$227 -> 0 | OX18: =IF($C$224="",0,1)*OX$227 -> 0 | PN18: =IF($C$224="",0,1)*PN$227 -> 0 | QD18: =IF($C$224="",0,1)*QD$227 -> 0 | QT18: =IF($C$224="",0,1)*QT$227 -> 0 | RJ18: =IF($C$224="",0,1)*RJ$227 -> 0 | RZ18: =IF($C$224="",0,1)*RZ$227 -> 0 | SP18: =IF($C$224="",0,1)*SP$227 -> 0 | TF18: =IF($C$224="",0,1)*TF$227 -> 0 | TV18: =IF($C$224="",0,1)*TV$227 -> 0 | UL18: =IF($C$224="",0,1)*UL$227 -> 0 | VB18: =IF($C$224="",0,1)*VB$227 -> 0 | VR18: =IF($C$224="",0,1)*VR$227 -> 0 | WH18: =IF($C$224="",0,1)*WH$227 -> 0 | WX18: =IF($C$224="",0,1)*WX$227 -> 0 | XN18: =IF($C$224="",0,1)*XN$227 -> 0 | YD18: =IF($C$224="",0,1)*YD$227 -> 0 | YT18: =IF($C$224="",0,1)*YT$227 -> 0 | ZJ18: =IF($C$224="",0,1)*ZJ$227 -> 0 | ZZ18: =IF($C$224="",0,1)*ZZ$227 -> 0 | AAP18: =IF($C$224="",0,1)*AAP$227 -> 0 | ABF18: =IF($C$224="",0,1)*ABF$227 -> 0 | ABV18: =IF($C$224="",0,1)*ABV$227 -> 0 | ACL18: =IF($C$224="",0,1)*ACL$227 -> 0 | ADB18: =IF($C$224="",0,1)*ADB$227 -> 0 | ADR18: =IF($C$224="",0,1)*ADR$227 -> 0
A19: 2032 | B19: =SUM(20:20) -> 0 | Q19: 2032 | R19: =SUM(20:20) -> 0 | AG19: 2032 | AH19: =SUM(20:20) -> 0 | AW19: 2032 | AX19: =SUM(20:20) -> 0 | BM19: 2032 | BN19: =SUM(20:20) -> 0 | CC19: 2032 | CD19: =SUM(20:20) -> 0 | CS19: 2032 | CT19: =SUM(20:20) -> 0 | DI19: 2032 | DJ19: =SUM(20:20) -> 0 | DY19: 2032 | DZ19: =SUM(20:20) -> 0 | EO19: 2032 | EP19: =SUM(20:20) -> 0 | FE19: 2032 | FF19: =SUM(20:20) -> 0 | FU19: 2032 | FV19: =SUM(20:20) -> 0 | GK19: 2032 | GL19: =SUM(20:20) -> 0 | HA19: 2032 | HB19: =SUM(20:20) -> 0 | HQ19: 2032 | HR19: =SUM(20:20) -> 0 | IG19: 2032 | IH19: =SUM(20:20) -> 0 | IW19: 2032 | IX19: =SUM(20:20) -> 0 | JM19: 2032 | JN19: =SUM(20:20) -> 0 | KC19: 2032 | KD19: =SUM(20:20) -> 0 | KS19: 2032 | KT19: =SUM(20:20) -> 0 | LI19: 2032 | LJ19: =SUM(20:20) -> 0 | LY19: 2032 | LZ19: =SUM(20:20) -> 0 | MO19: 2032 | MP19: =SUM(20:20) -> 0 | NE19: 2032 | NF19: =SUM(20:20) -> 0 | NU19: 2032 | NV19: =SUM(20:20) -> 0 | OK19: 2032 | OL19: =SUM(20:20) -> 0 | PA19: 2032 | PB19: =SUM(20:20) -> 0 | PQ19: 2032 | PR19: =SUM(20:20) -> 0 | QG19: 2032 | QH19: =SUM(20:20) -> 0 | QW19: 2032 | QX19: =SUM(20:20) -> 0 | RM19: 2032 | RN19: =SUM(20:20) -> 0 | SC19: 2032 | SD19: =SUM(20:20) -> 0 | SS19: 2032 | ST19: =SUM(20:20) -> 0 | TI19: 2032 | TJ19: =SUM(20:20) -> 0 | TY19: 2032 | TZ19: =SUM(20:20) -> 0 | UO19: 2032 | UP19: =SUM(20:20) -> 0 | VE19: 2032 | VF19: =SUM(20:20) -> 0 | VU19: 2032 | VV19: =SUM(20:20) -> 0 | WK19: 2032 | WL19: =SUM(20:20) -> 0 | XA19: 2032 | XB19: =SUM(20:20) -> 0 | XQ19: 2032 | XR19: =SUM(20:20) -> 0 | YG19: 2032 | YH19: =SUM(20:20) -> 0 | YW19: 2032 | YX19: =SUM(20:20) -> 0 | ZM19: 2032 | ZN19: =SUM(20:20) -> 0 | AAC19: 2032 | AAD19: =SUM(20:20) -> 0 | AAS19: 2032 | AAT19: =SUM(20:20) -> 0 | ABI19: 2032 | ABJ19: =SUM(20:20) -> 0 | ABY19: 2032 | ABZ19: =SUM(20:20) -> 0 | ACO19: 2032 | ACP19: =SUM(20:20) -> 0 | ADE19: 2032 | ADF19: =SUM(20:20) -> 0
O20: =IF($C$224="",0,1)*O$227 -> 0 | AE20: =IF($C$224="",0,1)*AE$227 -> 0 | AU20: =IF($C$224="",0,1)*AU$227 -> 0 | BK20: =IF($C$224="",0,1)*BK$227 -> 0 | CA20: =IF($C$224="",0,1)*CA$227 -> 0 | CQ20: =IF($C$224="",0,1)*CQ$227 -> 0 | DG20: =IF($C$224="",0,1)*DG$227 -> 0 | DW20: =IF($C$224="",0,1)*DW$227 -> 0 | EM20: =IF($C$224="",0,1)*EM$227 -> 0 | FC20: =IF($C$224="",0,1)*FC$227 -> 0 | FS20: =IF($C$224="",0,1)*FS$227 -> 0 | GI20: =IF($C$224="",0,1)*GI$227 -> 0 | GY20: =IF($C$224="",0,1)*GY$227 -> 0 | HO20: =IF($C$224="",0,1)*HO$227 -> 0 | IE20: =IF($C$224="",0,1)*IE$227 -> 0 | IU20: =IF($C$224="",0,1)*IU$227 -> 0 | JK20: =IF($C$224="",0,1)*JK$227 -> 0 | KA20: =IF($C$224="",0,1)*KA$227 -> 0 | KQ20: =IF($C$224="",0,1)*KQ$227 -> 0 | LG20: =IF($C$224="",0,1)*LG$227 -> 0 | LW20: =IF($C$224="",0,1)*LW$227 -> 0 | MM20: =IF($C$224="",0,1)*MM$227 -> 0 | NC20: =IF($C$224="",0,1)*NC$227 -> 0 | NS20: =IF($C$224="",0,1)*NS$227 -> 0 | OI20: =IF($C$224="",0,1)*OI$227 -> 0 | OY20: =IF($C$224="",0,1)*OY$227 -> 0 | PO20: =IF($C$224="",0,1)*PO$227 -> 0 | QE20: =IF($C$224="",0,1)*QE$227 -> 0 | QU20: =IF($C$224="",0,1)*QU$227 -> 0 | RK20: =IF($C$224="",0,1)*RK$227 -> 0 | SA20: =IF($C$224="",0,1)*SA$227 -> 0 | SQ20: =IF($C$224="",0,1)*SQ$227 -> 0 | TG20: =IF($C$224="",0,1)*TG$227 -> 0 | TW20: =IF($C$224="",0,1)*TW$227 -> 0 | UM20: =IF($C$224="",0,1)*UM$227 -> 0 | VC20: =IF($C$224="",0,1)*VC$227 -> 0 | VS20: =IF($C$224="",0,1)*VS$227 -> 0 | WI20: =IF($C$224="",0,1)*WI$227 -> 0 | WY20: =IF($C$224="",0,1)*WY$227 -> 0 | XO20: =IF($C$224="",0,1)*XO$227 -> 0 | YE20: =IF($C$224="",0,1)*YE$227 -> 0 | YU20: =IF($C$224="",0,1)*YU$227 -> 0 | ZK20: =IF($C$224="",0,1)*ZK$227 -> 0 | AAA20: =IF($C$224="",0,1)*AAA$227 -> 0 | AAQ20: =IF($C$224="",0,1)*AAQ$227 -> 0 | ABG20: =IF($C$224="",0,1)*ABG$227 -> 0 | ABW20: =IF($C$224="",0,1)*ABW$227 -> 0 | ACM20: =IF($C$224="",0,1)*ACM$227 -> 0 | ADC20: =IF($C$224="",0,1)*ADC$227 -> 0 | ADS20: =IF($C$224="",0,1)*ADS$227 -> 0
A21: 2033 | B21: =SUM(22:22) -> 0 | Q21: 2033 | R21: =SUM(22:22) -> 0 | AG21: 2033 | AH21: =SUM(22:22) -> 0 | AW21: 2033 | AX21: =SUM(22:22) -> 0 | BM21: 2033 | BN21: =SUM(22:22) -> 0 | CC21: 2033 | CD21: =SUM(22:22) -> 0 | CS21: 2033 | CT21: =SUM(22:22) -> 0 | DI21: 2033 | DJ21: =SUM(22:22) -> 0 | DY21: 2033 | DZ21: =SUM(22:22) -> 0 | EO21: 2033 | EP21: =SUM(22:22) -> 0 | FE21: 2033 | FF21: =SUM(22:22) -> 0 | FU21: 2033 | FV21: =SUM(22:22) -> 0 | GK21: 2033 | GL21: =SUM(22:22) -> 0 | HA21: 2033 | HB21: =SUM(22:22) -> 0 | HQ21: 2033 | HR21: =SUM(22:22) -> 0 | IG21: 2033 | IH21: =SUM(22:22) -> 0 | IW21: 2033 | IX21: =SUM(22:22) -> 0 | JM21: 2033 | JN21: =SUM(22:22) -> 0 | KC21: 2033 | KD21: =SUM(22:22) -> 0 | KS21: 2033 | KT21: =SUM(22:22) -> 0 | LI21: 2033 | LJ21: =SUM(22:22) -> 0 | LY21: 2033 | LZ21: =SUM(22:22) -> 0 | MO21: 2033 | MP21: =SUM(22:22) -> 0 | NE21: 2033 | NF21: =SUM(22:22) -> 0 | NU21: 2033 | NV21: =SUM(22:22) -> 0 | OK21: 2033 | OL21: =SUM(22:22) -> 0 | PA21: 2033 | PB21: =SUM(22:22) -> 0 | PQ21: 2033 | PR21: =SUM(22:22) -> 0 | QG21: 2033 | QH21: =SUM(22:22) -> 0 | QW21: 2033 | QX21: =SUM(22:22) -> 0 | RM21: 2033 | RN21: =SUM(22:22) -> 0 | SC21: 2033 | SD21: =SUM(22:22) -> 0 | SS21: 2033 | ST21: =SUM(22:22) -> 0 | TI21: 2033 | TJ21: =SUM(22:22) -> 0 | TY21: 2033 | TZ21: =SUM(22:22) -> 0 | UO21: 2033 | UP21: =SUM(22:22) -> 0 | VE21: 2033 | VF21: =SUM(22:22) -> 0 | VU21: 2033 | VV21: =SUM(22:22) -> 0 | WK21: 2033 | WL21: =SUM(22:22) -> 0 | XA21: 2033 | XB21: =SUM(22:22) -> 0 | XQ21: 2033 | XR21: =SUM(22:22) -> 0 | YG21: 2033 | YH21: =SUM(22:22) -> 0 | YW21: 2033 | YX21: =SUM(22:22) -> 0 | ZM21: 2033 | ZN21: =SUM(22:22) -> 0 | AAC21: 2033 | AAD21: =SUM(22:22) -> 0 | AAS21: 2033 | AAT21: =SUM(22:22) -> 0 | ABI21: 2033 | ABJ21: =SUM(22:22) -> 0 | ABY21: 2033 | ABZ21: =SUM(22:22) -> 0 | ACO21: 2033 | ACP21: =SUM(22:22) -> 0 | ADE21: 2033 | ADF21: =SUM(22:22) -> 0
P22: =IF($C$224="",0,1)*P$227 -> 0 | AF22: =IF($C$224="",0,1)*AF$227 -> 0 | AV22: =IF($C$224="",0,1)*AV$227 -> 0 | BL22: =IF($C$224="",0,1)*BL$227 -> 0 | CB22: =IF($C$224="",0,1)*CB$227 -> 0 | CR22: =IF($C$224="",0,1)*CR$227 -> 0 | DH22: =IF($C$224="",0,1)*DH$227 -> 0 | DX22: =IF($C$224="",0,1)*DX$227 -> 0 | EN22: =IF($C$224="",0,1)*EN$227 -> 0 | FD22: =IF($C$224="",0,1)*FD$227 -> 0 | FT22: =IF($C$224="",0,1)*FT$227 -> 0 | GJ22: =IF($C$224="",0,1)*GJ$227 -> 0 | GZ22: =IF($C$224="",0,1)*GZ$227 -> 0 | HP22: =IF($C$224="",0,1)*HP$227 -> 0 | IF22: =IF($C$224="",0,1)*IF$227 -> 0 | IV22: =IF($C$224="",0,1)*IV$227 -> 0 | JL22: =IF($C$224="",0,1)*JL$227 -> 0 | KB22: =IF($C$224="",0,1)*KB$227 -> 0 | KR22: =IF($C$224="",0,1)*KR$227 -> 0 | LH22: =IF($C$224="",0,1)*LH$227 -> 0 | LX22: =IF($C$224="",0,1)*LX$227 -> 0 | MN22: =IF($C$224="",0,1)*MN$227 -> 0 | ND22: =IF($C$224="",0,1)*ND$227 -> 0 | NT22: =IF($C$224="",0,1)*NT$227 -> 0 | OJ22: =IF($C$224="",0,1)*OJ$227 -> 0 | OZ22: =IF($C$224="",0,1)*OZ$227 -> 0 | PP22: =IF($C$224="",0,1)*PP$227 -> 0 | QF22: =IF($C$224="",0,1)*QF$227 -> 0 | QV22: =IF($C$224="",0,1)*QV$227 -> 0 | RL22: =IF($C$224="",0,1)*RL$227 -> 0 | SB22: =IF($C$224="",0,1)*SB$227 -> 0 | SR22: =IF($C$224="",0,1)*SR$227 -> 0 | TH22: =IF($C$224="",0,1)*TH$227 -> 0 | TX22: =IF($C$224="",0,1)*TX$227 -> 0 | UN22: =IF($C$224="",0,1)*UN$227 -> 0 | VD22: =IF($C$224="",0,1)*VD$227 -> 0 | VT22: =IF($C$224="",0,1)*VT$227 -> 0 | WJ22: =IF($C$224="",0,1)*WJ$227 -> 0 | WZ22: =IF($C$224="",0,1)*WZ$227 -> 0 | XP22: =IF($C$224="",0,1)*XP$227 -> 0 | YF22: =IF($C$224="",0,1)*YF$227 -> 0 | YV22: =IF($C$224="",0,1)*YV$227 -> 0 | ZL22: =IF($C$224="",0,1)*ZL$227 -> 0 | AAB22: =IF($C$224="",0,1)*AAB$227 -> 0 | AAR22: =IF($C$224="",0,1)*AAR$227 -> 0 | ABH22: =IF($C$224="",0,1)*ABH$227 -> 0 | ABX22: =IF($C$224="",0,1)*ABX$227 -> 0 | ACN22: =IF($C$224="",0,1)*ACN$227 -> 0 | ADD22: =IF($C$224="",0,1)*ADD$227 -> 0 | ADT22: =IF($C$224="",0,1)*ADT$227 -> 0
A23: 2024 | B23: =SUM(24:24) -> 0 | C23: DŁUGOŚĆ LINII | Q23: 2024 | R23: =SUM(24:24) -> 0 | S23: DŁUGOŚĆ LINII | AG23: 2024 | AH23: =SUM(24:24) -> 0 | AI23: DŁUGOŚĆ LINII | AW23: 2024 | AX23: =SUM(24:24) -> 0 | AY23: DŁUGOŚĆ LINII | BM23: 2024 | BN23: =SUM(24:24) -> 0 | BO23: DŁUGOŚĆ LINII | CC23: 2024 | CD23: =SUM(24:24) -> 0 | CE23: DŁUGOŚĆ LINII | CS23: 2024 | CT23: =SUM(24:24) -> 0 | CU23: DŁUGOŚĆ LINII | DI23: 2024 | DJ23: =SUM(24:24) -> 0 | DK23: DŁUGOŚĆ LINII | DY23: 2024 | DZ23: =SUM(24:24) -> 0 | EA23: DŁUGOŚĆ LINII | EO23: 2024 | EP23: =SUM(24:24) -> 0 | EQ23: DŁUGOŚĆ LINII | FE23: 2024 | FF23: =SUM(24:24) -> 0 | FG23: DŁUGOŚĆ LINII | FU23: 2024 | FV23: =SUM(24:24) -> 0 | FW23: DŁUGOŚĆ LINII | GK23: 2024 | GL23: =SUM(24:24) -> 0 | GM23: DŁUGOŚĆ LINII | HA23: 2024 | HB23: =SUM(24:24) -> 0 | HC23: DŁUGOŚĆ LINII | HQ23: 2024 | HR23: =SUM(24:24) -> 0 | HS23: DŁUGOŚĆ LINII | IG23: 2024 | IH23: =SUM(24:24) -> 0 | II23: DŁUGOŚĆ LINII | IW23: 2024 | IX23: =SUM(24:24) -> 0 | IY23: DŁUGOŚĆ LINII | JM23: 2024 | JN23: =SUM(24:24) -> 0 | JO23: DŁUGOŚĆ LINII | KC23: 2024 | KD23: =SUM(24:24) -> 0 | KE23: DŁUGOŚĆ LINII | KS23: 2024 | KT23: =SUM(24:24) -> 0 | KU23: DŁUGOŚĆ LINII | LI23: 2024 | LJ23: =SUM(24:24) -> 0 | LK23: DŁUGOŚĆ LINII | LY23: 2024 | LZ23: =SUM(24:24) -> 0 | MA23: DŁUGOŚĆ LINII | MO23: 2024 | MP23: =SUM(24:24) -> 0 | MQ23: DŁUGOŚĆ LINII | NE23: 2024 | NF23: =SUM(24:24) -> 0 | NG23: DŁUGOŚĆ LINII | NU23: 2024 | NV23: =SUM(24:24) -> 0 | NW23: DŁUGOŚĆ LINII | OK23: 2024 | OL23: =SUM(24:24) -> 0 | OM23: DŁUGOŚĆ LINII | PA23: 2024 | PB23: =SUM(24:24) -> 0 | PC23: DŁUGOŚĆ LINII | PQ23: 2024 | PR23: =SUM(24:24) -> 0 | PS23: DŁUGOŚĆ LINII | QG23: 2024 | QH23: =SUM(24:24) -> 0 | QI23: DŁUGOŚĆ LINII | QW23: 2024 | QX23: =SUM(24:24) -> 0 | QY23: DŁUGOŚĆ LINII | RM23: 2024 | RN23: =SUM(24:24) -> 0 | RO23: DŁUGOŚĆ LINII | SC23: 2024 | SD23: =SUM(24:24) -> 0 | SE23: DŁUGOŚĆ LINII | SS23: 2024 | ST23: =SUM(24:24) -> 0 | SU23: DŁUGOŚĆ LINII | TI23: 2024 | TJ23: =SUM(24:24) -> 0 | TK23: DŁUGOŚĆ LINII | TY23: 2024 | TZ23: =SUM(24:24) -> 0 | UA23: DŁUGOŚĆ LINII | UO23: 2024 | UP23: =SUM(24:24) -> 0 | UQ23: DŁUGOŚĆ LINII | VE23: 2024 | VF23: =SUM(24:24) -> 0 | VG23: DŁUGOŚĆ LINII | VU23: 2024 | VV23: =SUM(24:24) -> 0 | VW23: DŁUGOŚĆ LINII | WK23: 2024 | WL23: =SUM(24:24) -> 0 | WM23: DŁUGOŚĆ LINII | XA23: 2024 | XB23: =SUM(24:24) -> 0 | XC23: DŁUGOŚĆ LINII | XQ23: 2024 | XR23: =SUM(24:24) -> 0 | XS23: DŁUGOŚĆ LINII | YG23: 2024 | YH23: =SUM(24:24) -> 0 | YI23: DŁUGOŚĆ LINII | YW23: 2024 | YX23: =SUM(24:24) -> 0 | YY23: DŁUGOŚĆ LINII | ZM23: 2024 | ZN23: =SUM(24:24) -> 0 | ZO23: DŁUGOŚĆ LINII | AAC23: 2024 | AAD23: =SUM(24:24) -> 0 | AAE23: DŁUGOŚĆ LINII | AAS23: 2024 | AAT23: =SUM(24:24) -> 0 | AAU23: DŁUGOŚĆ LINII | ABI23: 2024 | ABJ23: =SUM(24:24) -> 0 | ABK23: DŁUGOŚĆ LINII | ABY23: 2024 | ABZ23: =SUM(24:24) -> 0 | ACA23: DŁUGOŚĆ LINII | ACO23: 2024 | ACP23: =SUM(24:24) -> 0 | ACQ23: DŁUGOŚĆ LINII | ADE23: 2024 | ADF23: =SUM(24:24) -> 0 | ADG23: DŁUGOŚĆ LINII
D24: =D$226*D$227 -> 0 | T24: =T$226*T$227 -> 0 | AJ24: =AJ$226*AJ$227 -> 0 | AZ24: =AZ$226*AZ$227 -> 0 | BP24: =BP$226*BP$227 -> 0 | CF24: =CF$226*CF$227 -> 0 | CV24: =CV$226*CV$227 -> 0 | DL24: =DL$226*DL$227 -> 0 | EB24: =EB$226*EB$227 -> 0 | ER24: =ER$226*ER$227 -> 0 | FH24: =FH$226*FH$227 -> 0 | FX24: =FX$226*FX$227 -> 0 | GN24: =GN$226*GN$227 -> 0 | HD24: =HD$226*HD$227 -> 0 | HT24: =HT$226*HT$227 -> 0 | IJ24: =IJ$226*IJ$227 -> 0 | IZ24: =IZ$226*IZ$227 -> 0 | JP24: =JP$226*JP$227 -> 0 | KF24: =KF$226*KF$227 -> 0 | KV24: =KV$226*KV$227 -> 0 | LL24: =LL$226*LL$227 -> 0 | MB24: =MB$226*MB$227 -> 0 | MR24: =MR$226*MR$227 -> 0 | NH24: =NH$226*NH$227 -> 0 | NX24: =NX$226*NX$227 -> 0 | ON24: =ON$226*ON$227 -> 0 | PD24: =PD$226*PD$227 -> 0 | PT24: =PT$226*PT$227 -> 0 | QJ24: =QJ$226*QJ$227 -> 0 | QZ24: =QZ$226*QZ$227 -> 0 | RP24: =RP$226*RP$227 -> 0 | SF24: =SF$226*SF$227 -> 0 | SV24: =SV$226*SV$227 -> 0 | TL24: =TL$226*TL$227 -> 0 | UB24: =UB$226*UB$227 -> 0 | UR24: =UR$226*UR$227 -> 0 | VH24: =VH$226*VH$227 -> 0 | VX24: =VX$226*VX$227 -> 0 | WN24: =WN$226*WN$227 -> 0 | XD24: =XD$226*XD$227 -> 0 | XT24: =XT$226*XT$227 -> 0 | YJ24: =YJ$226*YJ$227 -> 0 | YZ24: =YZ$226*YZ$227 -> 0 | ZP24: =ZP$226*ZP$227 -> 0 | AAF24: =AAF$226*AAF$227 -> 0 | AAV24: =AAV$226*AAV$227 -> 0 | ABL24: =ABL$226*ABL$227 -> 0 | ACB24: =ACB$226*ACB$227 -> 0 | ACR24: =ACR$226*ACR$227 -> 0 | ADH24: =ADH$226*ADH$227 -> 0
A25: 2025 | B25: =SUM(26:26) -> 0 | Q25: 2025 | R25: =SUM(26:26) -> 0 | AG25: 2025 | AH25: =SUM(26:26) -> 0 | AW25: 2025 | AX25: =SUM(26:26) -> 0 | BM25: 2025 | BN25: =SUM(26:26) -> 0 | CC25: 2025 | CD25: =SUM(26:26) -> 0 | CS25: 2025 | CT25: =SUM(26:26) -> 0 | DI25: 2025 | DJ25: =SUM(26:26) -> 0 | DY25: 2025 | DZ25: =SUM(26:26) -> 0 | EO25: 2025 | EP25: =SUM(26:26) -> 0 | FE25: 2025 | FF25: =SUM(26:26) -> 0 | FU25: 2025 | FV25: =SUM(26:26) -> 0 | GK25: 2025 | GL25: =SUM(26:26) -> 0 | HA25: 2025 | HB25: =SUM(26:26) -> 0 | HQ25: 2025 | HR25: =SUM(26:26) -> 0 | IG25: 2025 | IH25: =SUM(26:26) -> 0 | IW25: 2025 | IX25: =SUM(26:26) -> 0 | JM25: 2025 | JN25: =SUM(26:26) -> 0 | KC25: 2025 | KD25: =SUM(26:26) -> 0 | KS25: 2025 | KT25: =SUM(26:26) -> 0 | LI25: 2025 | LJ25: =SUM(26:26) -> 0 | LY25: 2025 | LZ25: =SUM(26:26) -> 0 | MO25: 2025 | MP25: =SUM(26:26) -> 0 | NE25: 2025 | NF25: =SUM(26:26) -> 0 | NU25: 2025 | NV25: =SUM(26:26) -> 0 | OK25: 2025 | OL25: =SUM(26:26) -> 0 | PA25: 2025 | PB25: =SUM(26:26) -> 0 | PQ25: 2025 | PR25: =SUM(26:26) -> 0 | QG25: 2025 | QH25: =SUM(26:26) -> 0 | QW25: 2025 | QX25: =SUM(26:26) -> 0 | RM25: 2025 | RN25: =SUM(26:26) -> 0 | SC25: 2025 | SD25: =SUM(26:26) -> 0 | SS25: 2025 | ST25: =SUM(26:26) -> 0 | TI25: 2025 | TJ25: =SUM(26:26) -> 0 | TY25: 2025 | TZ25: =SUM(26:26) -> 0 | UO25: 2025 | UP25: =SUM(26:26) -> 0 | VE25: 2025 | VF25: =SUM(26:26) -> 0 | VU25: 2025 | VV25: =SUM(26:26) -> 0 | WK25: 2025 | WL25: =SUM(26:26) -> 0 | XA25: 2025 | XB25: =SUM(26:26) -> 0 | XQ25: 2025 | XR25: =SUM(26:26) -> 0 | YG25: 2025 | YH25: =SUM(26:26) -> 0 | YW25: 2025 | YX25: =SUM(26:26) -> 0 | ZM25: 2025 | ZN25: =SUM(26:26) -> 0 | AAC25: 2025 | AAD25: =SUM(26:26) -> 0 | AAS25: 2025 | AAT25: =SUM(26:26) -> 0 | ABI25: 2025 | ABJ25: =SUM(26:26) -> 0 | ABY25: 2025 | ABZ25: =SUM(26:26) -> 0 | ACO25: 2025 | ACP25: =SUM(26:26) -> 0 | ADE25: 2025 | ADF25: =SUM(26:26) -> 0
E26: =D$226*E$227 -> 0 | U26: =T$226*U$227 -> 0 | AK26: =AJ$226*AK$227 -> 0 | BA26: =AZ$226*BA$227 -> 0 | BQ26: =BP$226*BQ$227 -> 0 | CG26: =CF$226*CG$227 -> 0 | CW26: =CV$226*CW$227 -> 0 | DM26: =DL$226*DM$227 -> 0 | EC26: =EB$226*EC$227 -> 0 | ES26: =ER$226*ES$227 -> 0 | FI26: =FH$226*FI$227 -> 0 | FY26: =FX$226*FY$227 -> 0 | GO26: =GN$226*GO$227 -> 0 | HE26: =HD$226*HE$227 -> 0 | HU26: =HT$226*HU$227 -> 0 | IK26: =IJ$226*IK$227 -> 0 | JA26: =IZ$226*JA$227 -> 0 | JQ26: =JP$226*JQ$227 -> 0 | KG26: =KF$226*KG$227 -> 0 | KW26: =KV$226*KW$227 -> 0 | LM26: =LL$226*LM$227 -> 0 | MC26: =MB$226*MC$227 -> 0 | MS26: =MR$226*MS$227 -> 0 | NI26: =NH$226*NI$227 -> 0 | NY26: =NX$226*NY$227 -> 0 | OO26: =ON$226*OO$227 -> 0 | PE26: =PD$226*PE$227 -> 0 | PU26: =PT$226*PU$227 -> 0 | QK26: =QJ$226*QK$227 -> 0 | RA26: =QZ$226*RA$227 -> 0 | RQ26: =RP$226*RQ$227 -> 0 | SG26: =SF$226*SG$227 -> 0 | SW26: =SV$226*SW$227 -> 0 | TM26: =TL$226*TM$227 -> 0 | UC26: =UB$226*UC$227 -> 0 | US26: =UR$226*US$227 -> 0 | VI26: =VH$226*VI$227 -> 0 | VY26: =VX$226*VY$227 -> 0 | WO26: =WN$226*WO$227 -> 0 | XE26: =XD$226*XE$227 -> 0 | XU26: =XT$226*XU$227 -> 0 | YK26: =YJ$226*YK$227 -> 0 | ZA26: =YZ$226*ZA$227 -> 0 | ZQ26: =ZP$226*ZQ$227 -> 0 | AAG26: =AAF$226*AAG$227 -> 0 | AAW26: =AAV$226*AAW$227 -> 0 | ABM26: =ABL$226*ABM$227 -> 0 | ACC26: =ACB$226*ACC$227 -> 0 | ACS26: =ACR$226*ACS$227 -> 0 | ADI26: =ADH$226*ADI$227 -> 0
A27: 2026 | B27: =SUM(28:28) -> 0 | Q27: 2026 | R27: =SUM(28:28) -> 0 | AG27: 2026 | AH27: =SUM(28:28) -> 0 | AW27: 2026 | AX27: =SUM(28:28) -> 0 | BM27: 2026 | BN27: =SUM(28:28) -> 0 | CC27: 2026 | CD27: =SUM(28:28) -> 0 | CS27: 2026 | CT27: =SUM(28:28) -> 0 | DI27: 2026 | DJ27: =SUM(28:28) -> 0 | DY27: 2026 | DZ27: =SUM(28:28) -> 0 | EO27: 2026 | EP27: =SUM(28:28) -> 0 | FE27: 2026 | FF27: =SUM(28:28) -> 0 | FU27: 2026 | FV27: =SUM(28:28) -> 0 | GK27: 2026 | GL27: =SUM(28:28) -> 0 | HA27: 2026 | HB27: =SUM(28:28) -> 0 | HQ27: 2026 | HR27: =SUM(28:28) -> 0 | IG27: 2026 | IH27: =SUM(28:28) -> 0 | IW27: 2026 | IX27: =SUM(28:28) -> 0 | JM27: 2026 | JN27: =SUM(28:28) -> 0 | KC27: 2026 | KD27: =SUM(28:28) -> 0 | KS27: 2026 | KT27: =SUM(28:28) -> 0 | LI27: 2026 | LJ27: =SUM(28:28) -> 0 | LY27: 2026 | LZ27: =SUM(28:28) -> 0 | MO27: 2026 | MP27: =SUM(28:28) -> 0 | NE27: 2026 | NF27: =SUM(28:28) -> 0 | NU27: 2026 | NV27: =SUM(28:28) -> 0 | OK27: 2026 | OL27: =SUM(28:28) -> 0 | PA27: 2026 | PB27: =SUM(28:28) -> 0 | PQ27: 2026 | PR27: =SUM(28:28) -> 0 | QG27: 2026 | QH27: =SUM(28:28) -> 0 | QW27: 2026 | QX27: =SUM(28:28) -> 0 | RM27: 2026 | RN27: =SUM(28:28) -> 0 | SC27: 2026 | SD27: =SUM(28:28) -> 0 | SS27: 2026 | ST27: =SUM(28:28) -> 0 | TI27: 2026 | TJ27: =SUM(28:28) -> 0 | TY27: 2026 | TZ27: =SUM(28:28) -> 0 | UO27: 2026 | UP27: =SUM(28:28) -> 0 | VE27: 2026 | VF27: =SUM(28:28) -> 0 | VU27: 2026 | VV27: =SUM(28:28) -> 0 | WK27: 2026 | WL27: =SUM(28:28) -> 0 | XA27: 2026 | XB27: =SUM(28:28) -> 0 | XQ27: 2026 | XR27: =SUM(28:28) -> 0 | YG27: 2026 | YH27: =SUM(28:28) -> 0 | YW27: 2026 | YX27: =SUM(28:28) -> 0 | ZM27: 2026 | ZN27: =SUM(28:28) -> 0 | AAC27: 2026 | AAD27: =SUM(28:28) -> 0 | AAS27: 2026 | AAT27: =SUM(28:28) -> 0 | ABI27: 2026 | ABJ27: =SUM(28:28) -> 0 | ABY27: 2026 | ABZ27: =SUM(28:28) -> 0 | ACO27: 2026 | ACP27: =SUM(28:28) -> 0 | ADE27: 2026 | ADF27: =SUM(28:28) -> 0
F28: =D$226*F$227 -> 0 | V28: =T$226*V$227 -> 0 | AL28: =AJ$226*AL$227 -> 0 | BB28: =AZ$226*BB$227 -> 0 | BR28: =BP$226*BR$227 -> 0 | CH28: =CF$226*CH$227 -> 0 | CX28: =CV$226*CX$227 -> 0 | DN28: =DL$226*DN$227 -> 0 | ED28: =EB$226*ED$227 -> 0 | ET28: =ER$226*ET$227 -> 0 | FJ28: =FH$226*FJ$227 -> 0 | FZ28: =FX$226*FZ$227 -> 0 | GP28: =GN$226*GP$227 -> 0 | HF28: =HD$226*HF$227 -> 0 | HV28: =HT$226*HV$227 -> 0 | IL28: =IJ$226*IL$227 -> 0 | JB28: =IZ$226*JB$227 -> 0 | JR28: =JP$226*JR$227 -> 0 | KH28: =KF$226*KH$227 -> 0 | KX28: =KV$226*KX$227 -> 0 | LN28: =LL$226*LN$227 -> 0 | MD28: =MB$226*MD$227 -> 0 | MT28: =MR$226*MT$227 -> 0 | NJ28: =NH$226*NJ$227 -> 0 | NZ28: =NX$226*NZ$227 -> 0 | OP28: =ON$226*OP$227 -> 0 | PF28: =PD$226*PF$227 -> 0 | PV28: =PT$226*PV$227 -> 0 | QL28: =QJ$226*QL$227 -> 0 | RB28: =QZ$226*RB$227 -> 0 | RR28: =RP$226*RR$227 -> 0 | SH28: =SF$226*SH$227 -> 0 | SX28: =SV$226*SX$227 -> 0 | TN28: =TL$226*TN$227 -> 0 | UD28: =UB$226*UD$227 -> 0 | UT28: =UR$226*UT$227 -> 0 | VJ28: =VH$226*VJ$227 -> 0 | VZ28: =VX$226*VZ$227 -> 0 | WP28: =WN$226*WP$227 -> 0 | XF28: =XD$226*XF$227 -> 0 | XV28: =XT$226*XV$227 -> 0 | YL28: =YJ$226*YL$227 -> 0 | ZB28: =YZ$226*ZB$227 -> 0 | ZR28: =ZP$226*ZR$227 -> 0 | AAH28: =AAF$226*AAH$227 -> 0 | AAX28: =AAV$226*AAX$227 -> 0 | ABN28: =ABL$226*ABN$227 -> 0 | ACD28: =ACB$226*ACD$227 -> 0 | ACT28: =ACR$226*ACT$227 -> 0 | ADJ28: =ADH$226*ADJ$227 -> 0
A29: 2027 | B29: =SUM(30:30) -> 0 | Q29: 2027 | R29: =SUM(30:30) -> 0 | AG29: 2027 | AH29: =SUM(30:30) -> 0 | AW29: 2027 | AX29: =SUM(30:30) -> 0 | BM29: 2027 | BN29: =SUM(30:30) -> 0 | CC29: 2027 | CD29: =SUM(30:30) -> 0 | CS29: 2027 | CT29: =SUM(30:30) -> 0 | DI29: 2027 | DJ29: =SUM(30:30) -> 0 | DY29: 2027 | DZ29: =SUM(30:30) -> 0 | EO29: 2027 | EP29: =SUM(30:30) -> 0 | FE29: 2027 | FF29: =SUM(30:30) -> 0 | FU29: 2027 | FV29: =SUM(30:30) -> 0 | GK29: 2027 | GL29: =SUM(30:30) -> 0 | HA29: 2027 | HB29: =SUM(30:30) -> 0 | HQ29: 2027 | HR29: =SUM(30:30) -> 0 | IG29: 2027 | IH29: =SUM(30:30) -> 0 | IW29: 2027 | IX29: =SUM(30:30) -> 0 | JM29: 2027 | JN29: =SUM(30:30) -> 0 | KC29: 2027 | KD29: =SUM(30:30) -> 0 | KS29: 2027 | KT29: =SUM(30:30) -> 0 | LI29: 2027 | LJ29: =SUM(30:30) -> 0 | LY29: 2027 | LZ29: =SUM(30:30) -> 0 | MO29: 2027 | MP29: =SUM(30:30) -> 0 | NE29: 2027 | NF29: =SUM(30:30) -> 0 | NU29: 2027 | NV29: =SUM(30:30) -> 0 | OK29: 2027 | OL29: =SUM(30:30) -> 0 | PA29: 2027 | PB29: =SUM(30:30) -> 0 | PQ29: 2027 | PR29: =SUM(30:30) -> 0 | QG29: 2027 | QH29: =SUM(30:30) -> 0 | QW29: 2027 | QX29: =SUM(30:30) -> 0 | RM29: 2027 | RN29: =SUM(30:30) -> 0 | SC29: 2027 | SD29: =SUM(30:30) -> 0 | SS29: 2027 | ST29: =SUM(30:30) -> 0 | TI29: 2027 | TJ29: =SUM(30:30) -> 0 | TY29: 2027 | TZ29: =SUM(30:30) -> 0 | UO29: 2027 | UP29: =SUM(30:30) -> 0 | VE29: 2027 | VF29: =SUM(30:30) -> 0 | VU29: 2027 | VV29: =SUM(30:30) -> 0 | WK29: 2027 | WL29: =SUM(30:30) -> 0 | XA29: 2027 | XB29: =SUM(30:30) -> 0 | XQ29: 2027 | XR29: =SUM(30:30) -> 0 | YG29: 2027 | YH29: =SUM(30:30) -> 0 | YW29: 2027 | YX29: =SUM(30:30) -> 0 | ZM29: 2027 | ZN29: =SUM(30:30) -> 0 | AAC29: 2027 | AAD29: =SUM(30:30) -> 0 | AAS29: 2027 | AAT29: =SUM(30:30) -> 0 | ABI29: 2027 | ABJ29: =SUM(30:30) -> 0 | ABY29: 2027 | ABZ29: =SUM(30:30) -> 0 | ACO29: 2027 | ACP29: =SUM(30:30) -> 0 | ADE29: 2027 | ADF29: =SUM(30:30) -> 0
G30: =D$226*G$227 -> 0 | W30: =T$226*W$227 -> 0 | AM30: =AJ$226*AM$227 -> 0 | BC30: =AZ$226*BC$227 -> 0 | BS30: =BP$226*BS$227 -> 0 | CI30: =CF$226*CI$227 -> 0 | CY30: =CV$226*CY$227 -> 0 | DO30: =DL$226*DO$227 -> 0 | EE30: =EB$226*EE$227 -> 0 | EU30: =ER$226*EU$227 -> 0 | FK30: =FH$226*FK$227 -> 0 | GA30: =FX$226*GA$227 -> 0 | GQ30: =GN$226*GQ$227 -> 0 | HG30: =HD$226*HG$227 -> 0 | HW30: =HT$226*HW$227 -> 0 | IM30: =IJ$226*IM$227 -> 0 | JC30: =IZ$226*JC$227 -> 0 | JS30: =JP$226*JS$227 -> 0 | KI30: =KF$226*KI$227 -> 0 | KY30: =KV$226*KY$227 -> 0 | LO30: =LL$226*LO$227 -> 0 | ME30: =MB$226*ME$227 -> 0 | MU30: =MR$226*MU$227 -> 0 | NK30: =NH$226*NK$227 -> 0 | OA30: =NX$226*OA$227 -> 0 | OQ30: =ON$226*OQ$227 -> 0 | PG30: =PD$226*PG$227 -> 0 | PW30: =PT$226*PW$227 -> 0 | QM30: =QJ$226*QM$227 -> 0 | RC30: =QZ$226*RC$227 -> 0 | RS30: =RP$226*RS$227 -> 0 | SI30: =SF$226*SI$227 -> 0 | SY30: =SV$226*SY$227 -> 0 | TO30: =TL$226*TO$227 -> 0 | UE30: =UB$226*UE$227 -> 0 | UU30: =UR$226*UU$227 -> 0 | VK30: =VH$226*VK$227 -> 0 | WA30: =VX$226*WA$227 -> 0 | WQ30: =WN$226*WQ$227 -> 0 | XG30: =XD$226*XG$227 -> 0 | XW30: =XT$226*XW$227 -> 0 | YM30: =YJ$226*YM$227 -> 0 | ZC30: =YZ$226*ZC$227 -> 0 | ZS30: =ZP$226*ZS$227 -> 0 | AAI30: =AAF$226*AAI$227 -> 0 | AAY30: =AAV$226*AAY$227 -> 0 | ABO30: =ABL$226*ABO$227 -> 0 | ACE30: =ACB$226*ACE$227 -> 0 | ACU30: =ACR$226*ACU$227 -> 0 | ADK30: =ADH$226*ADK$227 -> 0
A31: 2028 | B31: =SUM(32:32) -> 0 | Q31: 2028 | R31: =SUM(32:32) -> 0 | AG31: 2028 | AH31: =SUM(32:32) -> 0 | AW31: 2028 | AX31: =SUM(32:32) -> 0 | BM31: 2028 | BN31: =SUM(32:32) -> 0 | CC31: 2028 | CD31: =SUM(32:32) -> 0 | CS31: 2028 | CT31: =SUM(32:32) -> 0 | DI31: 2028 | DJ31: =SUM(32:32) -> 0 | DY31: 2028 | DZ31: =SUM(32:32) -> 0 | EO31: 2028 | EP31: =SUM(32:32) -> 0 | FE31: 2028 | FF31: =SUM(32:32) -> 0 | FU31: 2028 | FV31: =SUM(32:32) -> 0 | GK31: 2028 | GL31: =SUM(32:32) -> 0 | HA31: 2028 | HB31: =SUM(32:32) -> 0 | HQ31: 2028 | HR31: =SUM(32:32) -> 0 | IG31: 2028 | IH31: =SUM(32:32) -> 0 | IW31: 2028 | IX31: =SUM(32:32) -> 0 | JM31: 2028 | JN31: =SUM(32:32) -> 0 | KC31: 2028 | KD31: =SUM(32:32) -> 0 | KS31: 2028 | KT31: =SUM(32:32) -> 0 | LI31: 2028 | LJ31: =SUM(32:32) -> 0 | LY31: 2028 | LZ31: =SUM(32:32) -> 0 | MO31: 2028 | MP31: =SUM(32:32) -> 0 | NE31: 2028 | NF31: =SUM(32:32) -> 0 | NU31: 2028 | NV31: =SUM(32:32) -> 0 | OK31: 2028 | OL31: =SUM(32:32) -> 0 | PA31: 2028 | PB31: =SUM(32:32) -> 0 | PQ31: 2028 | PR31: =SUM(32:32) -> 0 | QG31: 2028 | QH31: =SUM(32:32) -> 0 | QW31: 2028 | QX31: =SUM(32:32) -> 0 | RM31: 2028 | RN31: =SUM(32:32) -> 0 | SC31: 2028 | SD31: =SUM(32:32) -> 0 | SS31: 2028 | ST31: =SUM(32:32) -> 0 | TI31: 2028 | TJ31: =SUM(32:32) -> 0 | TY31: 2028 | TZ31: =SUM(32:32) -> 0 | UO31: 2028 | UP31: =SUM(32:32) -> 0 | VE31: 2028 | VF31: =SUM(32:32) -> 0 | VU31: 2028 | VV31: =SUM(32:32) -> 0 | WK31: 2028 | WL31: =SUM(32:32) -> 0 | XA31: 2028 | XB31: =SUM(32:32) -> 0 | XQ31: 2028 | XR31: =SUM(32:32) -> 0 | YG31: 2028 | YH31: =SUM(32:32) -> 0 | YW31: 2028 | YX31: =SUM(32:32) -> 0 | ZM31: 2028 | ZN31: =SUM(32:32) -> 0 | AAC31: 2028 | AAD31: =SUM(32:32) -> 0 | AAS31: 2028 | AAT31: =SUM(32:32) -> 0 | ABI31: 2028 | ABJ31: =SUM(32:32) -> 0 | ABY31: 2028 | ABZ31: =SUM(32:32) -> 0 | ACO31: 2028 | ACP31: =SUM(32:32) -> 0 | ADE31: 2028 | ADF31: =SUM(32:32) -> 0
... 34 more rows

Sheet DANE DO UMOWY
A1: NR UMOWY | B1: REPREZENTANT 1 | C1: REPREZENTANT 2 | D1: REPREZENTANT 3 | E1: NIP | F1: NAZWA | G1: NUMER RACHUNKU BANKOWEGO | H1: SUMA KWOTY DOPŁATY WE WSZYSTKICH LATACH | I1: KWOTA SŁOWNIE | J1: KWOTA DOPŁATY W 2024 R. | K1: KWOTA SŁOWNIE | L1: KWOTA DOPŁATY W 2025 R. | M1: KWOTA SŁOWNIE | N1: KWOTA DOPŁATY W 2026 R. | O1: KWOTA SŁOWNIE | P1: KWOTA DOPŁATY W 2027 R. | Q1: KWOTA SŁOWNIE | R1: KWOTA DOPŁATY W 2028 R. | S1: KWOTA SŁOWNIE | T1: KWOTA DOPŁATY W 2029 R. | U1: KWOTA SŁOWNIE | V1: KWOTA DOPŁATY W 2030 R. | W1: KWOTA SŁOWNIE | X1: KWOTA DOPŁATY W 2031 R. | Y1: KWOTA SŁOWNIE | Z1: KWOTA DOPŁATY W 2032 R. | AA1: KWOTA SŁOWNIE | AB1: KWOTA DOPŁATY W 2033 R. | AC1: KWOTA SŁOWNIE | AD1: LINIE 2024 | AE1: DŁUGOŚĆ 2024 | AF1: PRACA 2024 | AG1: CZĘSTOTLIWOŚĆ 2024 | AH1: LINIE 2025 | AI1: DŁUGOŚĆ 2025 | AJ1: PRACA 2025 | AK1: CZĘSTOTLIWOŚĆ 2025 | AL1: LINIE 2026 | AM1: DŁUGOŚĆ 2026 | AN1: PRACA 2026 | AO1: CZĘSTOTLIWOŚĆ 2026 | AP1: LINIE 2027 | AQ1: DŁUGOŚĆ 2027 | AR1: PRACA 2027 | AS1: CZĘSTOTLIWOŚĆ 2027 | AT1: LINIE 2028 | AU1: DŁUGOŚĆ 2028 | AV1: PRACA 2028 | AW1: CZĘSTOTLIWOŚĆ 2028 | AX1: LINIE 2029 | AY1: DŁUGOŚĆ 2029 | AZ1: PRACA 2029 | BA1: CZĘSTOTLIWOŚĆ 2029 | BB1: LINIE 2030 | BC1: DŁUGOŚĆ 2030 | BD1: PRACA 2030 | BE1: CZĘSTOTLIWOŚĆ 2030 | BF1: LINIE 2031 | BG1: DŁUGOŚĆ 2031 | BH1: PRACA 2031 | BI1: CZĘSTOTLIWOŚĆ 2031 | BJ1: LINIE 2032 | BK1: DŁUGOŚĆ 2032 | BL1: PRACA 2032 | BM1: CZĘSTOTLIWOŚĆ 2032 | BN1: LINIE 2033 | BO1: DŁUGOŚĆ 2033 | BP1: PRACA 2033 | BQ1: CZĘSTOTLIWOŚĆ 2033 | BR1: LINIA 1 NAZWA | BS1: LINIA 1 DŁUGOŚĆ | BT1: LINIA 2 NAZWA | BU1: LINIA 2 DŁUGOŚĆ | BV1: LINIA 3 NAZWA | BW1: LINIA 3 DŁUGOŚĆ | BX1: LINIA 4 NAZWA | BY1: LINIA 4 DŁUGOŚĆ | BZ1: LINIA 5 NAZWA | CA1: LINIA 5 DŁUGOŚĆ | CB1: LINIA 6 NAZWA | CC1: LINIA 6 DŁUGOŚĆ | CD1: LINIA 7 NAZWA | CE1: LINIA 7 DŁUGOŚĆ | CF1: LINIA 8 NAZWA | CG1: LINIA 8 DŁUGOŚĆ | CH1: LINIA 9 NAZWA | CI1: LINIA 9 DŁUGOŚĆ | CJ1: LINIA 10 NAZWA | CK1: LINIA 10 DŁUGOŚĆ | CL1: LINIA 11 NAZWA | CM1: LINIA 11 DŁUGOŚĆ | CN1: LINIA 12 NAZWA | CO1: LINIA 12 DŁUGOŚĆ | CP1: LINIA 13 NAZWA | CQ1: LINIA 13 DŁUGOŚĆ | CR1: LINIA 14 NAZWA | CS1: LINIA 14 DŁUGOŚĆ | CT1: LINIA 15 NAZWA | CU1: LINIA 15 DŁUGOŚĆ | CV1: LINIA 16 NAZWA | CW1: LINIA 16 DŁUGOŚĆ | CX1: LINIA 17 NAZWA | CY1: LINIA 17 DŁUGOŚĆ | CZ1: LINIA 18 NAZWA | DA1: LINIA 18 DŁUGOŚĆ | DB1: LINIA 19 NAZWA | DC1: LINIA 19 DŁUGOŚĆ | DD1: LINIA 20 NAZWA | DE1: LINIA 20 DŁUGOŚĆ | DF1: LINIA 21 NAZWA | DG1: LINIA 21 DŁUGOŚĆ | DH1: LINIA 22 NAZWA | DI1: LINIA 22 DŁUGOŚĆ | DJ1: LINIA 23 NAZWA | DK1: LINIA 23 DŁUGOŚĆ | DL1: LINIA 24 NAZWA | DM1: LINIA 24 DŁUGOŚĆ | DN1: LINIA 25 NAZWA | DO1: LINIA 25 DŁUGOŚĆ | DP1: LINIA 26 NAZWA | DQ1: LINIA 26 DŁUGOŚĆ | DR1: LINIA 27 NAZWA | DS1: LINIA 27 DŁUGOŚĆ | DT1: LINIA 28 NAZWA | DU1: LINIA 28 DŁUGOŚĆ | DV1: LINIA 29 NAZWA | DW1: LINIA 29 DŁUGOŚĆ | DX1: LINIA 30 NAZWA | DY1: LINIA 30 DŁUGOŚĆ | DZ1: LINIA 31 NAZWA | EA1: LINIA 31 DŁUGOŚĆ | EB1: LINIA 32 NAZWA | EC1: LINIA 32 DŁUGOŚĆ | ED1: LINIA 33 NAZWA | EE1: LINIA 33 DŁUGOŚĆ | EF1: LINIA 34 NAZWA | EG1: LINIA 34 DŁUGOŚĆ | EH1: LINIA 35 NAZWA | EI1: LINIA 35 DŁUGOŚĆ | EJ1: LINIA 36 NAZWA | EK1: LINIA 36 DŁUGOŚĆ | EL1: LINIA 37 NAZWA | EM1: LINIA 37 DŁUGOŚĆ | EN1: LINIA 38 NAZWA | EO1: LINIA 38 DŁUGOŚĆ | EP1: LINIA 39 NAZWA | EQ1: LINIA 39 DŁUGOŚĆ | ER1: LINIA 40 NAZWA | ES1: LINIA 40 DŁUGOŚĆ | ET1: LINIA 41 NAZWA | EU1: LINIA 41 DŁUGOŚĆ | EV1: LINIA 42 NAZWA | EW1: LINIA 42 DŁUGOŚĆ | EX1: LINIA 43 NAZWA | EY1: LINIA 43 DŁUGOŚĆ | EZ1: LINIA 44 NAZWA | FA1: LINIA 44 DŁUGOŚĆ | FB1: LINIA 45 NAZWA | FC1: LINIA 45 DŁUGOŚĆ | FD1: LINIA 46 NAZWA | FE1: LINIA 46 DŁUGOŚĆ | FF1: LINIA 47 NAZWA | FG1: LINIA 47 DŁUGOŚĆ | FH1: LINIA 48 NAZWA | FI1: LINIA 48 DŁUGOŚĆ | FJ1: LINIA 49 NAZWA | FK1: LINIA 49 DŁUGOŚĆ | FL1: LINIA 50 NAZWA | FM1: LINIA 50 DŁUGOŚĆ
B2: ='WNIOSEK CZĘŚĆ I'!A16&" "&'WNIOSEK CZĘŚĆ I'!B16&" "&'WNIOSEK CZĘŚĆ I'!K16 ->  | C2: ='WNIOSEK CZĘŚĆ I'!A17&" "&'WNIOSEK CZĘŚĆ I'!B17&" "&'WNIOSEK CZĘŚĆ I'!K17 ->  | D2: ='WNIOSEK CZĘŚĆ I'!A18&" "&'WNIOSEK CZĘŚĆ I'!B18&" "&'WNIOSEK CZĘŚĆ I'!K18 ->  | E2: ='WNIOSEK CZĘŚĆ I'!B4 -> 0 | F2: ='WNIOSEK CZĘŚĆ I'!B5 ->  | G2: ='WNIOSEK CZĘŚĆ I'!A21 ->  | H2: ='WNIOSEK CZĘŚĆ I'!B49 -> 0 | I2: =Slownie(H2) -> zero groszy | J2: ='WNIOSEK CZĘŚĆ I'!C49 -> 0 | K2: =Slownie(J2) -> zero groszy | L2: ='WNIOSEK CZĘŚĆ I'!D49 -> 0 | M2: =Slownie(L2) -> zero groszy | N2: ='WNIOSEK CZĘŚĆ I'!E49 -> 0 | O2: =Slownie(N2) -> zero groszy | P2: ='WNIOSEK CZĘŚĆ I'!F49 -> 0 | Q2: =Slownie(P2) -> zero groszy | R2: ='WNIOSEK CZĘŚĆ I'!G49 -> 0 | S2: =Slownie(R2) -> zero groszy | T2: ='WNIOSEK CZĘŚĆ I'!H49 -> 0 | U2: =Slownie(T2) -> zero groszy | V2: ='WNIOSEK CZĘŚĆ I'!I49 -> 0 | W2: =Slownie(V2) -> zero groszy | X2: ='WNIOSEK CZĘŚĆ I'!J49 -> 0 | Y2: =Slownie(X2) -> zero groszy | Z2: ='WNIOSEK CZĘŚĆ I'!K49 -> 0 | AA2: =Slownie(Z2) -> zero groszy | AB2: ='WNIOSEK CZĘŚĆ I'!L49 -> 0 | AC2: =Slownie(AB2) -> zero groszy | AD2: ='WNIOSEK CZĘŚĆ I'!C30 -> 0 | AE2: ='WNIOSEK CZĘŚĆ I'!C31 -> 0 | AF2: ='WNIOSEK CZĘŚĆ I'!C33 -> 0 | AG2: ='WNIOSEK CZĘŚĆ I'!C34 -> 0 | AH2: ='WNIOSEK CZĘŚĆ I'!D30 -> 0 | AI2: ='WNIOSEK CZĘŚĆ I'!D31 -> 0 | AJ2: ='WNIOSEK CZĘŚĆ I'!D33 -> 0 | AK2: ='WNIOSEK CZĘŚĆ I'!D34 -> 0 | AL2: ='WNIOSEK CZĘŚĆ I'!E30 -> 0 | AM2: ='WNIOSEK CZĘŚĆ I'!E31 -> 0 | AN2: ='WNIOSEK CZĘŚĆ I'!E33 -> 0 | AO2: ='WNIOSEK CZĘŚĆ I'!E34 -> 0 | AP2: ='WNIOSEK CZĘŚĆ I'!F30 -> 0 | AQ2: ='WNIOSEK CZĘŚĆ I'!F31 -> 0 | AR2: ='WNIOSEK CZĘŚĆ I'!F33 -> 0 | AS2: ='WNIOSEK CZĘŚĆ I'!F34 -> 0 | AT2: ='WNIOSEK CZĘŚĆ I'!G30 -> 0 | AU2: ='WNIOSEK CZĘŚĆ I'!G31 -> 0 | AV2: ='WNIOSEK CZĘŚĆ I'!G33 -> 0 | AW2: ='WNIOSEK CZĘŚĆ I'!G34 -> 0 | AX2: ='WNIOSEK CZĘŚĆ I'!H30 -> 0 | AY2: ='WNIOSEK CZĘŚĆ I'!H31 -> 0 | AZ2: ='WNIOSEK CZĘŚĆ I'!H33 -> 0 | BA2: ='WNIOSEK CZĘŚĆ I'!H34 -> 0 | BB2: ='WNIOSEK CZĘŚĆ I'!I30 -> 0 | BC2: ='WNIOSEK CZĘŚĆ I'!I31 -> 0 | BD2: ='WNIOSEK CZĘŚĆ I'!I33 -> 0 | BE2: ='WNIOSEK CZĘŚĆ I'!I34 -> 0 | BF2: ='WNIOSEK CZĘŚĆ I'!J30 -> 0 | BG2: ='WNIOSEK CZĘŚĆ I'!J31 -> 0 | BH2: ='WNIOSEK CZĘŚĆ I'!J33 -> 0 | BI2: ='WNIOSEK CZĘŚĆ I'!J34 -> 0 | BJ2: ='WNIOSEK CZĘŚĆ I'!K30 -> 0 | BK2: ='WNIOSEK CZĘŚĆ I'!K31 -> 0 | BL2: ='WNIOSEK CZĘŚĆ I'!K33 -> 0 | BM2: ='WNIOSEK CZĘŚĆ I'!K34 -> 0 | BN2: ='WNIOSEK CZĘŚĆ I'!L30 -> 0 | BO2: ='WNIOSEK CZĘŚĆ I'!L31 -> 0 | BP2: ='WNIOSEK CZĘŚĆ I'!L33 -> 0 | BQ2: ='WNIOSEK CZĘŚĆ I'!L34 -> 0 | BR2: ='WNIOSEK CZĘŚĆ II'!H$224 -> 0 | BS2: ='WNIOSEK CZĘŚĆ II'!D$226 -> 0 | BT2: ='WNIOSEK CZĘŚĆ II'!X224 -> 0 | BU2: ='WNIOSEK CZĘŚĆ II'!T226 -> 0 | BV2: ='WNIOSEK CZĘŚĆ II'!AN224 -> 0 | BW2: ='WNIOSEK CZĘŚĆ II'!AJ226 -> 0 | BX2: ='WNIOSEK CZĘŚĆ II'!BD224 -> 0 | BY2: ='WNIOSEK CZĘŚĆ II'!AZ226 -> 0 | BZ2: ='WNIOSEK CZĘŚĆ II'!BT224 -> 0 | CA2: ='WNIOSEK CZĘŚĆ II'!BP226 -> 0 | CB2: ='WNIOSEK CZĘŚĆ II'!CJ224 -> 0 | CC2: ='WNIOSEK CZĘŚĆ II'!CF226 -> 0 | CD2: ='WNIOSEK CZĘŚĆ II'!CZ224 -> 0 | CE2: ='WNIOSEK CZĘŚĆ II'!CV226 -> 0 | CF2: ='WNIOSEK CZĘŚĆ II'!DP224 -> 0 | CG2: ='WNIOSEK CZĘŚĆ II'!DL226 -> 0 | CH2: ='WNIOSEK CZĘŚĆ II'!EF224 -> 0 | CI2: ='WNIOSEK CZĘŚĆ II'!EB226 -> 0 | CJ2: ='WNIOSEK CZĘŚĆ II'!EV224 -> 0 | CK2: ='WNIOSEK CZĘŚĆ II'!ER226 -> 0 | CL2: ='WNIOSEK CZĘŚĆ II'!FL224 -> 0 | CM2: ='WNIOSEK CZĘŚĆ II'!FH226 -> 0 | CN2: ='WNIOSEK CZĘŚĆ II'!GB224 -> 0 | CO2: ='WNIOSEK CZĘŚĆ II'!FX226 -> 0 | CP2: ='WNIOSEK CZĘŚĆ II'!GR224 -> 0 | CQ2: ='WNIOSEK CZĘŚĆ II'!GN226 -> 0 | CR2: ='WNIOSEK CZĘŚĆ II'!HH224 -> 0 | CS2: ='WNIOSEK CZĘŚĆ II'!HD226 -> 0 | CT2: ='WNIOSEK CZĘŚĆ II'!HX224 -> 0 | CU2: ='WNIOSEK CZĘŚĆ II'!HT226 -> 0 | CV2: ='WNIOSEK CZĘŚĆ II'!IN224 -> 0 | CW2: ='WNIOSEK CZĘŚĆ II'!IJ226 -> 0 | CX2: ='WNIOSEK CZĘŚĆ II'!JD224 -> 0 | CY2: ='WNIOSEK CZĘŚĆ II'!IZ226 -> 0 | CZ2: ='WNIOSEK CZĘŚĆ II'!JT224 -> 0 | DA2: ='WNIOSEK CZĘŚĆ II'!JP226 -> 0 | DB2: ='WNIOSEK CZĘŚĆ II'!KJ224 -> 0 | DC2: ='WNIOSEK CZĘŚĆ II'!KF226 -> 0 | DD2: ='WNIOSEK CZĘŚĆ II'!KZ224 -> 0 | DE2: ='WNIOSEK CZĘŚĆ II'!KV226 -> 0 | DF2: ='WNIOSEK CZĘŚĆ II'!LP224 -> 0 | DG2: ='WNIOSEK CZĘŚĆ II'!LL226 -> 0 | DH2: ='WNIOSEK CZĘŚĆ II'!MF224 -> 0 | DI2: ='WNIOSEK CZĘŚĆ II'!MB226 -> 0 | DJ2: ='WNIOSEK CZĘŚĆ II'!MV224 -> 0 | DK2: ='WNIOSEK CZĘŚĆ II'!MR226 -> 0 | DL2: ='WNIOSEK CZĘŚĆ II'!NL224 -> 0 | DM2: ='WNIOSEK CZĘŚĆ II'!NH226 -> 0 | DN2: ='WNIOSEK CZĘŚĆ II'!OB224 -> 0 | DO2: ='WNIOSEK CZĘŚĆ II'!NX226 -> 0 | DP2: ='WNIOSEK CZĘŚĆ II'!OR224 -> 0 | DQ2: ='WNIOSEK CZĘŚĆ II'!ON226 -> 0 | DR2: ='WNIOSEK CZĘŚĆ II'!PH224 -> 0 | DS2: ='WNIOSEK CZĘŚĆ II'!PD226 -> 0 | DT2: ='WNIOSEK CZĘŚĆ II'!PX224 -> 0 | DU2: ='WNIOSEK CZĘŚĆ II'!PT226 -> 0 | DV2: ='WNIOSEK CZĘŚĆ II'!QN224 -> 0 | DW2: ='WNIOSEK CZĘŚĆ II'!QJ226 -> 0 | DX2: ='WNIOSEK CZĘŚĆ II'!RD224 -> 0 | DY2: ='WNIOSEK CZĘŚĆ II'!QZ226 -> 0 | DZ2: ='WNIOSEK CZĘŚĆ II'!RT224 -> 0 | EA2: ='WNIOSEK CZĘŚĆ II'!RP226 -> 0 | EB2: ='WNIOSEK CZĘŚĆ II'!SJ224 -> 0 | EC2: ='WNIOSEK CZĘŚĆ II'!SF226 -> 0 | ED2: ='WNIOSEK CZĘŚĆ II'!SZ224 -> 0 | EE2: ='WNIOSEK CZĘŚĆ II'!SV226 -> 0 | EF2: ='WNIOSEK CZĘŚĆ II'!TP224 -> 0 | EG2: ='WNIOSEK CZĘŚĆ II'!TL226 -> 0 | EH2: ='WNIOSEK CZĘŚĆ II'!UF224 -> 0 | EI2: ='WNIOSEK CZĘŚĆ II'!UB226 -> 0 | EJ2: ='WNIOSEK CZĘŚĆ II'!UV224 -> 0 | EK2: ='WNIOSEK CZĘŚĆ II'!UR226 -> 0 | EL2: ='WNIOSEK CZĘŚĆ II'!VL224 -> 0 | EM2: ='WNIOSEK CZĘŚĆ II'!VH226 -> 0 | EN2: ='WNIOSEK CZĘŚĆ II'!WB224 -> 0 | EO2: ='WNIOSEK CZĘŚĆ II'!VX226 -> 0 | EP2: ='WNIOSEK CZĘŚĆ II'!WR224 -> 0 | EQ2: ='WNIOSEK CZĘŚĆ II'!WN226 -> 0 | ER2: ='WNIOSEK CZĘŚĆ II'!XH224 -> 0 | ES2: ='WNIOSEK CZĘŚĆ II'!XD226 -> 0 | ET2: ='WNIOSEK CZĘŚĆ II'!XX224 -> 0 | EU2: ='WNIOSEK CZĘŚĆ II'!XT226 -> 0 | EV2: ='WNIOSEK CZĘŚĆ II'!YN224 -> 0 | EW2: ='WNIOSEK CZĘŚĆ II'!YJ226 -> 0 | EX2: ='WNIOSEK CZĘŚĆ II'!ZD224 -> 0 | EY2: ='WNIOSEK CZĘŚĆ II'!YZ226 -> 0 | EZ2: ='WNIOSEK CZĘŚĆ II'!ZT224 -> 0 | FA2: ='WNIOSEK CZĘŚĆ II'!ZP226 -> 0 | FB2: ='WNIOSEK CZĘŚĆ II'!AAJ224 -> 0 | FC2: ='WNIOSEK CZĘŚĆ II'!AAF226 -> 0 | FD2: ='WNIOSEK CZĘŚĆ II'!AAZ224 -> 0 | FE2: ='WNIOSEK CZĘŚĆ II'!AAV226 -> 0 | FF2: ='WNIOSEK CZĘŚĆ II'!ABP224 -> 0 | FG2: ='WNIOSEK CZĘŚĆ II'!ABL226 -> 0 | FH2: ='WNIOSEK CZĘŚĆ II'!ACF224 -> 0 | FI2: ='WNIOSEK CZĘŚĆ II'!ACB226 -> 0 | FJ2: ='WNIOSEK CZĘŚĆ II'!ACV224 -> 0 | FK2: ='WNIOSEK CZĘŚĆ II'!ACR226 -> 0 | FL2: ='WNIOSEK CZĘŚĆ II'!ADL224 -> 0 | FM2: ='WNIOSEK CZĘŚĆ II'!ADH226 -> 0

Sheet WYCIĄG Z WNIOSKU_2024
A1: ORGANIZATOR | D1: PLANOWANA ŁĄCZNA KWOTA DOPŁATY 2024 | E1: GĘSTOŚĆ ZALUDNIENIA | H1: LICZBA LINII 2024 | K1: DŁUGOŚĆ LINII 2024 | N1: LICZBA ZATRZYMAŃ 2024 | Q1: REALIZACJA POTRZEB NIEPEŁNOSPRAWNYCH | S1: ZAPEWNIENIE DOSTEPNOŚCI PROGRAMÓW INFRA | U1: WSKAŹNIK DOCHODÓW | X1: ŁĄCZNA PUNKTACJA WAŻONA
A2: TYP | B2: NIP | C2: NAZWA | E2: WARTOŚĆ | F2: LICZBA PUNKTÓW | G2: PUNKTACJA WAŻONA | H2: WARTOŚĆ | I2: LICZBA PUNKTÓW | J2: PUNKTACJA WAŻONA | K2: WARTOŚĆ | L2: LICZBA PUNKTÓW | M2: PUNKTACJA WAŻONA | N2: WARTOŚĆ | O2: LICZBA PUNKTÓW | P2: PUNKTACJA WAŻONA | Q2: WARTOŚĆ | R2: PUNKTACJA WAŻONA | S2: WARTOŚĆ | T2: PUNKTACJA WAŻONA | U2: WARTOŚĆ | V2: LICZBA PUNKTÓW | W2: PUNKTACJA WAŻONA
A3: ='WNIOSEK CZĘŚĆ I'!I5 ->  | B3: ='WNIOSEK CZĘŚĆ I'!B4 -> 0 | C3: ='WNIOSEK CZĘŚĆ I'!B5 ->  | D3: ='WNIOSEK CZĘŚĆ I'!C49 -> 0 | E3: ='WNIOSEK CZĘŚĆ I'!C26 ->  | H3: ='WNIOSEK CZĘŚĆ I'!C30 -> 0 | K3: ='WNIOSEK CZĘŚĆ I'!C31 -> 0 | N3: ='WNIOSEK CZĘŚĆ I'!C32 -> 0 | Q3: =IFERROR('WNIOSEK CZĘŚĆ I'!C35/'WNIOSEK CZĘŚĆ I'!C36,0) -> 0 | S3: =IFERROR('WNIOSEK CZĘŚĆ I'!C37/'WNIOSEK CZĘŚĆ I'!C38,0) -> 0 | U3: ='WNIOSEK CZĘŚĆ I'!C27 -> 

Sheet WYCIAG Z WNIOSKU_2025
A1: ORGANIZATOR | D1: PLANOWANA ŁĄCZNA KWOTA DOPŁATY 2025 | E1: GĘSTOŚĆ ZALUDNIENIA | H1: LICZBA LINII 2025 | K1: DŁUGOŚĆ LINII 2025 | N1: LICZBA ZATRZYMAŃ 2025 | Q1: REALIZACJA POTRZEB NIEPEŁNOSPRAWNYCH | S1: ZAPEWNIENIE DOSTEPNOŚCI PROGRAMÓW INFRA | U1: WSKAŹNIK DOCHODÓW | X1: ŁĄCZNA PUNKTACJA WAŻONA
A2: TYP | B2: NIP | C2: NAZWA | E2: WARTOŚĆ | F2: LICZBA PUNKTÓW | G2: PUNKTACJA WAŻONA | H2: WARTOŚĆ | I2: LICZBA PUNKTÓW | J2: PUNKTACJA WAŻONA | K2: WARTOŚĆ | L2: LICZBA PUNKTÓW | M2: PUNKTACJA WAŻONA | N2: WARTOŚĆ | O2: LICZBA PUNKTÓW | P2: PUNKTACJA WAŻONA | Q2: WARTOŚĆ | R2: PUNKTACJA WAŻONA | S2: WARTOŚĆ | T2: PUNKTACJA WAŻONA | U2: WARTOŚĆ | V2: LICZBA PUNKTÓW | W2: PUNKTACJA WAŻONA
A3: ='WNIOSEK CZĘŚĆ I'!I5 ->  | B3: ='WNIOSEK CZĘŚĆ I'!B4 -> 0 | C3: ='WNIOSEK CZĘŚĆ I'!B5 ->  | D3: ='WNIOSEK CZĘŚĆ I'!D49 -> 0 | E3: ='WNIOSEK CZĘŚĆ I'!C26 ->  | H3: ='WNIOSEK CZĘŚĆ I'!D30 -> 0 | K3: ='WNIOSEK CZĘŚĆ I'!D31 -> 0 | N3: ='WNIOSEK CZĘŚĆ I'!D32 -> 0 | Q3: =IFERROR('WNIOSEK CZĘŚĆ I'!D35/'WNIOSEK CZĘŚĆ I'!D36,0) -> 0 | S3: =IFERROR('WNIOSEK CZĘŚĆ I'!D37/'WNIOSEK CZĘŚĆ I'!D38,0) -> 0 | U3: ='WNIOSEK CZĘŚĆ I'!C27 -> 

Sheet WYCIĄG Z WNIOSKU_2026
A1: ORGANIZATOR | D1: PLANOWANA ŁĄCZNA KWOTA DOPŁATY 2026 | E1: GĘSTOŚĆ ZALUDNIENIA | H1: LICZBA LINII 2026 | K1: DŁUGOŚĆ LINII 2026 | N1: LICZBA ZATRZYMAŃ 2026 | Q1: REALIZACJA POTRZEB NIEPEŁNOSPRAWNYCH | S1: ZAPEWNIENIE DOSTEPNOŚCI PROGRAMÓW INFRA | U1: WSKAŹNIK DOCHODÓW | X1: ŁĄCZNA PUNKTACJA WAŻONA
A2: TYP | B2: NIP | C2: NAZWA | E2: WARTOŚĆ | F2: LICZBA PUNKTÓW | G2: PUNKTACJA WAŻONA | H2: WARTOŚĆ | I2: LICZBA PUNKTÓW | J2: PUNKTACJA WAŻONA | K2: WARTOŚĆ | L2: LICZBA PUNKTÓW | M2: PUNKTACJA WAŻONA | N2: WARTOŚĆ | O2: LICZBA PUNKTÓW | P2: PUNKTACJA WAŻONA | Q2: WARTOŚĆ | R2: PUNKTACJA WAŻONA | S2: WARTOŚĆ | T2: PUNKTACJA WAŻONA | U2: WARTOŚĆ | V2: LICZBA PUNKTÓW | W2: PUNKTACJA WAŻONA
A3: ='WNIOSEK CZĘŚĆ I'!I5 ->  | B3: ='WNIOSEK CZĘŚĆ I'!B4 -> 0 | C3: ='WNIOSEK CZĘŚĆ I'!B5 ->  | D3: ='WNIOSEK CZĘŚĆ I'!E49 -> 0 | E3: ='WNIOSEK CZĘŚĆ I'!C26 ->  | H3: ='WNIOSEK CZĘŚĆ I'!E30 -> 0 | K3: ='WNIOSEK CZĘŚĆ I'!E31 -> 0 | N3: ='WNIOSEK CZĘŚĆ I'!E32 -> 0 | Q3: =IFERROR('WNIOSEK CZĘŚĆ I'!E35/'WNIOSEK CZĘŚĆ I'!E36,0) -> 0 | S3: =IFERROR('WNIOSEK CZĘŚĆ I'!E37/'WNIOSEK CZĘŚĆ I'!E38,0) -> 0 | U3: ='WNIOSEK CZĘŚĆ I'!C27 -> 

Sheet WYCIĄG Z WNIOSKU_2027
A1: ORGANIZATOR | D1: PLANOWANA ŁĄCZNA KWOTA DOPŁATY 2027 | E1: GĘSTOŚĆ ZALUDNIENIA | H1: LICZBA LINII 2027 | K1: DŁUGOŚĆ LINII 2027 | N1: LICZBA ZATRZYMAŃ 2027 | Q1: REALIZACJA POTRZEB NIEPEŁNOSPRAWNYCH | S1: ZAPEWNIENIE DOSTEPNOŚCI PROGRAMÓW INFRA | U1: WSKAŹNIK DOCHODÓW | X1: ŁĄCZNA PUNKTACJA WAŻONA
A2: TYP | B2: NIP | C2: NAZWA | E2: WARTOŚĆ | F2: LICZBA PUNKTÓW | G2: PUNKTACJA WAŻONA | H2: WARTOŚĆ | I2: LICZBA PUNKTÓW | J2: PUNKTACJA WAŻONA | K2: WARTOŚĆ | L2: LICZBA PUNKTÓW | M2: PUNKTACJA WAŻONA | N2: WARTOŚĆ | O2: LICZBA PUNKTÓW | P2: PUNKTACJA WAŻONA | Q2: WARTOŚĆ | R2: PUNKTACJA WAŻONA | S2: WARTOŚĆ | T2: PUNKTACJA WAŻONA | U2: WARTOŚĆ | V2: LICZBA PUNKTÓW | W2: PUNKTACJA WAŻONA
A3: ='WNIOSEK CZĘŚĆ I'!I5 ->  | B3: ='WNIOSEK CZĘŚĆ I'!B4 -> 0 | C3: ='WNIOSEK CZĘŚĆ I'!B5 ->  | D3: ='WNIOSEK CZĘŚĆ I'!F49 -> 0 | E3: ='WNIOSEK CZĘŚĆ I'!C26 ->  | H3: ='WNIOSEK CZĘŚĆ I'!F30 -> 0 | K3: ='WNIOSEK CZĘŚĆ I'!F31 -> 0 | N3: ='WNIOSEK CZĘŚĆ I'!F32 -> 0 | Q3: =IFERROR('WNIOSEK CZĘŚĆ I'!F35/'WNIOSEK CZĘŚĆ I'!F36,0) -> 0 | S3: =IFERROR('WNIOSEK CZĘŚĆ I'!F37/'WNIOSEK CZĘŚĆ I'!F38,0) -> 0 | U3: ='WNIOSEK CZĘŚĆ I'!C27 -> 

Sheet WYCIĄG Z WNIOSKU_2028
A1: ORGANIZATOR | D1: PLANOWANA ŁĄCZNA KWOTA DOPŁATY 2028 | E1: GĘSTOŚĆ ZALUDNIENIA | H1: LICZBA LINII 2028 | K1: DŁUGOŚĆ LINII 2028 | N1: LICZBA ZATRZYMAŃ 2028 | Q1: REALIZACJA POTRZEB NIEPEŁNOSPRAWNYCH | S1: ZAPEWNIENIE DOSTEPNOŚCI PROGRAMÓW INFRA | U1: WSKAŹNIK DOCHODÓW | X1: ŁĄCZNA PUNKTACJA WAŻONA
A2: TYP | B2: NIP | C2: NAZWA | E2: WARTOŚĆ | F2: LICZBA PUNKTÓW | G2: PUNKTACJA WAŻONA | H2: WARTOŚĆ | I2: LICZBA PUNKTÓW | J2: PUNKTACJA WAŻONA | K2: WARTOŚĆ | L2: LICZBA PUNKTÓW | M2: PUNKTACJA WAŻONA | N2: WARTOŚĆ | O2: LICZBA PUNKTÓW | P2: PUNKTACJA WAŻONA | Q2: WARTOŚĆ | R2: PUNKTACJA WAŻONA | S2: WARTOŚĆ | T2: PUNKTACJA WAŻONA | U2: WARTOŚĆ | V2: LICZBA PUNKTÓW | W2: PUNKTACJA WAŻONA
A3: ='WNIOSEK CZĘŚĆ I'!I5 ->  | B3: ='WNIOSEK CZĘŚĆ I'!B4 -> 0 | C3: ='WNIOSEK CZĘŚĆ I'!B5 ->  | D3: ='WNIOSEK CZĘŚĆ I'!G49 -> 0 | E3: ='WNIOSEK CZĘŚĆ I'!C26 ->  | H3: ='WNIOSEK CZĘŚĆ I'!G30 -> 0 | K3: ='WNIOSEK CZĘŚĆ I'!G31 -> 0 | N3: ='WNIOSEK CZĘŚĆ I'!G32 -> 0 | Q3: =IFERROR('WNIOSEK CZĘŚĆ I'!G35/'WNIOSEK CZĘŚĆ I'!G36,0) -> 0 | S3: =IFERROR('WNIOSEK CZĘŚĆ I'!G37/'WNIOSEK CZĘŚĆ I'!G38,0) -> 0 | U3: ='WNIOSEK CZĘŚĆ I'!C27 -> 

Sheet WYCIĄG Z WNIOSKU_2029
A1: ORGANIZATOR | D1: PLANOWANA ŁĄCZNA KWOTA DOPŁATY 2029 | E1: GĘSTOŚĆ ZALUDNIENIA | H1: LICZBA LINII 2029 | K1: DŁUGOŚĆ LINII 2029 | N1: LICZBA ZATRZYMAŃ 2029 | Q1: REALIZACJA POTRZEB NIEPEŁNOSPRAWNYCH | S1: ZAPEWNIENIE DOSTEPNOŚCI PROGRAMÓW INFRA | U1: WSKAŹNIK DOCHODÓW | X1: ŁĄCZNA PUNKTACJA WAŻONA
A2: TYP | B2: NIP | C2: NAZWA | E2: WARTOŚĆ | F2: LICZBA PUNKTÓW | G2: PUNKTACJA WAŻONA | H2: WARTOŚĆ | I2: LICZBA PUNKTÓW | J2: PUNKTACJA WAŻONA | K2: WARTOŚĆ | L2: LICZBA PUNKTÓW | M2: PUNKTACJA WAŻONA | N2: WARTOŚĆ | O2: LICZBA PUNKTÓW | P2: PUNKTACJA WAŻONA | Q2: WARTOŚĆ | R2: PUNKTACJA WAŻONA | S2: WARTOŚĆ | T2: PUNKTACJA WAŻONA | U2: WARTOŚĆ | V2: LICZBA PUNKTÓW | W2: PUNKTACJA WAŻONA
A3: ='WNIOSEK CZĘŚĆ I'!I5 ->  | B3: ='WNIOSEK CZĘŚĆ I'!B4 -> 0 | C3: ='WNIOSEK CZĘŚĆ I'!B5 ->  | D3: ='WNIOSEK CZĘŚĆ I'!H49 -> 0 | E3: ='WNIOSEK CZĘŚĆ I'!C26 ->  | H3: ='WNIOSEK CZĘŚĆ I'!H30 -> 0 | K3: ='WNIOSEK CZĘŚĆ I'!H31 -> 0 | N3: ='WNIOSEK CZĘŚĆ I'!H32 -> 0 | Q3: =IFERROR('WNIOSEK CZĘŚĆ I'!H35/'WNIOSEK CZĘŚĆ I'!H36,0) -> 0 | S3: =IFERROR('WNIOSEK CZĘŚĆ I'!H37/'WNIOSEK CZĘŚĆ I'!H38,0) -> 0 | U3: ='WNIOSEK CZĘŚĆ I'!C27 -> 

Sheet WYCIĄG Z WNIOSKU_2030
A1: ORGANIZATOR | D1: PLANOWANA ŁĄCZNA KWOTA DOPŁATY 2030 | E1: GĘSTOŚĆ ZALUDNIENIA | H1: LICZBA LINII 2030 | K1: DŁUGOŚĆ LINII 2030 | N1: LICZBA ZATRZYMAŃ 2030 | Q1: REALIZACJA POTRZEB NIEPEŁNOSPRAWNYCH | S1: ZAPEWNIENIE DOSTEPNOŚCI PROGRAMÓW INFRA | U1: WSKAŹNIK DOCHODÓW | X1: ŁĄCZNA PUNKTACJA WAŻONA
A2: TYP | B2: NIP | C2: NAZWA | E2: WARTOŚĆ | F2: LICZBA PUNKTÓW | G2: PUNKTACJA WAŻONA | H2: WARTOŚĆ | I2: LICZBA PUNKTÓW | J2: PUNKTACJA WAŻONA | K2: WARTOŚĆ | L2: LICZBA PUNKTÓW | M2: PUNKTACJA WAŻONA | N2: WARTOŚĆ | O2: LICZBA PUNKTÓW | P2: PUNKTACJA WAŻONA | Q2: WARTOŚĆ | R2: PUNKTACJA WAŻONA | S2: WARTOŚĆ | T2: PUNKTACJA WAŻONA | U2: WARTOŚĆ | V2: LICZBA PUNKTÓW | W2: PUNKTACJA WAŻONA
A3: ='WNIOSEK CZĘŚĆ I'!I5 ->  | B3: ='WNIOSEK CZĘŚĆ I'!B4 -> 0 | C3: ='WNIOSEK CZĘŚĆ I'!B5 ->  | D3: ='WNIOSEK CZĘŚĆ I'!I49 -> 0 | E3: ='WNIOSEK CZĘŚĆ I'!C26 ->  | H3: ='WNIOSEK CZĘŚĆ I'!I30 -> 0 | K3: ='WNIOSEK CZĘŚĆ I'!I31 -> 0 | N3: ='WNIOSEK CZĘŚĆ I'!I32 -> 0 | Q3: =IFERROR('WNIOSEK CZĘŚĆ I'!I35/'WNIOSEK CZĘŚĆ I'!I36,0) -> 0 | S3: =IFERROR('WNIOSEK CZĘŚĆ I'!I37/'WNIOSEK CZĘŚĆ I'!I38,0) -> 0 | U3: ='WNIOSEK CZĘŚĆ I'!C27 -> 

Sheet WYCIĄG Z WNIOSKU_2031
A1: ORGANIZATOR | D1: PLANOWANA ŁĄCZNA KWOTA DOPŁATY 2031 | E1: GĘSTOŚĆ ZALUDNIENIA | H1: LICZBA LINII 2031 | K1: DŁUGOŚĆ LINII 2031 | N1: LICZBA ZATRZYMAŃ 2031 | Q1: REALIZACJA POTRZEB NIEPEŁNOSPRAWNYCH | S1: ZAPEWNIENIE DOSTEPNOŚCI PROGRAMÓW INFRA | U1: WSKAŹNIK DOCHODÓW | X1: ŁĄCZNA PUNKTACJA WAŻONA
A2: TYP | B2: NIP | C2: NAZWA | E2: WARTOŚĆ | F2: LICZBA PUNKTÓW | G2: PUNKTACJA WAŻONA | H2: WARTOŚĆ | I2: LICZBA PUNKTÓW | J2: PUNKTACJA WAŻONA | K2: WARTOŚĆ | L2: LICZBA PUNKTÓW | M2: PUNKTACJA WAŻONA | N2: WARTOŚĆ | O2: LICZBA PUNKTÓW | P2: PUNKTACJA WAŻONA | Q2: WARTOŚĆ | R2: PUNKTACJA WAŻONA | S2: WARTOŚĆ | T2: PUNKTACJA WAŻONA | U2: WARTOŚĆ | V2: LICZBA PUNKTÓW | W2: PUNKTACJA WAŻONA
A3: ='WNIOSEK CZĘŚĆ I'!I5 ->  | B3: ='WNIOSEK CZĘŚĆ I'!B4 -> 0 | C3: ='WNIOSEK CZĘŚĆ I'!B5 ->  | D3: ='WNIOSEK CZĘŚĆ I'!J49 -> 0 | E3: ='WNIOSEK CZĘŚĆ I'!C26 ->  | H3: ='WNIOSEK CZĘŚĆ I'!J30 -> 0 | K3: ='WNIOSEK CZĘŚĆ I'!J31 -> 0 | N3: ='WNIOSEK CZĘŚĆ I'!J32 -> 0 | Q3: =IFERROR('WNIOSEK CZĘŚĆ I'!J35/'WNIOSEK CZĘŚĆ I'!J36,0) -> 0 | S3: =IFERROR('WNIOSEK CZĘŚĆ I'!J37/'WNIOSEK CZĘŚĆ I'!J38,0) -> 0 | U3: ='WNIOSEK CZĘŚĆ I'!C27 -> 

Sheet WYCIĄG Z WNIOSKU_2032
A1: ORGANIZATOR | D1: PLANOWANA ŁĄCZNA KWOTA DOPŁATY 2032 | E1: GĘSTOŚĆ ZALUDNIENIA | H1: LICZBA LINII 2032 | K1: DŁUGOŚĆ LINII 2032 | N1: LICZBA ZATRZYMAŃ 2032 | Q1: REALIZACJA POTRZEB NIEPEŁNOSPRAWNYCH | S1: ZAPEWNIENIE DOSTEPNOŚCI PROGRAMÓW INFRA | U1: WSKAŹNIK DOCHODÓW | X1: ŁĄCZNA PUNKTACJA WAŻONA
A2: TYP | B2: NIP | C2: NAZWA | E2: WARTOŚĆ | F2: LICZBA PUNKTÓW | G2: PUNKTACJA WAŻONA | H2: WARTOŚĆ | I2: LICZBA PUNKTÓW | J2: PUNKTACJA WAŻONA | K2: WARTOŚĆ | L2: LICZBA PUNKTÓW | M2: PUNKTACJA WAŻONA | N2: WARTOŚĆ | O2: LICZBA PUNKTÓW | P2: PUNKTACJA WAŻONA | Q2: WARTOŚĆ | R2: PUNKTACJA WAŻONA | S2: WARTOŚĆ | T2: PUNKTACJA WAŻONA | U2: WARTOŚĆ | V2: LICZBA PUNKTÓW | W2: PUNKTACJA WAŻONA
A3: ='WNIOSEK CZĘŚĆ I'!I5 ->  | B3: ='WNIOSEK CZĘŚĆ I'!B4 -> 0 | C3: ='WNIOSEK CZĘŚĆ I'!B5 ->  | D3: ='WNIOSEK CZĘŚĆ I'!K49 -> 0 | E3: ='WNIOSEK CZĘŚĆ I'!C26 ->  | H3: ='WNIOSEK CZĘŚĆ I'!K30 -> 0 | K3: ='WNIOSEK CZĘŚĆ I'!K31 -> 0 | N3: ='WNIOSEK CZĘŚĆ I'!K32 -> 0 | Q3: =IFERROR('WNIOSEK CZĘŚĆ I'!K35/'WNIOSEK CZĘŚĆ I'!K36,0) -> 0 | S3: =IFERROR('WNIOSEK CZĘŚĆ I'!K37/'WNIOSEK CZĘŚĆ I'!K38,0) -> 0 | U3: ='WNIOSEK CZĘŚĆ I'!C27 -> 

Sheet WYCIĄG Z WNIOSKU_2033
A1: ORGANIZATOR | D1: PLANOWANA ŁĄCZNA KWOTA DOPŁATY 2033 | E1: GĘSTOŚĆ ZALUDNIENIA | H1: LICZBA LINII 2033 | K1: DŁUGOŚĆ LINII 2033 | N1: LICZBA ZATRZYMAŃ 2033 | Q1: REALIZACJA POTRZEB NIEPEŁNOSPRAWNYCH | S1: ZAPEWNIENIE DOSTEPNOŚCI PROGRAMÓW INFRA | U1: WSKAŹNIK DOCHODÓW | X1: ŁĄCZNA PUNKTACJA WAŻONA
A2: TYP | B2: NIP | C2: NAZWA | E2: WARTOŚĆ | F2: LICZBA PUNKTÓW | G2: PUNKTACJA WAŻONA | H2: WARTOŚĆ | I2: LICZBA PUNKTÓW | J2: PUNKTACJA WAŻONA | K2: WARTOŚĆ | L2: LICZBA PUNKTÓW | M2: PUNKTACJA WAŻONA | N2: WARTOŚĆ | O2: LICZBA PUNKTÓW | P2: PUNKTACJA WAŻONA | Q2: WARTOŚĆ | R2: PUNKTACJA WAŻONA | S2: WARTOŚĆ | T2: PUNKTACJA WAŻONA | U2: WARTOŚĆ | V2: LICZBA PUNKTÓW | W2: PUNKTACJA WAŻONA
A3: ='WNIOSEK CZĘŚĆ I'!I5 ->  | B3: ='WNIOSEK CZĘŚĆ I'!B4 -> 0 | C3: ='WNIOSEK CZĘŚĆ I'!B5 ->  | D3: ='WNIOSEK CZĘŚĆ I'!L49 -> 0 | E3: ='WNIOSEK CZĘŚĆ I'!C26 ->  | H3: ='WNIOSEK CZĘŚĆ I'!L30 -> 0 | K3: ='WNIOSEK CZĘŚĆ I'!L31 -> 0 | N3: ='WNIOSEK CZĘŚĆ I'!L32 -> 0 | Q3: =IFERROR('WNIOSEK CZĘŚĆ I'!L35/'WNIOSEK CZĘŚĆ I'!L36,0) -> 0 | S3: =IFERROR('WNIOSEK CZĘŚĆ I'!L37/'WNIOSEK CZĘŚĆ I'!L38,0) -> 0 | U3: ='WNIOSEK CZĘŚĆ I'!C27 -> 

Sheet Arkusz2 (hidden)
A1: NIP | B1: NAZWA | C1: WOJ. | D1: POW | E1: GMINA | F1: Kod pocztowy | G1: Miejscowość poczty | H1: Miejscowość | I1: Ulica | J1: nr nieruchomości | O1: TAK | P1: NIE
A2: 6282074477 | B2: GMINA ALWERNIA | C2: 12 | D2: 03 | E2: 014 | F2: 32566 | G2: Alwernia | H2: Alwernia | I2: ul. Zbigniewa Gęsikowskiego | J2: 7 | K2: GMINA | L2: =C2*100000+D2*1000+E2 -> 1203014 | M2: =VLOOKUP(L2,Arkusz3!A:K,2,0) ->  | N2: =IF(M2=M$1,L2-1,IF(M2=N$1,L2-2,L2)) -> 1203013 | O2: =VLOOKUP(N2,Arkusz3!A:E,5,0) -> 74 | P2: =VLOOKUP(N2,Arkusz3!H:J,3,0) -> 12361 | Q2: =P2/O2 -> 167.0405405 | R2: =VLOOKUP(N2,Arkusz3!AN:AP,3,0) -> 1969.33
A3: 5510013406 | B3: GMINA ANDRYCHÓW | C3: 12 | D3: 18 | E3: 014 | F3: 34120 | G3: Andrychów | H3: Andrychów | I3: Rynek | J3: 15 | K3: GMINA | L3: =C3*100000+D3*1000+E3 -> 1218014 | M3: =VLOOKUP(L3,Arkusz3!A:K,2,0) ->  | N3: =IF(M3=M$1,L3-1,IF(M3=N$1,L3-2,L3)) -> 1218013 | O3: =VLOOKUP(N3,Arkusz3!A:E,5,0) -> 100 | P3: =VLOOKUP(N3,Arkusz3!H:J,3,0) -> 42179 | Q3: =P3/O3 -> 421.79 | R3: =VLOOKUP(N3,Arkusz3!AN:AP,3,0) -> 1607.3
A4: 6282267905 | B4: GMINA BABICE | C4: 12 | D4: 03 | E4: 022 | F4: 32551 | G4: Babice | H4: Babice | I4: ul. Krakowska | J4: 56 | K4: GMINA | L4: 1203022 | M4: =VLOOKUP(L4,Arkusz3!A:K,2,0) -> Babice.......................................................................................................................................................................................................................................................... | N4: 1203022 | O4: =VLOOKUP(N4,Arkusz3!A:E,5,0) -> 55 | P4: =VLOOKUP(N4,Arkusz3!H:J,3,0) -> 9022 | Q4: 164.0363636 | R4: =VLOOKUP(N4,Arkusz3!AN:AP,3,0) -> 1590.51
A5: 7361717680 | B5: GMINA BIAŁY DUNAJEC | C5: 12 | D5: 17 | E5: 022 | F5: 34425 | G5: Biały Dunajec | H5: Biały Dunajec | I5: ul. Jana Pawła II | J5: 312 | K5: GMINA | L5: 1217022 | M5: =VLOOKUP(L5,Arkusz3!A:K,2,0) -> Biały Dunajec.......................................................................................................................................................................................................................................................... | N5: 1217022 | O5: =VLOOKUP(N5,Arkusz3!A:E,5,0) -> 35 | P5: =VLOOKUP(N5,Arkusz3!H:J,3,0) -> 6830 | Q5: 195.1428571 | R5: =VLOOKUP(N5,Arkusz3!AN:AP,3,0) -> 982.21
A6: 7381973883 | B6: GMINA BIECZ | C6: 12 | D6: 05 | E6: 024 | F6: 38340 | G6: Biecz | H6: Biecz | I6: ul. Rynek | J6: 1 | K6: GMINA | L6: 1205024 | M6: =VLOOKUP(L6,Arkusz3!A:K,2,0) ->  | N6: 1205023 | O6: =VLOOKUP(N6,Arkusz3!A:E,5,0) -> 98 | P6: =VLOOKUP(N6,Arkusz3!H:J,3,0) -> 16198 | Q6: 165.2857143 | R6: =VLOOKUP(N6,Arkusz3!AN:AP,3,0) -> 1126.36
A7: 6831573055 | B7: GMINA BISKUPICE | C7: 12 | D7: 19 | E7: 012 | F7: 32020 | G7: Wieliczka | H7: Tomaszkowice | J7: 455 | K7: GMINA | L7: 1219012 | M7: =VLOOKUP(L7,Arkusz3!A:K,2,0) -> Biskupice.......................................................................................................................................................................................................................................................... | N7: 1219012 | O7: =VLOOKUP(N7,Arkusz3!A:E,5,0) -> 41 | P7: =VLOOKUP(N7,Arkusz3!H:J,3,0) -> 11557 | Q7: 281.8780488 | R7: =VLOOKUP(N7,Arkusz3!AN:AP,3,0) -> 1526.68
A8: 7382129965 | B8: GMINA BOBOWA | C8: 12 | D8: 05 | E8: 034 | F8: 38350 | G8: Bobowa | H8: Bobowa | I8: ul. Rynek | J8: 21 | K8: GMINA | L8: 1205034 | M8: =VLOOKUP(L8,Arkusz3!A:K,2,0) ->  | N8: 1205033 | O8: =VLOOKUP(N8,Arkusz3!A:E,5,0) -> 50 | P8: =VLOOKUP(N8,Arkusz3!H:J,3,0) -> 9574 | Q8: 191.48 | R8: =VLOOKUP(N8,Arkusz3!AN:AP,3,0) -> 790.6
A9: 8681001825 | B9: GMINA MIASTA BOCHNIA | C9: 12 | D9: 01 | E9: 011 | F9: 32700 | G9: Bochnia | H9: Bochnia | I9: ul. Kazimierza Wielkiego | J9: 2 | K9: GMINA | L9: 1201011 | M9: =VLOOKUP(L9,Arkusz3!A:K,2,0) -> Bochnia.......................................................................................................................................................................................................................................................... | N9: 1201011 | O9: =VLOOKUP(N9,Arkusz3!A:E,5,0) -> 30 | P9: =VLOOKUP(N9,Arkusz3!H:J,3,0) -> 28692 | Q9: 956.4 | R9: =VLOOKUP(N9,Arkusz3!AN:AP,3,0) -> 2428.73
A10: 8681021271 | B10: GMINA BOCHNIA | C10: 12 | D10: 01 | E10: 022 | F10: 32700 | G10: Bochnia | H10: Bochnia | I10: ul. Kazimierza Wielkiego | J10: 26 | K10: GMINA | L10: 1201022 | M10: =VLOOKUP(L10,Arkusz3!A:K,2,0) -> Bochnia.......................................................................................................................................................................................................................................................... | N10: 1201022 | O10: =VLOOKUP(N10,Arkusz3!A:E,5,0) -> 132 | P10: =VLOOKUP(N10,Arkusz3!H:J,3,0) -> 20597 | Q10: 156.0378788 | R10: =VLOOKUP(N10,Arkusz3!AN:AP,3,0) -> 1523.98
A11: 8711770280 | B11: GMINA BOLESŁAW (pow. dąbrowski) | C11: 12 | D11: 04 | E11: 012 | F11: 33220 | G11: Bolesław | H11: Bolesław | J11: 68 | K11: GMINA | L11: 1204012 | M11: =VLOOKUP(L11,Arkusz3!A:K,2,0) -> Bolesław.......................................................................................................................................................................................................................................................... | N11: 1204012 | O11: =VLOOKUP(N11,Arkusz3!A:E,5,0) -> 36 | P11: =VLOOKUP(N11,Arkusz3!H:J,3,0) -> 2659 | Q11: 73.86111111 | R11: =VLOOKUP(N11,Arkusz3!AN:AP,3,0) -> 978.52
A12: 6371997976 | B12: GMINA BOLESŁAW (pow. olkuski) | C12: 12 | D12: 12 | E12: 032 | F12: 32329 | G12: Bolesław | H12: Bolesław | I12: ul. Główna | J12: 58 | K12: GMINA | L12: 1212032 | M12: =VLOOKUP(L12,Arkusz3!A:K,2,0) -> Bolesław.......................................................................................................................................................................................................................................................... | N12: 1212032 | O12: =VLOOKUP(N12,Arkusz3!A:E,5,0) -> 41 | P12: =VLOOKUP(N12,Arkusz3!H:J,3,0) -> 7587 | Q12: 185.0487805 | R12: =VLOOKUP(N12,Arkusz3!AN:AP,3,0) -> 2879.76
A13: 8691318251 | B13: GMINA BORZĘCIN | C13: 12 | D13: 02 | E13: 012 | F13: 32825 | G13: Borzęcin | H13: Borzęcin | J13: 583G | K13: GMINA | L13: 1202012 | M13: =VLOOKUP(L13,Arkusz3!A:K,2,0) -> Borzęcin.......................................................................................................................................................................................................................................................... | N13: 1202012 | O13: =VLOOKUP(N13,Arkusz3!A:E,5,0) -> 103 | P13: =VLOOKUP(N13,Arkusz3!H:J,3,0) -> 8130 | Q13: 78.93203883 | R13: =VLOOKUP(N13,Arkusz3!AN:AP,3,0) -> 1322.66
A14: 8691002648 | B14: GMINA BRZESKO | C14: 12 | D14: 02 | E14: 024 | F14: 32800 | G14: Brzesko | H14: Brzesko | I14: ul. Bartosza Głowackiego | J14: 51 | K14: GMINA | L14: 1202024 | M14: =VLOOKUP(L14,Arkusz3!A:K,2,0) ->  | N14: 1202023 | O14: =VLOOKUP(N14,Arkusz3!A:E,5,0) -> 103 | P14: =VLOOKUP(N14,Arkusz3!H:J,3,0) -> 35575 | Q14: 345.3883495 | R14: =VLOOKUP(N14,Arkusz3!AN:AP,3,0) -> 1951.28
A15: 5492197470 | B15: GMINA BRZESZCZE | C15: 12 | D15: 13 | E15: 024 | F15: 32620 | G15: Brzeszcze | H15: Brzeszcze | I15: ul. Kościelna | J15: 4 | K15: GMINA | L15: 1213024 | M15: =VLOOKUP(L15,Arkusz3!A:K,2,0) ->  | N15: 1213023 | O15: =VLOOKUP(N15,Arkusz3!A:E,5,0) -> 46 | P15: =VLOOKUP(N15,Arkusz3!H:J,3,0) -> 20546 | Q15: 446.6521739 | R15: =VLOOKUP(N15,Arkusz3!AN:AP,3,0) -> 2076.83
A16: 5511123918 | B16: GMINA BRZEŹNICA | C16: 12 | D16: 18 | E16: 022 | F16: 34114 | G16: Brzeźnica | H16: Brzeźnica | I16: ul. Krakowska | J16: 109 | K16: GMINA | L16: 1218022 | M16: =VLOOKUP(L16,Arkusz3!A:K,2,0) -> Brzeźnica.......................................................................................................................................................................................................................................................... | N16: 1218022 | O16: =VLOOKUP(N16,Arkusz3!A:E,5,0) -> 66 | P16: =VLOOKUP(N16,Arkusz3!H:J,3,0) -> 10762 | Q16: 163.0606061 | R16: =VLOOKUP(N16,Arkusz3!AN:AP,3,0) -> 1306.94
A17: 5521677860 | B17: GMINA BUDZÓW | C17: 12 | D17: 15 | E17: 032 | F17: 34211 | G17: Budzów | H17: Budzów | J17: 445 | K17: GMINA | L17: 1215032 | M17: =VLOOKUP(L17,Arkusz3!A:K,2,0) -> Budzów.......................................................................................................................................................................................................................................................... | N17: 1215032 | O17: =VLOOKUP(N17,Arkusz3!A:E,5,0) -> 74 | P17: =VLOOKUP(N17,Arkusz3!H:J,3,0) -> 8846 | Q17: 119.5405405 | R17: =VLOOKUP(N17,Arkusz3!AN:AP,3,0) -> 862.93
A18: 7361717220 | B18: GMINA BUKOWINA TATRZAŃSKA | C18: 12 | D18: 17 | E18: 032 | F18: 34530 | G18: Bukowina Tatrzańska | H18: Bukowina Tatrzańska | I18: ul. Długa | J18: 144 | K18: GMINA | L18: 1217032 | M18: =VLOOKUP(L18,Arkusz3!A:K,2,0) -> Bukowina Tatrzańska.......................................................................................................................................................................................................................................................... | N18: 1217032 | O18: =VLOOKUP(N18,Arkusz3!A:E,5,0) -> 132 | P18: =VLOOKUP(N18,Arkusz3!H:J,3,0) -> 13507 | Q18: 102.3257576 | R18: =VLOOKUP(N18,Arkusz3!AN:AP,3,0) -> 2134.38
A19: 6371998065 | B19: GMINA BUKOWNO | C19: 12 | D19: 12 | E19: 011 | F19: 32332 | G19: Bukowno | H19: Bukowno | I19: ul. Kolejowa | J19: 16 | K19: GMINA | L19: 1212011 | M19: =VLOOKUP(L19,Arkusz3!A:K,2,0) -> Bukowno.......................................................................................................................................................................................................................................................... | N19: 1212011 | O19: =VLOOKUP(N19,Arkusz3!A:E,5,0) -> 65 | P19: =VLOOKUP(N19,Arkusz3!H:J,3,0) -> 9604 | Q19: 147.7538462 | R19: =VLOOKUP(N19,Arkusz3!AN:AP,3,0) -> 3110.7
A20: 5521570518 | B20: GMINA BYSTRA-SIDZINA W BYSTREJ PODHALAŃSKIEJ | C20: 12 | D20: 15 | E20: 042 | F20: 34235 | G20: Bystra Podhalańska | H20: Bystra Podhalańska | J20: 373 | K20: GMINA | L20: 1215042 | M20: =VLOOKUP(L20,Arkusz3!A:K,2,0) -> Bystra-Sidzina.......................................................................................................................................................................................................................................................... | N20: 1215042 | O20: =VLOOKUP(N20,Arkusz3!A:E,5,0) -> 81 | P20: =VLOOKUP(N20,Arkusz3!H:J,3,0) -> 6796 | Q20: 83.90123457 | R20: =VLOOKUP(N20,Arkusz3!AN:AP,3,0) -> 1258.02
A21: 6591153915 | B21: GMINA CHARSZNICA | C21: 12 | D21: 08 | E21: 012 | F21: 32250 | G21: Charsznica | H21: Miechów-Charsznica | J21: 20 | K21: GMINA | L21: 1208012 | M21: =VLOOKUP(L21,Arkusz3!A:K,2,0) -> Charsznica.......................................................................................................................................................................................................................................................... | N21: 1208012 | O21: =VLOOKUP(N21,Arkusz3!A:E,5,0) -> 78 | P21: =VLOOKUP(N21,Arkusz3!H:J,3,0) -> 7128 | Q21: 91.38461538 | R21: =VLOOKUP(N21,Arkusz3!AN:AP,3,0) -> 1185.69
A22: 5492197441 | B22: GMINA CHEŁMEK | C22: 12 | D22: 13 | E22: 034 | F22: 32660 | G22: Chełmek | H22: Chełmek | I22: ul. Krakowska | J22: 11 | K22: GMINA | L22: 1213034 | M22: =VLOOKUP(L22,Arkusz3!A:K,2,0) ->  | N22: 1213033 | O22: =VLOOKUP(N22,Arkusz3!A:E,5,0) -> 27 | P22: =VLOOKUP(N22,Arkusz3!H:J,3,0) -> 12386 | Q22: 458.7407407 | R22: =VLOOKUP(N22,Arkusz3!AN:AP,3,0) -> 1789.46
A23: 7343445768 | B23: GMINA CHEŁMIEC | C23: 12 | D23: 10 | E23: 022 | F23: 33395 | G23: Chełmiec | H23: Chełmiec | I23: ul. Papieska | J23: 2 | K23: GMINA | L23: 1210022 | M23: =VLOOKUP(L23,Arkusz3!A:K,2,0) -> Chełmiec.......................................................................................................................................................................................................................................................... | N23: 1210022 | O23: =VLOOKUP(N23,Arkusz3!A:E,5,0) -> 112 | P23: =VLOOKUP(N23,Arkusz3!H:J,3,0) -> 29572 | Q23: 264.0357143 | R23: =VLOOKUP(N23,Arkusz3!AN:AP,3,0) -> 1169.46
A24: 6282260665 | B24: GMINA CHRZANÓW | C24: 12 | D24: 03 | E24: 034 | F24: 32500 | G24: Chrzanów | H24: Chrzanów | I24: ul. Aleja Henryka | J24: 20 | K24: GMINA | L24: 1203034 | M24: =VLOOKUP(L24,Arkusz3!A:K,2,0) ->  | N24: 1203033 | O24: =VLOOKUP(N24,Arkusz3!A:E,5,0) -> 79 | P24: =VLOOKUP(N24,Arkusz3!H:J,3,0) -> 44442 | Q24: 562.556962 | R24: =VLOOKUP(N24,Arkusz3!AN:AP,3,0) -> 1950.31
A25: 8731014848 | B25: GMINA CIĘŻKOWICE | C25: 12 | D25: 16 | E25: 014 | F25: 33190 | G25: Ciężkowice | H25: Ciężkowice | I25: ul. Tysiąclecia | J25: 19 | K25: GMINA | L25: 1216014 | M25: =VLOOKUP(L25,Arkusz3!A:K,2,0) ->  | N25: 1216013 | O25: =VLOOKUP(N25,Arkusz3!A:E,5,0) -> 103 | P25: =VLOOKUP(N25,Arkusz3!H:J,3,0) -> 11027 | Q25: 107.0582524 | R25: =VLOOKUP(N25,Arkusz3!AN:AP,3,0) -> 1025.82
A26: 7352843273 | B26: GMINA CZARNY DUNAJEC | C26: 12 | D26: 11 | E26: 032 | F26: 34470 | G26: Czarny Dunajec | H26: Czarny Dunajec | I26: ul. Józefa Piłsudskiego | J26: 2 | K26: GMINA | L26: 1211032 | M26: =VLOOKUP(L26,Arkusz3!A:K,2,0) -> Czarny Dunajec.......................................................................................................................................................................................................................................................... | N26: 1211032 | O26: =VLOOKUP(N26,Arkusz3!A:E,5,0) -> 218 | P26: =VLOOKUP(N26,Arkusz3!H:J,3,0) -> 22113 | Q26: 101.4357798 | R26: =VLOOKUP(N26,Arkusz3!AN:AP,3,0) -> 783.76
A27: 8691291026 | B27: GMINA CZCHÓW | C27: 12 | D27: 02 | E27: 034 | F27: 32860 | G27: Czchów | H27: Czchów | I27: rynek Rynek | J27: 12 | K27: GMINA | L27: 1202034 | M27: =VLOOKUP(L27,Arkusz3!A:K,2,0) ->  | N27: 1202033 | O27: =VLOOKUP(N27,Arkusz3!A:E,5,0) -> 66 | P27: =VLOOKUP(N27,Arkusz3!H:J,3,0) -> 9748 | Q27: 147.6969697 | R27: =VLOOKUP(N27,Arkusz3!AN:AP,3,0) -> 1099.42
A28: 9442253228 | B28: GMINA CZERNICHÓW | C28: 12 | D28: 06 | E28: 012 | F28: 32070 | G28: Czernichów | H28: Czernichów | I28: ul. Gminna | J28: 1 | K28: GMINA | L28: 1206012 | M28: =VLOOKUP(L28,Arkusz3!A:K,2,0) -> Czernichów.......................................................................................................................................................................................................................................................... | N28: 1206012 | O28: =VLOOKUP(N28,Arkusz3!A:E,5,0) -> 85 | P28: =VLOOKUP(N28,Arkusz3!H:J,3,0) -> 15371 | Q28: 180.8352941 | R28: =VLOOKUP(N28,Arkusz3!AN:AP,3,0) -> 1667.92
A29: 7352851410 | B29: GMINA CZORSZTYN | C29: 12 | D29: 11 | E29: 042 | F29: 34436 | G29: Maniowy | H29: Maniowy | I29: ul. Gorczańska | J29: 3 | K29: GMINA | L29: 1211042 | M29: =VLOOKUP(L29,Arkusz3!A:K,2,0) -> Czorsztyn.......................................................................................................................................................................................................................................................... | N29: 1211042 | O29: =VLOOKUP(N29,Arkusz3!A:E,5,0) -> 62 | P29: =VLOOKUP(N29,Arkusz3!H:J,3,0) -> 7592 | Q29: 122.4516129 | R29: =VLOOKUP(N29,Arkusz3!AN:AP,3,0) -> 1257.53
A30: 8711771055 | B30: GMINA DĄBROWA TARNOWSKA | C30: 12 | D30: 04 | E30: 024 | F30: 33200 | G30: Dąbrowa Tarnowska | H30: Dąbrowa Tarnowska | I30: rynek Rynek | J30: 34 | K30: GMINA | L30: 1204024 | M30: =VLOOKUP(L30,Arkusz3!A:K,2,0) ->  | N30: 1204023 | O30: =VLOOKUP(N30,Arkusz3!A:E,5,0) -> 116 | P30: =VLOOKUP(N30,Arkusz3!H:J,3,0) -> 20923 | Q30: 180.3706897 | R30: =VLOOKUP(N30,Arkusz3!AN:AP,3,0) -> 1222.59
A31: 8691326517 | B31: GMINA DĘBNO | C31: 12 | D31: 02 | E31: 042 | F31: 32852 | G31: Dębno | H31: Wola Dębińska | J31: 240 | K31: GMINA | L31: 1202042 | M31: =VLOOKUP(L31,Arkusz3!A:K,2,0) -> Dębno.......................................................................................................................................................................................................................................................... | N31: 1202042 | O31: =VLOOKUP(N31,Arkusz3!A:E,5,0) -> 82 | P31: =VLOOKUP(N31,Arkusz3!H:J,3,0) -> 14488 | Q31: 176.6829268 | R31: =VLOOKUP(N31,Arkusz3!AN:AP,3,0) -> 1067.23
A32: 6811004443 | B32: GMINA DOBCZYCE | C32: 12 | D32: 09 | E32: 014 | F32: 32410 | G32: Dobczyce | H32: Dobczyce | I32: ul. Rynek | J32: 26 | K32: GMINA | L32: 1209014 | M32: =VLOOKUP(L32,Arkusz3!A:K,2,0) ->  | N32: 1209013 | O32: =VLOOKUP(N32,Arkusz3!A:E,5,0) -> 66 | P32: =VLOOKUP(N32,Arkusz3!H:J,3,0) -> 15509 | Q32: 234.9848485 | R32: =VLOOKUP(N32,Arkusz3!AN:AP,3,0) -> 1950.45
A33: 7371005969 | B33: GMINA DOBRA | C33: 12 | D33: 07 | E33: 032 | F33: 34642 | G33: Dobra | H33: Dobra | J33: 233 | K33: GMINA | L33: 1207032 | M33: =VLOOKUP(L33,Arkusz3!A:K,2,0) -> Dobra.......................................................................................................................................................................................................................................................... | N33: 1207032 | O33: =VLOOKUP(N33,Arkusz3!A:E,5,0) -> 110 | P33: =VLOOKUP(N33,Arkusz3!H:J,3,0) -> 10110 | Q33: 91.90909091 | R33: =VLOOKUP(N33,Arkusz3!AN:AP,3,0) -> 956.41
A34: 6831718453 | B34: GMINA DRWINIA | C34: 12 | D34: 01 | E34: 032 | F34: 32709 | G34: Drwinia | H34: Drwinia | J34: 57 | K34: GMINA | L34: 1201032 | M34: =VLOOKUP(L34,Arkusz3!A:K,2,0) -> Drwinia.......................................................................................................................................................................................................................................................... | N34: 1201032 | O34: =VLOOKUP(N34,Arkusz3!A:E,5,0) -> 108 | P34: =VLOOKUP(N34,Arkusz3!H:J,3,0) -> 6465 | Q34: 59.86111111 | R34: =VLOOKUP(N34,Arkusz3!AN:AP,3,0) -> 1242.47
A35: 6831006563 | B35: GMINA GDÓW | C35: 12 | D35: 19 | E35: 022 | F35: 32420 | G35: Gdów | H35: Gdów | J35: 40 | K35: GMINA | L35: 1219022 | M35: =VLOOKUP(L35,Arkusz3!A:K,2,0) -> Gdów.......................................................................................................................................................................................................................................................... | N35: 1219022 | O35: =VLOOKUP(N35,Arkusz3!A:E,5,0) -> 109 | P35: =VLOOKUP(N35,Arkusz3!H:J,3,0) -> 18574 | Q35: 170.4036697 | R35: =VLOOKUP(N35,Arkusz3!AN:AP,3,0) -> 1748.06
A36: 8691186447 | B36: GMINA GNOJNIK | C36: 12 | D36: 02 | E36: 052 | F36: 32864 | G36: Gnojnik | H36: Gnojnik | J36: 363 | K36: GMINA | L36: 1202052 | M36: =VLOOKUP(L36,Arkusz3!A:K,2,0) -> Gnojnik.......................................................................................................................................................................................................................................................... | N36: 1202052 | O36: =VLOOKUP(N36,Arkusz3!A:E,5,0) -> 55 | P36: =VLOOKUP(N36,Arkusz3!H:J,3,0) -> 8106 | Q36: 147.3818182 | R36: =VLOOKUP(N36,Arkusz3!AN:AP,3,0) -> 1029.61
A37: 6591545880 | B37: GMINA GOŁCZA | C37: 12 | D37: 08 | E37: 022 | F37: 32075 | G37: Gołcza | H37: Gołcza | J37: 80 | K37: GMINA | L37: 1208022 | M37: =VLOOKUP(L37,Arkusz3!A:K,2,0) -> Gołcza.......................................................................................................................................................................................................................................................... | N37: 1208022 | O37: =VLOOKUP(N37,Arkusz3!A:E,5,0) -> 90 | P37: =VLOOKUP(N37,Arkusz3!H:J,3,0) -> 5977 | Q37: 66.41111111 | R37: =VLOOKUP(N37,Arkusz3!AN:AP,3,0) -> 1193.74
A38: 7382125507 | B38: MIASTO GORLICE | C38: 12 | D38: 05 | E38: 011 | F38: 38300 | G38: Gorlice | H38: Gorlice | I38: Rynek | J38: 2 | K38: GMINA | L38: 1205011 | M38: =VLOOKUP(L38,Arkusz3!A:K,2,0) -> Gorlice.......................................................................................................................................................................................................................................................... | N38: 1205011 | O38: =VLOOKUP(N38,Arkusz3!A:E,5,0) -> 24 | P38: =VLOOKUP(N38,Arkusz3!H:J,3,0) -> 25818 | Q38: 1075.75 | R38: =VLOOKUP(N38,Arkusz3!AN:AP,3,0) -> 1924.54
A39: 7382131749 | B39: GMINA GORLICE | C39: 12 | D39: 05 | E39: 042 | F39: 38300 | G39: Gorlice | H39: Gorlice | I39: ul. 11 Listopada | J39: 2 | K39: GMINA | L39: 1205042 | M39: =VLOOKUP(L39,Arkusz3!A:K,2,0) -> Gorlice.......................................................................................................................................................................................................................................................... | N39: 1205042 | O39: =VLOOKUP(N39,Arkusz3!A:E,5,0) -> 103 | P39: =VLOOKUP(N39,Arkusz3!H:J,3,0) -> 16985 | Q39: 164.9029126 | R39: =VLOOKUP(N39,Arkusz3!AN:AP,3,0) -> 996.23
A40: 8711771090 | B40: GMINA GRĘBOSZÓW | C40: 12 | D40: 04 | E40: 032 | F40: 33260 | G40: Gręboszów | H40: Gręboszów | J40: 144 | K40: GMINA | L40: 1204032 | M40: =VLOOKUP(L40,Arkusz3!A:K,2,0) -> Gręboszów.......................................................................................................................................................................................................................................................... | N40: 1204032 | O40: =VLOOKUP(N40,Arkusz3!A:E,5,0) -> 49 | P40: =VLOOKUP(N40,Arkusz3!H:J,3,0) -> 3208 | Q40: 65.46938776 | R40: =VLOOKUP(N40,Arkusz3!AN:AP,3,0) -> 1054.75
A41: 8732614007 | B41: GMINA GROMNIK | C41: 12 | D41: 16 | E41: 022 | F41: 33180 | G41: Gromnik | H41: Gromnik | I41: ul. Witosa | J41: 2 | K41: GMINA | L41: 1216022 | M41: =VLOOKUP(L41,Arkusz3!A:K,2,0) -> Gromnik.......................................................................................................................................................................................................................................................... | N41: 1216022 | O41: =VLOOKUP(N41,Arkusz3!A:E,5,0) -> 70 | P41: =VLOOKUP(N41,Arkusz3!H:J,3,0) -> 8724 | Q41: 124.6285714 | R41: =VLOOKUP(N41,Arkusz3!AN:AP,3,0) -> 787.79
A42: 7343482812 | B42: GMINA GRÓDEK NAD DUNAJCEM | C42: 12 | D42: 10 | E42: 032 | F42: 33318 | G42: Gródek nad Dunajcem | H42: Gródek nad Dunajcem | J42: 54 | K42: GMINA | L42: 1210032 | M42: =VLOOKUP(L42,Arkusz3!A:K,2,0) -> Gródek nad Dunajcem.......................................................................................................................................................................................................................................................... | N42: 1210032 | O42: =VLOOKUP(N42,Arkusz3!A:E,5,0) -> 88 | P42: =VLOOKUP(N42,Arkusz3!H:J,3,0) -> 8935 | Q42: 101.5340909 | R42: =VLOOKUP(N42,Arkusz3!AN:AP,3,0) -> 1455.5
A43: 7381010274 | B43: MIASTO GRYBÓW | C43: 12 | D43: 10 | E43: 011 | F43: 33330 | G43: Grybów | H43: Grybów | I43: ul. Rynek | J43: 12 | K43: GMINA | L43: 1210011 | M43: =VLOOKUP(L43,Arkusz3!A:K,2,0) -> Grybów.......................................................................................................................................................................................................................................................... | N43: 1210011 | O43: =VLOOKUP(N43,Arkusz3!A:E,5,0) -> 17 | P43: =VLOOKUP(N43,Arkusz3!H:J,3,0) -> 5953 | Q43: 350.1764706 | R43: =VLOOKUP(N43,Arkusz3!AN:AP,3,0) -> 1108.33
A44: 7343515546 | B44: GMINA GRYBÓW | C44: 12 | D44: 10 | E44: 042 | F44: 33330 | G44: Grybów | H44: Grybów | I44: ul. Jakubowskiego | J44: 33 | K44: GMINA | L44: 1210042 | M44: =VLOOKUP(L44,Arkusz3!A:K,2,0) -> Grybów.......................................................................................................................................................................................................................................................... | N44: 1210042 | O44: =VLOOKUP(N44,Arkusz3!A:E,5,0) -> 154 | P44: =VLOOKUP(N44,Arkusz3!H:J,3,0) -> 25352 | Q44: 164.6233766 | R44: =VLOOKUP(N44,Arkusz3!AN:AP,3,0) -> 929.73
A45: 6821642228 | B45: GMINA IGOŁOMIA-WAWRZEŃCZYCE | C45: 12 | D45: 06 | E45: 022 | F45: 32125 | G45: Wawrzeńczyce | H45: Wawrzeńczyce | J45: 57 | K45: GMINA | L45: 1206022 | M45: =VLOOKUP(L45,Arkusz3!A:K,2,0) -> Igołomia-Wawrzeńczyce.......................................................................................................................................................................................................................................................... | N45: 1206022 | O45: =VLOOKUP(N45,Arkusz3!A:E,5,0) -> 63 | P45: =VLOOKUP(N45,Arkusz3!H:J,3,0) -> 7872 | Q45: 124.952381 | R45: =VLOOKUP(N45,Arkusz3!AN:AP,3,0) -> 1517.19
A46: 6821634453 | B46: GMINA IWANOWICE | C46: 12 | D46: 06 | E46: 032 | F46: 32095 | G46: Iwanowice Włościańskie | H46: Iwanowice Włościańskie | J46: 99 | K46: GMINA | L46: 1206032 | M46: =VLOOKUP(L46,Arkusz3!A:K,2,0) -> Iwanowice.......................................................................................................................................................................................................................................................... | N46: 1206032 | O46: =VLOOKUP(N46,Arkusz3!A:E,5,0) -> 71 | P46: =VLOOKUP(N46,Arkusz3!H:J,3,0) -> 9781 | Q46: 137.7605634 | R46: =VLOOKUP(N46,Arkusz3!AN:AP,3,0) -> 1399.8
A47: 8691212363 | B47: GMINA IWKOWA | C47: 12 | D47: 02 | E47: 062 | F47: 32861 | G47: Iwkowa | H47: Iwkowa | J47: 468 | K47: GMINA | L47: 1202062 | M47: =VLOOKUP(L47,Arkusz3!A:K,2,0) -> Iwkowa.......................................................................................................................................................................................................................................................... | N47: 1202062 | O47: =VLOOKUP(N47,Arkusz3!A:E,5,0) -> 47 | P47: =VLOOKUP(N47,Arkusz3!H:J,3,0) -> 6599 | Q47: 140.4042553 | R47: =VLOOKUP(N47,Arkusz3!AN:AP,3,0) -> 1171.73
A48: 7352856459 | B48: GMINA JABŁONKA | C48: 12 | D48: 11 | E48: 052 | F48: 34480 | G48: Jabłonka | H48: Jabłonka | I48: ul. 3 Maja | J48: 1 | K48: GMINA | L48: 1211052 | M48: =VLOOKUP(L48,Arkusz3!A:K,2,0) -> Jabłonka.......................................................................................................................................................................................................................................................... | N48: 1211052 | O48: =VLOOKUP(N48,Arkusz3!A:E,5,0) -> 212 | P48: =VLOOKUP(N48,Arkusz3!H:J,3,0) -> 19093 | Q48: 90.06132075 | R48: =VLOOKUP(N48,Arkusz3!AN:AP,3,0) -> 1050.79
A49: 6772019451 | B49: GMINA JERZMANOWICE-PRZEGINIA | C49: 12 | D49: 06 | E49: 042 | F49: 32048 | G49: Jerzmanowice | H49: Jerzmanowice | I49: ul. Rajska | J49: 22 | K49: GMINA | L49: 1206042 | M49: =VLOOKUP(L49,Arkusz3!A:K,2,0) -> Jerzmanowice-Przeginia.......................................................................................................................................................................................................................................................... | N49: 1206042 | O49: =VLOOKUP(N49,Arkusz3!A:E,5,0) -> 68 | P49: =VLOOKUP(N49,Arkusz3!H:J,3,0) -> 11196 | Q49: 164.6470588 | R49: =VLOOKUP(N49,Arkusz3!AN:AP,3,0) -> 1389.17
A50: 7371007419 | B50: GMINA JODŁOWNIK | C50: 12 | D50: 07 | E50: 042 | F50: 34620 | G50: Jodłownik | H50: Jodłownik | J50: 198 | K50: GMINA | L50: 1207042 | M50: =VLOOKUP(L50,Arkusz3!A:K,2,0) -> Jodłownik.......................................................................................................................................................................................................................................................... | N50: 1207042 | O50: =VLOOKUP(N50,Arkusz3!A:E,5,0) -> 72 | P50: =VLOOKUP(N50,Arkusz3!H:J,3,0) -> 8760 | Q50: 121.6666667 | R50: =VLOOKUP(N50,Arkusz3!AN:AP,3,0) -> 1341.61
A51: 5521579821 | B51: MIASTO JORDANÓW | C51: 12 | D51: 15 | E51: 011 | F51: 34240 | G51: Jordanów | H51: Jordanów | I51: ul. Rynek | J51: 1 | K51: GMINA | L51: 1215011 | M51: =VLOOKUP(L51,Arkusz3!A:K,2,0) -> Jordanów.......................................................................................................................................................................................................................................................... | N51: 1215011 | O51: =VLOOKUP(N51,Arkusz3!A:E,5,0) -> 21 | P51: =VLOOKUP(N51,Arkusz3!H:J,3,0) -> 5420 | Q51: 258.0952381 | R51: =VLOOKUP(N51,Arkusz3!AN:AP,3,0) -> 2004.13
A52: 5521586100 | B52: GMINA JORDANÓW | C52: 12 | D52: 15 | E52: 052 | F52: 34240 | G52: Jordanów | H52: Jordanów | I52: ul. Rynek | J52: 2 | K52: GMINA | L52: 1215052 | M52: =VLOOKUP(L52,Arkusz3!A:K,2,0) -> Jordanów.......................................................................................................................................................................................................................................................... | N52: 1215052 | O52: =VLOOKUP(N52,Arkusz3!A:E,5,0) -> 92 | P52: =VLOOKUP(N52,Arkusz3!H:J,3,0) -> 11179 | Q52: 121.5108696 | R52: =VLOOKUP(N52,Arkusz3!AN:AP,3,0) -> 1072.11
A53: 5511158182 | B53: GMINA KALWARIA ZEBRZYDOWSKA | C53: 12 | D53: 18 | E53: 034 | F53: 34130 | G53: Kalwaria Zebrzydowska | H53: Kalwaria Zebrzydowska | I53: ul. Adama Mickiewicza | J53: 7 | K53: GMINA | L53: 1218034 | M53: =VLOOKUP(L53,Arkusz3!A:K,2,0) ->  | N53: 1218033 | O53: =VLOOKUP(N53,Arkusz3!A:E,5,0) -> 75 | P53: =VLOOKUP(N53,Arkusz3!H:J,3,0) -> 19930 | Q53: 265.7333333 | R53: =VLOOKUP(N53,Arkusz3!AN:AP,3,0) -> 1690.73
A54: 7371193876 | B54: GMINA KAMIENICA | C54: 12 | D54: 07 | E54: 052 | F54: 34608 | G54: Kamienica | H54: Kamienica | J54: 420 | K54: GMINA | L54: 1207052 | M54: =VLOOKUP(L54,Arkusz3!A:K,2,0) -> Kamienica.......................................................................................................................................................................................................................................................... | N54: 1207052 | O54: =VLOOKUP(N54,Arkusz3!A:E,5,0) -> 95 | P54: =VLOOKUP(N54,Arkusz3!H:J,3,0) -> 7822 | Q54: 82.33684211 | R54: =VLOOKUP(N54,Arkusz3!AN:AP,3,0) -> 840.72
A55: 7343514860 | B55: GMINA KAMIONKA WIELKA | C55: 12 | D55: 10 | E55: 052 | F55: 33334 | G55: Kamionka Wielka | H55: Kamionka Wielka | J55: 5 | K55: GMINA | L55: 1210052 | M55: =VLOOKUP(L55,Arkusz3!A:K,2,0) -> Kamionka Wielka.......................................................................................................................................................................................................................................................... | N55: 1210052 | O55: =VLOOKUP(N55,Arkusz3!A:E,5,0) -> 65 | P55: =VLOOKUP(N55,Arkusz3!H:J,3,0) -> 10441 | Q55: 160.6307692 | R55: =VLOOKUP(N55,Arkusz3!AN:AP,3,0) -> 1132.27
A56: 5492202969 | B56: GMINA KĘTY | C56: 12 | D56: 13 | E56: 044 | F56: 32650 | G56: Kęty | H56: Kęty | I56: Rynek | J56: 7 | K56: GMINA | L56: 1213044 | M56: =VLOOKUP(L56,Arkusz3!A:K,2,0) ->  | N56: 1213043 | O56: =VLOOKUP(N56,Arkusz3!A:E,5,0) -> 76 | P56: =VLOOKUP(N56,Arkusz3!H:J,3,0) -> 33390 | Q56: 439.3421053 | R56: =VLOOKUP(N56,Arkusz3!AN:AP,3,0) -> 2006
A57: 6371998059 | B57: GMINA KLUCZE | C57: 12 | D57: 12 | E57: 042 | F57: 32310 | G57: Klucze | H57: Klucze | I57: ul. Partyzantów | J57: 1 | K57: GMINA | L57: 1212042 | M57: =VLOOKUP(L57,Arkusz3!A:K,2,0) -> Klucze.......................................................................................................................................................................................................................................................... | N57: 1212042 | O57: =VLOOKUP(N57,Arkusz3!A:E,5,0) -> 119 | P57: =VLOOKUP(N57,Arkusz3!H:J,3,0) -> 14584 | Q57: 122.5546218 | R57: =VLOOKUP(N57,Arkusz3!AN:AP,3,0) -> 2339.26
A58: 6831511752 | B58: GMINA KŁAJ | C58: 12 | D58: 19 | E58: 032 | F58: 32015 | G58: Kłaj | H58: Kłaj | J58: 655 | K58: GMINA | L58: 1219032 | M58: =VLOOKUP(L58,Arkusz3!A:K,2,0) -> Kłaj.......................................................................................................................................................................................................................................................... | N58: 1219032 | O58: =VLOOKUP(N58,Arkusz3!A:E,5,0) -> 65 | P58: =VLOOKUP(N58,Arkusz3!H:J,3,0) -> 11104 | Q58: 170.8307692 | R58: =VLOOKUP(N58,Arkusz3!AN:AP,3,0) -> 2096.94
A59: 6821605658 | B59: GMINA KOCMYRZÓW-LUBORZYCA | C59: 12 | D59: 06 | E59: 052 | F59: 32010 | G59: Luborzyca | H59: Luborzyca | J59: 97 | K59: GMINA | L59: 1206052 | M59: =VLOOKUP(L59,Arkusz3!A:K,2,0) -> Kocmyrzów-Luborzyca.......................................................................................................................................................................................................................................................... | N59: 1206052 | O59: =VLOOKUP(N59,Arkusz3!A:E,5,0) -> 81 | P59: =VLOOKUP(N59,Arkusz3!H:J,3,0) -> 17961 | Q59: 221.7407407 | R59: =VLOOKUP(N59,Arkusz3!AN:AP,3,0) -> 2061.69
A60: 6821773580 | B60: GMINA KONIUSZA | C60: 12 | D60: 14 | E60: 012 | F60: 32104 | G60: Koniusza | H60: Koniusza | J60: 55 | K60: GMINA | L60: 1214012 | M60: =VLOOKUP(L60,Arkusz3!A:K,2,0) -> Koniusza.......................................................................................................................................................................................................................................................... | N60: 1214012 | O60: =VLOOKUP(N60,Arkusz3!A:E,5,0) -> 89 | P60: =VLOOKUP(N60,Arkusz3!H:J,3,0) -> 9063 | Q60: 101.8314607 | R60: =VLOOKUP(N60,Arkusz3!AN:AP,3,0) -> 1309.59
A61: 7343483272 | B61: GMINA KORZENNA | C61: 12 | D61: 10 | E61: 062 | F61: 33322 | G61: Korzenna | H61: Korzenna | J61: 325 | K61: GMINA | L61: 1210062 | M61: =VLOOKUP(L61,Arkusz3!A:K,2,0) -> Korzenna.......................................................................................................................................................................................................................................................... | N61: 1210062 | O61: =VLOOKUP(N61,Arkusz3!A:E,5,0) -> 107 | P61: =VLOOKUP(N61,Arkusz3!H:J,3,0) -> 14364 | Q61: 134.2429907 | R61: =VLOOKUP(N61,Arkusz3!AN:AP,3,0) -> 813.34
A62: 6821606646 | B62: GMINA KOSZYCE | C62: 12 | D62: 14 | E62: 024 | F62: 32130 | G62: Koszyce | H62: Koszyce | I62: ul. Elżbiety Łokietkówny | J62: 14 | K62: GMINA | L62: 1214024 | M62: =VLOOKUP(L62,Arkusz3!A:K,2,0) ->  | N62: 1214023 | O62: =VLOOKUP(N62,Arkusz3!A:E,5,0) -> 66 | P62: =VLOOKUP(N62,Arkusz3!H:J,3,0) -> 5269 | Q62: 79.83333333 | R62: =VLOOKUP(N62,Arkusz3!AN:AP,3,0) -> 1141.88
A63: 7361699456 | B63: GMINA KOŚCIELISKO | C63: 12 | D63: 17 | E63: 042 | F63: 34511 | G63: Kościelisko | H63: Kościelisko | I63: ul. Strzelców Podhalańskich | J63: 44 | K63: GMINA | L63: 1217042 | M63: =VLOOKUP(L63,Arkusz3!A:K,2,0) -> Kościelisko.......................................................................................................................................................................................................................................................... | N63: 1217042 | O63: =VLOOKUP(N63,Arkusz3!A:E,5,0) -> 137 | P63: =VLOOKUP(N63,Arkusz3!H:J,3,0) -> 9062 | Q63: 66.1459854 | R63: =VLOOKUP(N63,Arkusz3!AN:AP,3,0) -> 1928.12
A64: 6591174001 | B64: GMINA KOZŁÓW | C64: 12 | D64: 08 | E64: 032 | F64: 32241 | G64: Kozłów | H64: Kozłów | J64: 60 | K64: GMINA | L64: 1208032 | M64: =VLOOKUP(L64,Arkusz3!A:K,2,0) -> Kozłów.......................................................................................................................................................................................................................................................... | N64: 1208032 | O64: =VLOOKUP(N64,Arkusz3!A:E,5,0) -> 86 | P64: =VLOOKUP(N64,Arkusz3!H:J,3,0) -> 4440 | Q64: 51.62790698 | R64: =VLOOKUP(N64,Arkusz3!AN:AP,3,0) -> 955.23
A65: 7352849761 | B65: GMINA KROŚCIENKO NAD DUNAJCEM | C65: 12 | D65: 11 | E65: 062 | F65: 34450 | G65: Krościenko nad Dunajcem | H65: Krościenko nad Dunajcem | I65: ul. Rynek | J65: 35 | K65: GMINA | L65: 1211062 | M65: =VLOOKUP(L65,Arkusz3!A:K,2,0) -> Krościenko nad Dunajcem.......................................................................................................................................................................................................................................................... | N65: 1211062 | O65: =VLOOKUP(N65,Arkusz3!A:E,5,0) -> 57 | P65: =VLOOKUP(N65,Arkusz3!H:J,3,0) -> 6670 | Q65: 117.0175439 | R65: =VLOOKUP(N65,Arkusz3!AN:AP,3,0) -> 1035.76
A66: 7343543100 | B66: GMINA KRYNICA -ZDRÓJ | C66: 12 | D66: 10 | E66: 074 | F66: 33380 | G66: Krynica-Zdrój | H66: Krynica-Zdrój | I66: ul. Józefa Ignacego Kraszewskiego | J66: 7 | K66: GMINA | L66: 1210074 | M66: =VLOOKUP(L66,Arkusz3!A:K,2,0) ->  | N66: 1210073 | O66: =VLOOKUP(N66,Arkusz3!A:E,5,0) -> 145 | P66: =VLOOKUP(N66,Arkusz3!H:J,3,0) -> 15762 | Q66: 108.7034483 | R66: =VLOOKUP(N66,Arkusz3!AN:AP,3,0) -> 2018.39
A67: 5130233774 | B67: GMINA KRZESZOWICE | C67: 12 | D67: 06 | E67: 064 | F67: 32065 | G67: Krzeszowice | H67: Krzeszowice | I67: ul. Grunwaldzka | J67: 4 | K67: GMINA | L67: =C67*100000+D67*1000+E67 -> 1206064 | M67: =VLOOKUP(L67,Arkusz3!A:K,2,0) ->  | N67: =IF(M67=M$1,L67-1,IF(M67=N$1,L67-2,L67)) -> 1206063 | O67: =VLOOKUP(N67,Arkusz3!A:E,5,0) -> 139 | P67: =VLOOKUP(N67,Arkusz3!H:J,3,0) -> 31909 | Q67: =P67/O67 -> 229.5611511 | R67: =VLOOKUP(N67,Arkusz3!AN:AP,3,0) -> 1835.19
A68: 6591186961 | B68: GMINA KSIĄŻ WIELKI | C68: 12 | D68: 08 | E68: 042 | F68: 32210 | G68: Książ Wielki | H68: Książ Wielki | I68: ul. Warszawska | J68: 17 | K68: GMINA | L68: 1208042 | M68: =VLOOKUP(L68,Arkusz3!A:K,2,0) -> Książ Wielki.......................................................................................................................................................................................................................................................... | N68: 1208042 | O68: =VLOOKUP(N68,Arkusz3!A:E,5,0) -> 138 | P68: =VLOOKUP(N68,Arkusz3!H:J,3,0) -> 4879 | Q68: 35.35507246 | R68: =VLOOKUP(N68,Arkusz3!AN:AP,3,0) -> 1283.48
A69: 5511158242 | B69: GMINA LANCKORONA | C69: 12 | D69: 18 | E69: 042 | F69: 34143 | G69: Lanckorona | H69: Lanckorona | I69: ul. Krakowska | J69: 8 | K69: GMINA | L69: 1218042 | M69: =VLOOKUP(L69,Arkusz3!A:K,2,0) -> Lanckorona.......................................................................................................................................................................................................................................................... | N69: 1218042 | O69: =VLOOKUP(N69,Arkusz3!A:E,5,0) -> 40 | P69: =VLOOKUP(N69,Arkusz3!H:J,3,0) -> 6249 | Q69: 156.225 | R69: =VLOOKUP(N69,Arkusz3!AN:AP,3,0) -> 1184.13
A70: 7371283697 | B70: GMINA LASKOWA | C70: 12 | D70: 07 | E70: 062 | F70: 34602 | G70: Laskowa | H70: Laskowa | J70: 643 | K70: GMINA | L70: 1207062 | M70: =VLOOKUP(L70,Arkusz3!A:K,2,0) -> Laskowa.......................................................................................................................................................................................................................................................... | N70: 1207062 | O70: =VLOOKUP(N70,Arkusz3!A:E,5,0) -> 72 | P70: =VLOOKUP(N70,Arkusz3!H:J,3,0) -> 8185 | Q70: 113.6805556 | R70: =VLOOKUP(N70,Arkusz3!AN:AP,3,0) -> 1279.54
A71: 6282260168 | B71: GMINA LIBIĄŻ | C71: 12 | D71: 03 | E71: 044 | F71: 32590 | G71: Libiąż | H71: Libiąż | I71: ul. Działkowa | J71: 1 | K71: GMINA | L71: 1203044 | M71: =VLOOKUP(L71,Arkusz3!A:K,2,0) ->  | N71: 1203043 | O71: =VLOOKUP(N71,Arkusz3!A:E,5,0) -> 57 | P71: =VLOOKUP(N71,Arkusz3!H:J,3,0) -> 21298 | Q71: 373.6491228 | R71: =VLOOKUP(N71,Arkusz3!AN:AP,3,0) -> 2070.58
A72: 7371004591 | B72: MIASTO LIMANOWA | C72: 12 | D72: 07 | E72: 011 | F72: 34600 | G72: Limanowa | H72: Limanowa | I72: ul. Jana Pawła II | J72: 9 | K72: GMINA | L72: 1207011 | M72: =VLOOKUP(L72,Arkusz3!A:K,2,0) -> Limanowa.......................................................................................................................................................................................................................................................... | N72: 1207011 | O72: =VLOOKUP(N72,Arkusz3!A:E,5,0) -> 19 | P72: =VLOOKUP(N72,Arkusz3!H:J,3,0) -> 14514 | Q72: 763.8947368 | R72: =VLOOKUP(N72,Arkusz3!AN:AP,3,0) -> 2275.53
A73: 7371188119 | B73: GMINA LIMANOWA | C73: 12 | D73: 07 | E73: 072 | F73: 34600 | G73: Limanowa | H73: Limanowa | I73: ul. Matki Boskiej Bolesnej | J73: 18 B | K73: GMINA | L73: 1207072 | M73: =VLOOKUP(L73,Arkusz3!A:K,2,0) -> Limanowa.......................................................................................................................................................................................................................................................... | N73: 1207072 | O73: =VLOOKUP(N73,Arkusz3!A:E,5,0) -> 152 | P73: =VLOOKUP(N73,Arkusz3!H:J,3,0) -> 25912 | Q73: 170.4736842 | R73: =VLOOKUP(N73,Arkusz3!AN:AP,3,0) -> 1133.66
A74: 6851648081 | B74: GMINA LIPINKI | C74: 12 | D74: 05 | E74: 052 | F74: 38305 | G74: Lipinki | H74: Lipinki | J74: 57 | K74: GMINA | L74: 1205052 | M74: =VLOOKUP(L74,Arkusz3!A:K,2,0) -> Lipinki.......................................................................................................................................................................................................................................................... | N74: 1205052 | O74: =VLOOKUP(N74,Arkusz3!A:E,5,0) -> 66 | P74: =VLOOKUP(N74,Arkusz3!H:J,3,0) -> 6714 | Q74: 101.7272727 | R74: =VLOOKUP(N74,Arkusz3!AN:AP,3,0) -> 819.94
A75: 8681021288 | B75: GMINA LIPNICA MUROWANA | C75: 12 | D75: 01 | E75: 042 | F75: 32724 | G75: Lipnica Murowana | H75: Lipnica Murowana | J75: 44 | K75: GMINA | L75: 1201042 | M75: =VLOOKUP(L75,Arkusz3!A:K,2,0) -> Lipnica Murowana.......................................................................................................................................................................................................................................................... | N75: 1201042 | O75: =VLOOKUP(N75,Arkusz3!A:E,5,0) -> 60 | P75: =VLOOKUP(N75,Arkusz3!H:J,3,0) -> 5551 | Q75: 92.51666667 | R75: =VLOOKUP(N75,Arkusz3!AN:AP,3,0) -> 958.98
A76: 7352841452 | B76: GMINA LIPNICA WIELKA | C76: 12 | D76: 11 | E76: 072 | F76: 34483 | G76: Lipnica Wielka | H76: Lipnica Wielka | J76: 518 | K76: GMINA | L76: 1211072 | M76: =VLOOKUP(L76,Arkusz3!A:K,2,0) -> Lipnica Wielka.......................................................................................................................................................................................................................................................... | N76: 1211072 | O76: =VLOOKUP(N76,Arkusz3!A:E,5,0) -> 67 | P76: =VLOOKUP(N76,Arkusz3!H:J,3,0) -> 6058 | Q76: 90.41791045 | R76: =VLOOKUP(N76,Arkusz3!AN:AP,3,0) -> 639.15
A77: 9930658661 | B77: GMINA LISIA GÓRA | C77: 12 | D77: 16 | E77: 032 | F77: 33140 | G77: Lisia Góra | H77: Lisia Góra | I77: ul. 1 Maja | J77: 7 | K77: GMINA | L77: 1216032 | M77: =VLOOKUP(L77,Arkusz3!A:K,2,0) -> Lisia Góra.......................................................................................................................................................................................................................................................... | N77: 1216032 | O77: =VLOOKUP(N77,Arkusz3!A:E,5,0) -> 105 | P77: =VLOOKUP(N77,Arkusz3!H:J,3,0) -> 15537 | Q77: 147.9714286 | R77: =VLOOKUP(N77,Arkusz3!AN:AP,3,0) -> 1301.86
A78: 9442243129 | B78: GMINA LISZKI | C78: 12 | D78: 06 | E78: 072 | F78: 32060 | G78: Liszki | H78: Liszki | J78: 230 | K78: GMINA | L78: 1206072 | M78: =VLOOKUP(L78,Arkusz3!A:K,2,0) -> Liszki.......................................................................................................................................................................................................................................................... | N78: 1206072 | O78: =VLOOKUP(N78,Arkusz3!A:E,5,0) -> 72 | P78: =VLOOKUP(N78,Arkusz3!H:J,3,0) -> 18416 | Q78: 255.7777778 | R78: =VLOOKUP(N78,Arkusz3!AN:AP,3,0) -> 2030.16
A79: 7351071414 | B79: GMINA LUBIEŃ | C79: 12 | D79: 09 | E79: 022 | F79: 32433 | G79: Lubień | H79: Lubień | J79: 50 | K79: GMINA | L79: 1209022 | M79: =VLOOKUP(L79,Arkusz3!A:K,2,0) -> Lubień.......................................................................................................................................................................................................................................................... | N79: 1209022 | O79: =VLOOKUP(N79,Arkusz3!A:E,5,0) -> 75 | P79: =VLOOKUP(N79,Arkusz3!H:J,3,0) -> 10073 | Q79: 134.3066667 | R79: =VLOOKUP(N79,Arkusz3!AN:AP,3,0) -> 900.8
A80: 7343517410 | B80: GMINA ŁABOWA | C80: 12 | D80: 10 | E80: 082 | F80: 33336 | G80: Łabowa | H80: Łabowa | J80: 38 | K80: GMINA | L80: 1210082 | M80: =VLOOKUP(L80,Arkusz3!A:K,2,0) -> Łabowa.......................................................................................................................................................................................................................................................... | N80: 1210082 | O80: =VLOOKUP(N80,Arkusz3!A:E,5,0) -> 119 | P80: =VLOOKUP(N80,Arkusz3!H:J,3,0) -> 5960 | Q80: 50.08403361 | R80: =VLOOKUP(N80,Arkusz3!AN:AP,3,0) -> 1148.71
A81: 8681021302 | B81: GMINA ŁAPANÓW | C81: 12 | D81: 01 | E81: 052 | F81: 32740 | G81: Łapanów | H81: Łapanów | J81: 34 | K81: GMINA | L81: 1201052 | M81: =VLOOKUP(L81,Arkusz3!A:K,2,0) -> Łapanów.......................................................................................................................................................................................................................................................... | N81: 1201052 | O81: =VLOOKUP(N81,Arkusz3!A:E,5,0) -> 72 | P81: =VLOOKUP(N81,Arkusz3!H:J,3,0) -> 8570 | Q81: 119.0277778 | R81: =VLOOKUP(N81,Arkusz3!AN:AP,3,0) -> 1256.04
A82: 7352834759 | B82: GMINA ŁAPSZE NIŻNE | C82: 12 | D82: 11 | E82: 082 | F82: 34442 | G82: Łapsze Niżne | H82: Łapsze Niżne | I82: ul. Jana Pawła II | J82: 20 | K82: GMINA | L82: 1211082 | M82: =VLOOKUP(L82,Arkusz3!A:K,2,0) -> Łapsze Niżne.......................................................................................................................................................................................................................................................... | N82: 1211082 | O82: =VLOOKUP(N82,Arkusz3!A:E,5,0) -> 126 | P82: =VLOOKUP(N82,Arkusz3!H:J,3,0) -> 9257 | Q82: 73.46825397 | R82: =VLOOKUP(N82,Arkusz3!AN:AP,3,0) -> 1069.5
A83: 7343514742 | B83: GMINA ŁĄCKO | C83: 12 | D83: 10 | E83: 092 | F83: 33390 | G83: Łącko | H83: Łącko | J83: 445 | K83: GMINA | L83: 1210092 | M83: =VLOOKUP(L83,Arkusz3!A:K,2,0) -> Łącko.......................................................................................................................................................................................................................................................... | N83: 1210092 | O83: =VLOOKUP(N83,Arkusz3!A:E,5,0) -> 132 | P83: =VLOOKUP(N83,Arkusz3!H:J,3,0) -> 16652 | Q83: 126.1515152 | R83: =VLOOKUP(N83,Arkusz3!AN:AP,3,0) -> 794.28
A84: 7343472848 | B84: GMINA ŁOSOSINA DOLNA | C84: 12 | D84: 10 | E84: 102 | F84: 33314 | G84: Łososina Dolna | H84: Łososina Dolna | J84: 300 | K84: GMINA | L84: 1210102 | M84: =VLOOKUP(L84,Arkusz3!A:K,2,0) -> Łososina Dolna.......................................................................................................................................................................................................................................................... | N84: 1210102 | O84: =VLOOKUP(N84,Arkusz3!A:E,5,0) -> 85 | P84: =VLOOKUP(N84,Arkusz3!H:J,3,0) -> 11163 | Q84: 131.3294118 | R84: =VLOOKUP(N84,Arkusz3!AN:AP,3,0) -> 1519.1
A85: 7371022962 | B85: GMINA ŁUKOWICA | C85: 12 | D85: 07 | E85: 082 | F85: 34606 | G85: Łukowica | H85: Łukowica | J85: 334 | K85: GMINA | L85: 1207082 | M85: =VLOOKUP(L85,Arkusz3!A:K,2,0) -> Łukowica.......................................................................................................................................................................................................................................................... | N85: 1207082 | O85: =VLOOKUP(N85,Arkusz3!A:E,5,0) -> 70 | P85: =VLOOKUP(N85,Arkusz3!H:J,3,0) -> 10150 | Q85: 145 | R85: =VLOOKUP(N85,Arkusz3!AN:AP,3,0) -> 801.87
A86: 7381022314 | B86: GMINA ŁUŻNA | C86: 12 | D86: 05 | E86: 062 | F86: 38322 | G86: Łużna | H86: Łużna | J86: 634 | K86: GMINA | L86: 1205062 | M86: =VLOOKUP(L86,Arkusz3!A:K,2,0) -> Łużna.......................................................................................................................................................................................................................................................... | N86: 1205062 | O86: =VLOOKUP(N86,Arkusz3!A:E,5,0) -> 56 | P86: =VLOOKUP(N86,Arkusz3!H:J,3,0) -> 8362 | Q86: 149.3214286 | R86: =VLOOKUP(N86,Arkusz3!AN:AP,3,0) -> 759.8
A87: 5521584963 | B87: GMINA MAKÓW PODHALAŃSKI | C87: 12 | D87: 15 | E87: 064 | F87: 34220 | G87: Maków Podhalański | H87: Maków Podhalański | I87: ul. Szpitalna | J87: 3 | K87: GMINA | L87: 1215064 | M87: =VLOOKUP(L87,Arkusz3!A:K,2,0) ->  | N87: 1215063 | O87: =VLOOKUP(N87,Arkusz3!A:E,5,0) -> 109 | P87: =VLOOKUP(N87,Arkusz3!H:J,3,0) -> 15801 | Q87: 144.9633028 | R87: =VLOOKUP(N87,Arkusz3!AN:AP,3,0) -> 1742.33
A88: 8711770363 | B88: GMINA MĘDRZECHÓW | C88: 12 | D88: 04 | E88: 042 | F88: 33221 | G88: Mędrzechów | H88: Mędrzechów | J88: 434 | K88: GMINA | L88: 1204042 | M88: =VLOOKUP(L88,Arkusz3!A:K,2,0) -> Mędrzechów.......................................................................................................................................................................................................................................................... | N88: 1204042 | O88: =VLOOKUP(N88,Arkusz3!A:E,5,0) -> 44 | P88: =VLOOKUP(N88,Arkusz3!H:J,3,0) -> 3336 | Q88: 75.81818182 | R88: =VLOOKUP(N88,Arkusz3!AN:AP,3,0) -> 831.76
A89: 5130060109 | B89: GMINA MICHAŁOWICE | C89: 12 | D89: 06 | E89: 082 | F89: 32091 | G89: Michałowice | H89: Michałowice | I89: pl. Józefa Piłsudskiego | J89: 1 | K89: GMINA | L89: 1206082 | M89: =VLOOKUP(L89,Arkusz3!A:K,2,0) -> Michałowice.......................................................................................................................................................................................................................................................... | N89: 1206082 | O89: =VLOOKUP(N89,Arkusz3!A:E,5,0) -> 51 | P89: =VLOOKUP(N89,Arkusz3!H:J,3,0) -> 13173 | Q89: 258.2941176 | R89: =VLOOKUP(N89,Arkusz3!AN:AP,3,0) -> 2563.9
A90: 6590003697 | B90: GMINA MIECHÓW | C90: 12 | D90: 08 | E90: 054 | F90: 32200 | G90: Miechów | H90: Miechów | I90: ul. Henryka Sienkiewicza | J90: 25 | K90: GMINA | L90: 1208054 | M90: =VLOOKUP(L90,Arkusz3!A:K,2,0) ->  | N90: 1208053 | O90: =VLOOKUP(N90,Arkusz3!A:E,5,0) -> 148 | P90: =VLOOKUP(N90,Arkusz3!H:J,3,0) -> 18802 | Q90: 127.0405405 | R90: =VLOOKUP(N90,Arkusz3!AN:AP,3,0) -> 1615.37
A91: 9442246027 | B91: GMINA MOGILANY | C91: 12 | D91: 06 | E91: 092 | F91: 32031 | G91: Mogilany | H91: Mogilany | I91: rynek Rynek | J91: 2 | K91: GMINA | L91: 1206092 | M91: =VLOOKUP(L91,Arkusz3!A:K,2,0) -> Mogilany.......................................................................................................................................................................................................................................................... | N91: 1206092 | O91: =VLOOKUP(N91,Arkusz3!A:E,5,0) -> 44 | P91: =VLOOKUP(N91,Arkusz3!H:J,3,0) -> 16192 | Q91: 368 | R91: =VLOOKUP(N91,Arkusz3!AN:AP,3,0) -> 2599.37
A92: 7381021958 | B92: GMINA MOSZCZENICA | C92: 12 | D92: 05 | E92: 072 | F92: 38321 | G92: Moszczenica | H92: Moszczenica | I92: ul. Samorządowa | J92: 4 | K92: GMINA | L92: 1205072 | M92: =VLOOKUP(L92,Arkusz3!A:K,2,0) -> Moszczenica.......................................................................................................................................................................................................................................................... | N92: 1205072 | O92: =VLOOKUP(N92,Arkusz3!A:E,5,0) -> 38 | P92: =VLOOKUP(N92,Arkusz3!H:J,3,0) -> 4897 | Q92: 128.8684211 | R92: =VLOOKUP(N92,Arkusz3!AN:AP,3,0) -> 748.03
A93: 7371008784 | B93: MIASTO MSZANA DOLNA | C93: 12 | D93: 07 | E93: 021 | F93: 34730 | G93: Mszana Dolna | H93: Mszana Dolna | I93: ul. marsz. Józefa Piłsudskiego | J93: 2 | K93: GMINA | L93: 1207021 | M93: =VLOOKUP(L93,Arkusz3!A:K,2,0) -> Mszana Dolna.......................................................................................................................................................................................................................................................... | N93: 1207021 | O93: =VLOOKUP(N93,Arkusz3!A:E,5,0) -> 27 | P93: =VLOOKUP(N93,Arkusz3!H:J,3,0) -> 7817 | Q93: 289.5185185 | R93: =VLOOKUP(N93,Arkusz3!AN:AP,3,0) -> 1719.88
A94: 7371008991 | B94: GMINA MSZANA DOLNA | C94: 12 | D94: 07 | E94: 092 | F94: 34730 | G94: Mszana Dolna | H94: Mszana Dolna | I94: ul. Spadochroniarzy | J94: 6 | K94: GMINA | L94: 1207092 | M94: =VLOOKUP(L94,Arkusz3!A:K,2,0) -> Mszana Dolna.......................................................................................................................................................................................................................................................... | N94: 1207092 | O94: =VLOOKUP(N94,Arkusz3!A:E,5,0) -> 170 | P94: =VLOOKUP(N94,Arkusz3!H:J,3,0) -> 17637 | Q94: 103.7470588 | R94: =VLOOKUP(N94,Arkusz3!AN:AP,3,0) -> 1023.83
A95: 5512618591 | B95: GMINA MUCHARZ | C95: 12 | D95: 18 | E95: 052 | F95: 34106 | G95: Mucharz | H95: Mucharz | J95: 226 | K95: GMINA | L95: 1218052 | M95: =VLOOKUP(L95,Arkusz3!A:K,2,0) -> Mucharz.......................................................................................................................................................................................................................................................... | N95: 1218052 | O95: =VLOOKUP(N95,Arkusz3!A:E,5,0) -> 37 | P95: =VLOOKUP(N95,Arkusz3!H:J,3,0) -> 4153 | Q95: 112.2432432 | R95: =VLOOKUP(N95,Arkusz3!AN:AP,3,0) -> 2023.01
A96: 7343472601 | B96: MIASTO I GMINA UZDROWISKOWA MUSZYNA | C96: 12 | D96: 10 | E96: 114 | F96: 33370 | G96: Muszyna | H96: Muszyna | I96: ul. Rynek | J96: 31 | K96: GMINA | L96: 1210114 | M96: =VLOOKUP(L96,Arkusz3!A:K,2,0) ->  | N96: 1210113 | O96: =VLOOKUP(N96,Arkusz3!A:E,5,0) -> 141 | P96: =VLOOKUP(N96,Arkusz3!H:J,3,0) -> 11148 | Q96: 79.06382979 | R96: =VLOOKUP(N96,Arkusz3!AN:AP,3,0) -> 1766.27
A97: 6811004414 | B97: GMINA MYŚLENICE | C97: 12 | D97: 09 | E97: 034 | F97: 32400 | G97: Myślenice | H97: Myślenice | I97: Rynek | J97: 8/9 | K97: GMINA | L97: 1209034 | M97: =VLOOKUP(L97,Arkusz3!A:K,2,0) ->  | N97: 1209033 | O97: =VLOOKUP(N97,Arkusz3!A:E,5,0) -> 154 | P97: =VLOOKUP(N97,Arkusz3!H:J,3,0) -> 45403 | Q97: 294.8246753 | R97: =VLOOKUP(N97,Arkusz3!AN:AP,3,0) -> 1992.05
A98: 7343450806 | B98: GMINA NAWOJOWA | C98: 12 | D98: 10 | E98: 122 | F98: 33335 | G98: Nawojowa | H98: Nawojowa | I98: ul. Ogrodowa | J98: 2 | K98: GMINA | L98: 1210122 | M98: =VLOOKUP(L98,Arkusz3!A:K,2,0) -> Nawojowa.......................................................................................................................................................................................................................................................... | N98: 1210122 | O98: =VLOOKUP(N98,Arkusz3!A:E,5,0) -> 50 | P98: =VLOOKUP(N98,Arkusz3!H:J,3,0) -> 8843 | Q98: 176.86 | R98: =VLOOKUP(N98,Arkusz3!AN:AP,3,0) -> 1367.43
A99: 7371152618 | B99: GMINA NIEDŹWIEDŹ | C99: 12 | D99: 07 | E99: 102 | F99: 34735 | G99: Niedźwiedź | H99: Niedźwiedź | J99: 233 | K99: GMINA | L99: 1207102 | M99: =VLOOKUP(L99,Arkusz3!A:K,2,0) -> Niedźwiedź.......................................................................................................................................................................................................................................................... | N99: 1207102 | O99: =VLOOKUP(N99,Arkusz3!A:E,5,0) -> 74 | P99: =VLOOKUP(N99,Arkusz3!H:J,3,0) -> 7333 | Q99: 99.09459459 | R99: =VLOOKUP(N99,Arkusz3!AN:AP,3,0) -> 895.1
A100: 6831395375 | B100: GMINA NIEPOŁOMICE | C100: 12 | D100: 19 | E100: 044 | F100: 32005 | G100: Niepołomice | H100: Niepołomice | I100: ul. Plac Zwycięstwa | J100: 13 | K100: GMINA | L100: 1219044 | M100: =VLOOKUP(L100,Arkusz3!A:K,2,0) ->  | N100: 1219043 | O100: =VLOOKUP(N100,Arkusz3!A:E,5,0) -> 96 | P100: =VLOOKUP(N100,Arkusz3!H:J,3,0) -> 32781 | Q100: 341.46875 | R100: =VLOOKUP(N100,Arkusz3!AN:AP,3,0) -> 3387.45
A101: 6821773870 | B101: GMINA NOWE BRZESKO | C101: 12 | D101: 14 | E101: 034 | F101: 32120 | G101: Nowe Brzesko | H101: Nowe Brzesko | I101: ul. Krakowska | J101: 44 | K101: GMINA | L101: 1214034 | M101: =VLOOKUP(L101,Arkusz3!A:K,2,0) ->  | N101: 1214033 | O101: =VLOOKUP(N101,Arkusz3!A:E,5,0) -> 54 | P101: =VLOOKUP(N101,Arkusz3!H:J,3,0) -> 5652 | Q101: 104.6666667 | R101: =VLOOKUP(N101,Arkusz3!AN:AP,3,0) -> 1264.88
A102: 7350014012 | B102: GMINA MIASTO NOWY TARG | C102: 12 | D102: 11 | E102: 011 | F102: 34400 | G102: Nowy Targ | H102: Nowy Targ | I102: ul. Krzywa | J102: 1 | K102: GMINA | L102: 1211011 | M102: =VLOOKUP(L102,Arkusz3!A:K,2,0) -> Nowy Targ.......................................................................................................................................................................................................................................................... | N102: 1211011 | O102: =VLOOKUP(N102,Arkusz3!A:E,5,0) -> 51 | P102: =VLOOKUP(N102,Arkusz3!H:J,3,0) -> 33103 | Q102: 649.0784314 | R102: =VLOOKUP(N102,Arkusz3!AN:AP,3,0) -> 1919.47
A103: 7352833352 | B103: GMINA NOWY TARG | C103: 12 | D103: 11 | E103: 092 | F103: 34400 | G103: Nowy Targ | H103: Nowy Targ | I103: ul. Bulwarowa | J103: 9 | K103: GMINA | L103: 1211092 | M103: =VLOOKUP(L103,Arkusz3!A:K,2,0) -> Nowy Targ.......................................................................................................................................................................................................................................................... | N103: 1211092 | O103: =VLOOKUP(N103,Arkusz3!A:E,5,0) -> 208 | P103: =VLOOKUP(N103,Arkusz3!H:J,3,0) -> 24025 | Q103: 115.5048077 | R103: =VLOOKUP(N103,Arkusz3!AN:AP,3,0) -> 879.2
A104: 8681021360 | B104: GMINA NOWY WIŚNICZ | C104: 12 | D104: 01 | E104: 064 | F104: 32720 | G104: Nowy Wiśnicz | H104: Nowy Wiśnicz | I104: rynek Rynek | J104: 38 | K104: GMINA | L104: 1201064 | M104: =VLOOKUP(L104,Arkusz3!A:K,2,0) ->  | N104: 1201063 | O104: =VLOOKUP(N104,Arkusz3!A:E,5,0) -> 82 | P104: =VLOOKUP(N104,Arkusz3!H:J,3,0) -> 14406 | Q104: 175.6829268 | R104: =VLOOKUP(N104,Arkusz3!AN:AP,3,0) -> 1397.89
A105: 7352834179 | B105: GMINA OCHOTNICA DOLNA | C105: 12 | D105: 11 | E105: 102 | F105: 34452 | G105: Ochotnica Dolna | H105: Ochotnica Dolna | I105: os. Dłubacze | J105: 160 | K105: GMINA | L105: 1211102 | M105: =VLOOKUP(L105,Arkusz3!A:K,2,0) -> Ochotnica Dolna.......................................................................................................................................................................................................................................................... | N105: 1211102 | O105: =VLOOKUP(N105,Arkusz3!A:E,5,0) -> 141 | P105: =VLOOKUP(N105,Arkusz3!H:J,3,0) -> 8434 | Q105: 59.81560284 | R105: =VLOOKUP(N105,Arkusz3!AN:AP,3,0) -> 1145.89
A106: 8711771227 | B106: GMINA OLESNO | C106: 12 | D106: 04 | E106: 052 | F106: 33210 | G106: Olesno | H106: Olesno | I106: ul. Wł. Jagiełły | J106: 1 | K106: GMINA | L106: 1204052 | M106: =VLOOKUP(L106,Arkusz3!A:K,2,0) -> Olesno.......................................................................................................................................................................................................................................................... | N106: 1204052 | O106: =VLOOKUP(N106,Arkusz3!A:E,5,0) -> 78 | P106: =VLOOKUP(N106,Arkusz3!H:J,3,0) -> 7681 | Q106: 98.47435897 | R106: =VLOOKUP(N106,Arkusz3!AN:AP,3,0) -> 832.56
A107: 6371998042 | B107: GMINA OLKUSZ | C107: 12 | D107: 12 | E107: 054 | F107: 32300 | G107: Olkusz | H107: Olkusz | I107: Rynek | J107: 1 | K107: GMINA | L107: 1212054 | M107: =VLOOKUP(L107,Arkusz3!A:K,2,0) ->  | N107: 1212053 | O107: =VLOOKUP(N107,Arkusz3!A:E,5,0) -> 151 | P107: =VLOOKUP(N107,Arkusz3!H:J,3,0) -> 46076 | Q107: 305.1390728 | R107: =VLOOKUP(N107,Arkusz3!AN:AP,3,0) -> 1852
A108: 5492197435 | B108: GMINA OSIEK | C108: 12 | D108: 13 | E108: 052 | F108: 32608 | G108: Osiek | H108: Osiek | I108: ul. Główna | J108: 125 | K108: GMINA | L108: 1213052 | M108: =VLOOKUP(L108,Arkusz3!A:K,2,0) -> Osiek.......................................................................................................................................................................................................................................................... | N108: 1213052 | O108: =VLOOKUP(N108,Arkusz3!A:E,5,0) -> 41 | P108: =VLOOKUP(N108,Arkusz3!H:J,3,0) -> 8156 | Q108: 198.9268293 | R108: =VLOOKUP(N108,Arkusz3!AN:AP,3,0) -> 1417.48
A109: 5492197458 | B109: MIASTO OŚWIĘCIM | C109: 12 | D109: 13 | E109: 011 | F109: 32600 | G109: Oświęcim | H109: Oświęcim | I109: ul. Zaborska | J109: 2 | K109: GMINA | L109: 1213011 | M109: =VLOOKUP(L109,Arkusz3!A:K,2,0) -> Oświęcim.......................................................................................................................................................................................................................................................... | N109: 1213011 | O109: =VLOOKUP(N109,Arkusz3!A:E,5,0) -> 30 | P109: =VLOOKUP(N109,Arkusz3!H:J,3,0) -> 36048 | Q109: 1201.6 | R109: =VLOOKUP(N109,Arkusz3!AN:AP,3,0) -> 2281.12
A110: 5492198593 | B110: GMINA OŚWIĘCIM | C110: 12 | D110: 13 | E110: 062 | F110: 32600 | G110: Oświęcim | H110: Oświęcim | I110: ul. Zamkowa | J110: 12 | K110: GMINA | L110: 1213062 | M110: =VLOOKUP(L110,Arkusz3!A:K,2,0) -> Oświęcim.......................................................................................................................................................................................................................................................... | N110: 1213062 | O110: =VLOOKUP(N110,Arkusz3!A:E,5,0) -> 75 | P110: =VLOOKUP(N110,Arkusz3!H:J,3,0) -> 18931 | Q110: 252.4133333 | R110: =VLOOKUP(N110,Arkusz3!AN:AP,3,0) -> 1954.43
A111: 6821635547 | B111: GMINA PAŁECZNICA | C111: 12 | D111: 14 | E111: 042 | F111: 32109 | G111: Pałecznica | H111: Pałecznica | I111: ul. św. Jakuba | J111: 11 | K111: GMINA | L111: 1214042 | M111: =VLOOKUP(L111,Arkusz3!A:K,2,0) -> Pałecznica.......................................................................................................................................................................................................................................................... | N111: 1214042 | O111: =VLOOKUP(N111,Arkusz3!A:E,5,0) -> 48 | P111: =VLOOKUP(N111,Arkusz3!H:J,3,0) -> 3485 | Q111: 72.60416667 | R111: =VLOOKUP(N111,Arkusz3!AN:AP,3,0) -> 1207.09
A112: 6811355131 | B112: GMINA PCIM | C112: 12 | D112: 09 | E112: 042 | F112: 32432 | G112: Pcim | H112: Pcim | J112: 563 | K112: GMINA | L112: 1209042 | M112: =VLOOKUP(L112,Arkusz3!A:K,2,0) -> Pcim.......................................................................................................................................................................................................................................................... | N112: 1209042 | O112: =VLOOKUP(N112,Arkusz3!A:E,5,0) -> 89 | P112: =VLOOKUP(N112,Arkusz3!H:J,3,0) -> 11124 | Q112: 124.988764 | R112: =VLOOKUP(N112,Arkusz3!AN:AP,3,0) -> 1280.75
A113: 7343543904 | B113: MIASTO I GMINA PIWNICZNA-ZDRÓJ | C113: 12 | D113: 10 | E113: 134 | F113: 33350 | G113: Piwniczna-Zdrój | H113: Piwniczna-Zdrój | I113: ul. Rynek | J113: 20 | K113: GMINA | L113: 1210134 | M113: =VLOOKUP(L113,Arkusz3!A:K,2,0) ->  | N113: 1210133 | O113: =VLOOKUP(N113,Arkusz3!A:E,5,0) -> 126 | P113: =VLOOKUP(N113,Arkusz3!H:J,3,0) -> 10032 | Q113: 79.61904762 | R113: =VLOOKUP(N113,Arkusz3!AN:AP,3,0) -> 1079.26
A114: 8732978229 | B114: GMINA PLEŚNA | C114: 12 | D114: 16 | E114: 042 | F114: 33171 | G114: Pleśna | H114: Pleśna | J114: 240 | K114: GMINA | L114: 1216042 | M114: =VLOOKUP(L114,Arkusz3!A:K,2,0) -> Pleśna.......................................................................................................................................................................................................................................................... | N114: 1216042 | O114: =VLOOKUP(N114,Arkusz3!A:E,5,0) -> 83 | P114: =VLOOKUP(N114,Arkusz3!H:J,3,0) -> 11771 | Q114: 141.8192771 | R114: =VLOOKUP(N114,Arkusz3!AN:AP,3,0) -> 1042.06
A115: 7343456306 | B115: GMINA PODEGRODZIE | C115: 12 | D115: 10 | E115: 142 | F115: 33386 | G115: Podegrodzie | H115: Podegrodzie | J115: 248 | K115: GMINA | L115: 1210142 | M115: =VLOOKUP(L115,Arkusz3!A:K,2,0) -> Podegrodzie.......................................................................................................................................................................................................................................................... | N115: 1210142 | O115: =VLOOKUP(N115,Arkusz3!A:E,5,0) -> 65 | P115: =VLOOKUP(N115,Arkusz3!H:J,3,0) -> 13535 | Q115: 208.2307692 | R115: =VLOOKUP(N115,Arkusz3!AN:AP,3,0) -> 1203.45
A116: 5492199463 | B116: GMINA POLANKA WIELKA | C116: 12 | D116: 13 | E116: 072 | F116: 32607 | G116: Polanka Wielka | H116: Polanka Wielka | I116: ul. Długa | J116: 61 | K116: GMINA | L116: 1213072 | M116: =VLOOKUP(L116,Arkusz3!A:K,2,0) -> Polanka Wielka.......................................................................................................................................................................................................................................................... | N116: 1213072 | O116: =VLOOKUP(N116,Arkusz3!A:E,5,0) -> 24 | P116: =VLOOKUP(N116,Arkusz3!H:J,3,0) -> 4311 | Q116: 179.625 | R116: =VLOOKUP(N116,Arkusz3!AN:AP,3,0) -> 1377.48
A117: 7361705814 | B117: GMINA PORONIN | C117: 12 | D117: 17 | E117: 052 | F117: 34520 | G117: Poronin | H117: Poronin | I117: ul. Józefa Piłsudskiego | J117: 5 | K117: GMINA | L117: 1217052 | M117: =VLOOKUP(L117,Arkusz3!A:K,2,0) -> Poronin.......................................................................................................................................................................................................................................................... | N117: 1217052 | O117: =VLOOKUP(N117,Arkusz3!A:E,5,0) -> 84 | P117: =VLOOKUP(N117,Arkusz3!H:J,3,0) -> 11778 | Q117: 140.2142857 | R117: =VLOOKUP(N117,Arkusz3!AN:AP,3,0) -> 1271.02
A118: 6821604469 | B118: GMINA PROSZOWICE | C118: 12 | D118: 14 | E118: 054 | F118: 32100 | G118: Proszowice | H118: Proszowice | I118: ul. 3 Maja | J118: 72 | K118: GMINA | L118: 1214054 | M118: =VLOOKUP(L118,Arkusz3!A:K,2,0) ->  | N118: 1214053 | O118: =VLOOKUP(N118,Arkusz3!A:E,5,0) -> 100 | P118: =VLOOKUP(N118,Arkusz3!H:J,3,0) -> 15587 | Q118: 155.87 | R118: =VLOOKUP(N118,Arkusz3!AN:AP,3,0) -> 1362.88
A119: 5492197487 | B119: GMINA PRZECISZÓW | C119: 12 | D119: 13 | E119: 082 | F119: 32641 | G119: Przeciszów | H119: Przeciszów | I119: ul. Podlesie | J119: 1 | K119: GMINA | L119: 1213082 | M119: =VLOOKUP(L119,Arkusz3!A:K,2,0) -> Przeciszów.......................................................................................................................................................................................................................................................... | N119: 1213082 | O119: =VLOOKUP(N119,Arkusz3!A:E,5,0) -> 35 | P119: =VLOOKUP(N119,Arkusz3!H:J,3,0) -> 6413 | Q119: 183.2285714 | R119: =VLOOKUP(N119,Arkusz3!AN:AP,3,0) -> 1603.99
A120: 7352854845 | B120: GMINA RABA WYŻNA | C120: 12 | D120: 11 | E120: 112 | F120: 34721 | G120: Raba Wyżna | H120: Raba Wyżna | J120: 41 | K120: GMINA | L120: 1211112 | M120: =VLOOKUP(L120,Arkusz3!A:K,2,0) -> Raba Wyżna.......................................................................................................................................................................................................................................................... | N120: 1211112 | O120: =VLOOKUP(N120,Arkusz3!A:E,5,0) -> 89 | P120: =VLOOKUP(N120,Arkusz3!H:J,3,0) -> 14448 | Q120: 162.3370787 | R120: =VLOOKUP(N120,Arkusz3!AN:AP,3,0) -> 849.15
A121: 7351006084 | B121: GMINA RABKA ZDRÓJ | C121: 12 | D121: 11 | E121: 124 | F121: 34700 | G121: Rabka-Zdrój | H121: Rabka-Zdrój | I121: ul. Parkowa | J121: 2 | K121: GMINA | L121: 1211124 | M121: =VLOOKUP(L121,Arkusz3!A:K,2,0) ->  | N121: 1211123 | O121: =VLOOKUP(N121,Arkusz3!A:E,5,0) -> 69 | P121: =VLOOKUP(N121,Arkusz3!H:J,3,0) -> 16672 | Q121: 241.6231884 | R121: =VLOOKUP(N121,Arkusz3!AN:AP,3,0) -> 1499.59
A122: 6811359293 | B122: GMINA RACIECHOWICE | C122: 12 | D122: 09 | E122: 052 | F122: 32415 | G122: Raciechowice | H122: Raciechowice | J122: 277 | K122: GMINA | L122: 1209052 | M122: =VLOOKUP(L122,Arkusz3!A:K,2,0) -> Raciechowice.......................................................................................................................................................................................................................................................... | N122: 1209052 | O122: =VLOOKUP(N122,Arkusz3!A:E,5,0) -> 61 | P122: =VLOOKUP(N122,Arkusz3!H:J,3,0) -> 6409 | Q122: 105.0655738 | R122: =VLOOKUP(N122,Arkusz3!AN:AP,3,0) -> 1208.63
A123: 6591184436 | B123: GMINA RACŁAWICE | C123: 12 | D123: 08 | E123: 062 | F123: 32222 | G123: Racławice | H123: Racławice | J123: 15 | K123: GMINA | L123: 1208062 | M123: =VLOOKUP(L123,Arkusz3!A:K,2,0) -> Racławice.......................................................................................................................................................................................................................................................... | N123: 1208062 | O123: =VLOOKUP(N123,Arkusz3!A:E,5,0) -> 59 | P123: =VLOOKUP(N123,Arkusz3!H:J,3,0) -> 2427 | Q123: 41.13559322 | R123: =VLOOKUP(N123,Arkusz3!AN:AP,3,0) -> 1225.68
A124: 8711665525 | B124: GMINA RADGOSZCZ | C124: 12 | D124: 04 | E124: 062 | F124: 33207 | G124: Radgoszcz | H124: Radgoszcz | I124: pl. św. Kazimierza | J124: 7-8 | K124: GMINA | L124: 1204062 | M124: =VLOOKUP(L124,Arkusz3!A:K,2,0) -> Radgoszcz.......................................................................................................................................................................................................................................................... | N124: 1204062 | O124: =VLOOKUP(N124,Arkusz3!A:E,5,0) -> 88 | P124: =VLOOKUP(N124,Arkusz3!H:J,3,0) -> 7473 | Q124: 84.92045455 | R124: =VLOOKUP(N124,Arkusz3!AN:AP,3,0) -> 698.89
A125: 8731001716 | B125: GMINA RADŁÓW | C125: 12 | D125: 16 | E125: 054 | F125: 33130 | G125: Radłów | H125: Radłów | I125: ul. Kolejowa | J125: 7 | K125: GMINA | L125: 1216054 | M125: =VLOOKUP(L125,Arkusz3!A:K,2,0) ->  | N125: 1216053 | O125: =VLOOKUP(N125,Arkusz3!A:E,5,0) -> 86 | P125: =VLOOKUP(N125,Arkusz3!H:J,3,0) -> 9409 | Q125: 109.4069767 | R125: =VLOOKUP(N125,Arkusz3!AN:AP,3,0) -> 1486.42
A126: 6821762292 | B126: GMINA RADZIEMICE | C126: 12 | D126: 14 | E126: 062 | F126: 32107 | G126: Radziemice | H126: Radziemice | J126: 74 | K126: GMINA | L126: 1214062 | M126: =VLOOKUP(L126,Arkusz3!A:K,2,0) -> Radziemice.......................................................................................................................................................................................................................................................... | N126: 1214062 | O126: =VLOOKUP(N126,Arkusz3!A:E,5,0) -> 58 | P126: =VLOOKUP(N126,Arkusz3!H:J,3,0) -> 3212 | Q126: 55.37931034 | R126: =VLOOKUP(N126,Arkusz3!AN:AP,3,0) -> 1711.54
A127: 7382130282 | B127: GMINA ROPA | C127: 12 | D127: 05 | E127: 082 | F127: 38312 | G127: Ropa | H127: Ropa | J127: 733 | K127: GMINA | L127: 1205082 | M127: =VLOOKUP(L127,Arkusz3!A:K,2,0) -> Ropa.......................................................................................................................................................................................................................................................... | N127: 1205082 | O127: =VLOOKUP(N127,Arkusz3!A:E,5,0) -> 49 | P127: =VLOOKUP(N127,Arkusz3!H:J,3,0) -> 5513 | Q127: 112.5102041 | R127: =VLOOKUP(N127,Arkusz3!AN:AP,3,0) -> 724.31
A128: 9930337247 | B128: GMINA RYGLICE | C128: 12 | D128: 16 | E128: 064 | F128: 33160 | G128: Ryglice | H128: Ryglice | I128: ul. Rynek | J128: 9 | K128: GMINA | L128: 1216064 | M128: =VLOOKUP(L128,Arkusz3!A:K,2,0) ->  | N128: 1216063 | O128: =VLOOKUP(N128,Arkusz3!A:E,5,0) -> 117 | P128: =VLOOKUP(N128,Arkusz3!H:J,3,0) -> 11256 | Q128: 96.20512821 | R128: =VLOOKUP(N128,Arkusz3!AN:AP,3,0) -> 889.95
A129: 7343517947 | B129: GMINA RYTRO | C129: 12 | D129: 10 | E129: 152 | F129: 33343 | G129: Rytro | H129: Rytro | J129: 265 | K129: GMINA | L129: 1210152 | M129: =VLOOKUP(L129,Arkusz3!A:K,2,0) -> Rytro.......................................................................................................................................................................................................................................................... | N129: 1210152 | O129: =VLOOKUP(N129,Arkusz3!A:E,5,0) -> 42 | P129: =VLOOKUP(N129,Arkusz3!H:J,3,0) -> 3670 | Q129: 87.38095238 | R129: =VLOOKUP(N129,Arkusz3!AN:AP,3,0) -> 1074.56
A130: 9930656314 | B130: GMINA RZEPIENNIK STRZYŻEWSKI | C130: 12 | D130: 16 | E130: 072 | F130: 33163 | G130: Rzepiennik Strzyżewski | H130: Rzepiennik Strzyżewski | J130: 400 | K130: GMINA | L130: 1216072 | M130: =VLOOKUP(L130,Arkusz3!A:K,2,0) -> Rzepiennik Strzyżewski.......................................................................................................................................................................................................................................................... | N130: 1216072 | O130: =VLOOKUP(N130,Arkusz3!A:E,5,0) -> 71 | P130: =VLOOKUP(N130,Arkusz3!H:J,3,0) -> 6572 | Q130: 92.56338028 | R130: =VLOOKUP(N130,Arkusz3!AN:AP,3,0) -> 995.58
A131: 8681021294 | B131: GMINA RZEZAWA | C131: 12 | D131: 01 | E131: 072 | F131: 32765 | G131: Rzezawa | H131: Rzezawa | I131: ul. Długa | J131: 21 | K131: GMINA | L131: =C131*100000+D131*1000+E131 -> 1201072 | M131: =VLOOKUP(L131,Arkusz3!A:K,2,0) -> Rzezawa.......................................................................................................................................................................................................................................................... | N131: =IF(M131=M$1,L131-1,IF(M131=N$1,L131-2,L131)) -> 1201072 | O131: =VLOOKUP(N131,Arkusz3!A:E,5,0) -> 86 | P131: =VLOOKUP(N131,Arkusz3!H:J,3,0) -> 11389 | Q131: =P131/O131 -> 132.4302326 | R131: =VLOOKUP(N131,Arkusz3!AN:AP,3,0) -> 1155.09
A132: 7381013686 | B132: GMINA SĘKOWA | C132: 12 | D132: 05 | E132: 092 | F132: 38307 | G132: Sękowa | H132: Sękowa | J132: 252 | K132: GMINA | L132: 1205092 | M132: =VLOOKUP(L132,Arkusz3!A:K,2,0) -> Sękowa.......................................................................................................................................................................................................................................................... | N132: 1205092 | O132: =VLOOKUP(N132,Arkusz3!A:E,5,0) -> 195 | P132: =VLOOKUP(N132,Arkusz3!H:J,3,0) -> 4910 | Q132: 25.17948718 | R132: =VLOOKUP(N132,Arkusz3!AN:AP,3,0) -> 1099.34
A133: 6811299390 | B133: GMINA SIEPRAW | C133: 12 | D133: 09 | E133: 062 | F133: 32447 | G133: Siepraw | H133: Siepraw | I133: ul. Kawęciny | J133: 30 | K133: GMINA | L133: 1209062 | M133: =VLOOKUP(L133,Arkusz3!A:K,2,0) -> Siepraw.......................................................................................................................................................................................................................................................... | N133: 1209062 | O133: =VLOOKUP(N133,Arkusz3!A:E,5,0) -> 32 | P133: =VLOOKUP(N133,Arkusz3!H:J,3,0) -> 9557 | Q133: 298.65625 | R133: =VLOOKUP(N133,Arkusz3!AN:AP,3,0) -> 1782.85
A134: 6771024094 | B134: GMINA SKAŁA | C134: 12 | D134: 06 | E134: 104 | F134: 32043 | G134: Skała | H134: Skała | I134: Rynek | J134: 29 | K134: GMINA | L134: 1206104 | M134: =VLOOKUP(L134,Arkusz3!A:K,2,0) ->  | N134: 1206103 | O134: =VLOOKUP(N134,Arkusz3!A:E,5,0) -> 75 | P134: =VLOOKUP(N134,Arkusz3!H:J,3,0) -> 10942 | Q134: 145.8933333 | R134: =VLOOKUP(N134,Arkusz3!AN:AP,3,0) -> 1415.66
A135: 6791023301 | B135: GMINA SKAWINA | C135: 12 | D135: 06 | E135: 114 | F135: 32050 | G135: Skawina | H135: Skawina | I135: Rynek | J135: 1 | K135: GMINA | L135: 1206114 | M135: =VLOOKUP(L135,Arkusz3!A:K,2,0) ->  | N135: 1206113 | O135: =VLOOKUP(N135,Arkusz3!A:E,5,0) -> 100 | P135: =VLOOKUP(N135,Arkusz3!H:J,3,0) -> 44025 | Q135: 440.25 | R135: =VLOOKUP(N135,Arkusz3!AN:AP,3,0) -> 2634.82
A136: 9930340717 | B136: GMINA SKRZYSZÓW | C136: 12 | D136: 16 | E136: 082 | F136: 33156 | G136: Skrzyszów | H136: Skrzyszów | J136: 642 | K136: GMINA | L136: 1216082 | M136: =VLOOKUP(L136,Arkusz3!A:K,2,0) -> Skrzyszów.......................................................................................................................................................................................................................................................... | N136: 1216082 | O136: =VLOOKUP(N136,Arkusz3!A:E,5,0) -> 86 | P136: =VLOOKUP(N136,Arkusz3!H:J,3,0) -> 14155 | Q136: 164.5930233 | R136: =VLOOKUP(N136,Arkusz3!AN:AP,3,0) -> 1481.93
A137: 6591222510 | B137: GMINA SŁABOSZÓW | C137: 12 | D137: 08 | E137: 072 | F137: 32218 | G137: Słaboszów | H137: Słaboszów | J137: 57 | K137: GMINA | L137: 1208072 | M137: =VLOOKUP(L137,Arkusz3!A:K,2,0) -> Słaboszów.......................................................................................................................................................................................................................................................... | N137: 1208072 | O137: =VLOOKUP(N137,Arkusz3!A:E,5,0) -> 77 | P137: =VLOOKUP(N137,Arkusz3!H:J,3,0) -> 3345 | Q137: 43.44155844 | R137: =VLOOKUP(N137,Arkusz3!AN:AP,3,0) -> 1135.71
A138: 6821604831 | B138: GMINA SŁOMNIKI | C138: 12 | D138: 06 | E138: 124 | F138: 32090 | G138: Słomniki | H138: Słomniki | I138: ul. Tadeusza Kościuszki | J138: 64 | K138: GMINA | L138: 1206124 | M138: =VLOOKUP(L138,Arkusz3!A:K,2,0) ->  | N138: 1206123 | O138: =VLOOKUP(N138,Arkusz3!A:E,5,0) -> 113 | P138: =VLOOKUP(N138,Arkusz3!H:J,3,0) -> 13782 | Q138: 121.9646018 | R138: =VLOOKUP(N138,Arkusz3!AN:AP,3,0) -> 1557.34
A139: 7371410411 | B139: GMINA SŁOPNICE | C139: 12 | D139: 07 | E139: 112 | F139: 34615 | G139: Słopnice | H139: Słopnice | J139: 911 | K139: GMINA | L139: 1207112 | M139: =VLOOKUP(L139,Arkusz3!A:K,2,0) -> Słopnice.......................................................................................................................................................................................................................................................... | N139: 1207112 | O139: =VLOOKUP(N139,Arkusz3!A:E,5,0) -> 57 | P139: =VLOOKUP(N139,Arkusz3!H:J,3,0) -> 6914 | Q139: 121.2982456 | R139: =VLOOKUP(N139,Arkusz3!AN:AP,3,0) -> 833.65
A140: 7352703193 | B140: GMINA SPYTKOWICE (pow. nowotarski) | C140: 12 | D140: 11 | E140: 132 | F140: 34745 | G140: Spytkowice | H140: Spytkowice | J140: 26 | K140: GMINA | L140: 1211132 | M140: =VLOOKUP(L140,Arkusz3!A:K,2,0) -> Spytkowice.......................................................................................................................................................................................................................................................... | N140: 1211132 | O140: =VLOOKUP(N140,Arkusz3!A:E,5,0) -> 32 | P140: =VLOOKUP(N140,Arkusz3!H:J,3,0) -> 4692 | Q140: 146.625 | R140: =VLOOKUP(N140,Arkusz3!AN:AP,3,0) -> 1158.62
A141: 5511123930 | B141: GMINA SPYTKOWICE (pow. wadowicki) | C141: 12 | D141: 18 | E141: 062 | F141: 34116 | G141: Spytkowice | H141: Spytkowice | I141: ul. Zamkowa | J141: 12 | K141: GMINA | L141: 1218062 | M141: =VLOOKUP(L141,Arkusz3!A:K,2,0) -> Spytkowice.......................................................................................................................................................................................................................................................... | N141: 1218062 | O141: =VLOOKUP(N141,Arkusz3!A:E,5,0) -> 52 | P141: =VLOOKUP(N141,Arkusz3!H:J,3,0) -> 10123 | Q141: 194.6730769 | R141: =VLOOKUP(N141,Arkusz3!AN:AP,3,0) -> 1328.2
A142: 7341009655 | B142: GMINA STARY SĄCZ | C142: 12 | D142: 10 | E142: 164 | F142: 33340 | G142: Stary Sącz | H142: Stary Sącz | I142: ul. Stefana Batorego | J142: 25 | K142: GMINA | L142: 1210164 | M142: =VLOOKUP(L142,Arkusz3!A:K,2,0) ->  | N142: 1210163 | O142: =VLOOKUP(N142,Arkusz3!A:E,5,0) -> 101 | P142: =VLOOKUP(N142,Arkusz3!H:J,3,0) -> 23551 | Q142: 233.1782178 | R142: =VLOOKUP(N142,Arkusz3!AN:AP,3,0) -> 1229.01
A143: 5521707153 | B143: GMINA STRYSZAWA | C143: 12 | D143: 15 | E143: 072 | F143: 34205 | G143: Stryszawa | H143: Stryszawa | J143: 17 | K143: GMINA | L143: 1215072 | M143: =VLOOKUP(L143,Arkusz3!A:K,2,0) -> Stryszawa.......................................................................................................................................................................................................................................................... | N143: 1215072 | O143: =VLOOKUP(N143,Arkusz3!A:E,5,0) -> 114 | P143: =VLOOKUP(N143,Arkusz3!H:J,3,0) -> 11906 | Q143: 104.4385965 | R143: =VLOOKUP(N143,Arkusz3!AN:AP,3,0) -> 1275.63
A144: 5511690907 | B144: GMINA STRYSZÓW | C144: 12 | D144: 18 | E144: 072 | F144: 34146 | G144: Stryszów | H144: Stryszów | J144: 149 | K144: GMINA | L144: 1218072 | M144: =VLOOKUP(L144,Arkusz3!A:K,2,0) -> Stryszów.......................................................................................................................................................................................................................................................... | N144: 1218072 | O144: =VLOOKUP(N144,Arkusz3!A:E,5,0) -> 46 | P144: =VLOOKUP(N144,Arkusz3!H:J,3,0) -> 6801 | Q144: 147.8478261 | R144: =VLOOKUP(N144,Arkusz3!AN:AP,3,0) -> 1138.1
A145: 5521567404 | B145: GMINA SUCHA BESKIDZKA | C145: 12 | D145: 15 | E145: 021 | F145: 34200 | G145: Sucha Beskidzka | H145: Sucha Beskidzka | I145: ul. Adama Mickiewicza | J145: 19 | K145: GMINA | L145: 1215021 | M145: =VLOOKUP(L145,Arkusz3!A:K,2,0) -> Sucha Beskidzka.......................................................................................................................................................................................................................................................... | N145: 1215021 | O145: =VLOOKUP(N145,Arkusz3!A:E,5,0) -> 28 | P145: =VLOOKUP(N145,Arkusz3!H:J,3,0) -> 8927 | Q145: 318.8214286 | R145: =VLOOKUP(N145,Arkusz3!AN:AP,3,0) -> 2032.32
A146: 6811036147 | B146: GMINA SUŁKOWICE | C146: 12 | D146: 09 | E146: 074 | F146: 32440 | G146: Sułkowice | H146: Sułkowice | I146: Rynek | J146: 1 | K146: GMINA | L146: 1209074 | M146: =VLOOKUP(L146,Arkusz3!A:K,2,0) ->  | N146: 1209073 | O146: =VLOOKUP(N146,Arkusz3!A:E,5,0) -> 60 | P146: =VLOOKUP(N146,Arkusz3!H:J,3,0) -> 15160 | Q146: 252.6666667 | R146: =VLOOKUP(N146,Arkusz3!AN:AP,3,0) -> 1237.97
A147: 6771037576 | B147: GMINA SUŁOSZOWA | C147: 12 | D147: 06 | E147: 132 | F147: 32045 | G147: Sułoszowa | H147: Sułoszowa | I147: ul. Krakowska | J147: 139 | K147: GMINA | L147: 1206132 | M147: =VLOOKUP(L147,Arkusz3!A:K,2,0) -> Sułoszowa.......................................................................................................................................................................................................................................................... | N147: 1206132 | O147: =VLOOKUP(N147,Arkusz3!A:E,5,0) -> 53 | P147: =VLOOKUP(N147,Arkusz3!H:J,3,0) -> 5702 | Q147: 107.5849057 | R147: =VLOOKUP(N147,Arkusz3!AN:AP,3,0) -> 986.42
A148: 7361198317 | B148: GMINA SZAFLARY | C148: 12 | D148: 11 | E148: 142 | F148: 34424 | G148: Szaflary | H148: Szaflary | I148: ul. Zakopiańska | J148: 18 | K148: GMINA | L148: 1211142 | M148: =VLOOKUP(L148,Arkusz3!A:K,2,0) -> Szaflary.......................................................................................................................................................................................................................................................... | N148: 1211142 | O148: =VLOOKUP(N148,Arkusz3!A:E,5,0) -> 54 | P148: =VLOOKUP(N148,Arkusz3!H:J,3,0) -> 11254 | Q148: 208.4074074 | R148: =VLOOKUP(N148,Arkusz3!AN:AP,3,0) -> 1116.35
A149: 7351026738 | B149: MIASTO I GMINA SZCZAWNICA | C149: 12 | D149: 11 | E149: 024 | F149: 34460 | G149: Szczawnica | H149: Szczawnica | I149: ul. Szalaya | J149: 103 | K149: GMINA | L149: 1211024 | M149: =VLOOKUP(L149,Arkusz3!A:K,2,0) ->  | N149: 1211023 | O149: =VLOOKUP(N149,Arkusz3!A:E,5,0) -> 88 | P149: =VLOOKUP(N149,Arkusz3!H:J,3,0) -> 6732 | Q149: 76.5 | R149: =VLOOKUP(N149,Arkusz3!AN:AP,3,0) -> 1814.45
A150: 8711769963 | B150: GMINA SZCZUCIN | C150: 12 | D150: 04 | E150: 074 | F150: 33230 | G150: Szczucin | H150: Szczucin | I150: ul. Wolności | J150: 3 | K150: GMINA | L150: 1204074 | M150: =VLOOKUP(L150,Arkusz3!A:K,2,0) ->  | N150: 1204073 | O150: =VLOOKUP(N150,Arkusz3!A:E,5,0) -> 119 | P150: =VLOOKUP(N150,Arkusz3!H:J,3,0) -> 12529 | Q150: 105.2857143 | R150: =VLOOKUP(N150,Arkusz3!AN:AP,3,0) -> 1096.68
A151: 8691186401 | B151: GMINA SZCZUROWA | C151: 12 | D151: 02 | E151: 072 | F151: 32820 | G151: Szczurowa | H151: Szczurowa | I151: ul. Lwowska | J151: 2 | K151: GMINA | L151: 1202072 | M151: =VLOOKUP(L151,Arkusz3!A:K,2,0) -> Szczurowa.......................................................................................................................................................................................................................................................... | N151: 1202072 | O151: =VLOOKUP(N151,Arkusz3!A:E,5,0) -> 135 | P151: =VLOOKUP(N151,Arkusz3!H:J,3,0) -> 9177 | Q151: 67.97777778 | R151: =VLOOKUP(N151,Arkusz3!AN:AP,3,0) -> 1247.26
A152: 9930337193 | B152: GMINA SZERZYNY | C152: 12 | D152: 16 | E152: 162 | F152: 38246 | G152: Szerzyny | H152: Szerzyny | J152: 521 | K152: GMINA | L152: 1216162 | M152: =VLOOKUP(L152,Arkusz3!A:K,2,0) -> Szerzyny.......................................................................................................................................................................................................................................................... | N152: 1216162 | O152: =VLOOKUP(N152,Arkusz3!A:E,5,0) -> 82 | P152: =VLOOKUP(N152,Arkusz3!H:J,3,0) -> 7525 | Q152: 91.76829268 | R152: =VLOOKUP(N152,Arkusz3!AN:AP,3,0) -> 800.15
A153: 9442226987 | B153: GMINA ŚWIĄTNIKI GÓRNE | C153: 12 | D153: 06 | E153: 144 | F153: 32040 | G153: Świątniki Górne | H153: Świątniki Górne | I153: ul. Kazimierza Bruchnalskiego | J153: 36 | K153: GMINA | L153: 1206144 | M153: =VLOOKUP(L153,Arkusz3!A:K,2,0) ->  | N153: 1206143 | O153: =VLOOKUP(N153,Arkusz3!A:E,5,0) -> 20 | P153: =VLOOKUP(N153,Arkusz3!H:J,3,0) -> 11097 | Q153: 554.85 | R153: =VLOOKUP(N153,Arkusz3!AN:AP,3,0) -> 2460.41
A154: 8731550848 | B154: GMINA TARNÓW | C154: 12 | D154: 16 | E154: 092 | F154: 33100 | G154: Tarnów | H154: Tarnów | I154: ul. Krakowska | J154: 19 | K154: GMINA | L154: 1216092 | M154: =VLOOKUP(L154,Arkusz3!A:K,2,0) -> Tarnów.......................................................................................................................................................................................................................................................... | N154: 1216092 | O154: =VLOOKUP(N154,Arkusz3!A:E,5,0) -> 83 | P154: =VLOOKUP(N154,Arkusz3!H:J,3,0) -> 26359 | Q154: 317.5783133 | R154: =VLOOKUP(N154,Arkusz3!AN:AP,3,0) -> 1926.63
A155: 6811304607 | B155: GMINA TOKARNIA | C155: 12 | D155: 09 | E155: 082 | F155: 32436 | G155: Tokarnia | H155: Tokarnia | J155: 380 | K155: GMINA | L155: 1209082 | M155: =VLOOKUP(L155,Arkusz3!A:K,2,0) -> Tokarnia.......................................................................................................................................................................................................................................................... | N155: 1209082 | O155: =VLOOKUP(N155,Arkusz3!A:E,5,0) -> 69 | P155: =VLOOKUP(N155,Arkusz3!H:J,3,0) -> 8789 | Q155: 127.3768116 | R155: =VLOOKUP(N155,Arkusz3!AN:AP,3,0) -> 914.03
A156: 5511163935 | B156: GMINA TOMICE | C156: 12 | D156: 18 | E156: 082 | F156: 34100 | G156: Wadowice | H156: Tomice | I156: ul. Wadowicka | J156: 51 | K156: GMINA | L156: 1218082 | M156: =VLOOKUP(L156,Arkusz3!A:K,2,0) -> Tomice.......................................................................................................................................................................................................................................................... | N156: 1218082 | O156: =VLOOKUP(N156,Arkusz3!A:E,5,0) -> 42 | P156: =VLOOKUP(N156,Arkusz3!H:J,3,0) -> 8207 | Q156: 195.4047619 | R156: =VLOOKUP(N156,Arkusz3!AN:AP,3,0) -> 1358.82
A157: 8681021259 | B157: GMINA TRZCIANA | C157: 12 | D157: 01 | E157: 082 | F157: 32733 | G157: Trzciana | H157: Trzciana | J157: 302 | K157: GMINA | L157: 1201082 | M157: =VLOOKUP(L157,Arkusz3!A:K,2,0) -> Trzciana.......................................................................................................................................................................................................................................................... | N157: 1201082 | O157: =VLOOKUP(N157,Arkusz3!A:E,5,0) -> 44 | P157: =VLOOKUP(N157,Arkusz3!H:J,3,0) -> 5679 | Q157: 129.0681818 | R157: =VLOOKUP(N157,Arkusz3!AN:AP,3,0) -> 1199.03
A158: 6282260122 | B158: GMINA TRZEBINIA | C158: 12 | D158: 03 | E158: 054 | F158: 32540 | G158: Trzebinia | H158: Trzebinia | I158: ul. Marszałka Piłsudskiego | J158: 14 | K158: GMINA | L158: 1203054 | M158: =VLOOKUP(L158,Arkusz3!A:K,2,0) ->  | N158: 1203053 | O158: =VLOOKUP(N158,Arkusz3!A:E,5,0) -> 105 | P158: =VLOOKUP(N158,Arkusz3!H:J,3,0) -> 32596 | Q158: 310.4380952 | R158: =VLOOKUP(N158,Arkusz3!AN:AP,3,0) -> 2396.84
A159: 6372024112 | B159: GMINA TRZYCIĄŻ | C159: 12 | D159: 12 | E159: 062 | F159: 32353 | G159: Trzyciąż | H159: Trzyciąż | J159: 99 | K159: GMINA | L159: 1212062 | M159: =VLOOKUP(L159,Arkusz3!A:K,2,0) -> Trzyciąż.......................................................................................................................................................................................................................................................... | N159: 1212062 | O159: =VLOOKUP(N159,Arkusz3!A:E,5,0) -> 95 | P159: =VLOOKUP(N159,Arkusz3!H:J,3,0) -> 6941 | Q159: 73.06315789 | R159: =VLOOKUP(N159,Arkusz3!AN:AP,3,0) -> 1508.98
A160: 9930336443 | B160: GMINA TUCHÓW | C160: 12 | D160: 16 | E160: 104 | F160: 33170 | G160: Tuchów | H160: Tuchów | I160: ul. Rynek | J160: 1 | K160: GMINA | L160: 1216104 | M160: =VLOOKUP(L160,Arkusz3!A:K,2,0) ->  | N160: 1216103 | O160: =VLOOKUP(N160,Arkusz3!A:E,5,0) -> 100 | P160: =VLOOKUP(N160,Arkusz3!H:J,3,0) -> 17064 | Q160: 170.64 | R160: =VLOOKUP(N160,Arkusz3!AN:AP,3,0) -> 1145.25
A161: 7371362818 | B161: GMINA TYMBARK | C161: 12 | D161: 07 | E161: 122 | F161: 34650 | G161: Tymbark | H161: Tymbark | J161: 49 | K161: GMINA | L161: 1207122 | M161: =VLOOKUP(L161,Arkusz3!A:K,2,0) -> Tymbark.......................................................................................................................................................................................................................................................... | N161: 1207122 | O161: =VLOOKUP(N161,Arkusz3!A:E,5,0) -> 33 | P161: =VLOOKUP(N161,Arkusz3!H:J,3,0) -> 6395 | Q161: 193.7878788 | R161: =VLOOKUP(N161,Arkusz3!AN:AP,3,0) -> 1630.86
A162: 7382144864 | B162: GMINA UŚCIE GORLICKIE | C162: 12 | D162: 05 | E162: 102 | F162: 38315 | G162: Uście Gorlickie | H162: Uście Gorlickie | J162: 80 | K162: GMINA | L162: 1205102 | M162: =VLOOKUP(L162,Arkusz3!A:K,2,0) -> Uście Gorlickie.......................................................................................................................................................................................................................................................... | N162: 1205102 | O162: =VLOOKUP(N162,Arkusz3!A:E,5,0) -> 287 | P162: =VLOOKUP(N162,Arkusz3!H:J,3,0) -> 6811 | Q162: 23.73170732 | R162: =VLOOKUP(N162,Arkusz3!AN:AP,3,0) -> 1128.7
A163: 5511003597 | B163: GMINA WADOWICE | C163: 12 | D163: 18 | E163: 094 | F163: 34100 | G163: Wadowice | H163: Wadowice | I163: pl. Jana Pawła II | J163: 23 | K163: GMINA | L163: 1218094 | M163: =VLOOKUP(L163,Arkusz3!A:K,2,0) ->  | N163: 1218093 | O163: =VLOOKUP(N163,Arkusz3!A:E,5,0) -> 113 | P163: =VLOOKUP(N163,Arkusz3!H:J,3,0) -> 36739 | Q163: 325.1238938 | R163: =VLOOKUP(N163,Arkusz3!AN:AP,3,0) -> 1904.78
A164: 6830011450 | B164: GMINA WIELICZKA | C164: 12 | D164: 19 | E164: 054 | F164: 32020 | G164: Wieliczka | H164: Wieliczka | I164: ul. Powstania Warszawskiego | J164: 1 | K164: GMINA | L164: 1219054 | M164: =VLOOKUP(L164,Arkusz3!A:K,2,0) ->  | N164: 1219053 | O164: =VLOOKUP(N164,Arkusz3!A:E,5,0) -> 100 | P164: =VLOOKUP(N164,Arkusz3!H:J,3,0) -> 68028 | Q164: 680.28 | R164: =VLOOKUP(N164,Arkusz3!AN:AP,3,0) -> 2255.43
A165: 5130066230 | B165: GMINA WIELKA WIEŚ | C165: 12 | D165: 06 | E165: 152 | F165: 32085 | G165: Modlnica | H165: Szyce | I165: pl. Plac Wspólnoty | J165: 1 | K165: GMINA | L165: 1206152 | M165: =VLOOKUP(L165,Arkusz3!A:K,2,0) -> Wielka Wieś.......................................................................................................................................................................................................................................................... | N165: 1206152 | O165: =VLOOKUP(N165,Arkusz3!A:E,5,0) -> 48 | P165: =VLOOKUP(N165,Arkusz3!H:J,3,0) -> 16445 | Q165: 342.6041667 | R165: =VLOOKUP(N165,Arkusz3!AN:AP,3,0) -> 3826.67
A166: 5511123841 | B166: GMINA WIEPRZ | C166: 12 | D166: 18 | E166: 102 | F166: 34122 | G166: Wieprz | H166: Wieprz | I166: ul. Centralna | J166: 5 | K166: GMINA | L166: 1218102 | M166: =VLOOKUP(L166,Arkusz3!A:K,2,0) -> Wieprz.......................................................................................................................................................................................................................................................... | N166: 1218102 | O166: =VLOOKUP(N166,Arkusz3!A:E,5,0) -> 75 | P166: =VLOOKUP(N166,Arkusz3!H:J,3,0) -> 12712 | Q166: 169.4933333 | R166: =VLOOKUP(N166,Arkusz3!AN:AP,3,0) -> 1267.92
A167: 8731111741 | B167: GMINA WIERZCHOSŁAWICE | C167: 12 | D167: 16 | E167: 112 | F167: 33122 | G167: Wierzchosławice | H167: Wierzchosławice | J167: 550 | K167: GMINA | L167: 1216112 | M167: =VLOOKUP(L167,Arkusz3!A:K,2,0) -> Wierzchosławice.......................................................................................................................................................................................................................................................... | N167: 1216112 | O167: =VLOOKUP(N167,Arkusz3!A:E,5,0) -> 75 | P167: =VLOOKUP(N167,Arkusz3!H:J,3,0) -> 10581 | Q167: 141.08 | R167: =VLOOKUP(N167,Arkusz3!AN:AP,3,0) -> 1613.51
A168: 9930652629 | B168: GMINA WIETRZYCHOWICE | C168: 12 | D168: 16 | E168: 122 | F168: 33270 | G168: Wietrzychowice | H168: Wietrzychowice | J168: 19 | K168: GMINA | L168: 1216122 | M168: =VLOOKUP(L168,Arkusz3!A:K,2,0) -> Wietrzychowice.......................................................................................................................................................................................................................................................... | N168: 1216122 | O168: =VLOOKUP(N168,Arkusz3!A:E,5,0) -> 48 | P168: =VLOOKUP(N168,Arkusz3!H:J,3,0) -> 3759 | Q168: 78.3125 | R168: =VLOOKUP(N168,Arkusz3!AN:AP,3,0) -> 799.82
A169: 6811381938 | B169: GMINA WIŚNIOWA | C169: 12 | D169: 09 | E169: 092 | F169: 32412 | G169: Wiśniowa | H169: Wiśniowa | J169: 441 | K169: GMINA | L169: 1209092 | M169: =VLOOKUP(L169,Arkusz3!A:K,2,0) -> Wiśniowa.......................................................................................................................................................................................................................................................... | N169: 1209092 | O169: =VLOOKUP(N169,Arkusz3!A:E,5,0) -> 67 | P169: =VLOOKUP(N169,Arkusz3!H:J,3,0) -> 7514 | Q169: 112.1492537 | R169: =VLOOKUP(N169,Arkusz3!AN:AP,3,0) -> 1088.83
A170: 8732630130 | B170: GMINA WOJNICZ | C170: 12 | D170: 16 | E170: 134 | F170: 32830 | G170: Wojnicz | H170: Wojnicz | I170: ul. Rynek | J170: 1 | K170: GMINA | L170: 1216134 | M170: =VLOOKUP(L170,Arkusz3!A:K,2,0) ->  | N170: 1216133 | O170: =VLOOKUP(N170,Arkusz3!A:E,5,0) -> 79 | P170: =VLOOKUP(N170,Arkusz3!H:J,3,0) -> 13105 | Q170: 165.8860759 | R170: =VLOOKUP(N170,Arkusz3!AN:AP,3,0) -> 1360.93
A171: 6372003423 | B171: GMINA WOLBROM | C171: 12 | D171: 12 | E171: 074 | F171: 32340 | G171: Wolbrom | H171: Wolbrom | I171: ul. Krakowska | J171: 1 | K171: GMINA | L171: 1212074 | M171: =VLOOKUP(L171,Arkusz3!A:K,2,0) ->  | N171: 1212073 | O171: =VLOOKUP(N171,Arkusz3!A:E,5,0) -> 147 | P171: =VLOOKUP(N171,Arkusz3!H:J,3,0) -> 22051 | Q171: 150.0068027 | R171: =VLOOKUP(N171,Arkusz3!AN:AP,3,0) -> 2022.15
A172: 6761706490 | B172: GMINA ZABIERZÓW | C172: 12 | D172: 06 | E172: 162 | F172: 32080 | G172: Zabierzów | H172: Zabierzów | I172: Rynek | J172: 1 | K172: GMINA | L172: 1206162 | M172: =VLOOKUP(L172,Arkusz3!A:K,2,0) -> Zabierzów (a) .......................................................................................................................................................................................................................................................... | N172: 1206162 | O172: =VLOOKUP(N172,Arkusz3!A:E,5,0) -> 99 | P172: =VLOOKUP(N172,Arkusz3!H:J,3,0) -> 29267 | Q172: 295.6262626 | R172: =VLOOKUP(N172,Arkusz3!AN:AP,3,0) -> 3324.4
A173: 8691013238 | B173: GMINA ZAKLICZYN | C173: 12 | D173: 16 | E173: 144 | F173: 32840 | G173: Zakliczyn | H173: Zakliczyn | I173: Rynek | J173: 32 | K173: GMINA | L173: 1216144 | M173: =VLOOKUP(L173,Arkusz3!A:K,2,0) ->  | N173: 1216143 | O173: =VLOOKUP(N173,Arkusz3!A:E,5,0) -> 122 | P173: =VLOOKUP(N173,Arkusz3!H:J,3,0) -> 12369 | Q173: 101.3852459 | R173: =VLOOKUP(N173,Arkusz3!AN:AP,3,0) -> 1001.2
A174: 7360007798 | B174: MIASTO ZAKOPANE | C174: 12 | D174: 17 | E174: 011 | F174: 34500 | G174: Zakopane | H174: Zakopane | I174: ul. Tadeusza Kościuszki | J174: 13 | K174: GMINA | L174: 1217011 | M174: =VLOOKUP(L174,Arkusz3!A:K,2,0) -> Zakopane.......................................................................................................................................................................................................................................................... | N174: 1217011 | O174: =VLOOKUP(N174,Arkusz3!A:E,5,0) -> 84 | P174: =VLOOKUP(N174,Arkusz3!H:J,3,0) -> 25389 | Q174: 302.25 | R174: =VLOOKUP(N174,Arkusz3!AN:AP,3,0) -> 2954.97
A175: 5492197464 | B175: GMINA ZATOR | C175: 12 | D175: 13 | E175: 094 | F175: 32640 | G175: Zator | H175: Zator | I175: pl. Marszałka Józefa Piłsudskiego | J175: 1 | K175: GMINA | L175: 1213094 | M175: =VLOOKUP(L175,Arkusz3!A:K,2,0) ->  | N175: 1213093 | O175: =VLOOKUP(N175,Arkusz3!A:E,5,0) -> 52 | P175: =VLOOKUP(N175,Arkusz3!H:J,3,0) -> 9123 | Q175: 175.4423077 | R175: =VLOOKUP(N175,Arkusz3!AN:AP,3,0) -> 2288.3
A176: 5521588530 | B176: GMINA ZAWOJA | C176: 12 | D176: 15 | E176: 082 | F176: 34222 | G176: Zawoja | H176: Zawoja | J176: 1307 | K176: GMINA | L176: 1215082 | M176: =VLOOKUP(L176,Arkusz3!A:K,2,0) -> Zawoja.......................................................................................................................................................................................................................................................... | N176: 1215082 | O176: =VLOOKUP(N176,Arkusz3!A:E,5,0) -> 128 | P176: =VLOOKUP(N176,Arkusz3!H:J,3,0) -> 8837 | Q176: 69.0390625 | R176: =VLOOKUP(N176,Arkusz3!AN:AP,3,0) -> 1230.25
A177: 5521576805 | B177: GMINA ZEMBRZYCE | C177: 12 | D177: 15 | E177: 092 | F177: 34210 | G177: Zembrzyce | H177: Zembrzyce | J177: 540 | K177: GMINA | L177: 1215092 | M177: =VLOOKUP(L177,Arkusz3!A:K,2,0) -> Zembrzyce.......................................................................................................................................................................................................................................................... | N177: 1215092 | O177: =VLOOKUP(N177,Arkusz3!A:E,5,0) -> 39 | P177: =VLOOKUP(N177,Arkusz3!H:J,3,0) -> 5415 | Q177: 138.8461538 | R177: =VLOOKUP(N177,Arkusz3!AN:AP,3,0) -> 1300.67
A178: 5130038162 | B178: GMINA ZIELONKI | C178: 12 | D178: 06 | E178: 172 | F178: 32087 | G178: Zielonki | H178: Zielonki | I178: ul. Krakowskie Przedmieście | J178: 116 | K178: GMINA | L178: 1206172 | M178: =VLOOKUP(L178,Arkusz3!A:K,2,0) -> Zielonki.......................................................................................................................................................................................................................................................... | N178: 1206172 | O178: =VLOOKUP(N178,Arkusz3!A:E,5,0) -> 49 | P178: =VLOOKUP(N178,Arkusz3!H:J,3,0) -> 27158 | Q178: 554.244898 | R178: =VLOOKUP(N178,Arkusz3!AN:AP,3,0) -> 2805.25
A179: 9930370109 | B179: GMINA ŻABNO | C179: 12 | D179: 16 | E179: 154 | F179: 33240 | G179: Żabno | H179: Żabno | I179: ul. Władysława Jagiełły | J179: 1 | K179: GMINA | L179: 1216154 | M179: =VLOOKUP(L179,Arkusz3!A:K,2,0) ->  | N179: 1216153 | O179: =VLOOKUP(N179,Arkusz3!A:E,5,0) -> 102 | P179: =VLOOKUP(N179,Arkusz3!H:J,3,0) -> 18504 | Q179: 181.4117647 | R179: =VLOOKUP(N179,Arkusz3!AN:AP,3,0) -> 1586.59
A180: 8681021319 | B180: GMINA ŻEGOCINA | C180: 12 | D180: 01 | E180: 092 | F180: 32731 | G180: Żegocina | H180: Żegocina | J180: 316 | K180: GMINA | L180: 1201092 | M180: =VLOOKUP(L180,Arkusz3!A:K,2,0) -> Żegocina.......................................................................................................................................................................................................................................................... | N180: 1201092 | O180: =VLOOKUP(N180,Arkusz3!A:E,5,0) -> 35 | P180: =VLOOKUP(N180,Arkusz3!H:J,3,0) -> 5529 | Q180: 157.9714286 | R180: =VLOOKUP(N180,Arkusz3!AN:AP,3,0) -> 1103.63
A181: 8681599283 | B181: POWIAT BOCHEŃSKI | C181: 12 | D181: 01 | E181: 011 | F181: 32700 | G181: Bochnia | H181: Bochnia | I181: ul. Kazimierza Wielkiego | J181: 31 | K181: POWIAT | L181: 1201 | N181: =L181*1000 -> 1201000 | O181: =VLOOKUP(L181,Arkusz3!L:T,5,0) -> 649 | P181: =VLOOKUP(N181,Arkusz3!H:J,3,0) -> 106878 | Q181: 164.6810478 | R181: =VLOOKUP(N181,Arkusz3!AW:AY,3,0) -> 228.01
A182: 8691652725 | B182: POWIAT BRZESKI | C182: 12 | D182: 02 | E182: 024 | F182: 32800 | G182: Brzesko | H182: Brzesko | I182: ul. Bartosza Głowackiego | J182: 51 | K182: POWIAT | L182: 1202 | N182: =L182*1000 -> 1202000 | O182: =VLOOKUP(L182,Arkusz3!L:T,5,0) -> 591 | P182: =VLOOKUP(N182,Arkusz3!H:J,3,0) -> 91823 | Q182: 155.3688663 | R182: =VLOOKUP(N182,Arkusz3!AW:AY,3,0) -> 187.64
A183: 6281715276 | B183: POWIAT CHRZANOWSKI | C183: 12 | D183: 03 | E183: 034 | F183: 32500 | G183: Chrzanów | H183: Chrzanów | I183: ul. Partyzantów | J183: 2 | K183: POWIAT | L183: 1203 | N183: 1203000 | O183: =VLOOKUP(L183,Arkusz3!L:T,5,0) -> 370 | P183: =VLOOKUP(N183,Arkusz3!H:J,3,0) -> 119719 | Q183: 323.5648649 | R183: =VLOOKUP(N183,Arkusz3!AW:AY,3,0) -> 282.69
A184: 8711771285 | B184: POWIAT DĄBROWSKI | C184: 12 | D184: 04 | E184: 024 | F184: 33200 | G184: Dąbrowa Tarnowska | H184: Dąbrowa Tarnowska | I184: ul. Berka Joselewicza | J184: 5 | K184: POWIAT | L184: 1204 | N184: 1204000 | O184: =VLOOKUP(L184,Arkusz3!L:T,5,0) -> 530 | P184: =VLOOKUP(N184,Arkusz3!H:J,3,0) -> 57809 | Q184: 109.0735849 | R184: =VLOOKUP(N184,Arkusz3!AW:AY,3,0) -> 130.41
A185: 7382150787 | B185: POWIAT GORLICKI | C185: 12 | D185: 05 | E185: 011 | F185: 38300 | G185: Gorlice | H185: Gorlice | I185: ul. Biecka | J185: 3 | K185: POWIAT | L185: 1205 | N185: 1205000 | O185: =VLOOKUP(L185,Arkusz3!L:T,5,0) -> 966 | P185: =VLOOKUP(N185,Arkusz3!H:J,3,0) -> 105782 | Q185: 109.505176 | R185: =VLOOKUP(N185,Arkusz3!AW:AY,3,0) -> 159.75
A186: 6772364194 | B186: POWIAT KRAKOWSKI | C186: 12 | D186: 61 | E186: 029 | F186: 30037 | G186: Kraków | H186: Kraków | I186: Aleja Juliusza Słowackiego | J186: 20 | K186: POWIAT | L186: 1206 | N186: 1206000 | O186: =VLOOKUP(L186,Arkusz3!L:T,5,0) -> 1231 | P186: =VLOOKUP(N186,Arkusz3!H:J,3,0) -> 300289 | Q186: 243.9390739 | R186: =VLOOKUP(N186,Arkusz3!AW:AY,3,0) -> 367.39
A187: 7372206836 | B187: POWIAT LIMANOWSKI | C187: 12 | D187: 07 | E187: 011 | F187: 34600 | G187: Limanowa | H187: Limanowa | I187: ul. Józefa Marka | J187: 9 | K187: POWIAT | L187: 1207 | N187: 1207000 | O187: =VLOOKUP(L187,Arkusz3!L:T,5,0) -> 951 | P187: =VLOOKUP(N187,Arkusz3!H:J,3,0) -> 131549 | Q187: 138.3270242 | R187: =VLOOKUP(N187,Arkusz3!AW:AY,3,0) -> 178.46
A188: 6591545868 | B188: POWIAT MIECHOWSKI | C188: 12 | D188: 08 | E188: 054 | F188: 32200 | G188: Miechów | H188: Miechów | I188: ul. Racławicka | J188: 12 | K188: POWIAT | L188: 1208 | N188: 1208000 | O188: =VLOOKUP(L188,Arkusz3!L:T,5,0) -> 676 | P188: =VLOOKUP(N188,Arkusz3!H:J,3,0) -> 46998 | Q188: 69.52366864 | R188: =VLOOKUP(N188,Arkusz3!AW:AY,3,0) -> 171.38
A189: 6811692325 | B189: POWIAT MYŚLENICKI | C189: 12 | D189: 09 | E189: 034 | F189: 32400 | G189: Myślenice | H189: Myślenice | I189: ul. Mikołaja Reja | J189: 13 | K189: POWIAT | L189: 1209 | N189: 1209000 | O189: =VLOOKUP(L189,Arkusz3!L:T,5,0) -> 673 | P189: =VLOOKUP(N189,Arkusz3!H:J,3,0) -> 129538 | Q189: 192.4784547 | R189: =VLOOKUP(N189,Arkusz3!AW:AY,3,0) -> 228.14
A190: 7343544080 | B190: POWIAT NOWOSĄDECKI | C190: 12 | D190: 62 | E190: 011 | F190: 33300 | G190: Nowy Sącz | H190: Nowy Sącz | I190: ul. Jagiellońska | J190: 33 | K190: POWIAT | L190: 1210 | N190: 1210000 | O190: =VLOOKUP(L190,Arkusz3!L:T,5,0) -> 1549 | P190: =VLOOKUP(N190,Arkusz3!H:J,3,0) -> 214933 | Q190: 138.7559716 | R190: =VLOOKUP(N190,Arkusz3!AW:AY,3,0) -> 172.93
A191: 7352175044 | B191: POWIAT NOWOTARSKI | C191: 12 | D191: 11 | E191: 011 | F191: 34400 | G191: Nowy Targ | H191: Nowy Targ | I191: ul. Bolesława Wstydliwego | J191: 14 | K191: POWIAT | L191: 1211 | N191: 1211000 | O191: =VLOOKUP(L191,Arkusz3!L:T,5,0) -> 1474 | P191: =VLOOKUP(N191,Arkusz3!H:J,3,0) -> 190143 | Q191: 128.9979647 | R191: =VLOOKUP(N191,Arkusz3!AW:AY,3,0) -> 152.72
A192: 6372024678 | B192: POWIAT OLKUSKI | C192: 12 | D192: 12 | E192: 054 | F192: 32300 | G192: Olkusz | H192: Olkusz | I192: ul. Adama Mickiewicza | J192: 2 | K192: POWIAT | L192: 1212 | N192: 1212000 | O192: =VLOOKUP(L192,Arkusz3!L:T,5,0) -> 618 | P192: =VLOOKUP(N192,Arkusz3!H:J,3,0) -> 106843 | Q192: 172.8851133 | R192: =VLOOKUP(N192,Arkusz3!AW:AY,3,0) -> 299.76
A193: 5492197501 | B193: POWIAT OŚWIĘCIMSKI | C193: 12 | D193: 13 | E193: 011 | F193: 32602 | G193: Oświęcim | H193: Oświęcim | I193: ul. Stanisława Wyspiańskiego | J193: 10 | K193: POWIAT | L193: 1213 | N193: 1213000 | O193: =VLOOKUP(L193,Arkusz3!L:T,5,0) -> 406 | P193: =VLOOKUP(N193,Arkusz3!H:J,3,0) -> 149304 | Q193: 367.7438424 | R193: =VLOOKUP(N193,Arkusz3!AW:AY,3,0) -> 278.85
A194: 6821436782 | B194: POWIAT PROSZOWICKI | C194: 12 | D194: 14 | E194: 054 | F194: 32100 | G194: Proszowice | H194: Proszowice | I194: ul. 3 Maja | J194: 72 | K194: POWIAT | L194: 1214 | N194: 1214000 | O194: =VLOOKUP(L194,Arkusz3!L:T,5,0) -> 415 | P194: =VLOOKUP(N194,Arkusz3!H:J,3,0) -> 42268 | Q194: 101.8506024 | R194: =VLOOKUP(N194,Arkusz3!AW:AY,3,0) -> 168.68
A195: 5521427933 | B195: POWIAT SUSKI | C195: 12 | D195: 15 | E195: 021 | F195: 34200 | G195: Sucha Beskidzka | H195: Sucha Beskidzka | I195: ul. Kościelna | J195: 5b | K195: POWIAT | L195: 1215 | N195: 1215000 | O195: =VLOOKUP(L195,Arkusz3!L:T,5,0) -> 686 | P195: =VLOOKUP(N195,Arkusz3!H:J,3,0) -> 83127 | Q195: =P195/O195 -> 121.1763848 | R195: =VLOOKUP(N195,Arkusz3!AW:AY,3,0) -> 205.68
A196: 9930660913 | B196: POWIAT TARNOWSKI | C196: 12 | D196: 63 | E196: 011 | F196: 33100 | G196: Tarnów | H196: Tarnów | I196: ul. Gabriela Narutowicza | J196: 38 | K196: POWIAT | L196: 1216 | N196: 1216000 | O196: =VLOOKUP(L196,Arkusz3!L:T,5,0) -> 1412 | P196: =VLOOKUP(N196,Arkusz3!H:J,3,0) -> 197717 | Q196: 140.026204 | R196: =VLOOKUP(N196,Arkusz3!AW:AY,3,0) -> 170.7
A197: 7361720593 | B197: POWIAT TATRZAŃSKI | C197: 12 | D197: 17 | E197: 011 | F197: 34500 | G197: Zakopane | H197: Zakopane | I197: ul. Chramcówki | J197: 15 | K197: POWIAT | L197: 1217 | N197: 1217000 | O197: =VLOOKUP(L197,Arkusz3!L:T,5,0) -> 472 | P197: =VLOOKUP(N197,Arkusz3!H:J,3,0) -> 66566 | Q197: 141.029661 | R197: =VLOOKUP(N197,Arkusz3!AW:AY,3,0) -> 206.45
A198: 5512129478 | B198: POWIAT WADOWICKI | C198: 12 | D198: 18 | E198: 094 | F198: 34100 | G198: Wadowice | H198: Wadowice | I198: ul. Batorego | J198: 2 | K198: POWIAT | L198: 1218 | N198: 1218000 | O198: =VLOOKUP(L198,Arkusz3!L:T,5,0) -> 646 | P198: =VLOOKUP(N198,Arkusz3!H:J,3,0) -> 157855 | Q198: 244.3575851 | R198: =VLOOKUP(N198,Arkusz3!AW:AY,3,0) -> 236.22
A199: 6831742730 | B199: POWIAT WIELICKI | C199: 12 | D199: 19 | E199: 054 | F199: 32020 | G199: Wieliczka | H199: Wieliczka | I199: ul. Rynek Górny | J199: 2 | K199: POWIAT | L199: 1219 | N199: 1219000 | O199: =VLOOKUP(L199,Arkusz3!L:T,5,0) -> 411 | P199: =VLOOKUP(N199,Arkusz3!H:J,3,0) -> 142044 | Q199: 345.6058394 | R199: =VLOOKUP(N199,Arkusz3!AW:AY,3,0) -> 349.43
A200: 7343507021 | B200: NOWY SĄCZ - MIASTO NA PRAWACH POWIATU | C200: 12 | D200: 62 | E200: 011 | F200: 33300 | G200: Nowy Sącz | H200: Nowy Sącz | I200: ul. Rynek | J200: 1 | K200: MNPP | L200: 1262 | N200: 1262000 | O200: =VLOOKUP(L200,Arkusz3!L:T,5,0) -> 58 | P200: =VLOOKUP(N200,Arkusz3!H:J,3,0) -> 80587 | Q200: 1389.431034 | R200: =VLOOKUP(N200,Arkusz3!AW:AY,3,0) -> 337.72
... 3 more rows

Sheet Arkusz3 (hidden)
A1: TABL.21.POWIERZCHNIA,LUDNOŚĆORAZLOKATYWEDŁUGGMIN AREA,POPULATIONANDRANKINGPOSITIONSBYGMINAS | AF1: Warszawa, 15.10.2022 r. | AR1: Warszawa, 15.10.2022 r.
AR2: Wskaźnik P - podstawowych dochodów podatkowych na 1 mieszkańca powiatu przyjęty do obliczania subwencji wyrównawczej na 2023 r.
AF3: Wskaźnik G - podstawowych dochodów podatkowych na 1 mieszkańca gminy przyjęty do obliczania subwencji wyrównawczej na 2023 r.
AR4: WK | AS4: PK | AX4: P O W I A T | AY4: Wskaźnik P na 2023 r. | BA4: 5130038162
B5: WOJ. DOLNOŚLĄSKIE | N5: WOJ. DOLNOŚLĄSKIE | X5: P O L S K A | Y5: 31270525 | Z5: 312705 | AA5: 38411148 | AB5: 123 | AC5: x | AD5: x | AR5: 02 | AS5: 01 | AT5: =AR5*100 -> 200 | AU5: =+AS5*1 -> 1 | AV5: =AT5+AU5 -> 201 | AW5: =AV5*1000 -> 201000 | AX5: bolesławiecki | AY5: 284.73 | BA5: 5130060109
B6: Powiat bolesławiecki (6 gmin) | N6: Powiaty: | X6: P O L A N D | AF6: Kod gminy | AO6: GMINA | AP6: Wskaźnik G na 2023 r. | AR6: 02 | AS6: 02 | AT6: =AR6*100 -> 200 | AU6: =+AS6*1 -> 2 | AV6: =AT6+AU6 -> 202 | AW6: =AV6*1000 -> 202000 | AX6: dzierżoniowski | AY6: 219.24 | BA6: 5130066230
N7: Powiats: | W7: 02 | X7: Dolnośląskie | Y7: 1994670 | Z7: 19947 | AA7: 2901225 | AB7: 145 | AC7: 7 | AD7: 5 | AF7: 02 | AG7: 01 | AH7: 01 | AI7: 1 | AJ7: =AF7*100000 -> 200000 | AK7: =AG7*1000 -> 1000 | AL7: =AH7*10 -> 10 | AM7: =AI7*1 -> 1 | AN7: =SUM(AJ7:AM7) -> 201011 | AO7: BOLESŁAWIEC | AP7: 2640.41 | AR7: 02 | AS7: 03 | AT7: 200 | AU7: 3 | AV7: 203 | AW7: 203000 | AX7: głogowski | AY7: 350.62 | BA7: 5130233774
A8: 201011 | B8: Bolesławiec.......................................................................................................................................................................................................................................................... | C8: 2357 | E8: 24 | G8: 1200000 | H8: 1200000 | I8: MAŁOPOLSKIE | J8: =2441185+987829 -> 3429014 | L8: 0201 | M8: =L8*1000 -> 201000 | N8: bolesławiecki | O8: 130351 | P8: 1304 | Q8: 90200 | R8: 69 | S8: 64 | T8: 98 | W8: 04 | X8: Kujawsko-pomorskie | Y8: 1797134 | Z8: 17971 | AA8: 2077775 | AB8: 116 | AC8: 10 | AD8: 10 | AF8: 02 | AG8: 01 | AH8: 02 | AI8: 2 | AJ8: =AF8*100000 -> 200000 | AK8: =AG8*1000 -> 1000 | AL8: =AH8*10 -> 20 | AM8: =AI8*1 -> 2 | AN8: =SUM(AJ8:AM8) -> 201022 | AO8: BOLESŁAWIEC | AP8: 2242.27 | AR8: 02 | AS8: 04 | AT8: 200 | AU8: 4 | AV8: 204 | AW8: 204000 | AX8: górowski | AY8: 166.6 | BA8: 5492197435
G9: 1201000 | H9: 1201000 | I9: Powiat bocheński | J9: 106878 | L9: 0202 | M9: =L9*1000 -> 202000 | N9: dzierżoniowski | O9: 47851 | P9: 479 | Q9: 101437 | R9: 212 | S9: 285 | T9: 78 | W9: 06 | X9: Lubelskie | Y9: 2512246 | Z9: 25123 | AA9: 2117619 | AB9: 84 | AC9: 3 | AD9: 9 | AF9: 02 | AG9: 01 | AH9: 03 | AI9: 2 | AJ9: 200000 | AK9: 1000 | AL9: 30 | AM9: 2 | AN9: 201032 | AO9: GROMADKA | AP9: 3661.51 | AR9: 02 | AS9: 05 | AT9: 200 | AU9: 5 | AV9: 205 | AW9: 205000 | AX9: jaworski | AY9: 227.54 | BA9: 5492197441
A10: 201022 | B10: Bolesławiec.......................................................................................................................................................................................................................................................... | C10: 28849 | E10: 289 | G10: 1201011 | H10: 1201011 | I10: Bochnia (1) | J10: 28692 | L10: 0203 | M10: 203000 | N10: głogowski | O10: 44327 | P10: 443 | Q10: 89541 | R10: 202 | S10: 293 | T10: 101 | W10: 08 | X10: Lubuskie | Y10: 1398793 | Z10: 13988 | AA10: 1014548 | AB10: 73 | AC10: 13 | AD10: 15 | AF10: 02 | AG10: 01 | AH10: 04 | AI10: 3 | AJ10: 200000 | AK10: 1000 | AL10: 40 | AM10: 3 | AN10: 201043 | AO10: NOWOGRODZIEC | AP10: 2131.64 | AR10: 02 | AS10: 06 | AT10: 200 | AU10: 6 | AV10: 206 | AW10: 206000 | AX10: jeleniogórski | AY10: 237.01 | BA10: 5492197458
A11: 201032 | B11: Gromadka.......................................................................................................................................................................................................................................................... | C11: 26768 | E11: 268 | G11: 1201022 | H11: 1201022 | I11: Bochnia (2) | J11: 20597 | L11: 0204 | M11: 204000 | N11: górowski | O11: 73827 | P11: 738 | Q11: 35182 | R11: 48 | S11: 199 | T11: 299 | W11: 10 | X11: Łódzkie | Y11: 1821895 | Z11: 18219 | AA11: 2466322 | AB11: 135 | AC11: 9 | AD11: 6 | AF11: 02 | AG11: 01 | AH11: 05 | AI11: 2 | AJ11: 200000 | AK11: 1000 | AL11: 50 | AM11: 2 | AN11: 201052 | AO11: OSIECZNICA | AP11: 2163.41 | AR11: 02 | AS11: 07 | AT11: 200 | AU11: 7 | AV11: 207 | AW11: 207000 | AX11: kamiennogórski | AY11: 194.77 | BA11: 5492197464
A12: 201052 | B12: Osiecznica.......................................................................................................................................................................................................................................................... | C12: 43704 | D12: ↑ | E12: 437 | G12: 1201032 | H12: 1201032 | I12: Drwinia (2) | J12: 6465 | L12: 0205 | M12: 205000 | N12: jaworski | O12: 58155 | P12: 582 | Q12: 50545 | R12: 87 | S12: 261 | T12: 240 | W12: 12 | X12: Małopolskie | Y12: 1518279 | Z12: 15183 | AA12: 3400577 | AB12: 224 | AC12: 12 | AD12: 4 | AF12: 02 | AG12: 01 | AH12: 06 | AI12: 2 | AJ12: 200000 | AK12: 1000 | AL12: 60 | AM12: 2 | AN12: 201062 | AO12: WARTA BOLESŁAWIECKA | AP12: 1995.86 | AR12: 02 | AS12: 08 | AT12: 200 | AU12: 8 | AV12: 208 | AW12: 208000 | AX12: kłodzki | AY12: 193.18 | BA12: 5492197470
A13: 201062 | B13: Warta Bolesławiecka.......................................................................................................................................................................................................................................................... | C13: 11044 | E13: 110 | G13: 1201042 | H13: 1201042 | I13: Lipnica Murowana (2) | J13: 5551 | L13: 0206 | M13: 206000 | N13: jeleniogórski | O13: 62714 | P13: 627 | Q13: 63855 | R13: 102 | S13: 242 | T13: 184 | W13: 14 | X13: Mazowieckie | Y13: 3555847 | Z13: 35559 | AA13: 5403412 | AB13: 152 | AC13: 1 | AD13: 1 | AF13: 02 | AG13: 02 | AH13: 01 | AI13: 1 | AJ13: 200000 | AK13: 2000 | AL13: 10 | AM13: 1 | AN13: 202011 | AO13: BIELAWA | AP13: 1317.76 | AR13: 02 | AS13: 09 | AT13: 200 | AU13: 9 | AV13: 209 | AW13: 209000 | AX13: legnicki | AY13: 256.69 | BA13: 5492197487
G14: 1201052 | H14: 1201052 | I14: Łapanów (2) | J14: 8570 | L14: 0207 | M14: 207000 | N14: kamiennogórski | O14: 39569 | P14: 396 | Q14: 43621 | R14: 110 | S14: 301 | T14: 270 | W14: 16 | X14: Opolskie | Y14: 941187 | Z14: 9412 | AA14: 986506 | AB14: 105 | AC14: 16 | AD14: 16 | AF14: 02 | AG14: 02 | AH14: 02 | AI14: 1 | AJ14: 200000 | AK14: 2000 | AL14: 20 | AM14: 1 | AN14: 202021 | AO14: DZIERŻONIÓW | AP14: 1830.59 | AR14: 02 | AS14: 10 | AT14: 200 | AU14: 10 | AV14: 210 | AW14: 210000 | AX14: lubański | AY14: 202.93 | BA14: 5492197501
A15: 201043 | B15: Nowogrodziec.......................................................................................................................................................................................................................................................... | C15: 17629 | E15: 176 | G15: 1201063 | H15: 1201063 | I15: Nowy Wiśnicz (3) | J15: 14406 | L15: 0208 | M15: 208000 | N15: kłodzki | O15: 164330 | P15: 1642 | Q15: 159337 | R15: 97 | S15: 25 | T15: 18 | W15: 18 | X15: Podkarpackie | Y15: 1784576 | Z15: 17846 | AA15: 2129015 | AB15: 119 | AC15: 11 | AD15: 8 | AF15: 02 | AG15: 02 | AH15: 03 | AI15: 3 | AJ15: 200000 | AK15: 2000 | AL15: 30 | AM15: 3 | AN15: 202033 | AO15: PIESZYCE | AP15: 1529.14 | AR15: 02 | AS15: 11 | AT15: 200 | AU15: 11 | AV15: 211 | AW15: 211000 | AX15: lubiński | AY15: 446.88 | BA15: 5492198593
A16: 201044 | C16: 1610 | E16: 16 | G16: 1201064 | H16: 1201064 | I16: Nowy Wiśnicz - miasto (4) | J16: 2751 | L16: 0209 | M16: 209000 | N16: legnicki | O16: 74408 | P16: 744 | Q16: 55326 | R16: 74 | S16: 196 | T16: 223 | W16: 20 | X16: Podlaskie | Y16: 2018702 | Z16: 20187 | AA16: 1181533 | AB16: 59 | AC16: 6 | AD16: 14 | AF16: 02 | AG16: 02 | AH16: 04 | AI16: 1 | AJ16: 200000 | AK16: 2000 | AL16: 40 | AM16: 1 | AN16: 202041 | AO16: PIŁAWA GÓRNA | AP16: 1397.04 | AR16: 02 | AS16: 12 | AT16: 200 | AU16: 12 | AV16: 212 | AW16: 212000 | AX16: lwówecki | AY16: 169.37 | BA16: 5492199463
A17: 201045 | C17: 16019 | E17: 160 | G17: 1201065 | H17: 1201065 | I17: Nowy Wiśnicz - obszar wiejski (5) | J17: 11655 | L17: 0210 | M17: 210000 | N17: lubański | O17: 42830 | P17: 428 | Q17: 54699 | R17: 128 | S17: 296 | T17: 227 | W17: 22 | X17: Pomorskie | Y17: 1832368 | Z17: 18323 | AA17: 2333523 | AB17: 127 | AC17: 8 | AD17: 7 | AF17: 02 | AG17: 02 | AH17: 05 | AI17: 2 | AJ17: 200000 | AK17: 2000 | AL17: 50 | AM17: 2 | AN17: 202052 | AO17: DZIERŻONIÓW | AP17: 1640.89 | AR17: 02 | AS17: 13 | AT17: 200 | AU17: 13 | AV17: 213 | AW17: 213000 | AX17: milicki | AY17: 218.16 | BA17: 5492202969
B18: Powiat dzierżoniowski (7 gmin) | G18: 1201072 | H18: 1201072 | I18: Rzezawa (2) | J18: 11389 | L18: 0211 | M18: 211000 | N18: lubiński | O18: 71162 | P18: 712 | Q18: 106254 | R18: 149 | S18: 212 | T18: 76 | W18: 24 | X18: Śląskie | Y18: 1233309 | Z18: 12333 | AA18: 4533565 | AB18: 368 | AC18: 14 | AD18: 2 | AF18: 02 | AG18: 02 | AH18: 06 | AI18: 2 | AJ18: 200000 | AK18: 2000 | AL18: 60 | AM18: 2 | AN18: 202062 | AO18: ŁAGIEWNIKI | AP18: 1496.94 | AR18: 02 | AS18: 14 | AT18: 200 | AU18: 14 | AV18: 214 | AW18: 214000 | AX18: oleśnicki | AY18: 268.85 | BA18: 5510013406
G19: 1201082 | H19: 1201082 | I19: Trzciana (2) | J19: 5679 | L19: 0212 | M19: 212000 | N19: lwówecki | O19: 70969 | P19: 710 | Q19: 46059 | R19: 65 | S19: 214 | T19: 256 | W19: 26 | X19: Świętokrzyskie | Y19: 1171050 | Z19: 11710 | AA19: 1241546 | AB19: 106 | AC19: 15 | AD19: 13 | AF19: 02 | AG19: 02 | AH19: 07 | AI19: 3 | AJ19: 200000 | AK19: 2000 | AL19: 70 | AM19: 3 | AN19: 202073 | AO19: NIEMCZA | AP19: 1764.32 | AR19: 02 | AS19: 15 | AT19: 200 | AU19: 15 | AV19: 215 | AW19: 215000 | AX19: oławski | AY19: 339.23 | BA19: 5511003597
A20: 202011 | B20: Bielawa.......................................................................................................................................................................................................................................................... | C20: 3621 | E20: 36 | G20: 1201092 | H20: 1201092 | I20: Żegocina (2) | J20: 5529 | L20: 0213 | M20: 213000 | N20: milicki | O20: 71493 | P20: 715 | Q20: 37093 | R20: 52 | S20: 209 | T20: 293 | W20: 28 | X20: Warmińsko-mazurskie | Y20: 2417347 | Z20: 24173 | AA20: 1428983 | AB20: 59 | AC20: 4 | AD20: 12 | AF20: 02 | AG20: 03 | AH20: 01 | AI20: 1 | AJ20: 200000 | AK20: 3000 | AL20: 10 | AM20: 1 | AN20: 203011 | AO20: GŁOGÓW | AP20: 2956.35 | AR20: 02 | AS20: 16 | AT20: 200 | AU20: 16 | AV20: 216 | AW20: 216000 | AX20: polkowicki | AY20: 456.07 | BA20: 5511123841
A21: 202021 | B21: Dzierżoniów.......................................................................................................................................................................................................................................................... | C21: 2007 | E21: 20 | G21: 1202000 | H21: 1202000 | I21: Powiat brzeski | J21: 91823 | L21: 0214 | M21: 214000 | N21: oleśnicki | O21: 104931 | P21: 1049 | Q21: 107062 | R21: 102 | S21: 112 | T21: 72 | W21: 30 | X21: Wielkopolskie | Y21: 2982650 | Z21: 29826 | AA21: 3493969 | AB21: 117 | AC21: 2 | AD21: 3 | AF21: 02 | AG21: 03 | AH21: 02 | AI21: 2 | AJ21: 200000 | AK21: 3000 | AL21: 20 | AM21: 2 | AN21: 203022 | AO21: GŁOGÓW | AP21: 2607.76 | AR21: 02 | AS21: 17 | AT21: 200 | AU21: 17 | AV21: 217 | AW21: 217000 | AX21: strzeliński | AY21: 224.46 | BA21: 5511123918
A22: 202041 | B22: Piława Górna.......................................................................................................................................................................................................................................................... | C22: 2093 | E22: 21 | G22: 1202012 | H22: 1202012 | I22: Borzęcin (2) | J22: 8130 | L22: 0215 | M22: 215000 | N22: oławski | O22: 52410 | P22: 524 | Q22: 76595 | R22: 146 | S22: 276 | T22: 142 | W22: 32 | X22: Zachodniopomorskie | Y22: 2290472 | Z22: 22905 | AA22: 1701030 | AB22: 74 | AC22: 5 | AD22: 11 | AF22: 02 | AG22: 03 | AH22: 03 | AI22: 2 | AJ22: 200000 | AK22: 3000 | AL22: 30 | AM22: 2 | AN22: 203032 | AO22: JERZMANOWA | AP22: 7486.57 | AR22: 02 | AS22: 18 | AT22: 200 | AU22: 18 | AV22: 218 | AW22: 218000 | AX22: średzki | AY22: 304.74 | BA22: 5511123930
G23: 1202023 | H23: 1202023 | I23: Brzesko (3) | J23: 35575 | L23: 0216 | M23: 216000 | N23: polkowicki | O23: 77946 | P23: 779 | Q23: 62982 | R23: 81 | S23: 185 | T23: 188 | AF23: 02 | AG23: 03 | AH23: 04 | AI23: 2 | AJ23: 200000 | AK23: 3000 | AL23: 40 | AM23: 2 | AN23: 203042 | AO23: KOTLA | AP23: 1687.5 | AR23: 02 | AS23: 19 | AT23: 200 | AU23: 19 | AV23: 219 | AW23: 219000 | AX23: świdnicki | AY23: 272.85 | BA23: 5511158182
A24: 202052 | B24: Dzierżoniów.......................................................................................................................................................................................................................................................... | C24: 14106 | E24: 141 | G24: 1202024 | H24: 1202024 | I24: Brzesko - miasto (4) | J24: 16026 | L24: 0217 | M24: 217000 | N24: strzeliński | O24: 62206 | P24: 622 | Q24: 43773 | R24: 70 | S24: 246 | T24: 269 | AF24: 02 | AG24: 03 | AH24: 05 | AI24: 2 | AJ24: 200000 | AK24: 3000 | AL24: 50 | AM24: 2 | AN24: 203052 | AO24: PĘCŁAW | AP24: 1436.59 | AR24: 02 | AS24: 20 | AT24: 200 | AU24: 20 | AV24: 220 | AW24: 220000 | AX24: trzebnicki | AY24: 314.77 | BA24: 5511158242
A25: 202062 | B25: Łagiewniki.......................................................................................................................................................................................................................................................... | C25: 12477 | E25: 125 | G25: 1202025 | H25: 1202025 | I25: Brzesko - obszar wiejski (5) | J25: 19549 | L25: 0218 | M25: 218000 | N25: średzki | O25: 70414 | P25: 704 | Q25: 54269 | R25: 77 | S25: 216 | T25: 228 | AF25: 02 | AG25: 03 | AH25: 06 | AI25: 2 | AJ25: 200000 | AK25: 3000 | AL25: 60 | AM25: 2 | AN25: 203062 | AO25: ŻUKOWICE | AP25: 2437.36 | AR25: 02 | AS25: 21 | AT25: 200 | AU25: 21 | AV25: 221 | AW25: 221000 | AX25: wałbrzyski | AY25: 208.24 | BA25: 5511163935
G26: 1202033 | H26: 1202033 | I26: Czchów (3) | J26: 9748 | L26: 0219 | M26: 219000 | N26: świdnicki | O26: 74114 | P26: 741 | Q26: 157615 | R26: 213 | S26: 197 | T26: 20 | AF26: 02 | AG26: 04 | AH26: 01 | AI26: 3 | AJ26: 200000 | AK26: 4000 | AL26: 10 | AM26: 3 | AN26: 204013 | AO26: GÓRA | AP26: 1566.48 | AR26: 02 | AS26: 22 | AT26: 200 | AU26: 22 | AV26: 222 | AW26: 222000 | AX26: wołowski | AY26: 240.42 | BA26: 5511690907
A27: 202073 | B27: Niemcza.......................................................................................................................................................................................................................................................... | C27: 7186 | E27: 72 | G27: 1202034 | H27: 1202034 | I27: Czchów - miasto (4) | J27: 2311 | L27: 0220 | M27: 220000 | N27: trzebnicki | O27: 102478 | P27: 1025 | Q27: 84886 | R27: 83 | S27: 121 | T27: 114 | AF27: 02 | AG27: 04 | AH27: 02 | AI27: 2 | AJ27: 200000 | AK27: 4000 | AL27: 20 | AM27: 2 | AN27: 204022 | AO27: JEMIELNO | AP27: 1134.45 | AR27: 02 | AS27: 23 | AT27: 200 | AU27: 23 | AV27: 223 | AW27: 223000 | AX27: wrocławski | AY27: 523.72 | BA27: 5512129478
A28: 202074 | C28: 1981 | E28: 20 | G28: 1202035 | H28: 1202035 | I28: Czchów - obszar wiejski (5) | J28: 7437 | L28: 0221 | M28: 221000 | N28: wałbrzyski | O28: 43022 | P28: 430 | Q28: 56004 | R28: 130 | S28: 295 | T28: 218 | AF28: 02 | AG28: 04 | AH28: 03 | AI28: 2 | AJ28: 200000 | AK28: 4000 | AL28: 30 | AM28: 2 | AN28: 204032 | AO28: NIECHLÓW | AP28: 1475.25 | AR28: 02 | AS28: 24 | AT28: 200 | AU28: 24 | AV28: 224 | AW28: 224000 | AX28: ząbkowicki | AY28: 209.59 | BA28: 5512618591
A29: 202075 | C29: 5205 | E29: 52 | G29: 1202042 | H29: 1202042 | I29: Dębno (2) | J29: 14488 | L29: 0222 | M29: 222000 | N29: wołowski | O29: 67496 | P29: 675 | Q29: 47056 | R29: 70 | S29: 229 | T29: 255 | AF29: 02 | AG29: 04 | AH29: 04 | AI29: 3 | AJ29: 200000 | AK29: 4000 | AL29: 40 | AM29: 3 | AN29: 204043 | AO29: WĄSOSZ | AP29: 1860.98 | AR29: 02 | AS29: 25 | AT29: 200 | AU29: 25 | AV29: 225 | AW29: 225000 | AX29: zgorzelecki | AY29: 278.37 | BA29: 5521427933
A30: 202033 | B30: Pieszyce.......................................................................................................................................................................................................................................................... | C30: 6361 | E30: 64 | G30: 1202052 | H30: 1202052 | I30: Gnojnik (2) | J30: 8106 | L30: 0223 | M30: 223000 | N30: wrocławski | O30: 111770 | P30: 1118 | Q30: 146060 | R30: 131 | S30: 104 | T30: 28 | AF30: 02 | AG30: 05 | AH30: 01 | AI30: 1 | AJ30: 200000 | AK30: 5000 | AL30: 10 | AM30: 1 | AN30: 205011 | AO30: JAWOR | AP30: 2479.93 | AR30: 02 | AS30: 26 | AT30: 200 | AU30: 26 | AV30: 226 | AW30: 226000 | AX30: złotoryjski | AY30: 200.7 | BA30: 5521567404
A31: 202034 | C31: 1772 | E31: 18 | G31: 1202062 | H31: 1202062 | I31: Iwkowa (2) | J31: 6599 | L31: 0224 | M31: 224000 | N31: ząbkowicki | O31: 80153 | P31: 802 | Q31: 65428 | R31: 82 | S31: 180 | T31: 180 | AF31: 02 | AG31: 05 | AH31: 02 | AI31: 3 | AJ31: 200000 | AK31: 5000 | AL31: 20 | AM31: 3 | AN31: 205023 | AO31: BOLKÓW | AP31: 1261.73 | AR31: 02 | AS31: 61 | AT31: 200 | AU31: 61 | AV31: 261 | AW31: 261000 | AX31: Jelenia Góra | AY31: 282.12 | BA31: 5521570518
A32: 202035 | C32: 4589 | E32: 46 | G32: 1202072 | H32: 1202072 | I32: Szczurowa (2) | J32: 9177 | L32: 0225 | M32: 225000 | N32: zgorzelecki | O32: 83860 | P32: 839 | Q32: 90003 | R32: 107 | S32: 167 | T32: 99 | AF32: 02 | AG32: 05 | AH32: 03 | AI32: 2 | AJ32: 200000 | AK32: 5000 | AL32: 30 | AM32: 2 | AN32: 205032 | AO32: MĘCINKA | AP32: 2197.55 | AR32: 02 | AS32: 62 | AT32: 200 | AU32: 62 | AV32: 262 | AW32: 262000 | AX32: Legnica | AY32: 312.77 | BA32: 5521576805
B33: Powiat głogowski (6 gmin) | G33: 1203000 | H33: 1203000 | I33: Powiat chrzanowski | J33: 119719 | L33: 0226 | M33: 226000 | N33: złotoryjski | O33: 57581 | P33: 576 | Q33: 43869 | R33: 76 | S33: 264 | T33: 266 | AF33: 02 | AG33: 05 | AH33: 04 | AI33: 2 | AJ33: 200000 | AK33: 5000 | AL33: 40 | AM33: 2 | AN33: 205042 | AO33: MŚCIWOJÓW | AP33: 1859.66 | AR33: 02 | AS33: 64 | AT33: 200 | AU33: 64 | AV33: 264 | AW33: 264000 | AX33: Wrocław | AY33: 539.78 | BA33: 5521579821
G34: 1203013 | H34: 1203013 | I34: Alwernia (3) | J34: 12361 | N34: Miasta na prawach powiatu: | AF34: 02 | AG34: 05 | AH34: 05 | AI34: 2 | AJ34: 200000 | AK34: 5000 | AL34: 50 | AM34: 2 | AN34: 205052 | AO34: PASZOWICE | AP34: 1549.85 | AR34: 02 | AS34: 65 | AT34: 200 | AU34: 65 | AV34: 265 | AW34: 265000 | AX34: Wałbrzych | AY34: 230.31 | BA34: 5521584963
A35: 203011 | B35: Głogów.......................................................................................................................................................................................................................................................... | C35: 3511 | E35: 35 | G35: 1203014 | H35: 1203014 | I35: Alwernia - miasto (4) | J35: 3260 | N35: Cities with powiat status: | AF35: 02 | AG35: 05 | AH35: 06 | AI35: 2 | AJ35: 200000 | AK35: 5000 | AL35: 60 | AM35: 2 | AN35: 205062 | AO35: WĄDROŻE WIELKIE | AP35: 1662.74 | AR35: 04 | AS35: 01 | AT35: 400 | AU35: 1 | AV35: 401 | AW35: 401000 | AX35: aleksandrowski | AY35: 191.54 | BA35: 5521586100
G36: 1203015 | H36: 1203015 | I36: Alwernia - obszar wiejski (5) | J36: 9101 | L36: 0261 | M36: 261000 | N36: Jelenia Góra | O36: 10922 | P36: 109 | Q36: 79480 | R36: 728 | S36: 25 | T36: 45 | AF36: 02 | AG36: 06 | AH36: 01 | AI36: 1 | AJ36: 200000 | AK36: 6000 | AL36: 10 | AM36: 1 | AN36: 206011 | AO36: KARPACZ | AP36: 5461.38 | AR36: 04 | AS36: 02 | AT36: 400 | AU36: 2 | AV36: 402 | AW36: 402000 | AX36: brodnicki | AY36: 199.81 | BA36: 5521588530
A37: 203022 | B37: Głogów.......................................................................................................................................................................................................................................................... | C37: 8479 | E37: 85 | G37: 1203022 | H37: 1203022 | I37: Babice (2) | J37: 9022 | L37: 0262 | M37: 262000 | N37: Legnica | O37: 5629 | P37: 56 | Q37: 99752 | R37: 1772 | S37: 50 | T37: 39 | AF37: 02 | AG37: 06 | AH37: 02 | AI37: 1 | AJ37: 200000 | AK37: 6000 | AL37: 20 | AM37: 1 | AN37: 206021 | AO37: KOWARY | AP37: 1749.7 | AR37: 04 | AS37: 03 | AT37: 400 | AU37: 3 | AV37: 403 | AW37: 403000 | AX37: bydgoski | AY37: 355.9 | BA37: 5521677860
A38: 203032 | B38: Jerzmanowa.......................................................................................................................................................................................................................................................... | C38: 6332 | E38: 63 | G38: 1203033 | H38: 1203033 | I38: Chrzanów (3) | J38: 44442 | L38: 0265 | M38: 265000 | N38: Wałbrzych | O38: 8470 | P38: 85 | Q38: 112594 | R38: 1329 | S38: 34 | T38: 33 | AF38: 02 | AG38: 06 | AH38: 03 | AI38: 1 | AJ38: 200000 | AK38: 6000 | AL38: 30 | AM38: 1 | AN38: 206031 | AO38: PIECHOWICE | AP38: 2497.47 | AR38: 04 | AS38: 04 | AT38: 400 | AU38: 4 | AV38: 404 | AW38: 404000 | AX38: chełmiński | AY38: 194.43 | BA38: 5521707153
A39: 203042 | B39: Kotla.......................................................................................................................................................................................................................................................... | C39: 12752 | E39: 128 | G39: 1203034 | H39: 1203034 | I39: Chrzanów - miasto (4) | J39: 34387 | L39: 0264 | M39: 264000 | N39: Wrocław | O39: 29282 | P39: 293 | Q39: 640648 | R39: 2188 | S39: 5 | T39: 4 | AF39: 02 | AG39: 06 | AH39: 04 | AI39: 1 | AJ39: 200000 | AK39: 6000 | AL39: 40 | AM39: 1 | AN39: 206041 | AO39: SZKLARSKA PORĘBA | AP39: 3276.69 | AR39: 04 | AS39: 05 | AT39: 400 | AU39: 5 | AV39: 405 | AW39: 405000 | AX39: golubsko-dobrzyński | AY39: 188.77 | BA39: 6281715276
A40: 203052 | B40: Pęcław.......................................................................................................................................................................................................................................................... | C40: 6427 | E40: 64 | G40: 1203035 | H40: 1203035 | I40: Chrzanów - obszar wiejski (5) | J40: 10055 | N40: WOJ. KUJAWSKO-POMORSKIE | AF40: 02 | AG40: 06 | AH40: 05 | AI40: 2 | AJ40: 200000 | AK40: 6000 | AL40: 50 | AM40: 2 | AN40: 206052 | AO40: JANOWICE WIELKIE | AP40: 1472.25 | AR40: 04 | AS40: 06 | AT40: 400 | AU40: 6 | AV40: 406 | AW40: 406000 | AX40: grudziądzki | AY40: 187.22 | BA40: 6282074477
A41: 203062 | B41: Żukowice.......................................................................................................................................................................................................................................................... | C41: 6826 | E41: 68 | G41: 1203043 | H41: 1203043 | I41: Libiąż (3) | J41: 21298 | N41: Powiaty: | AF41: 02 | AG41: 06 | AH41: 06 | AI41: 2 | AJ41: 200000 | AK41: 6000 | AL41: 60 | AM41: 2 | AN41: 206062 | AO41: JEŻÓW SUDECKI | AP41: 1958.13 | AR41: 04 | AS41: 07 | AT41: 400 | AU41: 7 | AV41: 407 | AW41: 407000 | AX41: inowrocławski | AY41: 229.04 | BA41: 6282260122
B42: Powiat górowski (4 gminy) | G42: 1203044 | H42: 1203044 | I42: Libiąż - miasto (4) | J42: 16079 | N42: Powiats: | AF42: 02 | AG42: 06 | AH42: 07 | AI42: 2 | AJ42: 200000 | AK42: 6000 | AL42: 70 | AM42: 2 | AN42: 206072 | AO42: MYSŁAKOWICE | AP42: 1802.84 | AR42: 04 | AS42: 08 | AT42: 400 | AU42: 8 | AV42: 408 | AW42: 408000 | AX42: lipnowski | AY42: 148.33 | BA42: 6282260168
G43: 1203045 | H43: 1203045 | I43: Libiąż - obszar wiejski (5) | J43: 5219 | L43: 0401 | M43: 401000 | N43: aleksandrowski | O43: 47463 | P43: 475 | Q43: 55274 | R43: 116 | S43: 286 | T43: 224 | AF43: 02 | AG43: 06 | AH43: 08 | AI43: 2 | AJ43: 200000 | AK43: 6000 | AL43: 80 | AM43: 2 | AN43: 206082 | AO43: PODGÓRZYN | AP43: 2155.02 | AR43: 04 | AS43: 09 | AT43: 400 | AU43: 9 | AV43: 409 | AW43: 409000 | AX43: mogileński | AY43: 203.52 | BA43: 6282260665
A44: 204022 | B44: Jemielno.......................................................................................................................................................................................................................................................... | C44: 12402 | E44: 124 | G44: 1203053 | H44: 1203053 | I44: Trzebinia (3) | J44: 32596 | L44: 0402 | M44: 402000 | N44: brodnicki | O44: 103997 | P44: 1040 | Q44: 78898 | R44: 76 | S44: 116 | T44: 131 | AF44: 02 | AG44: 06 | AH44: 09 | AI44: 2 | AJ44: 200000 | AK44: 6000 | AL44: 90 | AM44: 2 | AN44: 206092 | AO44: STARA KAMIENICA | AP44: 2979.43 | AR44: 04 | AS44: 10 | AT44: 400 | AU44: 10 | AV44: 410 | AW44: 410000 | AX44: nakielski | AY44: 187.16 | BA44: 6282267905
A45: 204032 | B45: Niechlów.......................................................................................................................................................................................................................................................... | C45: 15103 | E45: 151 | G45: 1203054 | H45: 1203054 | I45: Trzebinia - miasto (4) | J45: 18704 | L45: 0403 | M45: 403000 | N45: bydgoski | O45: 139412 | P45: 1394 | Q45: 117325 | R45: 84 | S45: 48 | T45: 51 | AF45: 02 | AG45: 07 | AH45: 01 | AI45: 1 | AJ45: 200000 | AK45: 7000 | AL45: 10 | AM45: 1 | AN45: 207011 | AO45: KAMIENNA GÓRA | AP45: 1422.75 | AR45: 04 | AS45: 11 | AT45: 400 | AU45: 11 | AV45: 411 | AW45: 411000 | AX45: radziejowski | AY45: 166.05 | BA45: 6371997976
G46: 1203055 | H46: 1203055 | I46: Trzebinia - obszar wiejski (5) | J46: 13892 | L46: 0404 | M46: 404000 | N46: chełmiński | O46: 52694 | P46: 527 | Q46: 52193 | R46: 99 | S46: 275 | T46: 235 | AF46: 02 | AG46: 07 | AH46: 02 | AI46: 2 | AJ46: 200000 | AK46: 7000 | AL46: 20 | AM46: 2 | AN46: 207022 | AO46: KAMIENNA GÓRA | AP46: 1526.92 | AR46: 04 | AS46: 12 | AT46: 400 | AU46: 12 | AV46: 412 | AW46: 412000 | AX46: rypiński | AY46: 177.68 | BA46: 6371998042
A47: 204013 | B47: Góra.......................................................................................................................................................................................................................................................... | C47: 26611 | E47: 266 | G47: 1204000 | H47: 1204000 | I47: Powiat dąbrowski | J47: 57809 | L47: 0405 | M47: 405000 | N47: golubsko-dobrzyński | O47: 61285 | P47: 613 | Q47: 45140 | R47: 74 | S47: 254 | T47: 263 | AF47: 02 | AG47: 07 | AH47: 03 | AI47: 3 | AJ47: 200000 | AK47: 7000 | AL47: 30 | AM47: 3 | AN47: 207033 | AO47: LUBAWKA | AP47: 1405.4 | AR47: 04 | AS47: 13 | AT47: 400 | AU47: 13 | AV47: 413 | AW47: 413000 | AX47: sępoleński | AY47: 147.35 | BA47: 6371998059
A48: 204014 | C48: 1365 | E48: 14 | G48: 1204012 | H48: 1204012 | I48: Bolesław (2) | J48: 2659 | L48: 0406 | M48: 406000 | N48: grudziądzki | O48: 72776 | P48: 728 | Q48: 40271 | R48: 55 | S48: 205 | T48: 283 | AF48: 02 | AG48: 07 | AH48: 04 | AI48: 2 | AJ48: 200000 | AK48: 7000 | AL48: 40 | AM48: 2 | AN48: 207042 | AO48: MARCISZÓW | AP48: 919.81 | AR48: 04 | AS48: 14 | AT48: 400 | AU48: 14 | AV48: 414 | AW48: 414000 | AX48: świecki | AY48: 271.7 | BA48: 6371998065
A49: 204015 | C49: 25246 | E49: 252 | G49: 1204023 | H49: 1204023 | I49: Dąbrowa Tarnowska (3) | J49: 20923 | L49: 0407 | M49: 407000 | N49: inowrocławski | O49: 122518 | P49: 1225 | Q49: 160647 | R49: 131 | S49: 78 | T49: 16 | AF49: 02 | AG49: 08 | AH49: 01 | AI49: 1 | AJ49: 200000 | AK49: 8000 | AL49: 10 | AM49: 1 | AN49: 208011 | AO49: DUSZNIKI-ZDRÓJ | AP49: 2265.37 | AR49: 04 | AS49: 15 | AT49: 400 | AU49: 15 | AV49: 415 | AW49: 415000 | AX49: toruński | AY49: 257.43 | BA49: 6372003423
A50: 204043 | B50: Wąsosz.......................................................................................................................................................................................................................................................... | C50: 19711 | E50: 197 | G50: 1204024 | H50: 1204024 | I50: Dąbrowa Tarnowska - miasto (4) | J50: 11495 | L50: 0408 | M50: 408000 | N50: lipnowski | O50: 101574 | P50: 1016 | Q50: 66062 | R50: 65 | S50: 123 | T50: 176 | AF50: 02 | AG50: 08 | AH50: 02 | AI50: 1 | AJ50: 200000 | AK50: 8000 | AL50: 20 | AM50: 1 | AN50: 208021 | AO50: KŁODZKO | AP50: 1709.08 | AR50: 04 | AS50: 16 | AT50: 400 | AU50: 16 | AV50: 416 | AW50: 416000 | AX50: tucholski | AY50: 177.46 | BA50: 6372024112
A51: 204044 | C51: 324 | E51: 3 | G51: 1204025 | H51: 1204025 | I51: Dąbrowa Tarnowska - obszar wiejski (5) | J51: 9428 | L51: 0409 | M51: 409000 | N51: mogileński | O51: 67512 | P51: 675 | Q51: 45821 | R51: 68 | S51: 228 | T51: 259 | AF51: 02 | AG51: 08 | AH51: 03 | AI51: 1 | AJ51: 200000 | AK51: 8000 | AL51: 30 | AM51: 1 | AN51: 208031 | AO51: KUDOWA-ZDRÓJ | AP51: 1518.82 | AR51: 04 | AS51: 17 | AT51: 400 | AU51: 17 | AV51: 417 | AW51: 417000 | AX51: wąbrzeski | AY51: 179.4 | BA51: 6372024678
A52: 204045 | C52: 19387 | E52: 194 | G52: 1204032 | H52: 1204032 | I52: Gręboszów (2) | J52: 3208 | L52: 0410 | M52: 410000 | N52: nakielski | O52: 112008 | P52: 1120 | Q52: 86590 | R52: 77 | S52: 101 | T52: 108 | AF52: 02 | AG52: 08 | AH52: 04 | AI52: 1 | AJ52: 200000 | AK52: 8000 | AL52: 40 | AM52: 1 | AN52: 208041 | AO52: NOWA RUDA | AP52: 1483.51 | AR52: 04 | AS52: 18 | AT52: 400 | AU52: 18 | AV52: 418 | AW52: 418000 | AX52: włocławski | AY52: 188.18 | BA52: 6590003697
B53: Powiat jaworski (6 gmin) | G53: 1204042 | H53: 1204042 | I53: Mędrzechów (2) | J53: 3336 | L53: 0411 | M53: 411000 | N53: radziejowski | O53: 60720 | P53: 607 | Q53: 40714 | R53: 67 | S53: 256 | T53: 281 | AF53: 02 | AG53: 08 | AH53: 05 | AI53: 1 | AJ53: 200000 | AK53: 8000 | AL53: 50 | AM53: 1 | AN53: 208051 | AO53: POLANICA-ZDRÓJ | AP53: 2268.69 | AR53: 04 | AS53: 19 | AT53: 400 | AU53: 19 | AV53: 419 | AW53: 419000 | AX53: żniński | AY53: 194.52 | BA53: 6591153915
G54: 1204052 | H54: 1204052 | I54: Olesno (2) | J54: 7681 | L54: 0412 | M54: 412000 | N54: rypiński | O54: 58647 | P54: 586 | Q54: 43826 | R54: 75 | S54: 259 | T54: 267 | AF54: 02 | AG54: 08 | AH54: 06 | AI54: 3 | AJ54: 200000 | AK54: 8000 | AL54: 60 | AM54: 3 | AN54: 208063 | AO54: BYSTRZYCA KŁODZKA | AP54: 1478.49 | AR54: 04 | AS54: 61 | AT54: 400 | AU54: 61 | AV54: 461 | AW54: 461000 | AX54: Bydgoszcz | AY54: 331.62 | BA54: 6591174001
A55: 205011 | B55: Jawor.......................................................................................................................................................................................................................................................... | C55: 1880 | E55: 19 | G55: 1204062 | H55: 1204062 | I55: Radgoszcz (2) | J55: 7473 | L55: 0413 | M55: 413000 | N55: sępoleński | O55: 79109 | P55: 791 | Q55: 41147 | R55: 52 | S55: 183 | T55: 280 | AF55: 02 | AG55: 08 | AH55: 07 | AI55: 2 | AJ55: 200000 | AK55: 8000 | AL55: 70 | AM55: 2 | AN55: 208072 | AO55: KŁODZKO | AP55: 1615.55 | AR55: 04 | AS55: 62 | AT55: 400 | AU55: 62 | AV55: 462 | AW55: 462000 | AX55: Grudziądz | AY55: 227.84 | BA55: 6591184436
G56: 1204073 | H56: 1204073 | I56: Szczucin (3) | J56: 12529 | L56: 0414 | M56: 414000 | N56: świecki | O56: 147418 | P56: 1474 | Q56: 99281 | R56: 67 | S56: 39 | T56: 80 | AF56: 02 | AG56: 08 | AH56: 08 | AI56: 3 | AJ56: 200000 | AK56: 8000 | AL56: 80 | AM56: 3 | AN56: 208083 | AO56: LĄDEK-ZDRÓJ | AP56: 1471.6 | AR56: 04 | AS56: 63 | AT56: 400 | AU56: 63 | AV56: 463 | AW56: 463000 | AX56: Toruń | AY56: 352.07 | BA56: 6591186961
A57: 205032 | B57: Męcinka.......................................................................................................................................................................................................................................................... | C57: 14778 | E57: 148 | G57: 1204074 | H57: 1204074 | I57: Szczucin - miasto (4) | J57: 4101 | L57: 0415 | M57: 415000 | N57: toruński | O57: 123042 | P57: 1230 | Q57: 106935 | R57: 87 | S57: 77 | T57: 73 | AF57: 02 | AG57: 08 | AH57: 09 | AI57: 2 | AJ57: 200000 | AK57: 8000 | AL57: 90 | AM57: 2 | AN57: 208092 | AO57: LEWIN KŁODZKI | AP57: 1298.48 | AR57: 04 | AS57: 64 | AT57: 400 | AU57: 64 | AV57: 464 | AW57: 464000 | AX57: Włocławek | AY57: 276.71 | BA57: 6591222510
A58: 205042 | B58: Mściwojów.......................................................................................................................................................................................................................................................... | C58: 7194 | E58: 72 | G58: 1204075 | H58: 1204075 | I58: Szczucin - obszar wiejski (5) | J58: 8428 | L58: 0416 | M58: 416000 | N58: tucholski | O58: 107546 | P58: 1075 | Q58: 48374 | R58: 45 | S58: 107 | T58: 248 | AF58: 02 | AG58: 08 | AH58: 10 | AI58: 3 | AJ58: 200000 | AK58: 8000 | AL58: 100 | AM58: 3 | AN58: 208103 | AO58: MIĘDZYLESIE | AP58: 1145.19 | AR58: 06 | AS58: 01 | AT58: 600 | AU58: 1 | AV58: 601 | AW58: 601000 | AX58: bialski | AY58: 154.06 | BA58: 6591545868
A59: 205052 | B59: Paszowice.......................................................................................................................................................................................................................................................... | C59: 10128 | E59: 101 | G59: 1205000 | H59: 1205000 | I59: Powiat gorlicki | J59: 105782 | L59: 0417 | M59: 417000 | N59: wąbrzeski | O59: 50195 | P59: 502 | Q59: 34413 | R59: 69 | S59: 280 | T59: 302 | AF59: 02 | AG59: 08 | AH59: 11 | AI59: 2 | AJ59: 200000 | AK59: 8000 | AL59: 110 | AM59: 2 | AN59: 208112 | AO59: NOWA RUDA | AP59: 1255.24 | AR59: 06 | AS59: 02 | AT59: 600 | AU59: 2 | AV59: 602 | AW59: 602000 | AX59: biłgorajski | AY59: 150.03 | BA59: 6591545880
A60: 205062 | B60: Wądroże Wielkie.......................................................................................................................................................................................................................................................... | C60: 8915 | E60: 89 | G60: 1205011 | H60: 1205011 | I60: Gorlice (1) | J60: 25818 | L60: 0418 | M60: 418000 | N60: włocławski | O60: 147363 | P60: 1474 | Q60: 86352 | R60: 59 | S60: 40 | T60: 109 | AF60: 02 | AG60: 08 | AH60: 12 | AI60: 3 | AJ60: 200000 | AK60: 8000 | AL60: 120 | AM60: 3 | AN60: 208123 | AO60: RADKÓW | AP60: 1712.84 | AR60: 06 | AS60: 03 | AT60: 600 | AU60: 3 | AV60: 603 | AW60: 603000 | AX60: chełmski | AY60: 126.53 | BA60: 6761013717
G61: 1205023 | H61: 1205023 | I61: Biecz (3) | J61: 16198 | L61: 0419 | M61: 419000 | N61: żniński | O61: 98477 | P61: 985 | Q61: 70413 | R61: 72 | S61: 132 | T61: 163 | AF61: 02 | AG61: 08 | AH61: 13 | AI61: 3 | AJ61: 200000 | AK61: 8000 | AL61: 130 | AM61: 3 | AN61: 208133 | AO61: STRONIE ŚLĄSKIE | AP61: 1680.73 | AR61: 06 | AS61: 04 | AT61: 600 | AU61: 4 | AV61: 604 | AW61: 604000 | AX61: hrubieszowski | AY61: 127.28 | BA61: 6761706490
A62: 205023 | B62: Bolków.......................................................................................................................................................................................................................................................... | C62: 15260 | E62: 153 | G62: 1205024 | H62: 1205024 | I62: Biecz - miasto (4) | J62: 4349 | N62: Miasta na prawach powiatu: | AF62: 02 | AG62: 08 | AH62: 14 | AI62: 3 | AJ62: 200000 | AK62: 8000 | AL62: 140 | AM62: 3 | AN62: 208143 | AO62: SZCZYTNA | AP62: 1238.21 | AR62: 06 | AS62: 05 | AT62: 600 | AU62: 5 | AV62: 605 | AW62: 605000 | AX62: janowski | AY62: 153.97 | BA62: 6762178337
A63: 205024 | C63: 768 | E63: 8 | G63: 1205025 | H63: 1205025 | I63: Biecz - obszar wiejski (5) | J63: 11849 | N63: Cities with powiat status: | AF63: 02 | AG63: 09 | AH63: 01 | AI63: 1 | AJ63: 200000 | AK63: 9000 | AL63: 10 | AM63: 1 | AN63: 209011 | AO63: CHOJNÓW | AP63: 1635.38 | AR63: 06 | AS63: 06 | AT63: 600 | AU63: 6 | AV63: 606 | AW63: 606000 | AX63: krasnostawski | AY63: 152.15 | BA63: 6771024094
A64: 205025 | C64: 14492 | E64: 145 | G64: 1205033 | H64: 1205033 | I64: Bobowa (3) | J64: 9574 | L64: 0461 | M64: 461000 | N64: Bydgoszcz | O64: 17598 | P64: 176 | Q64: 350178 | R64: 1990 | S64: 11 | T64: 8 | AF64: 02 | AG64: 09 | AH64: 02 | AI64: 2 | AJ64: 200000 | AK64: 9000 | AL64: 20 | AM64: 2 | AN64: 209022 | AO64: CHOJNÓW | AP64: 2124.17 | AR64: 06 | AS64: 07 | AT64: 600 | AU64: 7 | AV64: 607 | AW64: 607000 | AX64: kraśnicki | AY64: 155.76 | BA64: 6771037576
B65: Powiat jeleniogórski (9 gmin) | G65: 1205034 | H65: 1205034 | I65: Bobowa - miasto (4) | J65: 3066 | L65: 0462 | M65: 462000 | N65: Grudziądz | O65: 5776 | P65: 58 | Q65: 95045 | R65: 1646 | S65: 48 | T65: 40 | AF65: 02 | AG65: 09 | AH65: 03 | AI65: 2 | AJ65: 200000 | AK65: 9000 | AL65: 30 | AM65: 2 | AN65: 209032 | AO65: KROTOSZYCE | AP65: 2221.54 | AR65: 06 | AS65: 08 | AT65: 600 | AU65: 8 | AV65: 608 | AW65: 608000 | AX65: lubartowski | AY65: 160.86 | BA65: 6772019451
G66: 1205035 | H66: 1205035 | I66: Bobowa - obszar wiejski (5) | J66: 6508 | L66: 0463 | M66: 463000 | N66: Toruń | O66: 11572 | P66: 116 | Q66: 202074 | R66: 1746 | S66: 22 | T66: 15 | AF66: 02 | AG66: 09 | AH66: 04 | AI66: 2 | AJ66: 200000 | AK66: 9000 | AL66: 40 | AM66: 2 | AN66: 209042 | AO66: KUNICE | AP66: 2912.14 | AR66: 06 | AS66: 09 | AT66: 600 | AU66: 9 | AV66: 609 | AW66: 609000 | AX66: lubelski | AY66: 231.41 | BA66: 6772364194
A67: 206011 | B67: Karpacz.......................................................................................................................................................................................................................................................... | C67: 3799 | E67: 38 | G67: 1205042 | H67: 1205042 | I67: Gorlice (2) | J67: 16985 | L67: 0464 | M67: 464000 | N67: Włocławek | O67: 8432 | P67: 84 | Q67: 110802 | R67: 1314 | S67: 35 | T67: 34 | AF67: 02 | AG67: 09 | AH67: 05 | AI67: 2 | AJ67: 200000 | AK67: 9000 | AL67: 50 | AM67: 2 | AN67: 209052 | AO67: LEGNICKIE POLE | AP67: 4327.53 | AR67: 06 | AS67: 10 | AT67: 600 | AU67: 10 | AV67: 610 | AW67: 610000 | AX67: łęczyński | AY67: 207.16 | BA67: 6791023301
A68: 206021 | B68: Kowary.......................................................................................................................................................................................................................................................... | C68: 3739 | E68: 37 | G68: 1205052 | H68: 1205052 | I68: Lipinki (2) | J68: 6714 | N68: WOJ. LUBELSKIE | AF68: 02 | AG68: 09 | AH68: 06 | AI68: 2 | AJ68: 200000 | AK68: 9000 | AL68: 60 | AM68: 2 | AN68: 209062 | AO68: MIŁKOWICE | AP68: 2074.81 | AR68: 06 | AS68: 11 | AT68: 600 | AU68: 11 | AV68: 611 | AW68: 611000 | AX68: łukowski | AY68: 184.75 | BA68: 6811004414
A69: 206031 | B69: Piechowice.......................................................................................................................................................................................................................................................... | C69: 4322 | E69: 43 | G69: 1205062 | H69: 1205062 | I69: Łużna (2) | J69: 8362 | N69: Powiaty: | AF69: 02 | AG69: 09 | AH69: 07 | AI69: 3 | AJ69: 200000 | AK69: 9000 | AL69: 70 | AM69: 3 | AN69: 209073 | AO69: PROCHOWICE | AP69: 2190.71 | AR69: 06 | AS69: 12 | AT69: 600 | AU69: 12 | AV69: 612 | AW69: 612000 | AX69: opolski | AY69: 131.41 | BA69: 6811004443
A70: 206041 | B70: Szklarska Poręba.......................................................................................................................................................................................................................................................... | C70: 7544 | E70: 75 | G70: 1205072 | H70: 1205072 | I70: Moszczenica (2) | J70: 4897 | N70: Powiats: | AF70: 02 | AG70: 09 | AH70: 08 | AI70: 2 | AJ70: 200000 | AK70: 9000 | AL70: 80 | AM70: 2 | AN70: 209082 | AO70: RUJA | AP70: 1498.91 | AR70: 06 | AS70: 13 | AT70: =AR70*100 -> 600 | AU70: =+AS70*1 -> 13 | AV70: =AT70+AU70 -> 613 | AW70: =AV70*1000 -> 613000 | AX70: parczewski | AY70: 159.82 | BA70: 6811036147
G71: 1205082 | H71: 1205082 | I71: Ropa (2) | J71: 5513 | L71: 0601 | M71: 601000 | N71: bialski | O71: 275426 | P71: 2754 | Q71: 111391 | R71: 40 | S71: 3 | T71: 64 | AF71: 02 | AG71: 10 | AH71: 01 | AI71: 1 | AJ71: 200000 | AK71: 10000 | AL71: 10 | AM71: 1 | AN71: 210011 | AO71: LUBAŃ | AP71: 1750.83 | AR71: 06 | AS71: 14 | AT71: 600 | AU71: 14 | AV71: 614 | AW71: 614000 | AX71: puławski | AY71: 238.31 | BA71: 6811299390
A72: 206052 | B72: Janowice Wielkie.......................................................................................................................................................................................................................................................... | C72: 5783 | E72: 58 | G72: 1205092 | H72: 1205092 | I72: Sękowa (2) | J72: 4910 | L72: 0602 | M72: 602000 | N72: biłgorajski | O72: 168110 | P72: 1681 | Q72: 101435 | R72: 60 | S72: 20 | T72: 79 | AF72: 02 | AG72: 10 | AH72: 02 | AI72: 1 | AJ72: =AF72*100000 -> 200000 | AK72: =AG72*1000 -> 10000 | AL72: =AH72*10 -> 20 | AM72: =AI72*1 -> 1 | AN72: =SUM(AJ72:AM72) -> 210021 | AO72: ŚWIERADÓW-ZDRÓJ | AP72: 2782.46 | AR72: 06 | AS72: 15 | AT72: 600 | AU72: 15 | AV72: 615 | AW72: 615000 | AX72: radzyński | AY72: 147.91 | BA72: 6811304607
A73: 206062 | B73: Jeżów Sudecki.......................................................................................................................................................................................................................................................... | C73: 9428 | E73: 94 | G73: 1205102 | H73: 1205102 | I73: Uście Gorlickie (2) | J73: 6811 | L73: 0603 | M73: =L73*1000 -> 603000 | N73: chełmski | O73: 188560 | P73: 1886 | Q73: 78228 | R73: 41 | S73: 11 | T73: 134 | AF73: 02 | AG73: 10 | AH73: 03 | AI73: 3 | AJ73: 200000 | AK73: 10000 | AL73: 30 | AM73: 3 | AN73: 210033 | AO73: LEŚNA | AP73: 1085.03 | AR73: 06 | AS73: 16 | AT73: 600 | AU73: 16 | AV73: 616 | AW73: 616000 | AX73: rycki | AY73: 208.59 | BA73: 6811355131
A74: 206072 | B74: Mysłakowice.......................................................................................................................................................................................................................................................... | C74: 8798 | E74: 88 | G74: 1206000 | H74: 1206000 | I74: Powiat krakowski | J74: 300289 | L74: 0604 | M74: 604000 | N74: hrubieszowski | O74: 126802 | P74: 1268 | Q74: 63698 | R74: 50 | S74: 70 | T74: 186 | AF74: 02 | AG74: 10 | AH74: 04 | AI74: 2 | AJ74: 200000 | AK74: 10000 | AL74: 40 | AM74: 2 | AN74: 210042 | AO74: LUBAŃ | AP74: 1620.66 | AR74: 06 | AS74: 17 | AT74: 600 | AU74: 17 | AV74: 617 | AW74: 617000 | AX74: świdnicki | AY74: 226.83 | BA74: 6811359293
A75: 206082 | B75: Podgórzyn.......................................................................................................................................................................................................................................................... | C75: 8251 | E75: 83 | G75: 1206012 | H75: 1206012 | I75: Czernichów (2) | J75: 15371 | L75: 0605 | M75: 605000 | N75: janowski | O75: 87528 | P75: 876 | Q75: 46057 | R75: 53 | S75: 160 | T75: 257 | AF75: 02 | AG75: 10 | AH75: 05 | AI75: 3 | AJ75: 200000 | AK75: 10000 | AL75: 50 | AM75: 3 | AN75: 210053 | AO75: OLSZYNA | AP75: 1579.6 | AR75: 06 | AS75: 18 | AT75: 600 | AU75: 18 | AV75: 618 | AW75: 618000 | AX75: tomaszowski | AY75: 138.14 | BA75: 6811381938
A76: 206092 | B76: Stara Kamienica.......................................................................................................................................................................................................................................................... | C76: 11050 | E76: 111 | G76: 1206022 | H76: 1206022 | I76: Igołomia-Wawrzeńczyce (2) | J76: 7872 | L76: 0606 | M76: 606000 | N76: krasnostawski | O76: 103144 | P76: 1032 | Q76: 63925 | R76: 62 | S76: 118 | T76: 183 | AF76: 02 | AG76: 10 | AH76: 06 | AI76: 2 | AJ76: 200000 | AK76: 10000 | AL76: 60 | AM76: 2 | AN76: 210062 | AO76: PLATERÓWKA | AP76: 2261.28 | AR76: 06 | AS76: 19 | AT76: 600 | AU76: 19 | AV76: 619 | AW76: 619000 | AX76: włodawski | AY76: 146.4 | BA76: 6811692325
B77: Powiat kamiennogórski (4 gminy) | G77: 1206032 | H77: 1206032 | I77: Iwanowice (2) | J77: 9781 | L77: 0607 | M77: 607000 | N77: kraśnicki | O77: 100530 | P77: 1005 | Q77: 96043 | R77: 96 | S77: 127 | T77: 87 | AF77: 02 | AG77: 10 | AH77: 07 | AI77: 2 | AJ77: 200000 | AK77: 10000 | AL77: 70 | AM77: 2 | AN77: 210072 | AO77: SIEKIERCZYN | AP77: 1297.53 | AR77: 06 | AS77: 20 | AT77: 600 | AU77: 20 | AV77: 620 | AW77: 620000 | AX77: zamojski | AY77: 140.2 | BA77: 6821436782
G78: 1206042 | H78: 1206042 | I78: Jerzmanowice-Przeginia (2) | J78: 11196 | L78: 0608 | M78: 608000 | N78: lubartowski | O78: 128874 | P78: 1289 | Q78: 88789 | R78: 69 | S78: 66 | T78: 102 | AF78: 02 | AG78: 11 | AH78: 01 | AI78: 1 | AJ78: 200000 | AK78: 11000 | AL78: 10 | AM78: 1 | AN78: 211011 | AO78: LUBIN | AP78: 2819.26 | AR78: 06 | AS78: 61 | AT78: 600 | AU78: 61 | AV78: 661 | AW78: 661000 | AX78: Biała Podlaska | AY78: 247.04 | BA78: 6821604469
A79: 207011 | B79: Kamienna Góra.......................................................................................................................................................................................................................................................... | C79: 1804 | E79: 18 | G79: 1206052 | H79: 1206052 | I79: Kocmyrzów-Luborzyca (2) | J79: 17961 | L79: 0609 | M79: 609000 | N79: lubelski | O79: 167953 | P79: 1680 | Q79: 154387 | R79: 92 | S79: 21 | T79: 21 | AF79: 02 | AG79: 11 | AH79: 02 | AI79: 2 | AJ79: 200000 | AK79: 11000 | AL79: 20 | AM79: 2 | AN79: 211022 | AO79: LUBIN | AP79: 3969.52 | AR79: 06 | AS79: 62 | AT79: 600 | AU79: 62 | AV79: 662 | AW79: 662000 | AX79: Chełm | AY79: 233.96 | BA79: 6821604831
G80: 1206063 | H80: 1206063 | I80: Krzeszowice (3) | J80: 31909 | L80: 0610 | M80: 610000 | N80: łęczyński | O80: 63664 | P80: 637 | Q80: 57457 | R80: 90 | S80: 241 | T80: 207 | AF80: 02 | AG80: 11 | AH80: 03 | AI80: 2 | AJ80: 200000 | AK80: 11000 | AL80: 30 | AM80: 2 | AN80: 211032 | AO80: RUDNA | AP80: 6070.59 | AR80: 06 | AS80: 63 | AT80: 600 | AU80: 63 | AV80: 663 | AW80: 663000 | AX80: Lublin | AY80: 360.44 | BA80: 6821605658
A81: 207022 | B81: Kamienna Góra.......................................................................................................................................................................................................................................................... | C81: 15803 | E81: 158 | G81: 1206064 | H81: 1206064 | I81: Krzeszowice - miasto (4) | J81: 9755 | L81: 0611 | M81: 611000 | N81: łukowski | O81: 139421 | P81: 1394 | Q81: 107449 | R81: 77 | S81: 47 | T81: 71 | AF81: 02 | AG81: 11 | AH81: 04 | AI81: 3 | AJ81: 200000 | AK81: 11000 | AL81: 40 | AM81: 3 | AN81: 211043 | AO81: ŚCINAWA | AP81: 1595.76 | AR81: 06 | AS81: 64 | AT81: 600 | AU81: 64 | AV81: 664 | AW81: 664000 | AX81: Zamość | AY81: 254.32 | BA81: 6821606646
A82: 207042 | B82: Marciszów.......................................................................................................................................................................................................................................................... | C82: 8157 | E82: 82 | G82: 1206065 | H82: 1206065 | I82: Krzeszowice - obszar wiejski (5) | J82: 22154 | L82: 0612 | M82: 612000 | N82: opolski | O82: 81002 | P82: 810 | Q82: 59726 | R82: 74 | S82: 176 | T82: 198 | AF82: 02 | AG82: 12 | AH82: 01 | AI82: 3 | AJ82: 200000 | AK82: 12000 | AL82: 10 | AM82: 3 | AN82: 212013 | AO82: GRYFÓW ŚLĄSKI | AP82: 1345.26 | AR82: 08 | AS82: 01 | AT82: 800 | AU82: 1 | AV82: 801 | AW82: 801000 | AX82: gorzowski | AY82: 279.37 | BA82: 6821634453
G83: 1206072 | H83: 1206072 | I83: Liszki (2) | J83: 18416 | L83: 0613 | M83: 613000 | N83: parczewski | O83: 95220 | P83: 952 | Q83: 34954 | R83: 37 | S83: 142 | T83: 300 | AF83: 02 | AG83: 12 | AH83: 02 | AI83: 3 | AJ83: 200000 | AK83: 12000 | AL83: 20 | AM83: 3 | AN83: 212023 | AO83: LUBOMIERZ | AP83: 970.99 | AR83: 08 | AS83: 02 | AT83: 800 | AU83: 2 | AV83: 802 | AW83: 802000 | AX83: krośnieński | AY83: 196.31 | BA83: 6821635547
A84: 207033 | B84: Lubawka.......................................................................................................................................................................................................................................................... | C84: 13805 | E84: 138 | G84: 1206082 | H84: 1206082 | I84: Michałowice (2) | J84: 13173 | L84: 0614 | M84: 614000 | N84: puławski | O84: 93409 | P84: 934 | Q84: 113762 | R84: 122 | S84: 146 | T84: 59 | AF84: 02 | AG84: 12 | AH84: 03 | AI84: 3 | AJ84: 200000 | AK84: 12000 | AL84: 30 | AM84: 3 | AN84: 212033 | AO84: LWÓWEK ŚLĄSKI | AP84: 1725.97 | AR84: 08 | AS84: 03 | AT84: 800 | AU84: 3 | AV84: 803 | AW84: 803000 | AX84: międzyrzecki | AY84: 215.26 | BA84: 6821642228
A85: 207034 | C85: 2244 | E85: 22 | G85: 1206092 | H85: 1206092 | I85: Mogilany (2) | J85: 16192 | L85: 0615 | M85: 615000 | N85: radzyński | O85: 96506 | P85: 965 | Q85: 59278 | R85: 61 | S85: 138 | T85: 201 | AF85: 02 | AG85: 12 | AH85: 04 | AI85: 3 | AJ85: 200000 | AK85: 12000 | AL85: 40 | AM85: 3 | AN85: 212043 | AO85: MIRSK | AP85: 1239.66 | AR85: 08 | AS85: 04 | AT85: 800 | AU85: 4 | AV85: 804 | AW85: 804000 | AX85: nowosolski | AY85: 196.43 | BA85: 6821762292
A86: 207035 | C86: 11561 | E86: 116 | G86: 1206103 | H86: 1206103 | I86: Skała (3) | J86: 10942 | L86: 0616 | M86: 616000 | N86: rycki | O86: 61453 | P86: 615 | Q86: 56166 | R86: 91 | S86: 253 | T86: 217 | AF86: 02 | AG86: 12 | AH86: 05 | AI86: 3 | AJ86: 200000 | AK86: 12000 | AL86: 50 | AM86: 3 | AN86: 212053 | AO86: WLEŃ | AP86: 1203.02 | AR86: 08 | AS86: 05 | AT86: 800 | AU86: 5 | AV86: 805 | AW86: 805000 | AX86: słubicki | AY86: 228.48 | BA86: 6821773580
B87: Powiat kłodzki (14 gmin) | G87: 1206104 | H87: 1206104 | I87: Skała - miasto (4) | J87: 3876 | L87: 0617 | M87: 617000 | N87: świdnicki | O87: 46835 | P87: 468 | Q87: 72039 | R87: 154 | S87: 289 | T87: 158 | AF87: 02 | AG87: 13 | AH87: 01 | AI87: 2 | AJ87: 200000 | AK87: 13000 | AL87: 10 | AM87: 2 | AN87: 213012 | AO87: CIESZKÓW | AP87: 1466.62 | AR87: 08 | AS87: 06 | AT87: 800 | AU87: 6 | AV87: 806 | AW87: 806000 | AX87: strzelecko-drezdenecki | AY87: 191.91 | BA87: 6821773870
G88: 1206105 | H88: 1206105 | I88: Skała - obszar wiejski (5) | J88: 7066 | L88: 0618 | M88: 618000 | N88: tomaszowski | O88: 148889 | P88: 1489 | Q88: 83715 | R88: 56 | S88: 37 | T88: 117 | AF88: 02 | AG88: 13 | AH88: 02 | AI88: 2 | AJ88: 200000 | AK88: 13000 | AL88: 20 | AM88: 2 | AN88: 213022 | AO88: KROŚNICE | AP88: 2495.84 | AR88: 08 | AS88: 07 | AT88: 800 | AU88: 7 | AV88: 807 | AW88: 807000 | AX88: sulęciński | AY88: 201.95 | BA88: 6830011450
A89: 208011 | B89: Duszniki-Zdrój.......................................................................................................................................................................................................................................................... | C89: 2228 | E89: 22 | G89: 1206113 | H89: 1206113 | I89: Skawina (3) | J89: 44025 | L89: 0619 | M89: 619000 | N89: włodawski | O89: 125642 | P89: 1256 | Q89: 38668 | R89: 31 | S89: 73 | T89: 289 | AF89: 02 | AG89: 13 | AH89: 03 | AI89: 3 | AJ89: 200000 | AK89: 13000 | AL89: 30 | AM89: 3 | AN89: 213033 | AO89: MILICZ | AP89: 1843.15 | AR89: 08 | AS89: 08 | AT89: 800 | AU89: 8 | AV89: 808 | AW89: 808000 | AX89: świebodziński | AY89: 248.39 | BA89: 6831006563
A90: 208021 | B90: Kłodzko.......................................................................................................................................................................................................................................................... | C90: 2484 | E90: 25 | G90: 1206114 | H90: 1206114 | I90: Skawina - miasto (4) | J90: 24071 | L90: 0620 | M90: 620000 | N90: zamojski | O90: 187029 | P90: 1870 | Q90: 106935 | R90: 57 | S90: 12 | T90: 73 | AF90: 02 | AG90: 14 | AH90: 01 | AI90: 1 | AJ90: 200000 | AK90: 14000 | AL90: 10 | AM90: 1 | AN90: 214011 | AO90: OLEŚNICA | AP90: 1938.18 | AR90: 08 | AS90: 09 | AT90: 800 | AU90: 9 | AV90: 809 | AW90: 809000 | AX90: zielonogórski | AY90: 239.75 | BA90: 6831395375
A91: 208031 | B91: Kudowa-Zdrój.......................................................................................................................................................................................................................................................... | C91: 3390 | E91: 34 | G91: 1206115 | H91: 1206115 | I91: Skawina - obszar wiejski (5) | J91: 19954 | N91: Miasta na prawach powiatu: | AF91: 02 | AG91: 14 | AH91: 02 | AI91: 3 | AJ91: 200000 | AK91: 14000 | AL91: 20 | AM91: 3 | AN91: 214023 | AO91: BIERUTÓW | AP91: 1390.38 | AR91: 08 | AS91: 10 | AT91: 800 | AU91: 10 | AV91: 810 | AW91: 810000 | AX91: żagański | AY91: 193.72 | BA91: 6831511752
A92: 208041 | B92: Nowa Ruda.......................................................................................................................................................................................................................................................... | C92: 3705 | E92: 37 | G92: 1206123 | H92: 1206123 | I92: Słomniki (3) | J92: 13782 | N92: Cities with powiat status: | AF92: 02 | AG92: 14 | AH92: 03 | AI92: 2 | AJ92: 200000 | AK92: 14000 | AL92: 30 | AM92: 2 | AN92: 214032 | AO92: DOBROSZYCE | AP92: 2297.98 | AR92: 08 | AS92: 11 | AT92: 800 | AU92: 11 | AV92: 811 | AW92: 811000 | AX92: żarski | AY92: 213.46 | BA92: 6831573055
A93: 208051 | B93: Polanica-Zdrój.......................................................................................................................................................................................................................................................... | C93: 1722 | E93: 17 | G93: 1206124 | H93: 1206124 | I93: Słomniki - miasto (4) | J93: 4194 | L93: 0661 | M93: 661000 | N93: Biała Podlaska | O93: 4940 | P93: 49 | Q93: 57352 | R93: 1161 | S93: 51 | T93: 58 | AF93: 02 | AG93: 14 | AH93: 04 | AI93: 2 | AJ93: 200000 | AK93: 14000 | AL93: 40 | AM93: 2 | AN93: 214042 | AO93: DZIADOWA KŁODA | AP93: 1255.47 | AR93: 08 | AS93: 12 | AT93: 800 | AU93: 12 | AV93: 812 | AW93: 812000 | AX93: wschowski | AY93: 198.47 | BA93: 6831718453
G94: 1206125 | H94: 1206125 | I94: Słomniki - obszar wiejski (5) | J94: 9588 | L94: 0662 | M94: 662000 | N94: Chełm | O94: 3528 | P94: 35 | Q94: 62670 | R94: 1776 | S94: 56 | T94: 55 | AF94: 02 | AG94: 14 | AH94: 05 | AI94: 3 | AJ94: 200000 | AK94: 14000 | AL94: 50 | AM94: 3 | AN94: 214053 | AO94: MIĘDZYBÓRZ | AP94: 1817.63 | AR94: 08 | AS94: 61 | AT94: 800 | AU94: 61 | AV94: 861 | AW94: 861000 | AX94: Gorzów Wielkopolski | AY94: 295.89 | BA94: 6831742730
A95: 208072 | B95: Kłodzko.......................................................................................................................................................................................................................................................... | C95: 25325 | E95: 252 | G95: 1206132 | H95: 1206132 | I95: Sułoszowa (2) | J95: 5702 | L95: 0663 | M95: 663000 | N95: Lublin | O95: 14747 | P95: 148 | Q95: 339682 | R95: 2303 | S95: 17 | T95: 9 | AF95: 02 | AG95: 14 | AH95: 06 | AI95: 2 | AJ95: 200000 | AK95: 14000 | AL95: 60 | AM95: 2 | AN95: 214062 | AO95: OLEŚNICA | AP95: 2301.85 | AR95: 08 | AS95: 62 | AT95: 800 | AU95: 62 | AV95: 862 | AW95: 862000 | AX95: Zielona Góra | AY95: 398.89 | BA95: 6851648081
A96: 208092 | B96: Lewin Kłodzki.......................................................................................................................................................................................................................................................... | C96: 5214 | E96: 52 | G96: 1206143 | H96: 1206143 | I96: Świątniki Górne (3) | J96: 11097 | L96: 0664 | M96: 664000 | N96: Zamość | O96: 3034 | P96: 30 | Q96: 63813 | R96: 2103 | S96: 62 | T96: 53 | AF96: 02 | AG96: 14 | AH96: 07 | AI96: 3 | AJ96: 200000 | AK96: 14000 | AL96: 70 | AM96: 3 | AN96: 214073 | AO96: SYCÓW | AP96: 1799.67 | AR96: 10 | AS96: 01 | AT96: 1000 | AU96: 1 | AV96: 1001 | AW96: 1001000 | AX96: bełchatowski | AY96: 364.11 | BA96: 7341009655
A97: 208112 | B97: Nowa Ruda.......................................................................................................................................................................................................................................................... | C97: 13967 | E97: 140 | G97: 1206144 | H97: 1206144 | I97: Świątniki Górne - miasto (4) | J97: 2408 | N97: WOJ. LUBUSKIE | AF97: 02 | AG97: 14 | AH97: 08 | AI97: 3 | AJ97: 200000 | AK97: 14000 | AL97: 80 | AM97: 3 | AN97: 214083 | AO97: TWARDOGÓRA | AP97: 2314.57 | AR97: 10 | AS97: 02 | AT97: 1000 | AU97: 2 | AV97: 1002 | AW97: 1002000 | AX97: kutnowski | AY97: 242.48 | BA97: 7343445768
G98: 1206145 | H98: 1206145 | I98: Świątniki Górne - obszar wiejski (5) | J98: 8689 | N98: Powiaty: | AF98: 02 | AG98: 15 | AH98: 01 | AI98: 1 | AJ98: 200000 | AK98: 15000 | AL98: 10 | AM98: 1 | AN98: 215011 | AO98: OŁAWA | AP98: 2299.99 | AR98: 10 | AS98: 03 | AT98: 1000 | AU98: 3 | AV98: 1003 | AW98: 1003000 | AX98: łaski | AY98: 236.05 | BA98: 7343450806
A99: 208063 | B99: Bystrzyca Kłodzka.......................................................................................................................................................................................................................................................... | C99: 33853 | E99: 339 | G99: 1206152 | H99: 1206152 | I99: Wielka Wieś (2) | J99: 16445 | N99: Powiats: | AF99: 02 | AG99: 15 | AH99: 02 | AI99: 2 | AJ99: 200000 | AK99: 15000 | AL99: 20 | AM99: 2 | AN99: 215022 | AO99: DOMANIÓW | AP99: 1720.26 | AR99: 10 | AS99: 04 | AT99: 1000 | AU99: 4 | AV99: 1004 | AW99: 1004000 | AX99: łęczycki | AY99: 189.81 | BA99: 7343456306
A100: 208064 | C100: 1074 | E100: 11 | G100: 1206162 | H100: 1206162 | I100: Zabierzów (2) | J100: 29267 | L100: 0801 | M100: 801000 | N100: gorzowski | O100: 121423 | P100: 1214 | Q100: 71549 | R100: 59 | S100: 83 | T100: 161 | AF100: 02 | AG100: 15 | AH100: 03 | AI100: 3 | AJ100: 200000 | AK100: 15000 | AL100: 30 | AM100: 3 | AN100: 215033 | AO100: JELCZ-LASKOWICE | AP100: 2808.98 | AR100: 10 | AS100: 05 | AT100: 1000 | AU100: 5 | AV100: 1005 | AW100: 1005000 | AX100: łowicki | AY100: 224.92 | BA100: 7343472601
A101: 208065 | C101: 32779 | E101: 328 | G101: 1206172 | H101: 1206172 | I101: Zielonki (2) | J101: 27158 | L101: 0802 | M101: 802000 | N101: krośnieński | O101: 139125 | P101: 1391 | Q101: 55245 | R101: 40 | S101: 50 | T101: 225 | AF101: 02 | AG101: 15 | AH101: 04 | AI101: 2 | AJ101: 200000 | AK101: 15000 | AL101: 40 | AM101: 2 | AN101: 215042 | AO101: OŁAWA | AP101: 3297.28 | AR101: 10 | AS101: 06 | AT101: 1000 | AU101: 6 | AV101: 1006 | AW101: 1006000 | AX101: łódzki wschodni | AY101: 367.33 | BA101: 7343472848
A102: 208083 | B102: Lądek-Zdrój.......................................................................................................................................................................................................................................................... | C102: 11727 | E102: 117 | G102: 1207000 | H102: 1207000 | I102: Powiat limanowski | J102: 131549 | L102: 0803 | M102: 803000 | N102: międzyrzecki | O102: 138761 | P102: 1388 | Q102: 58024 | R102: 42 | S102: 51 | T102: 204 | AF102: 02 | AG102: 16 | AH102: 01 | AI102: 3 | AJ102: 200000 | AK102: 16000 | AL102: 10 | AM102: 3 | AN102: 216013 | AO102: CHOCIANÓW | AP102: 1728.52 | AR102: 10 | AS102: 07 | AT102: 1000 | AU102: 7 | AV102: 1007 | AW102: 1007000 | AX102: opoczyński | AY102: 187.76 | BA102: 7343482812
A103: 208084 | C103: 2032 | E103: 20 | G103: 1207011 | H103: 1207011 | I103: Limanowa (1) | J103: 14514 | L103: 0804 | M103: 804000 | N103: nowosolski | O103: 77073 | P103: 771 | Q103: 86634 | R103: 112 | S103: 192 | T103: 107 | AF103: 02 | AG103: 16 | AH103: 02 | AI103: 2 | AJ103: 200000 | AK103: 16000 | AL103: 20 | AM103: 2 | AN103: 216022 | AO103: GAWORZYCE | AP103: 1483.25 | AR103: 10 | AS103: 08 | AT103: 1000 | AU103: 8 | AV103: 1008 | AW103: 1008000 | AX103: pabianicki | AY103: 322.8 | BA103: 7343483272
A104: 208085 | C104: 9695 | E104: 97 | G104: 1207021 | H104: 1207021 | I104: Mszana Dolna (1) | J104: 7817 | L104: 0805 | M104: 805000 | N104: słubicki | O104: 99929 | P104: 999 | Q104: 47101 | R104: 47 | S104: 129 | T104: 254 | AF104: 02 | AG104: 16 | AH104: 03 | AI104: 2 | AJ104: 200000 | AK104: 16000 | AL104: 30 | AM104: 2 | AN104: 216032 | AO104: GRĘBOCICE | AP104: 6312.82 | AR104: 10 | AS104: 09 | AT104: 1000 | AU104: 9 | AV104: 1009 | AW104: 1009000 | AX104: pajęczański | AY104: 225.11 | BA104: 7343507021
A105: 208103 | B105: Międzylesie.......................................................................................................................................................................................................................................................... | C105: 18875 | E105: 189 | G105: 1207032 | H105: 1207032 | I105: Dobra (2) | J105: 10110 | L105: 0806 | M105: 806000 | N105: strzelecko-drezdenecki | O105: 124786 | P105: 1248 | Q105: 49366 | R105: 40 | S105: 75 | T105: 244 | AF105: 02 | AG105: 16 | AH105: 04 | AI105: 3 | AJ105: 200000 | AK105: 16000 | AL105: 40 | AM105: 3 | AN105: 216043 | AO105: POLKOWICE | AP105: 7602.46 | AR105: 10 | AS105: 10 | AT105: 1000 | AU105: 10 | AV105: 1010 | AW105: 1010000 | AX105: piotrkowski | AY105: 198.42 | BA105: 7343514742
A106: 208104 | C106: 1437 | E106: 14 | G106: 1207042 | H106: 1207042 | I106: Jodłownik (2) | J106: 8760 | L106: 0807 | M106: 807000 | N106: sulęciński | O106: 117780 | P106: 1178 | Q106: 35297 | R106: 30 | S106: 89 | T106: 298 | AF106: 02 | AG106: 16 | AH106: 05 | AI106: 3 | AJ106: 200000 | AK106: 16000 | AL106: 50 | AM106: 3 | AN106: 216053 | AO106: PRZEMKÓW | AP106: 1382.28 | AR106: 10 | AS106: 11 | AT106: 1000 | AU106: 11 | AV106: 1011 | AW106: 1011000 | AX106: poddębicki | AY106: 199.13 | BA106: 7343514860
A107: 208105 | C107: 17438 | E107: 175 | G107: 1207052 | H107: 1207052 | I107: Kamienica (2) | J107: 7822 | L107: 0808 | M107: 808000 | N107: świebodziński | O107: 93657 | P107: 937 | Q107: 55840 | R107: 60 | S107: 145 | T107: 219 | AF107: 02 | AG107: 16 | AH107: 06 | AI107: 2 | AJ107: 200000 | AK107: 16000 | AL107: 60 | AM107: 2 | AN107: 216062 | AO107: RADWANICE | AP107: 3555.97 | AR107: 10 | AS107: 12 | AT107: 1000 | AU107: 12 | AV107: 1012 | AW107: 1012000 | AX107: radomszczański | AY107: 229.62 | BA107: 7343515546
A108: 208123 | B108: Radków.......................................................................................................................................................................................................................................................... | C108: 13995 | E108: 140 | G108: 1207062 | H108: 1207062 | I108: Laskowa (2) | J108: 8185 | L108: 0812 | M108: 812000 | N108: wschowski | O108: 62420 | P108: 624 | Q108: 39065 | R108: 63 | S108: 244 | T108: 287 | AF108: 02 | AG108: 17 | AH108: 01 | AI108: 2 | AJ108: 200000 | AK108: 17000 | AL108: 10 | AM108: 2 | AN108: 217012 | AO108: BORÓW | AP108: 1680.06 | AR108: 10 | AS108: 13 | AT108: 1000 | AU108: 13 | AV108: 1013 | AW108: 1013000 | AX108: rawski | AY108: 243.71 | BA108: 7343517410
A109: 208124 | C109: 1503 | E109: 15 | G109: 1207072 | H109: 1207072 | I109: Limanowa (2) | J109: 25912 | L109: 0809 | M109: 809000 | N109: zielonogórski | O109: 134975 | P109: 1350 | Q109: 75750 | R109: 56 | S109: 58 | T109: 146 | AF109: 02 | AG109: 17 | AH109: 02 | AI109: 2 | AJ109: 200000 | AK109: 17000 | AL109: 20 | AM109: 2 | AN109: 217022 | AO109: KONDRATOWICE | AP109: 1865.35 | AR109: 10 | AS109: 14 | AT109: 1000 | AU109: 14 | AV109: 1014 | AW109: 1014000 | AX109: sieradzki | AY109: 219.46 | BA109: 7343517947
A110: 208125 | C110: 12492 | E110: 125 | G110: 1207082 | H110: 1207082 | I110: Łukowica (2) | J110: 10150 | L110: 0810 | M110: 810000 | N110: żagański | O110: 113182 | P110: 1132 | Q110: 79583 | R110: 70 | S110: 98 | T110: 125 | AF110: 02 | AG110: 17 | AH110: 03 | AI110: 2 | AJ110: 200000 | AK110: 17000 | AL110: 30 | AM110: 2 | AN110: 217032 | AO110: PRZEWORNO | AP110: 1364.21 | AR110: 10 | AS110: 15 | AT110: 1000 | AU110: 15 | AV110: 1015 | AW110: 1015000 | AX110: skierniewicki | AY110: 195.33 | BA110: 7343543100
A111: 208133 | B111: Stronie Śląskie.......................................................................................................................................................................................................................................................... | C111: 14608 | E111: 146 | G111: 1207092 | H111: 1207092 | I111: Mszana Dolna (2) | J111: 17637 | L111: 0811 | M111: 811000 | N111: żarski | O111: 139278 | P111: 1393 | Q111: 96876 | R111: 70 | S111: 49 | T111: 86 | AF111: 02 | AG111: 17 | AH111: 04 | AI111: 3 | AJ111: 200000 | AK111: 17000 | AL111: 40 | AM111: 3 | AN111: 217043 | AO111: STRZELIN | AP111: 2382.23 | AR111: 10 | AS111: 16 | AT111: 1000 | AU111: 16 | AV111: 1016 | AW111: 1016000 | AX111: tomaszowski | AY111: 245.25 | BA111: 7343543904
A112: 208134 | C112: 238 | E112: 2 | G112: 1207102 | H112: 1207102 | I112: Niedźwiedź (2) | J112: 7333 | N112: Miasta na prawach powiatu: | AF112: 02 | AG112: 17 | AH112: 05 | AI112: 3 | AJ112: 200000 | AK112: 17000 | AL112: 50 | AM112: 3 | AN112: 217053 | AO112: WIĄZÓW | AP112: 1524.86 | AR112: 10 | AS112: 17 | AT112: 1000 | AU112: 17 | AV112: 1017 | AW112: 1017000 | AX112: wieluński | AY112: 208.04 | BA112: 7343544080
A113: 208135 | C113: 14370 | E113: 144 | G113: 1207112 | H113: 1207112 | I113: Słopnice (2) | J113: 6914 | N113: Cities with powiat status: | AF113: 02 | AG113: 18 | AH113: 01 | AI113: 2 | AJ113: 200000 | AK113: 18000 | AL113: 10 | AM113: 2 | AN113: 218012 | AO113: KOSTOMŁOTY | AP113: 1701.88 | AR113: 10 | AS113: 18 | AT113: 1000 | AU113: 18 | AV113: 1018 | AW113: 1018000 | AX113: wieruszowski | AY113: 240.93 | BA113: 7350014012
A114: 208143 | B114: Szczytna.......................................................................................................................................................................................................................................................... | C114: 13237 | E114: 132 | G114: 1207122 | H114: 1207122 | I114: Tymbark (2) | J114: 6395 | L114: 0861 | M114: 861000 | N114: Gorzów Wielkopolski | O114: 8572 | P114: 86 | Q114: 123921 | R114: 1446 | S114: 31 | T114: 29 | AF114: 02 | AG114: 18 | AH114: 02 | AI114: 2 | AJ114: 200000 | AK114: 18000 | AL114: 20 | AM114: 2 | AN114: 218022 | AO114: MALCZYCE | AP114: 1344.12 | AR114: 10 | AS114: 19 | AT114: 1000 | AU114: 19 | AV114: 1019 | AW114: 1019000 | AX114: zduńskowolski | AY114: 237.6 | BA114: 7351006084
A115: 208144 | C115: 8038 | E115: 80 | G115: 1208000 | H115: 1208000 | I115: Powiat miechowski | J115: 46998 | L115: 0862 | M115: 862000 | N115: Zielona Góra | O115: 27832 | P115: 277 | Q115: 140297 | R115: 504 | S115: 6 | T115: 24 | AF115: 02 | AG115: 18 | AH115: 03 | AI115: 2 | AJ115: 200000 | AK115: 18000 | AL115: 30 | AM115: 2 | AN115: 218032 | AO115: MIĘKINIA | AP115: 3296.42 | AR115: 10 | AS115: 20 | AT115: 1000 | AU115: 20 | AV115: 1020 | AW115: 1020000 | AX115: zgierski | AY115: 297.64 | BA115: 7351026738
A116: 208145 | C116: 5199 | E116: 52 | G116: 1208012 | H116: 1208012 | I116: Charsznica (2) | J116: 7128 | N116: WOJ. ŁÓDZKIE | AF116: 02 | AG116: 18 | AH116: 04 | AI116: 3 | AJ116: 200000 | AK116: 18000 | AL116: 40 | AM116: 3 | AN116: 218043 | AO116: ŚRODA ŚLĄSKA | AP116: 2855.01 | AR116: 10 | AS116: 21 | AT116: 1000 | AU116: 21 | AV116: 1021 | AW116: 1021000 | AX116: brzeziński | AY116: 236.77 | BA116: 7351071414
B117: Powiat legnicki (8 gmin) | G117: 1208022 | H117: 1208022 | I117: Gołcza (2) | J117: 5977 | N117: Powiaty: | AF117: 02 | AG117: 18 | AH117: 05 | AI117: 2 | AJ117: 200000 | AK117: 18000 | AL117: 50 | AM117: 2 | AN117: 218052 | AO117: UDANIN | AP117: 1564.8 | AR117: 10 | AS117: 61 | AT117: 1000 | AU117: 61 | AV117: 1061 | AW117: 1061000 | AX117: Łódź | AY117: 396.62 | BA117: 7352175044
G118: 1208032 | H118: 1208032 | I118: Kozłów (2) | J118: 4440 | N118: Powiats: | AF118: 02 | AG118: 19 | AH118: 01 | AI118: 1 | AJ118: 200000 | AK118: 19000 | AL118: 10 | AM118: 1 | AN118: 219011 | AO118: ŚWIDNICA | AP118: 2192.7 | AR118: 10 | AS118: 62 | AT118: 1000 | AU118: 62 | AV118: 1062 | AW118: 1062000 | AX118: Piotrków Trybunalski | AY118: 311.6 | BA118: 7352703193
A119: 209011 | B119: Chojnów.......................................................................................................................................................................................................................................................... | C119: 532 | D119: ↓ | E119: 5 | G119: 1208042 | H119: 1208042 | I119: Książ Wielki (2) | J119: 4879 | L119: 1001 | M119: 1001000 | N119: bełchatowski | O119: 96760 | P119: 968 | Q119: 112997 | R119: 117 | S119: 136 | T119: 61 | AF119: 02 | AG119: 19 | AH119: 02 | AI119: 1 | AJ119: 200000 | AK119: 19000 | AL119: 20 | AM119: 1 | AN119: 219021 | AO119: ŚWIEBODZICE | AP119: 2075.42 | AR119: 10 | AS119: 63 | AT119: 1000 | AU119: 63 | AV119: 1063 | AW119: 1063000 | AX119: Skierniewice | AY119: 370.46 | BA119: 7352833352
G120: 1208053 | H120: 1208053 | I120: Miechów (3) | J120: 18802 | L120: 1021 | M120: 1021000 | N120: brzeziński | O120: 35856 | P120: 359 | Q120: 30890 | R120: 86 | S120: 308 | T120: 308 | AF120: 02 | AG120: 19 | AH120: 03 | AI120: 2 | AJ120: 200000 | AK120: 19000 | AL120: 30 | AM120: 2 | AN120: 219032 | AO120: DOBROMIERZ | AP120: 1671.68 | AR120: 12 | AS120: 01 | AT120: 1200 | AU120: 1 | AV120: 1201 | AW120: 1201000 | AX120: bocheński | AY120: 228.01 | BA120: 7352834179
A121: 209022 | B121: Chojnów.......................................................................................................................................................................................................................................................... | C121: 23092 | E121: 231 | G121: 1208054 | H121: 1208054 | I121: Miechów - miasto (4) | J121: 11027 | L121: 1002 | M121: 1002000 | N121: kutnowski | O121: 88686 | P121: 887 | Q121: 97295 | R121: 110 | S121: 155 | T121: 85 | AF121: 02 | AG121: 19 | AH121: 04 | AI121: 3 | AJ121: 200000 | AK121: 19000 | AL121: 40 | AM121: 3 | AN121: 219043 | AO121: JAWORZYNA ŚLĄSKA | AP121: 1483.86 | AR121: 12 | AS121: 02 | AT121: 1200 | AU121: 2 | AV121: 1202 | AW121: 1202000 | AX121: brzeski | AY121: 187.64 | BA121: 7352834759
A122: 209032 | B122: Krotoszyce.......................................................................................................................................................................................................................................................... | C122: 6750 | E122: 67 | G122: 1208055 | H122: 1208055 | I122: Miechów - obszar wiejski (5) | J122: 7775 | L122: 1003 | M122: 1003000 | N122: łaski | O122: 61823 | P122: 618 | Q122: 50103 | R122: 81 | S122: 248 | T122: 242 | AF122: 02 | AG122: 19 | AH122: 05 | AI122: 2 | AJ122: 200000 | AK122: 19000 | AL122: 50 | AM122: 2 | AN122: 219052 | AO122: MARCINOWICE | AP122: 1672.75 | AR122: 12 | AS122: 03 | AT122: 1200 | AU122: 3 | AV122: 1203 | AW122: 1203000 | AX122: chrzanowski | AY122: 282.69 | BA122: 7352841452
A123: 209042 | B123: Kunice.......................................................................................................................................................................................................................................................... | C123: 9266 | E123: 93 | G123: 1208062 | H123: 1208062 | I123: Racławice (2) | J123: 2427 | L123: 1004 | M123: 1004000 | N123: łęczycki | O123: 77275 | P123: 773 | Q123: 50143 | R123: 65 | S123: 188 | T123: 241 | AF123: 02 | AG123: 19 | AH123: 06 | AI123: 3 | AJ123: 200000 | AK123: 19000 | AL123: 60 | AM123: 3 | AN123: 219063 | AO123: STRZEGOM | AP123: 2522.61 | AR123: 12 | AS123: 04 | AT123: 1200 | AU123: 4 | AV123: 1204 | AW123: 1204000 | AX123: dąbrowski | AY123: 130.41 | BA123: 7352843273
A124: 209052 | B124: Legnickie Pole.......................................................................................................................................................................................................................................................... | C124: 8524 | E124: 85 | G124: 1208072 | H124: 1208072 | I124: Słaboszów (2) | J124: 3345 | L124: 1005 | M124: 1005000 | N124: łowicki | O124: 98817 | P124: 988 | Q124: 78616 | R124: 80 | S124: 131 | T124: 132 | AF124: 02 | AG124: 19 | AH124: 07 | AI124: 2 | AJ124: 200000 | AK124: 19000 | AL124: 70 | AM124: 2 | AN124: 219072 | AO124: ŚWIDNICA | AP124: 2036.99 | AR124: 12 | AS124: 05 | AT124: 1200 | AU124: 5 | AV124: 1205 | AW124: 1205000 | AX124: gorlicki | AY124: 159.75 | BA124: 7352849761
A125: 209062 | B125: Miłkowice.......................................................................................................................................................................................................................................................... | C125: 8663 | E125: 87 | G125: 1209000 | H125: 1209000 | I125: Powiat myślenicki | J125: 129538 | L125: 1006 | M125: 1006000 | N125: łódzki wschodni | O125: 49976 | P125: 500 | Q125: 71705 | R125: 143 | S125: 281 | T125: 159 | AF125: 02 | AG125: 19 | AH125: 08 | AI125: 3 | AJ125: 200000 | AK125: 19000 | AL125: 80 | AM125: 3 | AN125: 219083 | AO125: ŻARÓW | AP125: 2422.02 | AR125: 12 | AS125: 06 | AT125: 1200 | AU125: 6 | AV125: 1206 | AW125: 1206000 | AX125: krakowski | AY125: 367.39 | BA125: 7352851410
A126: 209082 | B126: Ruja.......................................................................................................................................................................................................................................................... | C126: 7330 | E126: 73 | G126: 1209013 | H126: 1209013 | I126: Dobczyce (3) | J126: 15509 | L126: 1007 | M126: 1007000 | N126: opoczyński | O126: 104019 | P126: 1040 | Q126: 76623 | R126: 74 | S126: 114 | T126: 141 | AF126: 02 | AG126: 20 | AH126: 01 | AI126: 3 | AJ126: 200000 | AK126: 20000 | AL126: 10 | AM126: 3 | AN126: 220013 | AO126: OBORNIKI ŚLĄSKIE | AP126: 2037.88 | AR126: 12 | AS126: 07 | AT126: 1200 | AU126: 7 | AV126: 1207 | AW126: 1207000 | AX126: limanowski | AY126: 178.46 | BA126: 7352854845
G127: 1209014 | H127: 1209014 | I127: Dobczyce - miasto (4) | J127: 6205 | L127: 1008 | M127: 1008000 | N127: pabianicki | O127: 49218 | P127: 492 | Q127: 119289 | R127: 242 | S127: 283 | T127: 48 | AF127: 02 | AG127: 20 | AH127: 02 | AI127: 3 | AJ127: 200000 | AK127: 20000 | AL127: 20 | AM127: 3 | AN127: 220023 | AO127: PRUSICE | AP127: 1931.09 | AR127: 12 | AS127: 08 | AT127: 1200 | AU127: 8 | AV127: 1208 | AW127: 1208000 | AX127: miechowski | AY127: 171.38 | BA127: 7352856459
A128: 209073 | B128: Prochowice.......................................................................................................................................................................................................................................................... | C128: 10251 | E128: 103 | G128: 1209015 | H128: 1209015 | I128: Dobczyce - obszar wiejski (5) | J128: 9304 | L128: 1009 | M128: 1009000 | N128: pajęczański | O128: 80382 | P128: 804 | Q128: 51597 | R128: 64 | S128: 179 | T128: 238 | AF128: 02 | AG128: 20 | AH128: 03 | AI128: 3 | AJ128: 200000 | AK128: 20000 | AL128: 30 | AM128: 3 | AN128: 220033 | AO128: TRZEBNICA | AP128: 2153.89 | AR128: 12 | AS128: 09 | AT128: 1200 | AU128: 9 | AV128: 1209 | AW128: 1209000 | AX128: myślenicki | AY128: 228.14 | BA128: 7360007798
A129: 209074 | C129: 985 | E129: 10 | G129: 1209022 | H129: 1209022 | I129: Lubień (2) | J129: 10073 | L129: 1010 | M129: 1010000 | N129: piotrkowski | O129: 142874 | P129: 1429 | Q129: 91315 | R129: 64 | S129: 43 | T129: 94 | AF129: 02 | AG129: 20 | AH129: 04 | AI129: 2 | AJ129: 200000 | AK129: 20000 | AL129: 40 | AM129: 2 | AN129: 220042 | AO129: WISZNIA MAŁA | AP129: 3890.96 | AR129: 12 | AS129: 10 | AT129: 1200 | AU129: 10 | AV129: 1210 | AW129: 1210000 | AX129: nowosądecki | AY129: 172.93 | BA129: 7361198317
A130: 209075 | C130: 9266 | E130: 93 | G130: 1209033 | H130: 1209033 | I130: Myślenice (3) | J130: 45403 | L130: 1011 | M130: 1011000 | N130: poddębicki | O130: 88121 | P130: 881 | Q130: 41205 | R130: 47 | S130: 156 | T130: 279 | AF130: 02 | AG130: 20 | AH130: 05 | AI130: 2 | AJ130: 200000 | AK130: 20000 | AL130: 50 | AM130: 2 | AN130: 220052 | AO130: ZAWONIA | AP130: 2727.6 | AR130: 12 | AS130: 11 | AT130: 1200 | AU130: 11 | AV130: 1211 | AW130: 1211000 | AX130: nowotarski | AY130: 152.72 | BA130: 7361699456
B131: Powiat lubański (7 gmin) | G131: 1209034 | H131: 1209034 | I131: Myślenice - miasto (4) | J131: 17846 | L131: 1012 | M131: 1012000 | N131: radomszczański | O131: 144257 | P131: 1443 | Q131: 113315 | R131: 79 | S131: 42 | T131: 60 | AF131: 02 | AG131: 20 | AH131: 06 | AI131: 3 | AJ131: 200000 | AK131: 20000 | AL131: 60 | AM131: 3 | AN131: 220063 | AO131: ŻMIGRÓD | AP131: 1595.35 | AR131: 12 | AS131: 12 | AT131: 1200 | AU131: 12 | AV131: 1212 | AW131: 1212000 | AX131: olkuski | AY131: 299.76 | BA131: 7361705814
G132: 1209035 | H132: 1209035 | I132: Myślenice - obszar wiejski (5) | J132: 27557 | L132: 1013 | M132: 1013000 | N132: rawski | O132: 64620 | P132: 646 | Q132: 48808 | R132: 76 | S132: 236 | T132: 246 | AF132: 02 | AG132: 21 | AH132: 01 | AI132: 1 | AJ132: 200000 | AK132: 21000 | AL132: 10 | AM132: 1 | AN132: 221011 | AO132: BOGUSZÓW-GORCE | AP132: 1008.96 | AR132: 12 | AS132: 13 | AT132: 1200 | AU132: 13 | AV132: 1213 | AW132: 1213000 | AX132: oświęcimski | AY132: 278.85 | BA132: 7361717220
A133: 210011 | B133: Lubań.......................................................................................................................................................................................................................................................... | C133: 1612 | E133: 16 | G133: 1209042 | H133: 1209042 | I133: Pcim (2) | J133: 11124 | L133: 1014 | M133: 1014000 | N133: sieradzki | O133: 149083 | P133: 1491 | Q133: 118240 | R133: 79 | S133: 36 | T133: 50 | AF133: 02 | AG133: 21 | AH133: 02 | AI133: 1 | AJ133: 200000 | AK133: 21000 | AL133: 20 | AM133: 1 | AN133: 221021 | AO133: JEDLINA-ZDRÓJ | AP133: 1419.84 | AR133: 12 | AS133: 14 | AT133: 1200 | AU133: 14 | AV133: 1214 | AW133: 1214000 | AX133: proszowicki | AY133: 168.68 | BA133: 7361717680
A134: 210021 | B134: Świeradów-Zdrój.......................................................................................................................................................................................................................................................... | C134: 2072 | E134: 21 | G134: 1209052 | H134: 1209052 | I134: Raciechowice (2) | J134: 6409 | L134: 1015 | M134: 1015000 | N134: skierniewicki | O134: 75338 | P134: 753 | Q134: 38195 | R134: 51 | S134: 193 | T134: 291 | AF134: 02 | AG134: 21 | AH134: 03 | AI134: 1 | AJ134: 200000 | AK134: 21000 | AL134: 30 | AM134: 1 | AN134: 221031 | AO134: SZCZAWNO-ZDRÓJ | AP134: 2631.65 | AR134: 12 | AS134: 15 | AT134: =AR134*100 -> 1200 | AU134: =+AS134*1 -> 15 | AV134: =AT134+AU134 -> 1215 | AW134: =AV134*1000 -> 1215000 | AX134: suski | AY134: 205.68 | BA134: 7361720593
G135: 1209062 | H135: 1209062 | I135: Siepraw (2) | J135: 9557 | L135: 1016 | M135: 1016000 | N135: tomaszowski | O135: 102479 | P135: 1025 | Q135: 117259 | R135: 114 | S135: 120 | T135: 52 | AF135: 02 | AG135: 21 | AH135: 04 | AI135: 2 | AJ135: 200000 | AK135: 21000 | AL135: 40 | AM135: 2 | AN135: 221042 | AO135: CZARNY BÓR | AP135: 2004.14 | AR135: 12 | AS135: 16 | AT135: 1200 | AU135: 16 | AV135: 1216 | AW135: 1216000 | AX135: tarnowski | AY135: 170.7 | BA135: 7371004591
A136: 210042 | B136: Lubań.......................................................................................................................................................................................................................................................... | C136: 14234 | E136: 142 | G136: 1209073 | H136: 1209073 | I136: Sułkowice (3) | J136: 15160 | L136: 1017 | M136: 1017000 | N136: wieluński | O136: 92648 | P136: 926 | Q136: 76699 | R136: 83 | S136: 148 | T136: 140 | AF136: 02 | AG136: 21 | AH136: 05 | AI136: 3 | AJ136: =AF136*100000 -> 200000 | AK136: =AG136*1000 -> 21000 | AL136: =AH136*10 -> 50 | AM136: =AI136*1 -> 3 | AN136: =SUM(AJ136:AM136) -> 221053 | AO136: GŁUSZYCA | AP136: 1037.75 | AR136: 12 | AS136: 17 | AT136: 1200 | AU136: 17 | AV136: 1217 | AW136: 1217000 | AX136: tatrzański | AY136: 206.45 | BA136: 7371005969
A137: 210062 | B137: Platerówka.......................................................................................................................................................................................................................................................... | C137: 4790 | E137: 48 | G137: 1209074 | H137: 1209074 | I137: Sułkowice - miasto (4) | J137: 6513 | L137: 1018 | M137: =L137*1000 -> 1018000 | N137: wieruszowski | O137: 57713 | P137: 577 | Q137: 42213 | R137: 73 | S137: 263 | T137: 274 | AF137: 02 | AG137: 21 | AH137: 06 | AI137: 3 | AJ137: 200000 | AK137: 21000 | AL137: 60 | AM137: 3 | AN137: 221063 | AO137: MIEROSZÓW | AP137: 1759.41 | AR137: 12 | AS137: 18 | AT137: 1200 | AU137: 18 | AV137: 1218 | AW137: 1218000 | AX137: wadowicki | AY137: 236.22 | BA137: 7371007419
A138: 210072 | B138: Siekierczyn.......................................................................................................................................................................................................................................................... | C138: 4950 | E138: 49 | G138: 1209075 | H138: 1209075 | I138: Sułkowice - obszar wiejski (5) | J138: 8647 | L138: 1019 | M138: 1019000 | N138: zduńskowolski | O138: 36923 | P138: 369 | Q138: 66766 | R138: 181 | S138: 305 | T138: 171 | AF138: 02 | AG138: 21 | AH138: 07 | AI138: 2 | AJ138: 200000 | AK138: 21000 | AL138: 70 | AM138: 2 | AN138: 221072 | AO138: STARE BOGACZOWICE | AP138: 1496.95 | AR138: 12 | AS138: 19 | AT138: 1200 | AU138: 19 | AV138: 1219 | AW138: 1219000 | AX138: wielicki | AY138: 349.43 | BA138: 7371008784
G139: 1209082 | H139: 1209082 | I139: Tokarnia (2) | J139: 8789 | L139: 1020 | M139: 1020000 | N139: zgierski | O139: 85518 | P139: 855 | Q139: 165916 | R139: 194 | S139: 162 | T139: 12 | AF139: 02 | AG139: 21 | AH139: 08 | AI139: 2 | AJ139: 200000 | AK139: 21000 | AL139: 80 | AM139: 2 | AN139: 221082 | AO139: WALIM | AP139: 1920.46 | AR139: 12 | AS139: 61 | AT139: 1200 | AU139: 61 | AV139: 1261 | AW139: 1261000 | AX139: Kraków | AY139: 537.71 | BA139: 7371008991
A140: 210033 | B140: Leśna.......................................................................................................................................................................................................................................................... | C140: 10460 | E140: 105 | G140: 1209092 | H140: 1209092 | I140: Wiśniowa (2) | J140: 7514 | N140: Miasta na prawach powiatu: | AF140: 02 | AG140: 22 | AH140: 01 | AI140: 3 | AJ140: 200000 | AK140: 22000 | AL140: 10 | AM140: 3 | AN140: 222013 | AO140: BRZEG DOLNY | AP140: 2927.97 | AR140: 12 | AS140: 62 | AT140: 1200 | AU140: 62 | AV140: 1262 | AW140: 1262000 | AX140: Nowy Sącz | AY140: 337.72 | BA140: 7371022962
A141: 210034 | C141: 856 | E141: 9 | G141: 1210000 | H141: 1210000 | I141: Powiat nowosądecki | J141: 214933 | N141: Cities with powiat status: | AF141: 02 | AG141: 22 | AH141: 02 | AI141: 2 | AJ141: 200000 | AK141: 22000 | AL141: 20 | AM141: 2 | AN141: 222022 | AO141: WIŃSKO | AP141: 1251.28 | AR141: 12 | AS141: 63 | AT141: 1200 | AU141: 63 | AV141: 1263 | AW141: 1263000 | AX141: Tarnów | AY141: 278.92 | BA141: 7371152618
A142: 210035 | C142: 9604 | E142: 96 | G142: 1210011 | H142: 1210011 | I142: Grybów (1) | J142: 5953 | L142: 1061 | M142: 1061000 | N142: Łódź | O142: 29325 | P142: 293 | Q142: 685285 | R142: 2337 | S142: 4 | T142: 3 | AF142: 02 | AG142: 22 | AH142: 03 | AI142: 3 | AJ142: 200000 | AK142: 22000 | AL142: 30 | AM142: 3 | AN142: 222033 | AO142: WOŁÓW | AP142: 1686.09 | AR142: 14 | AS142: 01 | AT142: 1400 | AU142: 1 | AV142: 1401 | AW142: 1401000 | AX142: białobrzeski | AY142: 172.36 | BA142: 7371188119
A143: 210053 | B143: Olszyna.......................................................................................................................................................................................................................................................... | C143: 4712 | E143: 47 | G143: 1210022 | H143: 1210022 | I143: Chełmiec (2) | J143: 29572 | L143: 1062 | M143: 1062000 | N143: Piotrków Trybunalski | O143: 6724 | P143: 67 | Q143: 73670 | R143: 1096 | S143: 44 | T143: 49 | AF143: 02 | AG143: 23 | AH143: 01 | AI143: 2 | AJ143: 200000 | AK143: 23000 | AL143: 10 | AM143: 2 | AN143: 223012 | AO143: CZERNICA | AP143: 2721.65 | AR143: 14 | AS143: 02 | AT143: 1400 | AU143: 2 | AV143: 1402 | AW143: 1402000 | AX143: ciechanowski | AY143: 243.62 | BA143: 7371193876
A144: 210054 | C144: 2026 | E144: 20 | G144: 1210032 | H144: 1210032 | I144: Gródek nad Dunajcem (2) | J144: 8935 | L144: 1063 | M144: 1063000 | N144: Skierniewice | O144: 3460 | P144: 35 | Q144: 48178 | R144: 1392 | S144: 57 | T144: 62 | AF144: 02 | AG144: 23 | AH144: 02 | AI144: 2 | AJ144: 200000 | AK144: 23000 | AL144: 20 | AM144: 2 | AN144: 223022 | AO144: DŁUGOŁĘKA | AP144: 3180.94 | AR144: 14 | AS144: 03 | AT144: 1400 | AU144: 3 | AV144: 1403 | AW144: 1403000 | AX144: garwoliński | AY144: 221.52 | BA144: 7371283697
A145: 210055 | C145: 2686 | E145: 27 | G145: 1210042 | H145: 1210042 | I145: Grybów (2) | J145: 25352 | N145: WOJ. MAŁOPOLSKIE | AF145: 02 | AG145: 23 | AH145: 03 | AI145: 2 | AJ145: 200000 | AK145: 23000 | AL145: 30 | AM145: 2 | AN145: 223032 | AO145: JORDANÓW ŚLĄSKI | AP145: 1878.27 | AR145: 14 | AS145: 04 | AT145: 1400 | AU145: 4 | AV145: 1404 | AW145: 1404000 | AX145: gostyniński | AY145: 187.88 | BA145: 7371362818
B146: Powiat lubiński (4 gminy) | G146: 1210052 | H146: 1210052 | I146: Kamionka Wielka (2) | J146: 10441 | N146: Powiaty: | AF146: 02 | AG146: 23 | AH146: 04 | AI146: 3 | AJ146: 200000 | AK146: 23000 | AL146: 40 | AM146: 3 | AN146: 223043 | AO146: KĄTY WROCŁAWSKIE | AP146: 4273.73 | AR146: 14 | AS146: 05 | AT146: 1400 | AU146: 5 | AV146: 1405 | AW146: 1405000 | AX146: grodziski | AY146: 470.51 | BA146: 7371410411
G147: 1210062 | H147: 1210062 | I147: Korzenna (2) | J147: 14364 | N147: Powiats: | AF147: 02 | AG147: 23 | AH147: 05 | AI147: 2 | AJ147: 200000 | AK147: 23000 | AL147: 50 | AM147: 2 | AN147: 223052 | AO147: KOBIERZYCE | AP147: 9350.45 | AR147: 14 | AS147: 06 | AT147: 1400 | AU147: 6 | AV147: 1406 | AW147: 1406000 | AX147: grójecki | AY147: 256.52 | BA147: 7372206836
A148: 211011 | B148: Lubin.......................................................................................................................................................................................................................................................... | C148: 4077 | E148: 41 | G148: 1210073 | H148: 1210073 | I148: Krynica-Zdrój (3) | J148: 15762 | L148: 1201 | M148: 1201000 | N148: bocheński | O148: 64856 | P148: 649 | Q148: 106514 | R148: 164 | S148: 235 | T148: 75 | AF148: 02 | AG148: 23 | AH148: 06 | AI148: 2 | AJ148: 200000 | AK148: 23000 | AL148: 60 | AM148: 2 | AN148: 223062 | AO148: MIETKÓW | AP148: 2224.38 | AR148: 14 | AS148: 07 | AT148: 1400 | AU148: 7 | AV148: 1407 | AW148: 1407000 | AX148: kozienicki | AY148: 259.02 | BA148: 7381010274
G149: 1210074 | H149: 1210074 | I149: Krynica-Zdrój - miasto (4) | J149: 9712 | L149: 1202 | M149: 1202000 | N149: brzeski | O149: 59052 | P149: 591 | Q149: 93206 | R149: 158 | S149: 257 | T149: 91 | AF149: 02 | AG149: 23 | AH149: 07 | AI149: 3 | AJ149: 200000 | AK149: 23000 | AL149: 70 | AM149: 3 | AN149: 223073 | AO149: SOBÓTKA | AP149: 2206.72 | AR149: 14 | AS149: 08 | AT149: 1400 | AU149: 8 | AV149: 1408 | AW149: 1408000 | AX149: legionowski | AY149: 439.68 | BA149: 7381013686
A150: 211022 | B150: Lubin.......................................................................................................................................................................................................................................................... | C150: 28978 | E150: 290 | G150: 1210075 | H150: 1210075 | I150: Krynica-Zdrój - obszar wiejski (5) | J150: 6050 | L150: 1203 | M150: 1203000 | N150: chrzanowski | O150: 37012 | P150: 370 | Q150: 125385 | R150: 339 | S150: 304 | T150: 43 | AF150: 02 | AG150: 23 | AH150: 08 | AI150: 3 | AJ150: 200000 | AK150: 23000 | AL150: 80 | AM150: 3 | AN150: 223083 | AO150: SIECHNICE | AP150: 3987.19 | AR150: 14 | AS150: 09 | AT150: 1400 | AU150: 9 | AV150: 1409 | AW150: 1409000 | AX150: lipski | AY150: 147.26 | BA150: 7381021958
A151: 211032 | B151: Rudna.......................................................................................................................................................................................................................................................... | C151: 21664 | E151: 217 | G151: 1210082 | H151: 1210082 | I151: Łabowa (2) | J151: 5960 | L151: 1204 | M151: 1204000 | N151: dąbrowski | O151: 53025 | P151: 530 | Q151: 59350 | R151: 112 | S151: 274 | T151: 200 | AF151: 02 | AG151: 23 | AH151: 09 | AI151: 2 | AJ151: 200000 | AK151: 23000 | AL151: 90 | AM151: 2 | AN151: 223092 | AO151: ŻÓRAWINA | AP151: 3144.33 | AR151: 14 | AS151: 10 | AT151: 1400 | AU151: 10 | AV151: 1410 | AW151: 1410000 | AX151: łosicki | AY151: 160.85 | BA151: 7381022314
